Workbook

Sheet Титульный
A1: Базовая комплектация | AY1: 1
A2: 1. Каркас модулей изготовлен из ЛДСП оклеенной кромкой ПВХ 0,4 мм. Задняя стенка модулей из облагороженной ХДФ;
A3: 2. Фасад; | AY3: 1
A4: 3. Петли Hettich Sensys плавного закрывания;
A5: 4. | B5: Полки ЛДСП
A6: 5. Роликовые направляющие в выкатных ящиках тумб и шкафов;
A7: 6. Шариковые направляющие Hafele в выкатном ящике стола туалетного, кровати 2 ящика и тумб с соответствующей пометкой "Шар";
A8: 7. Штанга в шкафах для одежды и шкафах комбинированных;
A9: 8. Регулируемые ножки PI04;
A10: 9. Стекло тонированное в шкафах-витринах;
A11: 10. Крючки FK 009 020 на панелях настенных. (На панелях шириной 400 - 2 крючка, а на панелях шириной 540 - 3 крючка)
A12: 11. Обращаем внимание, что в стоимость мебели ручки не входят! Кроме: кнопка "Латунь" в мебели для гостинной "Альфа" и ручка Скоба 1069, 128 мм. для мебели "Бета". "Сириус" комплектуется ручкой FM-021.
A13: Марго, краткое описание
A14: 1 | B14: Фасад Марого и Марго 16 выполнен из ЛДСП толщиной 16 мм. оклеенной кромкой ПВХ толщиной 1 мм. | AV14: Цвета Марго
A15: 2 | B15: Фасад шкафов витрин и полувитрин - рамочный, из алюминиевого профиля толщиной 21 мм. Стекло - Тонированное | AV15: Дуб шамони темный
A16: 3 | B16: Крышки столов, тумб, комода, стола туалетного, спинки кроватей Марго выполнены из ЛДСП толщиной 22 мм. и оклеенной кромкой ПВХ толщиной 1 мм. | AV16: Дуб шамони светлый
A17: 4 | B17: Сверловка под ручку 160 мм. | AV17: Сонома
A18: 5 | B18: Обращаем Ваше внимание на то, что каркас "Марго" изготавливается только следующих цветов - Капучино, Дуб шамони темный и Дуб шамони светлый, Сонома
A19: 6 | B19: Обращаем Ваше внимание на то, что каркас тумб Марго 16 может изготавливаться в любом цвете ЛДСП за исключением Зеленого лайма и Лаванды. Фасад набора мебели Марго и тумб Марго 16 может изготавливаться в любом цвете ЛДСП согласно классификации цветов фасадов.
A20: 7 | B20: Для фасада Марго и Марго 16 может быть использовано только накладное зеркало.
A21: Классификация цветов фасадов Марго и Марго 16
A22: 1 ценовая категория Марго 16 | K22: 2 ценовая категория Марго 16 | V22: 3 ценовая категория Марго 16 | AH22: 3 ценовая категория Марго 16 | AT22: 4 ценовая категория Марго 16
A23: Антрацит | K23: Бежевый | V23: Сосна Касцина EG | AH23: Зеленый шалфей | AT23: Дуб Галифакс натур-й EG
A24: Белая шагрень+ | K24: Сонома+ | V24: Чикаго серый EG | AH24: Зеленый эвкалипт | AT24: Дуб каселла коричневый
A25: Венге+ | K25: Дуб шамони светлый+ | V25: Чикаго темный EG | AH25: Кашемир серый | AT25: Дуб каселла натуральный
A26: Серый | K26: Выбеленное дерево+ | V26: Хюгге | AT26: Желтый песок
A27: Зеленый лайм+ | K27: Дуб гранж колон-ный+ | V27: Крафт
A28: Черный | K28: Цемент+ | V28: Рейн
A29: Дуб эвок приб-ный + | V29: Дуб барония светлый
A30: Винтаж+ | V30: Дуб Хантон EG
O32: Внимание! Следующие цвета ЛДСП: Лаванда, Бежевый, Серый, Антрацит и Черный кромяться кромкой тощиной 0.4 мм. | AI32: В случае заказа каркаса в цветах не 1-й ц.к., нужно к стоимости каркаса прибавить % соответсвующей категории
AI33: 2 ц.к. - 10% | AP33: 4 ц.к. - 80%
AI34: 3 ц.к. - 40%
A36: Классификация цветов фасадов МДФ в пленке ПВХ
A38: 1 ценовая категория
A39: Древесные матовые | I39: Сандал белый, Дуб Венге, Дуб Сонома, Кремовый Ясень, Ель сизая, Крымское дерево, Дримвуд Латте, Софора канзати, Софора давиди, Карельская береза, Снежное дерево, Миндаль
A40: Однотонные матовые | I40: Черные цветы, Белая матовая, Моти, Макарун
A42: 2 ценовая категория
A43: Супер матовые | I43: Графит, Шафран, Тирамиссу, Пикрит, Керамик, Миррис, Пудра, Риолит, Базальт, Магнолия, Рубелит, Селенит, Нефрит, Обсидиан
A44: Древесные матовые | I44: Белая сосна, Оливковое дерево, Лазурное дерево, Дуб филадельфия, Сосна фактурная, Зеленый патина белая, Стоун, Тис, Квазар, Темное дерево
A45: Однотонные глянцевые | I45: Белый металлик, Ваниль металлик, Белый глянец, Черный глянец, Латте, Макиотти глянец
A48: 3 ценовая категория
A49: Древесные матовые | I49: Вяз седой, Томан, Московский ясень
A50: Супер матовые | I50: ,Авери, Шелк аметист, Желтый пик, Космический оранжевый
A51: Фантазийные | I51: Камень гранж светлый Бруклин
A52: ВНИМАНИЕ!!! Возможны незначительные изменения в тональности пленки ПВХ (2-3 тона), что не является браком
A54: Таблица зависимости цвета внутренней стороны фасада от цвета пленки ПВХ:
A57: Пленка ПВХ | H57: Обратная сторона | P57: Пленка ПВХ | W57: Обратная сторона | AE57: Пленка ПВХ | AL57: Обратная сторона
A58: Платан глянец | H58: Белая | P58: Серебрянный дождь | W58: Белая | AE58: Ярко-зеленый мет | AL58: Белая
A59: Каштан золотистый | H59: Белая | P59: Черный глянец | W59: Белая | AE59: Кожа крокодила | AL59: Белая
A60: Тик | H60: Белая | P60: Желтый глянец | W60: Белая | AE60: Черные цветы | AL60: Белая
A61: Яблоня Тадж | H61: Белая | P61: Белый глянец | W61: Белая | AE61: Шелк Аметист | AL61: Белая
A62: Дуб сокальский | H62: Белая | P62: Ваниль глянец | W62: Белая | AE62: Шелк Крем | AL62: Белая
A63: Миндаль | H63: Белая | P63: Серый металлик | W63: Белая | AE63: Бонди металлик | AL63: Белая
A64: Оливковый глянец | H64: Белая | P64: Красный металлик | W64: Белая | AE64: Фиолет | AL64: Белая
A65: Чайное дерево | H65: Белая | P65: Белый металлик | W65: Белая | AE65: Лайм | AL65: Белая
A66: Темный Венге | H66: Белая | P66: Золотой металлик | W66: Белая | AE66: Индиго | AL66: Белая
A67: Вяз седой | H67: Белая | P67: Хамелеон коричневый | W67: Белая | AE67: Базилик | AL67: Белая
A68: Сандал белый | H68: Белая | P68: Фиолетовый мет | W68: Белая | AE68: Графит | AL68: Белая
A69: Дуб солнечный | H69: Белая | P69: Черный металлик | W69: Белая | AE69: Шафран | AL69: Белая
A70: Дуб беленый | H70: Белая | P70: Оранжевый мет | W70: Белая | AE70: Венге глянец | AL70: Белая
A71: Бордо глянец | H71: Белая | P71: Салатовый мет | W71: Белая | AE71: Латте | AL71: Белая
A72: Кремовый ясень | H72: Белая | P72: Огни Нью-Йорка | W72: Белая | AE72: Гранат металлик | AL72: Белая
A73: Патина Радиал | H73: Белая | P73: Цветы | W73: Белая
A74: Дуб сонома | H74: Белая | P74: Жемчужное дерево | W74: Белая
A75: Ель сизая | H75: Белая | P75: Крымское дерево | W75: Белая
A76: Гриджио/Крема Вен | H76: Белая | P76: Шоколад | W76: Белая
A77: Цветовое исполнение каркасов
A78: Белый, Серый, Венге, Бежевый, Выбеленное дерево, Капучино, Дуб шамони темный, Дуб шамони светлый, Сонома, Антрацит
A80: Варианты фрезеровок фасадов с привязкой ручки
A81: Для новой серии модулей разработаны следующие типы фасадов:
B83: Прованс | J83: Вензель цинк, 96мм | V83: Ручка RS407BAB.4 "Вензель латунь" 96мм | AL83: Юлия
J84: =CEILING('Титульный 2'!J79:L79*Титульный!$AY$1,Титульный!$AY$3) -> 101 | M84: руб/шт. | V84: =CEILING('Титульный 2'!V79:X79*Титульный!$AY$1,Титульный!$AY$3) -> 101
J85: Скоба зол/сер 96мм. | V85: Ручка RS408BAZ.4 "Ладья цинк, 96мм
J86: =CEILING('Титульный 2'!J81:L81*Титульный!$AY$1,Титульный!$AY$3) -> 72 | M86: руб/шт. | V86: =CEILING('Титульный 2'!V81:X81*Титульный!$AY$1,Титульный!$AY$3) -> 141 | Y86: руб/шт.
V87: Ручка RS408BAB.4 "Ладья латунь" 96 мм.
M88: руб/шт. | V88: =CEILING('Титульный 2'!V83:X83*Титульный!$AY$1,Титульный!$AY$3) -> 113 | Y88: руб/шт.
J89: Ручка RS-75, антик латунь, 96 мм. | V89: ОФК 747, 96мм Бронза+белый
J90: =CEILING('Титульный 2'!J85:L85*Титульный!$AY$1,Титульный!$AY$3) -> 96 | M90: руб/шт. | V90: =CEILING('Титульный 2'!V85:X85*Титульный!$AY$1,Титульный!$AY$3) -> 150 | Y90: руб/шт.
J91: Ручка Рейлинг 96 | V91: Ручка RS-77, 96 мм.
J92: =CEILING('Титульный 2'!J87:L87*Титульный!$AY$1,Титульный!$AY$3) -> 66 | M92: руб/шт. | V92: =CEILING('Титульный 2'!V87:X87*Титульный!$AY$1,Титульный!$AY$3) -> 83 | Y92: руб/шт.
J93: Ручка 96 (фарфор/узор золото)
J94: =CEILING('Титульный 2'!J89:L89*Титульный!$AY$1,Титульный!$AY$3) -> 81 | M94: руб/шт.
B96: Бриз | F96: Амелия | J96: Марго | V96: Ручка FS-074 "Волна" 160мм | AH96: Ручка RS-47-1 "хром+черный 160 мм
V97: =CEILING('Титульный 2'!V92:X92*Титульный!$AY$1,Титульный!$AY$3) -> 185 | Y97: руб/шт. | AH97: =CEILING('Титульный 2'!AH92:AJ92*Титульный!$AY$1,Титульный!$AY$3) -> 285 | AK97: руб/шт.
V98: Ручка Модерн 160 мм.
V99: =CEILING('Титульный 2'!V94:X94*Титульный!$AY$1,Титульный!$AY$3) -> 215 | Y99: руб/шт.
V100: Ручка FS-040 , 160мм
V101: =CEILING('Титульный 2'!V96:X96*Титульный!$AY$1,Титульный!$AY$3) -> 318 | Y101: руб/шт.
V102: Ручка Рейлинг 160 мм
V103: =CEILING('Титульный 2'!V98:X98*Титульный!$AY$1,Титульный!$AY$3) -> 62 | Y103: руб/шт.
V104: Ручка RS-74 "Бруш" сатин светлый, 160 мм.
V105: =CEILING('Титульный 2'!V100:X100*Титульный!$AY$1,Титульный!$AY$3) -> 168 | Y105: руб/шт.
V106: Ручка RS-47 "хром+белый 160 мм
V107: =CEILING('Титульный 2'!V102:X102*Титульный!$AY$1,Титульный!$AY$3) -> 285 | Y107: руб/шт.
B109: Лаура | F109: Натали | M109: Скоба 224мм | V109: Диана | AC109: Скоба 1069, 128 мм | AN109: Ручка скоба RS-33 128 мм.
M110: =CEILING('Титульный 2'!M105:O105*Титульный!$AY$1,Титульный!$AY$3) -> 155 | P110: руб/шт. | AC110: =CEILING('Титульный 2'!AC105:AE105*Титульный!$AY$1,Титульный!$AY$3) -> 164 | AF110: руб/шт. | AN110: =CEILING('Титульный 2'!AN105:AP105*Титульный!$AY$1,Титульный!$AY$3) -> 188 | AQ110: руб/шт.
M111: Скоба RLB224, 224 мм
M112: =CEILING('Титульный 2'!M107:O107*Титульный!$AY$1,Титульный!$AY$3) -> 155 | P112: руб/шт.
AC113: Ручка FS-111 "Сатин светлый" 128мм.
AC114: =CEILING('Титульный 2'!AC109:AE109*Титульный!$AY$1,Титульный!$AY$3) -> 345 | AF114: руб/шт.
AC115: Ручка скоба RS-52 128 мм.
AC116: =CEILING('Титульный 2'!AC111:AE111*Титульный!$AY$1,Титульный!$AY$3) -> 84 | AF116: руб/шт.
AC117: Ручка скоба RS-56 128 мм.
AC118: =CEILING('Титульный 2'!AC113:AE113*Титульный!$AY$1,Титульный!$AY$3) -> 185 | AF118: руб/шт.
AC119: Ручка скоба "Спираль" 128 мм.
AC120: =CEILING('Титульный 2'!AC115:AE115*Титульный!$AY$1,Титульный!$AY$3) -> 176 | AF120: руб/шт.
B122: Гретта | Z122: Ручка RC404BAZ.4 "Вензель цинк"
J123: =CEILING('Титульный 2'!J118:L118*Титульный!$AY$1,Титульный!$AY$3) -> 301 | M123: руб/шт. | Z123: =CEILING('Титульный 2'!Z118:AB118*Титульный!$AY$1,Титульный!$AY$3) -> 141 | AC123: руб/шт.
Z124: Ручка RC404BAВ.4 "Вензель латунь"
M125: руб/шт. | Z125: =CEILING('Титульный 2'!Z120:AB120*Титульный!$AY$1,Титульный!$AY$3) -> 71 | AC125: руб/шт.
Z126: Ручка RC405BAZ.4 "Ладья цинк"
M127: руб/шт. | Z127: =CEILING('Титульный 2'!Z122:AB122*Титульный!$AY$1,Титульный!$AY$3) -> 24 | AC127: руб/шт.
Z128: Ручка - кнопка (фарфор/узор золото)
M129: руб/шт. | Z129: =CEILING('Титульный 2'!Z124:AB124*Титульный!$AY$1,Титульный!$AY$3) -> 60 | AC129: руб/шт.
J130: Ручка RC405BAB.4 "Ладья латунь"
J131: =CEILING('Титульный 2'!J126:L126*Титульный!$AY$1,Титульный!$AY$3) -> 30 | M131: руб/шт.
J132: RC 052AB.4/w16 Бронза+белый
J133: =CEILING('Титульный 2'!J128:L128*Титульный!$AY$1,Титульный!$AY$3) -> 76 | M133: руб/шт.
A146: Фасады UV-лак
A147: Фасады UV-лак для корпусной мебели могут быть изготовлены, по умолчанию, в кромке ABS и, по желанию, в кромке 3D акриловой 2 в 1.
A151: Белый скандинавский | E151: Желтый Нарцисс | M151: Капучино | AA151: Оранжевый | AG151: Крем | AL151: Серый шелк
A152: ВНИМАНИЕ! | E152: Фасады UV-лак не изготавливаются на шкафы - витрины!
A157: Рекомендуемые ручки:
F158: Ручка FS-074 "Волна" 160мм | T158: Ручка Модерн 160 мм. | AF158: Ручка FS-040 , 160мм | AR158: Ручка Рейлинг 160 мм
F159: =V97 -> 185 | I159: руб/шт. | T159: =V99 -> 215 | W159: руб/шт. | AF159: =V101 -> 318 | AI159: руб/шт. | AR159: =V103 -> 62 | AU159: руб/шт.
E161: Ручка RS-74 "Бруш" сатин светлый, 160 мм. | Y161: Ручка RS-47 "хром+белый 160 мм | AN161: Ручка RS-47-1 "хром+черный 160 мм
E162: =V105 -> 168 | H162: руб/шт. | Y162: =V107 -> 285 | AB162: руб/шт. | AN162: =AH97 -> 285 | AQ162: руб/шт.
A164: Александрия
H165: Максимальная высота шкафов - 2040 мм. В прайс-листе считается по колонке "1ЦК+патина"
H166: Для Вашего удобства мы рекомендуем Вам комплектовать шкафы багетными блоками.
H167: Багетный блок состоит:
V168: 1. Багет 16, запиленный под необходимым углом;
V169: 2. Панель - козырек "Классика"
H172: Все составляющие багетного блока имеют необходимые сверловки для облегчения процесса сборки и правильной
B173: Фасад | H173: стыковки багета.
H174: Наименование | T174: Габариты, ШхГхВ мм. | AA174: Цена, руб.\шт.
AA175: 1 ЦК | AE175: 1 ЦК + патина | AI175: 2 ЦК | AM175: 3 ЦК
H176: Багетный блок 16 (420) 420 | T176: 510х475х86 | AA176: =_xlfn.CEILING.PRECISE('Титульный 2'!AA159:AD159*Титульный!$AY$1,Титульный!$AY$3) -> 1014 | AE176: =_xlfn.CEILING.PRECISE('Титульный 2'!AE159:AH159*Титульный!$AY$1,Титульный!$AY$3) -> 2054 | AI176: =_xlfn.CEILING.PRECISE('Титульный 2'!AI159:AL159*Титульный!$AY$1,Титульный!$AY$3) -> 1174 | AM176: =_xlfn.CEILING.PRECISE('Титульный 2'!AM159:AP159*Титульный!$AY$1,Титульный!$AY$3) -> 1484
H177: Багетный блок 16 (420) 560 | T177: 650х475х86 | AA177: =_xlfn.CEILING.PRECISE('Титульный 2'!AA160:AD160*Титульный!$AY$1,Титульный!$AY$3) -> 1244 | AE177: =_xlfn.CEILING.PRECISE('Титульный 2'!AE160:AH160*Титульный!$AY$1,Титульный!$AY$3) -> 2544 | AI177: =_xlfn.CEILING.PRECISE('Титульный 2'!AI160:AL160*Титульный!$AY$1,Титульный!$AY$3) -> 1434 | AM177: =_xlfn.CEILING.PRECISE('Титульный 2'!AM160:AP160*Титульный!$AY$1,Титульный!$AY$3) -> 1834
A178: Кремовый ясень | H178: Багетный блок 16 (420) 840 | T178: 930х475х86 | AA178: =_xlfn.CEILING.PRECISE('Титульный 2'!AA161:AD161*Титульный!$AY$1,Титульный!$AY$3) -> 1714 | AE178: =_xlfn.CEILING.PRECISE('Титульный 2'!AE161:AH161*Титульный!$AY$1,Титульный!$AY$3) -> 3504 | AI178: =_xlfn.CEILING.PRECISE('Титульный 2'!AI161:AL161*Титульный!$AY$1,Титульный!$AY$3) -> 1984 | AM178: =_xlfn.CEILING.PRECISE('Титульный 2'!AM161:AP161*Титульный!$AY$1,Титульный!$AY$3) -> 2534
A179: с золотой патиной | H179: Багетный блок 16 (420) 1120 | T179: 1210х475х86 | AA179: =_xlfn.CEILING.PRECISE('Титульный 2'!AA162:AD162*Титульный!$AY$1,Титульный!$AY$3) -> 2194 | AE179: =_xlfn.CEILING.PRECISE('Титульный 2'!AE162:AH162*Титульный!$AY$1,Титульный!$AY$3) -> 4484 | AI179: =_xlfn.CEILING.PRECISE('Титульный 2'!AI162:AL162*Титульный!$AY$1,Титульный!$AY$3) -> 2524 | AM179: =_xlfn.CEILING.PRECISE('Титульный 2'!AM162:AP162*Титульный!$AY$1,Титульный!$AY$3) -> 3244
H180: Багетный блок 16 (420) 1260 | T180: 1350х475х86 | AA180: =_xlfn.CEILING.PRECISE('Титульный 2'!AA163:AD163*Титульный!$AY$1,Титульный!$AY$3) -> 2424 | AE180: =_xlfn.CEILING.PRECISE('Титульный 2'!AE163:AH163*Титульный!$AY$1,Титульный!$AY$3) -> 4964 | AI180: =_xlfn.CEILING.PRECISE('Титульный 2'!AI163:AL163*Титульный!$AY$1,Титульный!$AY$3) -> 2794 | AM180: =_xlfn.CEILING.PRECISE('Титульный 2'!AM163:AP163*Титульный!$AY$1,Титульный!$AY$3) -> 3584
H181: Багетный блок 16 (420) 1400 | T181: 1490х475х86 | AA181: =_xlfn.CEILING.PRECISE('Титульный 2'!AA164:AD164*Титульный!$AY$1,Титульный!$AY$3) -> 2654 | AE181: =_xlfn.CEILING.PRECISE('Титульный 2'!AE164:AH164*Титульный!$AY$1,Титульный!$AY$3) -> 5454 | AI181: =_xlfn.CEILING.PRECISE('Титульный 2'!AI164:AL164*Титульный!$AY$1,Титульный!$AY$3) -> 3064 | AM181: =_xlfn.CEILING.PRECISE('Титульный 2'!AM164:AP164*Титульный!$AY$1,Титульный!$AY$3) -> 3934
A182: Ручка-кнопка "Вензель латунь" | H182: Багетный блок 16 (420) 1680 | T182: 1770х475х86 | AA182: =_xlfn.CEILING.PRECISE('Титульный 2'!AA165:AD165*Титульный!$AY$1,Титульный!$AY$3) -> 3134 | AE182: =_xlfn.CEILING.PRECISE('Титульный 2'!AE165:AH165*Титульный!$AY$1,Титульный!$AY$3) -> 6424 | AI182: =_xlfn.CEILING.PRECISE('Титульный 2'!AI165:AL165*Титульный!$AY$1,Титульный!$AY$3) -> 3604 | AM182: =_xlfn.CEILING.PRECISE('Титульный 2'!AM165:AP165*Титульный!$AY$1,Титульный!$AY$3) -> 4644
H183: Багетный блок 16 (420) 1960 | T183: 2050х475х86 | AA183: =_xlfn.CEILING.PRECISE('Титульный 2'!AA166:AD166*Титульный!$AY$1,Титульный!$AY$3) -> 3594 | AE183: =_xlfn.CEILING.PRECISE('Титульный 2'!AE166:AH166*Титульный!$AY$1,Титульный!$AY$3) -> 7394 | AI183: =_xlfn.CEILING.PRECISE('Титульный 2'!AI166:AL166*Титульный!$AY$1,Титульный!$AY$3) -> 4154 | AM183: =_xlfn.CEILING.PRECISE('Титульный 2'!AM166:AP166*Титульный!$AY$1,Титульный!$AY$3) -> 5354
H184: Багетный блок 16 (420) 2240 | T184: 2330х475х86 | AA184: =_xlfn.CEILING.PRECISE('Титульный 2'!AA167:AD167*Титульный!$AY$1,Титульный!$AY$3) -> 4074 | AE184: =_xlfn.CEILING.PRECISE('Титульный 2'!AE167:AH167*Титульный!$AY$1,Титульный!$AY$3) -> 8364 | AI184: =_xlfn.CEILING.PRECISE('Титульный 2'!AI167:AL167*Титульный!$AY$1,Титульный!$AY$3) -> 4694 | AM184: =_xlfn.CEILING.PRECISE('Титульный 2'!AM167:AP167*Титульный!$AY$1,Титульный!$AY$3) -> 6044
H185: Багетный блок 16 (560) 420 | T185: 510х615х86 | AA185: =_xlfn.CEILING.PRECISE('Титульный 2'!AA168:AD168*Титульный!$AY$1,Титульный!$AY$3) -> 1274 | AE185: =_xlfn.CEILING.PRECISE('Титульный 2'!AE168:AH168*Титульный!$AY$1,Титульный!$AY$3) -> 2594 | AI185: =_xlfn.CEILING.PRECISE('Титульный 2'!AI168:AL168*Титульный!$AY$1,Титульный!$AY$3) -> 1464 | AM185: =_xlfn.CEILING.PRECISE('Титульный 2'!AM168:AP168*Титульный!$AY$1,Титульный!$AY$3) -> 1894
H186: Багетный блок 16 (560) 560 | T186: 650х615х86 | AA186: =_xlfn.CEILING.PRECISE('Титульный 2'!AA169:AD169*Титульный!$AY$1,Титульный!$AY$3) -> 1574 | AE186: =_xlfn.CEILING.PRECISE('Титульный 2'!AE169:AH169*Титульный!$AY$1,Титульный!$AY$3) -> 3214 | AI186: =_xlfn.CEILING.PRECISE('Титульный 2'!AI169:AL169*Титульный!$AY$1,Титульный!$AY$3) -> 1804 | AM186: =_xlfn.CEILING.PRECISE('Титульный 2'!AM169:AP169*Титульный!$AY$1,Титульный!$AY$3) -> 2334
H187: Багетный блок 16 (560) 840 | T187: 930х615х86 | AA187: =_xlfn.CEILING.PRECISE('Титульный 2'!AA170:AD170*Титульный!$AY$1,Титульный!$AY$3) -> 2174 | AE187: =_xlfn.CEILING.PRECISE('Титульный 2'!AE170:AH170*Титульный!$AY$1,Титульный!$AY$3) -> 4444 | AI187: =_xlfn.CEILING.PRECISE('Титульный 2'!AI170:AL170*Титульный!$AY$1,Титульный!$AY$3) -> 2504 | AM187: =_xlfn.CEILING.PRECISE('Титульный 2'!AM170:AP170*Титульный!$AY$1,Титульный!$AY$3) -> 3224
H188: Багетный блок 16 (560) 1120 | T188: 1210х615х86 | AA188: =_xlfn.CEILING.PRECISE('Титульный 2'!AA171:AD171*Титульный!$AY$1,Титульный!$AY$3) -> 2774 | AE188: =_xlfn.CEILING.PRECISE('Титульный 2'!AE171:AH171*Титульный!$AY$1,Титульный!$AY$3) -> 5694 | AI188: =_xlfn.CEILING.PRECISE('Титульный 2'!AI171:AL171*Титульный!$AY$1,Титульный!$AY$3) -> 3184 | AM188: =_xlfn.CEILING.PRECISE('Титульный 2'!AM171:AP171*Титульный!$AY$1,Титульный!$AY$3) -> 4124
H189: Багетный блок 16 (560) 1260 | T189: 1350х615х86 | AA189: =_xlfn.CEILING.PRECISE('Титульный 2'!AA172:AD172*Титульный!$AY$1,Титульный!$AY$3) -> 3074 | AE189: =_xlfn.CEILING.PRECISE('Титульный 2'!AE172:AH172*Титульный!$AY$1,Титульный!$AY$3) -> 6304 | AI189: =_xlfn.CEILING.PRECISE('Титульный 2'!AI172:AL172*Титульный!$AY$1,Титульный!$AY$3) -> 3534 | AM189: =_xlfn.CEILING.PRECISE('Титульный 2'!AM172:AP172*Титульный!$AY$1,Титульный!$AY$3) -> 4564
H190: Багетный блок 16 (560) 1400 | T190: 1490х615х86 | AA190: =_xlfn.CEILING.PRECISE('Титульный 2'!AA173:AD173*Титульный!$AY$1,Титульный!$AY$3) -> 3374 | AE190: =_xlfn.CEILING.PRECISE('Титульный 2'!AE173:AH173*Титульный!$AY$1,Титульный!$AY$3) -> 6924 | AI190: =_xlfn.CEILING.PRECISE('Титульный 2'!AI173:AL173*Титульный!$AY$1,Титульный!$AY$3) -> 3884 | AM190: =_xlfn.CEILING.PRECISE('Титульный 2'!AM173:AP173*Титульный!$AY$1,Титульный!$AY$3) -> 5014
H191: Багетный блок 16 (560) 1680 | T191: 1770х615х86 | AA191: =_xlfn.CEILING.PRECISE('Титульный 2'!AA174:AD174*Титульный!$AY$1,Титульный!$AY$3) -> 3974 | AE191: =_xlfn.CEILING.PRECISE('Титульный 2'!AE174:AH174*Титульный!$AY$1,Титульный!$AY$3) -> 8154 | AI191: =_xlfn.CEILING.PRECISE('Титульный 2'!AI174:AL174*Титульный!$AY$1,Титульный!$AY$3) -> 4574 | AM191: =_xlfn.CEILING.PRECISE('Титульный 2'!AM174:AP174*Титульный!$AY$1,Титульный!$AY$3) -> 5914
H192: Багетный блок 16 (560) 1960 | T192: 2050х615х86 | AA192: =_xlfn.CEILING.PRECISE('Титульный 2'!AA175:AD175*Титульный!$AY$1,Титульный!$AY$3) -> 4574 | AE192: =_xlfn.CEILING.PRECISE('Титульный 2'!AE175:AH175*Титульный!$AY$1,Титульный!$AY$3) -> 9404 | AI192: =_xlfn.CEILING.PRECISE('Титульный 2'!AI175:AL175*Титульный!$AY$1,Титульный!$AY$3) -> 5264 | AM192: =_xlfn.CEILING.PRECISE('Титульный 2'!AM175:AP175*Титульный!$AY$1,Титульный!$AY$3) -> 6814
H193: Багетный блок 16 (560) 2240 | T193: 2330х615х86 | AA193: =_xlfn.CEILING.PRECISE('Титульный 2'!AA176:AD176*Титульный!$AY$1,Титульный!$AY$3) -> 5184 | AE193: =_xlfn.CEILING.PRECISE('Титульный 2'!AE176:AH176*Титульный!$AY$1,Титульный!$AY$3) -> 10634 | AI193: =_xlfn.CEILING.PRECISE('Титульный 2'!AI176:AL176*Титульный!$AY$1,Титульный!$AY$3) -> 5954 | AM193: =_xlfn.CEILING.PRECISE('Титульный 2'!AM176:AP176*Титульный!$AY$1,Титульный!$AY$3) -> 7704
A195: Схема расположения зеркал
B200: 1 зеркало | Z200: 2 зеркала
A201: Внимание!!! В прайс-листе указана стоимость за комплект зеркал
A202: Обращаем Ваше внимание на необходимость при заказе шкафа с зеркалом указывать накладное оно или в рамке!!!
B204: Зеркало накладное* | Z204: Зеркало в рамке**
Z212: **-Зеркало крепится на дверь стеклодержателями
A213: 1. ВНИМАНИЕ! Для наборов мебели "Марго" использовать только зеркало накладное!
A215: Шкафы-витрины с фрезеровкой Прованс.
A216: Обращаем Ваше внимание, что фасады шкафа (420) 1 дверь или 2 двери витрины, с фрезеровкой "Прованс" будут изготовлены с перемычкой
B224: Шкаф (420) | L224: Шкаф (420) | U224: Шкаф (420) | AD224: Шкаф (420) | AM224: Шкаф (420)
A225: 1 дв. 2 ящ. Витрина | K225: 2 дв. 1 ящ. Витрина | U225: 1 дв. Витрина | AC225: 2 дв. 2 ящ. Витрина | AM225: 2 дв. Витрина
A227: Шкафы-витрины с фрезеровками Бриз, Амелия, Лаура, Юлия, Гретта, Диана
A228: Обращаем Ваше внимание, что фасады на всех шкафах-витринах с фрезеровками Амелия, Бриз, Лаура, Юлия, выглядят следующим образом
B235: Шкаф (420) | L235: Шкаф (420) | U235: Шкаф (420) | AD235: Шкаф (420) | AM235: Шкаф (420)
A236: 1 дв. 2 ящ. Витрина | K236: 2 дв. 1 ящ. Витрина | U236: 1 дв. Витрина | AC236: 2 дв. 2 ящ. Витрина | AM236: 2 дв. Витрина
A237: Козырьки МДФ
B238: Козырьки, по желанию, могут быть отфрезерованы под светодиодную ленту (необходимо указывать в заказе), за исключением
A239: козырьков торцевых радиусных и торцевых скошенных.
B241: Козырек МДФ прямой | Y241: Козырек МДФ на шкаф угл. (420) трапеция
A242: Изображение | H242: Длина, мм | L242: Цена, руб.\шт. | Y242: Изображение | AF242: Цена, руб.\шт.
L243: 1 ЦК | O243: 1 ЦК + патина | R243: 2 ЦК | U243: 3 ЦК | AF243: 1 ЦК | AJ243: 1 ЦК + патина | AN243: 2 ЦК | AR243: 3 ЦК
A244: Козырек МДФ прямой | H244: 420 | L244: =CEILING('Титульный 2'!L224:N224*Титульный!$AY$1,Титульный!$AY$3) -> 420 | O244: =CEILING('Титульный 2'!O224:Q224*Титульный!$AY$1,Титульный!$AY$3) -> 750 | R244: =CEILING('Титульный 2'!R224:T224*Титульный!$AY$1,Титульный!$AY$3) -> 510 | U244: =CEILING('Титульный 2'!U224:W224*Титульный!$AY$1,Титульный!$AY$3) -> 600 | Y244: Козырек МДФ на шкаф угл. (420) трапеция | AF244: =CEILING('Титульный 2'!AF224:AH224*Титульный!$AY$1,Титульный!$AY$3) -> 420 | AJ244: =CEILING('Титульный 2'!AJ224:AL224*Титульный!$AY$1,Титульный!$AY$3) -> 730 | AN244: =CEILING('Титульный 2'!AN224:AP224*Титульный!$AY$1,Титульный!$AY$3) -> 500 | AR244: =CEILING('Титульный 2'!AR224:AT224*Титульный!$AY$1,Титульный!$AY$3) -> 590
H245: 560 | L245: =CEILING('Титульный 2'!L225:N225*Титульный!$AY$1,Титульный!$AY$3) -> 570 | O245: =CEILING('Титульный 2'!O225:Q225*Титульный!$AY$1,Титульный!$AY$3) -> 1000 | R245: =CEILING('Титульный 2'!R225:T225*Титульный!$AY$1,Титульный!$AY$3) -> 680 | U245: =CEILING('Титульный 2'!U225:W225*Титульный!$AY$1,Титульный!$AY$3) -> 800
H246: 840 | L246: =CEILING('Титульный 2'!L226:N226*Титульный!$AY$1,Титульный!$AY$3) -> 850 | O246: =CEILING('Титульный 2'!O226:Q226*Титульный!$AY$1,Титульный!$AY$3) -> 1500 | R246: =CEILING('Титульный 2'!R226:T226*Титульный!$AY$1,Титульный!$AY$3) -> 1010 | U246: =CEILING('Титульный 2'!U226:W226*Титульный!$AY$1,Титульный!$AY$3) -> 1200
H247: 1120 | L247: =CEILING('Титульный 2'!L227:N227*Титульный!$AY$1,Титульный!$AY$3) -> 1130 | O247: =CEILING('Титульный 2'!O227:Q227*Титульный!$AY$1,Титульный!$AY$3) -> 1990 | R247: =CEILING('Титульный 2'!R227:T227*Титульный!$AY$1,Титульный!$AY$3) -> 1350 | U247: =CEILING('Титульный 2'!U227:W227*Титульный!$AY$1,Титульный!$AY$3) -> 1590 | Y247: Козырек МДФ на шкаф угл. (560) трапеция
H248: 1260 | L248: =CEILING('Титульный 2'!L228:N228*Титульный!$AY$1,Титульный!$AY$3) -> 1270 | O248: =CEILING('Титульный 2'!O228:Q228*Титульный!$AY$1,Титульный!$AY$3) -> 2240 | R248: =CEILING('Титульный 2'!R228:T228*Титульный!$AY$1,Титульный!$AY$3) -> 1520 | U248: =CEILING('Титульный 2'!U228:W228*Титульный!$AY$1,Титульный!$AY$3) -> 1790 | Y248: Изображение | AF248: Цена, руб.\шт.
H249: 1400 | L249: =CEILING('Титульный 2'!L229:N229*Титульный!$AY$1,Титульный!$AY$3) -> 1410 | O249: =CEILING('Титульный 2'!O229:Q229*Титульный!$AY$1,Титульный!$AY$3) -> 2490 | R249: =CEILING('Титульный 2'!R229:T229*Титульный!$AY$1,Титульный!$AY$3) -> 1690 | U249: =CEILING('Титульный 2'!U229:W229*Титульный!$AY$1,Титульный!$AY$3) -> 1990 | AF249: 1 ЦК | AJ249: 1 ЦК + патина | AN249: 2 ЦК | AR249: 3 ЦК
H250: 1680 | L250: =CEILING('Титульный 2'!L230:N230*Титульный!$AY$1,Титульный!$AY$3) -> 1700 | O250: =CEILING('Титульный 2'!O230:Q230*Титульный!$AY$1,Титульный!$AY$3) -> 2990 | R250: =CEILING('Титульный 2'!R230:T230*Титульный!$AY$1,Титульный!$AY$3) -> 2030 | U250: =CEILING('Титульный 2'!U230:W230*Титульный!$AY$1,Титульный!$AY$3) -> 2390 | Y250: Козырек МДФ на шкаф угл. (560) трапеция | AF250: =CEILING('Титульный 2'!AF230:AH230*Титульный!$AY$1,Титульный!$AY$3) -> 540 | AJ250: =CEILING('Титульный 2'!AJ230:AL230*Титульный!$AY$1,Титульный!$AY$3) -> 950 | AN250: =CEILING('Титульный 2'!AN230:AP230*Титульный!$AY$1,Титульный!$AY$3) -> 640 | AR250: =CEILING('Титульный 2'!AR230:AT230*Титульный!$AY$1,Титульный!$AY$3) -> 760
H251: 1960 | L251: =CEILING('Титульный 2'!L231:N231*Титульный!$AY$1,Титульный!$AY$3) -> 1980 | O251: =CEILING('Титульный 2'!O231:Q231*Титульный!$AY$1,Титульный!$AY$3) -> 3490 | R251: =CEILING('Титульный 2'!R231:T231*Титульный!$AY$1,Титульный!$AY$3) -> 2360 | U251: =CEILING('Титульный 2'!U231:W231*Титульный!$AY$1,Титульный!$AY$3) -> 2790
H252: 2240 | L252: =CEILING('Титульный 2'!L232:N232*Титульный!$AY$1,Титульный!$AY$3) -> 2260 | O252: =CEILING('Титульный 2'!O232:Q232*Титульный!$AY$1,Титульный!$AY$3) -> 3990 | R252: =CEILING('Титульный 2'!R232:T232*Титульный!$AY$1,Титульный!$AY$3) -> 2700 | U252: =CEILING('Титульный 2'!U232:W232*Титульный!$AY$1,Титульный!$AY$3) -> 3190
A255: Козырьки торцевые радиусные и скошенные
A257: Козырек МДФ на шкаф (420) торцевой скошенный Л\Пр. | Y257: Козырек МДФ на стеллаж (420) торцевой радиусный Л\Пр.
H258: Цена руб.\шт. | AF258: Цена, руб.\шт.
H259: 1 ЦК | L259: 1 ЦК + патина | P259: 2 ЦК | T259: 3 ЦК | AF259: 1 ЦК | AJ259: 1 ЦК + патина | AN259: 2 ЦК | AR259: 3 ЦК
H260: =CEILING('Титульный 2'!H240:K240*Титульный!$AY$1,Титульный!$AY$3) -> 600 | L260: =CEILING('Титульный 2'!L240:O240*Титульный!$AY$1,Титульный!$AY$3) -> 1060 | P260: =CEILING('Титульный 2'!P240:S240*Титульный!$AY$1,Титульный!$AY$3) -> 720 | T260: =CEILING('Титульный 2'!T240:W240*Титульный!$AY$1,Титульный!$AY$3) -> 850 | AF260: =CEILING('Титульный 2'!AF240:AI240*Титульный!$AY$1,Титульный!$AY$3) -> 500 | AJ260: =CEILING('Титульный 2'!AJ240:AM240*Титульный!$AY$1,Титульный!$AY$3) -> 880 | AN260: =CEILING('Титульный 2'!AN240:AQ240*Титульный!$AY$1,Титульный!$AY$3) -> 590 | AR260: =CEILING('Титульный 2'!AR240:AU240*Титульный!$AY$1,Титульный!$AY$3) -> 700
A262: Козырек_02 МДФ на шкаф (420) торц скошенный Л\Пр. | Y262: Козырек_02 МДФ на стеллаж (420) торц радиусный Л\Пр.
H263: Цена руб.\шт. | AF263: Цена, руб.\шт.
H264: 1 ЦК | L264: 1 ЦК + патина | P264: 2 ЦК | T264: 3 ЦК | AF264: 1 ЦК | AJ264: 1 ЦК + патина | AN264: 2 ЦК | AR264: 3 ЦК
H265: =CEILING('Титульный 2'!H245:K245*Титульный!$AY$1,Титульный!$AY$3) -> 590 | L265: =CEILING('Титульный 2'!L245:O245*Титульный!$AY$1,Титульный!$AY$3) -> 1030 | P265: =CEILING('Титульный 2'!P245:S245*Титульный!$AY$1,Титульный!$AY$3) -> 700 | T265: =CEILING('Титульный 2'!T245:W245*Титульный!$AY$1,Титульный!$AY$3) -> 830 | AF265: =CEILING('Титульный 2'!AF245:AI245*Титульный!$AY$1,Титульный!$AY$3) -> 500 | AJ265: =CEILING('Титульный 2'!AJ245:AM245*Титульный!$AY$1,Титульный!$AY$3) -> 890 | AN265: =CEILING('Титульный 2'!AN245:AQ245*Титульный!$AY$1,Титульный!$AY$3) -> 600 | AR265: =CEILING('Титульный 2'!AR245:AU245*Титульный!$AY$1,Титульный!$AY$3) -> 710
A267: Козырек МДФ на шкаф (560) торцевой скошенный Л\Пр. | Y267: Козырек МДФ стеллаж (560) торцевой радиусный Л\Пр.
H268: Цена руб.\шт. | AF268: Цена руб.\шт.
H269: 1 ЦК | L269: 1 ЦК + патина | P269: 2 ЦК | T269: 3 ЦК | AF269: 1 ЦК | AJ269: 1 ЦК + патина | AN269: 2 ЦК | AR269: 3 ЦК
H270: =CEILING('Титульный 2'!H250:K250*Титульный!$AY$1,Титульный!$AY$3) -> 960 | L270: =CEILING('Титульный 2'!L250:O250*Титульный!$AY$1,Титульный!$AY$3) -> 1690 | P270: =CEILING('Титульный 2'!P250:S250*Титульный!$AY$1,Титульный!$AY$3) -> 1140 | T270: =CEILING('Титульный 2'!T250:W250*Титульный!$AY$1,Титульный!$AY$3) -> 1350 | AF270: =CEILING('Титульный 2'!AF250:AI250*Титульный!$AY$1,Титульный!$AY$3) -> 710 | AJ270: =CEILING('Титульный 2'!AJ250:AM250*Титульный!$AY$1,Титульный!$AY$3) -> 1250 | AN270: =CEILING('Титульный 2'!AN250:AQ250*Титульный!$AY$1,Титульный!$AY$3) -> 840 | AR270: =CEILING('Титульный 2'!AR250:AU250*Титульный!$AY$1,Титульный!$AY$3) -> 1000
A272: Козырек_02 МДФ на шкаф (560) торц скошенный Л\Пр. | Y272: Козырек_02 МДФ стеллаж (560) торц радиусный Л\Пр.
... 25 more rows

Sheet Титульный 2 (hidden)
A1: Базовая комплектация
A2: 1. Каркас модулей изготовлен из ЛДСП оклеенной кромкой ПВХ 0,4 мм. Задняя стенка модулей из облагороженной ХДФ;
A3: 2. Фасад из МДФ, покрытый пленкой ПВХ с лицевой стороны (базовая ценовая категория), обратная сторона (см. таблицу зависимости);
A4: 3. Петли Hettich Sensys плавного закрывания;
A5: 4. | B5: Полки ЛДСП
A6: 5. Роликовые направляющие в выкатных ящиках тумб и шкафов;
A7: 6. Шариковые направляющие Hafele в выкатном ящике стола туалетного и кровати 2 ящика;
A8: 7. Штанга в шкафах для одежды и шкафах комбинированных;
A9: 8. Регулируемые ножки PI04;
A10: 9. Стекло тонированное в шкафах-витринах;
A11: 10. Крючки FK 009 020 на панелях настенных. (На панелях шириной 400 - 2 крючка, а на панелях шириной 540 - 3 крючка)
A12: Марго, краткое описание
A13: 1 | B13: Фасад выполнен из ЛДСП толщиной 16 мм. оклеенной кромкой ПВХ толщиной 2 мм.
A14: 2 | B14: Фасад шкафов витрин и полувитрин - рамочный, из алюминиевого профиля толщиной 21 мм. Стекло - Тонированное
A15: 3 | B15: Крышки столов, тумб, комода, стола туалетного, спинки кроватей выполнены из ЛДСП толщиной 22 мм. и оклеенной кромкой ПВХ толщиной 2 мм.
A16: 4 | B16: Ручка - FS040, 160 мм.
A17: 5 | B17: Обращаем Ваше внимание на то, что каркас "Марго" изготавливается только следующих цветов - Капучино и Выбеленное дерево, Дуб шамони темный, Дуб шамони светлый
A18: 6 | B18: Обращаем Ваше внимание на то, что каркас тумб Марго 16 может изготавливаться в любом цвете ЛДСП за исключением серого и 3-й ценовой категории. Фасад набора мебели Марго и тумб Марго 16 может изготавливаться в любом цвете ЛДСП за исключением серого.
A19: 7 | B19: Для фасада Марго может быть использовано только накладное зеркало.
A30: Классификация цветов фасадов
A31: 1 ценовая категория
A32: Древесные матовые | I32: Ольха, Тик, Слива Тадж, Орех золотистый, Сандал белый, Темный Венге, Дуб беленый, Дуб солнечный, Яблоня Тадж, Коричневый холст, Бежевый холст
A33: Однотонные матовые | I33: Белые цветы, Черные цветы
A35: 2 ценовая категория
A36: Древесные матовые | I36: Эффект старения
A37: Однотонные матовые | I37: Фиолет, Лайм, Фуксия, Индиго
A38: Древесные глянцевые | I38: Вишня, Клен, Платан, Жемчужное Дерево
A39: Однотонные глянцевые | I39: Красный металлик, Чёрный металлик, Белый металлик, Оранжевый металлик, Фиолетовый металлик, Салатовый металлик, Синий металлик, Серый металлик, Золотистый металлик, Корица металлик, Хамелеон Коричневый, Белый глянец, Оливковый, Баклажан, Бордо, Ваниль, Оранжевый, Желтый, Черный.
A40: Фантазийные | I40: Мрамор глянцевый, Кожа крокодила, Огни Нью-Йорка, Цветы, Серебряный дождь.
A42: 3 ценовая категория
A44: Фантазийные | I44: Вяз седой, Синга-крем, Синга-аметист, Шелк-крем, Шелк-аметист
A45: ВНИМАНИЕ!!! Возможны незначительные изменения в тональности пленки ПВХ (2-3 тона), что не является браком
A48: Таблица зависимости цвета внутренней стороны фасада от цвета пленки ПВХ:
B49: Цвет внутренней стороны фасадов зависит от цвета пленки ПВХ, исключение составляют наборы мебели, каркасы
A50: которых изготовлены из ЛДСП цвета "Бук Бавария", в этом случае обратная сторона фасадов будет всегда в цвете "Ольха"
A52: Пленка ПВХ | H52: Обратная сторона | P52: Пленка ПВХ | W52: Обратная сторона | AE52: Пленка ПВХ | AL52: Обратная сторона
A53: Слива Тадж | H53: Ольха | P53: Оливковый глянец | W53: Белая | AE53: Салатовый металлик | AL53: Белая
A54: Вишня глянец | H54: Ольха | P54: Баклажан глянец | W54: Белая | AE54: Огни Нью-Йорка | AL54: Белая
A55: Клен глянец | H55: Ольха | P55: Черный глянец | W55: Белая | AE55: Цветы | AL55: Белая
A56: Платан глянец | H56: Ольха | P56: Желтый глянец | W56: Белая | AE56: Жемчужное дерево | AL56: Белая
A57: Каштан золотистый | H57: Ольха | P57: Белый глянец | W57: Белая | AE57: Серебрянный дождь | AL57: Белая
A58: Тик | H58: Ольха | P58: Ваниль глянец | W58: Белая | AE58: Белые цветы | AL58: Белая
A59: Орех золотистый | H59: Ольха | P59: Оранжевый глянец | W59: Белая | AE59: Кожа крокодила | AL59: Белая
A60: Яблоня Тадж | H60: Ольха | P60: Серый металлик | W60: Белая | AE60: Черные цветы | AL60: Белая
A61: Ольха | H61: Ольха | P61: Красный металлик | W61: Белая | AE61: Шелк Аметист | AL61: Белая
A62: Темный Венге | H62: Белая | P62: Белый металлик | W62: Белая | AE62: Шелк Крем | AL62: Белая
A63: Эффект старения | H63: Белая | P63: Корица металлик | W63: Белая | AE63: Синга Аметист | AL63: Белая
A64: Вяз седой | H64: Белая | P64: Синий металлик | W64: Белая | AE64: Коричневый холст | AL64: Белая
A65: Сандал белый | H65: Белая | P65: Золотой металлик | W65: Белая | AE65: Бежевый холст | AL65: Белая
A66: Дуб солнечный | H66: Белая | P66: Хамелион коричневый | W66: Белая | AE66: Фиолет | AL66: Белая
A67: Дуб беленый | H67: Белая | P67: Фиолетовый металлик | W67: Белая | AE67: Лайм | AL67: Белая
A68: Бордо глянец | H68: Белая | P68: Черный металлик | W68: Белая | AE68: Фуксия | AL68: Белая
A69: Мрамор глянец | H69: Белая | P69: Оранжевый металлик | W69: Белая | AE69: Индиго | AL69: Белая
A71: Цветовое исполнение каркасов
A72: Белый, Серый, Бук Бавария, Орех итальянский, Гварнери, Венге, Бежевый, Выбеленное дерево, Капучино
A75: Варианты фрезеровок фасадов с привязкой ручки
A76: Для новой серии модулей разработаны следующие типы фасадов:
B78: Прованс | J78: Вензель цинк, 96мм | V78: Ручка RS407BAB.4 "Вензель латунь" 96мм
J79: 101 | M79: руб/шт. | V79: 101
J80: Скоба зол/сер 96мм. | V80: Ручка RS408BAZ.4 "Ладья цинк, 96мм
J81: 72 | M81: руб/шт. | V81: 141 | Y81: руб/шт.
V82: Ручка RS408BAB.4 "Ладья латунь" 96 мм.
M83: руб/шт. | V83: 113 | Y83: руб/шт.
J84: Ручка RS-75, антик латунь, 96 мм. | V84: ОФК 747, 96мм Бронза+белый
J85: 96 | M85: руб/шт. | V85: 150 | Y85: руб/шт.
J86: Ручка Рейлинг 96 | V86: Ручка RS-77, 96 мм.
J87: 66 | M87: руб/шт. | V87: 83 | Y87: руб/шт.
J88: Ручка 96 (фарфор/узор золото)
J89: 81 | M89: руб/шт.
B91: Бриз | F91: Амелия | J91: Марго | V91: Ручка FS-074 "Волна" 160мм | AH91: Ручка RS-47-1 "хром+черный 160 мм
V92: 185 | Y92: руб/шт. | AH92: 285 | AK92: руб/шт.
V93: Ручка Модерн 160 мм.
V94: 215 | Y94: руб/шт.
V95: Ручка FS-040 , 160мм
V96: 318 | Y96: руб/шт.
V97: Ручка Рейлинг 160 мм
V98: 62 | Y98: руб/шт.
V99: Ручка RS-74 "Бруш" сатин светлый, 160 мм.
V100: 168 | Y100: руб/шт.
V101: Ручка RS-47 "хром+белый 160 мм
V102: 285 | Y102: руб/шт.
B104: Лаура | F104: Натали | M104: Скоба 224мм | V104: Диана | AC104: Скоба 1069, 128 мм | AN104: Ручка скоба RS-33 128 мм.
M105: 155 | P105: руб/шт. | AC105: 164 | AF105: руб/шт. | AN105: 188 | AQ105: руб/шт.
M106: Скоба RLB224, 224 мм
M107: 155 | P107: руб/шт. | AF107: руб/шт.
AC108: Ручка FS-111 "Сатин светлый" 128мм.
AC109: 345 | AF109: руб/шт.
AC110: Ручка скоба RS-52 128 мм.
AC111: 84 | AF111: руб/шт.
AC112: Ручка скоба RS-56 128 мм.
AC113: 185 | AF113: руб/шт.
AC114: Ручка скоба "Спираль" 128 мм.
AC115: 176 | AF115: руб/шт.
B117: Гретта | J117: Ручка GG-3105 кнопка "Латунь" | Z117: Ручка RC404BAZ.4 "Вензель цинк"
J118: 301 | M118: руб/шт. | Z118: 141 | AC118: руб/шт.
Z119: Ручка RC404BAВ.4 "Вензель латунь"
J120: - | M120: руб/шт. | Z120: 71 | AC120: руб/шт.
Z121: Ручка RC405BAZ.4 "Ладья цинк"
J122: 127 | M122: руб/шт. | Z122: 24 | AC122: руб/шт.
J123: Ручка GR-1006 кнопка "Никель" | Z123: Ручка - кнопка (фарфор/узор золото)
M124: руб/шт. | Z124: 60 | AC124: руб/шт.
J125: Ручка RC405BAB.4 "Ладья латунь"
J126: 30 | M126: руб/шт.
J127: RC 052AB.4/w16 Бронза+белый
J128: 76 | M128: руб/шт.
B130: Юлия
J131: FS024 064, 64 мм
J132: 180 | M132: руб/шт.
H157: Наименование | T157: Габариты, ШхГхВ мм. | AA157: Цена, руб.\шт.
AA158: 1 ЦК | AE158: 1 ЦК + патина | AI158: 2 ЦК | AM158: 3 ЦК
H159: Багетный блок 16 (420) 420 | AA159: 1014 | AE159: 2054 | AI159: 1174 | AM159: 1484
H160: Багетный блок 16 (420) 560 | AA160: 1244 | AE160: 2544 | AI160: 1434 | AM160: 1834
H161: Багетный блок 16 (420) 840 | AA161: 1714 | AE161: 3504 | AI161: 1984 | AM161: 2534
H162: Багетный блок 16 (420) 1120 | AA162: 2194 | AE162: 4484 | AI162: 2524 | AM162: 3244
H163: Багетный блок 16 (420) 1260 | AA163: 2424 | AE163: 4964 | AI163: 2794 | AM163: 3584
H164: Багетный блок 16 (420) 1400 | AA164: 2654 | AE164: 5454 | AI164: 3064 | AM164: 3934
H165: Багетный блок 16 (420) 1680 | AA165: 3134 | AE165: 6424 | AI165: 3604 | AM165: 4644
H166: Багетный блок 16 (420) 1960 | AA166: 3594 | AE166: 7394 | AI166: 4154 | AM166: 5354
H167: Багетный блок 16 (420) 2240 | AA167: 4074 | AE167: 8364 | AI167: 4694 | AM167: 6044
H168: Багетный блок 16 (560) 420 | AA168: 1274 | AE168: 2594 | AI168: 1464 | AM168: 1894
H169: Багетный блок 16 (560) 560 | AA169: 1574 | AE169: 3214 | AI169: 1804 | AM169: 2334
H170: Багетный блок 16 (560) 840 | AA170: 2174 | AE170: 4444 | AI170: 2504 | AM170: 3224
H171: Багетный блок 16 (560) 1120 | AA171: 2774 | AE171: 5694 | AI171: 3184 | AM171: 4124
H172: Багетный блок 16 (560) 1260 | AA172: 3074 | AE172: 6304 | AI172: 3534 | AM172: 4564
H173: Багетный блок 16 (560) 1400 | AA173: 3374 | AE173: 6924 | AI173: 3884 | AM173: 5014
H174: Багетный блок 16 (560) 1680 | AA174: 3974 | AE174: 8154 | AI174: 4574 | AM174: 5914
H175: Багетный блок 16 (560) 1960 | AA175: 4574 | AE175: 9404 | AI175: 5264 | AM175: 6814
H176: Багетный блок 16 (560) 2240 | AA176: 5184 | AE176: 10634 | AI176: 5954 | AM176: 7704
A178: Схема расположения зеркал
B183: 1 зеркало | Z183: 2 зеркала
A184: Внимание!!! В прайс-листе указана стоимость за комплект зеркал
B185: Зеркало накладное | Z185: Зеркало в рамке
A196: Шкафы-витрины с фрезеровкой "Прованс"
A217: Козырьки МДФ
B218: Козырьки, по желанию, могут быть отфрезерованы под светодиодную ленту (необходимо указывать в заказе), за исключением
A219: козырьков торцевых радиусных и торцевых скошенных.
B221: Козырек МДФ прямой | Y221: Козырек МДФ на шкаф угл. (420) трапеция
A222: Изображение | H222: Длина, мм | L222: Цена, руб.\шт. | Y222: Изображение | AF222: Цена, руб.\шт.
L223: 1 ЦК | O223: 1 ЦК + патина | R223: 2 ЦК | U223: 3 ЦК | AF223: 0 ЦК | AJ223: 1 ЦК | AN223: 2 ЦК | AR223: 3 ЦК
H224: 420 | L224: 420 | O224: 750 | P224: 350 | Q224: 350 | R224: 510 | S224: 230 | T224: 230 | U224: 600 | V224: 290 | W224: 290 | AF224: 420 | AJ224: 730 | AN224: 500 | AR224: 590
H225: 560 | L225: 570 | M225: 250 | N225: 250 | O225: 1000 | P225: 470 | Q225: 470 | R225: 680 | S225: 310 | T225: 310 | U225: 800 | V225: 380 | W225: 380
H226: 840 | L226: 850 | M226: 370 | N226: 370 | O226: 1500 | P226: 710 | Q226: 710 | R226: 1010 | S226: 460 | T226: 460 | U226: 1200 | V226: 570 | W226: 570
H227: 1120 | L227: 1130 | M227: 490 | N227: 490 | O227: 1990 | P227: 940 | Q227: 940 | R227: 1350 | S227: 610 | T227: 610 | U227: 1590 | V227: 770 | W227: 770 | Y227: Козырек МДФ на шкаф угл. (560) трапеция
H228: 1260 | L228: 1270 | M228: 550 | N228: 550 | O228: 2240 | P228: 1060 | Q228: 1060 | R228: 1520 | S228: 690 | T228: 690 | U228: 1790 | V228: 860 | W228: 860 | Y228: Изображение | AF228: Цена, руб.\шт.
H229: 1400 | L229: 1410 | M229: 620 | N229: 620 | O229: 2490 | P229: 1180 | Q229: 1180 | R229: 1690 | S229: 760 | T229: 760 | U229: 1990 | V229: 960 | W229: 960 | AF229: 0 ЦК | AJ229: 1 ЦК | AN229: 2 ЦК | AR229: 3 ЦК
H230: 1680 | L230: 1700 | M230: 740 | N230: 740 | O230: 2990 | P230: 1410 | Q230: 1410 | R230: 2030 | S230: 920 | T230: 920 | U230: 2390 | V230: 1150 | W230: 1150 | AF230: 540 | AJ230: 950 | AN230: 640 | AR230: 760
H231: 1960 | L231: 1980 | M231: 860 | N231: 860 | O231: 3490 | P231: 1650 | Q231: 1650 | R231: 2360 | S231: 1070 | T231: 1070 | U231: 2790 | V231: 1340 | W231: 1340
H232: 2240 | L232: 2260 | M232: 990 | N232: 990 | O232: 3990 | P232: 1880 | Q232: 1880 | R232: 2700 | S232: 1220 | T232: 1220 | U232: 3190 | V232: 1530 | W232: 1530
A235: Козырьки торцевые радиусные и скошенные
A237: Козырек МДФ на шкаф (420) торцевой скошенный Л\Пр. | Y237: Козырек МДФ на стеллаж (420) торцевой радиусный Л\Пр.
H238: Цена руб.\шт. | AF238: Цена, руб.\шт.
H239: 0 ЦК | L239: 1 ЦК | P239: 2 ЦК | T239: 3 ЦК | AF239: 0 ЦК | AJ239: 1 ЦК | AN239: 2 ЦК | AR239: 3 ЦК
H240: 600 | L240: 1060 | P240: 720 | T240: 850 | AF240: 500 | AJ240: 880 | AN240: 590 | AR240: 700
A242: Козырек_02 МДФ на шкаф (420) торц скошенный Л\Пр. | Y242: Козырек_02 МДФ на стеллаж (420) торц радиусный Л\Пр.
H243: Цена руб.\шт. | AF243: Цена, руб.\шт.
H244: 0 ЦК | L244: 1 ЦК | P244: 2 ЦК | T244: 3 ЦК | AF244: 0 ЦК | AJ244: 1 ЦК | AN244: 2 ЦК | AR244: 3 ЦК
H245: 590 | L245: 1030 | P245: 700 | T245: 830 | AF245: 500 | AJ245: 890 | AN245: 600 | AR245: 710
A247: Козырек МДФ на шкаф (560) торцевой скошенный Л\Пр. | Y247: Козырек МДФ стеллаж (560) торцевой радиусный Л\Пр.
H248: Цена руб.\шт. | AF248: Цена руб.\шт.
H249: 0 ЦК | L249: 1 ЦК | P249: 2 ЦК | T249: 3 ЦК | AF249: 0 ЦК | AJ249: 1 ЦК | AN249: 2 ЦК | AR249: 3 ЦК
H250: 960 | L250: 1690 | P250: 1140 | T250: 1350 | AF250: 710 | AJ250: 1250 | AN250: 840 | AR250: 1000
A252: Козырек_02 МДФ на шкаф (560) торц скошенный Л\Пр. | Y252: Козырек_02 МДФ стеллаж (560) торц радиусный Л\Пр.
H253: Цена руб.\шт. | AF253: Цена руб.\шт.
H254: 0 ЦК | L254: 1 ЦК | P254: 2 ЦК | T254: 3 ЦК | AF254: 0 ЦК | AJ254: 1 ЦК | AN254: 2 ЦК | AR254: 3 ЦК
H255: 930 | L255: 1640 | P255: 1110 | T255: 1310 | AF255: 710 | AJ255: 1250 | AN255: 850 | AR255: 1000
A257: ВНИМАНИЕ!!! Для шкафа угл (560х420) Прямого 1000 козырька нет.
A259: Козырек_02 МДФ на шкафы прямых позиций.2200х100 мм.*
H260: Цена руб.\шт.
H261: 0 ЦК | L261: 1 ЦК | P261: 2 ЦК | T261: 3 ЦК
H262: 1110 | L262: 1960 | P262: 1330 | T262: 1570
A264: Багеты
A265: Багет прямой, высотой 75 мм, может стыковаться под углом в 90⁰ без запила, с использованием углового элемента.
H267: Багет высотой 75мм, L-1200 | AE267: Багет высотой 75мм, L-2400
H268: Цена руб.\шт. | AF268: Цена руб.\шт.
H269: 0 ЦК | L269: 1 ЦК | P269: 2 ЦК | T269: 3 ЦК | AF269: 0 ЦК | AJ269: 1 ЦК | AN269: 2 ЦК | AR269: 3 ЦК
H270: 610 | L270: 1070 | P270: 720 | T270: 850 | AF270: 1110 | AJ270: 1960 | AN270: 1330 | AR270: 1570
H272: Угол внешни, 90⁰
H273: Цена руб.\шт.
H274: Б.Ц.К. | L274: 1 ЦК | P274: 2 ЦК | T274: 3 ЦК
H275: 1592 | L275: 1592 | P275: 1960 | T275: 2380
A277: Светильник
L279: Светильник FC103,с выкл.на плафоне руб./шт.
L280: 1725
A284: Пояснения и ограничения
A285: 1. Для кровати с наборным изголовьем, необходимо заказывать основание с круглыми опорами. Кроватьс не устанавливается
A286: без основания
A287: 2. Каркас "Кровати 2 ящика" не может быть исполнен в Сером цвете.
A289: 3. Схема стыковки шкафа углового прямого со шкафом 1 дверным
A297: 4. Схема шкафа углового (560х420) Трапеция

Sheet прайс-лист
A1: Шкафы глубиной 420мм
A2: Наименование | B2: Эскиз | C2: Габариты, ШхГхВ мм. | D2: МДФ фасады | H2: Марго16 | M2: UV-лак | O2: ТСС | Q2: ТСС сборный | R2: Стоимость зеркал
D3: 1 ЦК | E3: 1 ЦК + патина | F3: 2 ЦК | G3: 3 ЦК | H3: 1 ц.к. | I3: 2 ц.к. | J3: 3 ц.к. | K3: 4 ц.к. | L3: 5 ц.к. | M3: UV-лак кромка ABC/AL кромка | N3: кромка 3D | O3: 1 ЦК | P3: 2 ЦК | R3: Зеркало в рамке** | S3: Зеркало накладное*
A4: Шкаф (420) 1дв 2040х420 | C4: 420х440х2040 | D4: =CEILING('прайс-лист2'!E4*Титульный!$AY$1,Титульный!$AY$3) -> 10426 | E4: =CEILING('прайс-лист2'!F4*Титульный!$AY$1,Титульный!$AY$3) -> 13957 | F4: =CEILING('прайс-лист2'!G4*Титульный!$AY$1,Титульный!$AY$3) -> 10954 | G4: =CEILING('прайс-лист2'!H4*Титульный!$AY$1,Титульный!$AY$3) -> 12274 | H4: =CEILING('прайс-лист2'!I4*Титульный!$AY$1,Титульный!$AY$3) -> 8831 | I4: =CEILING('прайс-лист2'!J4*Титульный!$AY$1,Титульный!$AY$3) -> 8919 | J4: =CEILING('прайс-лист2'!K4*Титульный!$AY$1,Титульный!$AY$3) -> 9194 | K4: =CEILING('прайс-лист2'!L4*Титульный!$AY$1,Титульный!$AY$3) -> 9931 | L4: - | M4: =CEILING('прайс-лист2'!N4*Титульный!$AY$1,Титульный!$AY$3) -> 12945 | N4: =CEILING('прайс-лист2'!O4*Титульный!$AY$1,Титульный!$AY$3) -> 13957 | O4: =CEILING('прайс-лист2'!P4*Титульный!$AY$1,Титульный!$AY$3) -> 14958 | P4: =CEILING('прайс-лист2'!Q4*Титульный!$AY$1,Титульный!$AY$3) -> 16432 | Q4: =CEILING('прайс-лист2'!R4*Титульный!$AY$1,Титульный!$AY$3) -> 16751 | R4: =CEILING('прайс-лист2'!S4*Титульный!$AY$1,Титульный!$AY$3) -> 1344 | S4: =CEILING('прайс-лист2'!T4*Титульный!$AY$1,Титульный!$AY$3) -> 2490
A5: Шкаф (420) 1дв 2040х560 | C5: 560х440х2040 | D5: =CEILING('прайс-лист2'!E5*Титульный!$AY$1,Титульный!$AY$3) -> 12329 | E5: =CEILING('прайс-лист2'!F5*Титульный!$AY$1,Титульный!$AY$3) -> 17048 | F5: =CEILING('прайс-лист2'!G5*Титульный!$AY$1,Титульный!$AY$3) -> 13044 | G5: =CEILING('прайс-лист2'!H5*Титульный!$AY$1,Титульный!$AY$3) -> 14804 | H5: =CEILING('прайс-лист2'!I5*Титульный!$AY$1,Титульный!$AY$3) -> 10206 | I5: =CEILING('прайс-лист2'!J5*Титульный!$AY$1,Титульный!$AY$3) -> 10327 | J5: =CEILING('прайс-лист2'!K5*Титульный!$AY$1,Титульный!$AY$3) -> 10701 | K5: =CEILING('прайс-лист2'!L5*Титульный!$AY$1,Титульный!$AY$3) -> 11680 | L5: - | M5: =CEILING('прайс-лист2'!N5*Титульный!$AY$1,Титульный!$AY$3) -> 15453 | N5: =CEILING('прайс-лист2'!O5*Титульный!$AY$1,Титульный!$AY$3) -> 16520 | O5: =CEILING('прайс-лист2'!P5*Титульный!$AY$1,Титульный!$AY$3) -> 18126 | P5: =CEILING('прайс-лист2'!Q5*Титульный!$AY$1,Титульный!$AY$3) -> 20106 | Q5: =CEILING('прайс-лист2'!R5*Титульный!$AY$1,Титульный!$AY$3) -> 19963 | R5: =CEILING('прайс-лист2'!S5*Титульный!$AY$1,Титульный!$AY$3) -> 1932 | S5: =CEILING('прайс-лист2'!T5*Титульный!$AY$1,Титульный!$AY$3) -> 3314
A6: Шкаф (420) 1дв 2240х420 | C6: 420х440х2240 | D6: =CEILING('прайс-лист2'!E6*Титульный!$AY$1,Титульный!$AY$3) -> 11314 | E6: =CEILING('прайс-лист2'!F6*Титульный!$AY$1,Титульный!$AY$3) -> 15197 | F6: =CEILING('прайс-лист2'!G6*Титульный!$AY$1,Титульный!$AY$3) -> 11897 | G6: =CEILING('прайс-лист2'!H6*Титульный!$AY$1,Титульный!$AY$3) -> 13349 | H6: =CEILING('прайс-лист2'!I6*Титульный!$AY$1,Титульный!$AY$3) -> 9565 | I6: =CEILING('прайс-лист2'!J6*Титульный!$AY$1,Титульный!$AY$3) -> 9664 | J6: =CEILING('прайс-лист2'!K6*Титульный!$AY$1,Титульный!$AY$3) -> 9972 | K6: =CEILING('прайс-лист2'!L6*Титульный!$AY$1,Титульный!$AY$3) -> 10775 | L6: - | M6: =CEILING('прайс-лист2'!N6*Титульный!$AY$1,Титульный!$AY$3) -> 14075 | N6: =CEILING('прайс-лист2'!O6*Титульный!$AY$1,Титульный!$AY$3) -> 15175 | O6: =CEILING('прайс-лист2'!P6*Титульный!$AY$1,Титульный!$AY$3) -> 16286 | P6: =CEILING('прайс-лист2'!Q6*Титульный!$AY$1,Титульный!$AY$3) -> 17903 | Q6: =CEILING('прайс-лист2'!R6*Титульный!$AY$1,Титульный!$AY$3) -> 18211 | R6: =CEILING('прайс-лист2'!S6*Титульный!$AY$1,Титульный!$AY$3) -> 1523 | S6: =CEILING('прайс-лист2'!T6*Титульный!$AY$1,Титульный!$AY$3) -> 2730
A7: Шкаф (420) 1дв 2240х560 | C7: 560х440х2240 | D7: =CEILING('прайс-лист2'!E7*Титульный!$AY$1,Титульный!$AY$3) -> 13412 | E7: =CEILING('прайс-лист2'!F7*Титульный!$AY$1,Титульный!$AY$3) -> 18615 | F7: =CEILING('прайс-лист2'!G7*Титульный!$AY$1,Титульный!$AY$3) -> 14204 | G7: =CEILING('прайс-лист2'!H7*Титульный!$AY$1,Титульный!$AY$3) -> 16140 | H7: =CEILING('прайс-лист2'!I7*Титульный!$AY$1,Титульный!$AY$3) -> 11080 | I7: =CEILING('прайс-лист2'!J7*Титульный!$AY$1,Титульный!$AY$3) -> 11223 | J7: =CEILING('прайс-лист2'!K7*Титульный!$AY$1,Титульный!$AY$3) -> 11619 | K7: =CEILING('прайс-лист2'!L7*Титульный!$AY$1,Титульный!$AY$3) -> 12697 | L7: - | M7: =CEILING('прайс-лист2'!N7*Титульный!$AY$1,Титульный!$AY$3) -> 16833 | N7: =CEILING('прайс-лист2'!O7*Титульный!$AY$1,Титульный!$AY$3) -> 17988 | O7: =CEILING('прайс-лист2'!P7*Титульный!$AY$1,Титульный!$AY$3) -> 19781 | P7: =CEILING('прайс-лист2'!Q7*Титульный!$AY$1,Титульный!$AY$3) -> 21948 | Q7: =CEILING('прайс-лист2'!R7*Титульный!$AY$1,Титульный!$AY$3) -> 21739 | R7: =CEILING('прайс-лист2'!S7*Титульный!$AY$1,Титульный!$AY$3) -> 2190 | S7: =CEILING('прайс-лист2'!T7*Титульный!$AY$1,Титульный!$AY$3) -> 3632
A8: Шкаф (420) 1дв 1240х420 | C8: 420х440х1240 | D8: =CEILING('прайс-лист2'!E8*Титульный!$AY$1,Титульный!$AY$3) -> 6993 | E8: =CEILING('прайс-лист2'!F8*Титульный!$AY$1,Титульный!$AY$3) -> 9116 | F8: =CEILING('прайс-лист2'!G8*Титульный!$AY$1,Титульный!$AY$3) -> 7312 | G8: =CEILING('прайс-лист2'!H8*Титульный!$AY$1,Титульный!$AY$3) -> 8104 | H8: =CEILING('прайс-лист2'!I8*Титульный!$AY$1,Титульный!$AY$3) -> 6036 | I8: =CEILING('прайс-лист2'!J8*Титульный!$AY$1,Титульный!$AY$3) -> 6091 | J8: =CEILING('прайс-лист2'!K8*Титульный!$AY$1,Титульный!$AY$3) -> 6256 | K8: =CEILING('прайс-лист2'!L8*Титульный!$AY$1,Титульный!$AY$3) -> 6696 | L8: - | M8: =CEILING('прайс-лист2'!N8*Титульный!$AY$1,Титульный!$AY$3) -> 8566 | N8: =CEILING('прайс-лист2'!O8*Титульный!$AY$1,Титульный!$AY$3) -> 9248 | O8: =CEILING('прайс-лист2'!P8*Титульный!$AY$1,Титульный!$AY$3) -> 9776 | P8: =CEILING('прайс-лист2'!Q8*Титульный!$AY$1,Титульный!$AY$3) -> 10656 | Q8: =CEILING('прайс-лист2'!R8*Титульный!$AY$1,Титульный!$AY$3) -> 11041 | R8: - | S8: -
A9: Шкаф (420) 1дв 1240х560 | C9: 560х440х1240 | D9: =CEILING('прайс-лист2'!E9*Титульный!$AY$1,Титульный!$AY$3) -> 8073 | E9: =CEILING('прайс-лист2'!F9*Титульный!$AY$1,Титульный!$AY$3) -> 10911 | F9: =CEILING('прайс-лист2'!G9*Титульный!$AY$1,Титульный!$AY$3) -> 8502 | G9: =CEILING('прайс-лист2'!H9*Титульный!$AY$1,Титульный!$AY$3) -> 9558 | H9: =CEILING('прайс-лист2'!I9*Титульный!$AY$1,Титульный!$AY$3) -> 6808 | I9: =CEILING('прайс-лист2'!J9*Титульный!$AY$1,Титульный!$AY$3) -> 6874 | J9: =CEILING('прайс-лист2'!K9*Титульный!$AY$1,Титульный!$AY$3) -> 7094 | K9: =CEILING('прайс-лист2'!L9*Титульный!$AY$1,Титульный!$AY$3) -> 7688 | L9: - | M9: =CEILING('прайс-лист2'!N9*Титульный!$AY$1,Титульный!$AY$3) -> 10031 | N9: =CEILING('прайс-лист2'!O9*Титульный!$AY$1,Титульный!$AY$3) -> 10768 | O9: =CEILING('прайс-лист2'!P9*Титульный!$AY$1,Титульный!$AY$3) -> 11637 | P9: =CEILING('прайс-лист2'!Q9*Титульный!$AY$1,Титульный!$AY$3) -> 12825 | Q9: =CEILING('прайс-лист2'!R9*Титульный!$AY$1,Титульный!$AY$3) -> 12968 | R9: - | S9: -
A10: Шкаф (420) 1дв витрина 1240х420 | C10: 420х440х1240 | D10: =CEILING('прайс-лист2'!E10*Титульный!$AY$1,Титульный!$AY$3) -> 8212 | E10: =CEILING('прайс-лист2'!F10*Титульный!$AY$1,Титульный!$AY$3) -> 10335 | F10: =CEILING('прайс-лист2'!G10*Титульный!$AY$1,Титульный!$AY$3) -> 8531 | G10: =CEILING('прайс-лист2'!H10*Титульный!$AY$1,Титульный!$AY$3) -> 9323 | H10: =CEILING('прайс-лист2'!I10*Титульный!$AY$1,Титульный!$AY$3) -> 9208 | I10: =CEILING('прайс-лист2'!J10*Титульный!$AY$1,Титульный!$AY$3) -> 9208 | J10: =CEILING('прайс-лист2'!K10*Титульный!$AY$1,Титульный!$AY$3) -> 9208 | K10: =CEILING('прайс-лист2'!L10*Титульный!$AY$1,Титульный!$AY$3) -> 9208 | L10: - | M10: - | N10: - | O10: =CEILING('прайс-лист2'!P10*Титульный!$AY$1,Титульный!$AY$3) -> 10889 | P10: =CEILING('прайс-лист2'!Q10*Титульный!$AY$1,Титульный!$AY$3) -> 11813 | Q10: =CEILING('прайс-лист2'!R10*Титульный!$AY$1,Титульный!$AY$3) -> 9987 | R10: - | S10: -
A11: Шкаф (420) 1дв витрина 1240х560 | C11: 560х440х1240 | D11: =CEILING('прайс-лист2'!E11*Титульный!$AY$1,Титульный!$AY$3) -> 9737 | E11: =CEILING('прайс-лист2'!F11*Титульный!$AY$1,Титульный!$AY$3) -> 12575 | F11: =CEILING('прайс-лист2'!G11*Титульный!$AY$1,Титульный!$AY$3) -> 10166 | G11: =CEILING('прайс-лист2'!H11*Титульный!$AY$1,Титульный!$AY$3) -> 11222 | H11: =CEILING('прайс-лист2'!I11*Титульный!$AY$1,Титульный!$AY$3) -> 10048 | I11: =CEILING('прайс-лист2'!J11*Титульный!$AY$1,Титульный!$AY$3) -> 10048 | J11: =CEILING('прайс-лист2'!K11*Титульный!$AY$1,Титульный!$AY$3) -> 10048 | K11: =CEILING('прайс-лист2'!L11*Титульный!$AY$1,Титульный!$AY$3) -> 10048 | L11: - | M11: - | N11: - | O11: =CEILING('прайс-лист2'!P11*Титульный!$AY$1,Титульный!$AY$3) -> 13095 | P11: =CEILING('прайс-лист2'!Q11*Титульный!$AY$1,Титульный!$AY$3) -> 14338 | Q11: =CEILING('прайс-лист2'!R11*Титульный!$AY$1,Титульный!$AY$3) -> 11181 | R11: - | S11: -
A12: Шкаф (420) 1дв витрина 2040х420 | C12: 420х440х2040 | D12: =CEILING('прайс-лист2'!E12*Титульный!$AY$1,Титульный!$AY$3) -> 11415 | E12: =CEILING('прайс-лист2'!F12*Титульный!$AY$1,Титульный!$AY$3) -> 14946 | F12: =CEILING('прайс-лист2'!G12*Титульный!$AY$1,Титульный!$AY$3) -> 11943 | G12: =CEILING('прайс-лист2'!H12*Титульный!$AY$1,Титульный!$AY$3) -> 13263 | H12: =CEILING('прайс-лист2'!I12*Титульный!$AY$1,Титульный!$AY$3) -> 11997 | I12: =CEILING('прайс-лист2'!J12*Титульный!$AY$1,Титульный!$AY$3) -> 11997 | J12: =CEILING('прайс-лист2'!K12*Титульный!$AY$1,Титульный!$AY$3) -> 11997 | K12: =CEILING('прайс-лист2'!L12*Титульный!$AY$1,Титульный!$AY$3) -> 11997 | L12: - | M12: - | N12: - | O12: =CEILING('прайс-лист2'!P12*Титульный!$AY$1,Титульный!$AY$3) -> 15750 | P12: =CEILING('прайс-лист2'!Q12*Титульный!$AY$1,Титульный!$AY$3) -> 17323 | Q12: =CEILING('прайс-лист2'!R12*Титульный!$AY$1,Титульный!$AY$3) -> 13737 | R12: - | S12: -
A13: Шкаф (420) 1дв витрина 2040х560 | C13: 560х440х2040 | D13: =CEILING('прайс-лист2'!E13*Титульный!$AY$1,Титульный!$AY$3) -> 13045 | E13: =CEILING('прайс-лист2'!F13*Титульный!$AY$1,Титульный!$AY$3) -> 17764 | F13: =CEILING('прайс-лист2'!G13*Титульный!$AY$1,Титульный!$AY$3) -> 13760 | G13: =CEILING('прайс-лист2'!H13*Титульный!$AY$1,Титульный!$AY$3) -> 15520 | H13: =CEILING('прайс-лист2'!I13*Титульный!$AY$1,Титульный!$AY$3) -> 12304 | I13: =CEILING('прайс-лист2'!J13*Титульный!$AY$1,Титульный!$AY$3) -> 12304 | J13: =CEILING('прайс-лист2'!K13*Титульный!$AY$1,Титульный!$AY$3) -> 12304 | K13: =CEILING('прайс-лист2'!L13*Титульный!$AY$1,Титульный!$AY$3) -> 12304 | L13: - | M13: - | N13: - | O13: =CEILING('прайс-лист2'!P13*Титульный!$AY$1,Титульный!$AY$3) -> 18468 | P13: =CEILING('прайс-лист2'!Q13*Титульный!$AY$1,Титульный!$AY$3) -> 20580 | Q13: =CEILING('прайс-лист2'!R13*Титульный!$AY$1,Титульный!$AY$3) -> 14596
A14: Шкаф (420) 1дв витрина 2240х420 | C14: 420х440х2240 | D14: =CEILING('прайс-лист2'!E14*Титульный!$AY$1,Титульный!$AY$3) -> 12392 | E14: =CEILING('прайс-лист2'!F14*Титульный!$AY$1,Титульный!$AY$3) -> 16275 | F14: =CEILING('прайс-лист2'!G14*Титульный!$AY$1,Титульный!$AY$3) -> 12975 | G14: =CEILING('прайс-лист2'!H14*Титульный!$AY$1,Титульный!$AY$3) -> 14427 | H14: =CEILING('прайс-лист2'!I14*Титульный!$AY$1,Титульный!$AY$3) -> 12892 | I14: =CEILING('прайс-лист2'!J14*Титульный!$AY$1,Титульный!$AY$3) -> 12892 | J14: =CEILING('прайс-лист2'!K14*Титульный!$AY$1,Титульный!$AY$3) -> 12892 | K14: =CEILING('прайс-лист2'!L14*Титульный!$AY$1,Титульный!$AY$3) -> 12892 | L14: - | M14: - | N14: - | O14: =CEILING('прайс-лист2'!P14*Титульный!$AY$1,Титульный!$AY$3) -> 17143 | P14: =CEILING('прайс-лист2'!Q14*Титульный!$AY$1,Титульный!$AY$3) -> 18881 | Q14: =CEILING('прайс-лист2'!R14*Титульный!$AY$1,Титульный!$AY$3) -> 14855 | R14: - | S14: -
A15: Шкаф (420) 1дв 2ящ 2040х420 | C15: 420х440х2040 | D15: =CEILING('прайс-лист2'!E15*Титульный!$AY$1,Титульный!$AY$3) -> 11435 | E15: =CEILING('прайс-лист2'!F15*Титульный!$AY$1,Титульный!$AY$3) -> 14966 | F15: =CEILING('прайс-лист2'!G15*Титульный!$AY$1,Титульный!$AY$3) -> 11974 | G15: =CEILING('прайс-лист2'!H15*Титульный!$AY$1,Титульный!$AY$3) -> 13294 | H15: =CEILING('прайс-лист2'!I15*Титульный!$AY$1,Титульный!$AY$3) -> 9862 | I15: =CEILING('прайс-лист2'!J15*Титульный!$AY$1,Титульный!$AY$3) -> 9928 | J15: =CEILING('прайс-лист2'!K15*Титульный!$AY$1,Титульный!$AY$3) -> 10214 | K15: =CEILING('прайс-лист2'!L15*Титульный!$AY$1,Титульный!$AY$3) -> 10940 | L15: - | M15: =CEILING('прайс-лист2'!N15*Титульный!$AY$1,Титульный!$AY$3) -> 14262 | N15: =CEILING('прайс-лист2'!O15*Титульный!$AY$1,Титульный!$AY$3) -> 15637 | O15: =CEILING('прайс-лист2'!P15*Титульный!$AY$1,Титульный!$AY$3) -> 16286 | P15: =CEILING('прайс-лист2'!Q15*Титульный!$AY$1,Титульный!$AY$3) -> 17749 | Q15: =CEILING('прайс-лист2'!R15*Титульный!$AY$1,Титульный!$AY$3) -> 18563 | R15: =CEILING('прайс-лист2'!S15*Титульный!$AY$1,Титульный!$AY$3) -> 1344 | S15: =CEILING('прайс-лист2'!T15*Титульный!$AY$1,Титульный!$AY$3) -> 2010
A16: Шкаф (420) 1дв 2ящ 2240х420 | C16: 420х440х2240 | D16: =CEILING('прайс-лист2'!E16*Титульный!$AY$1,Титульный!$AY$3) -> 12322 | E16: =CEILING('прайс-лист2'!F16*Титульный!$AY$1,Титульный!$AY$3) -> 16216 | F16: =CEILING('прайс-лист2'!G16*Титульный!$AY$1,Титульный!$AY$3) -> 12916 | G16: =CEILING('прайс-лист2'!H16*Титульный!$AY$1,Титульный!$AY$3) -> 14368 | H16: =CEILING('прайс-лист2'!I16*Титульный!$AY$1,Титульный!$AY$3) -> 10584 | I16: =CEILING('прайс-лист2'!J16*Титульный!$AY$1,Титульный!$AY$3) -> 10672 | J16: =CEILING('прайс-лист2'!K16*Титульный!$AY$1,Титульный!$AY$3) -> 10980 | K16: =CEILING('прайс-лист2'!L16*Титульный!$AY$1,Титульный!$AY$3) -> 11783 | L16: - | M16: =CEILING('прайс-лист2'!N16*Титульный!$AY$1,Титульный!$AY$3) -> 15391 | N16: =CEILING('прайс-лист2'!O16*Титульный!$AY$1,Титульный!$AY$3) -> 16843 | O16: =CEILING('прайс-лист2'!P16*Титульный!$AY$1,Титульный!$AY$3) -> 17613 | P16: =CEILING('прайс-лист2'!Q16*Титульный!$AY$1,Титульный!$AY$3) -> 19230 | Q16: =CEILING('прайс-лист2'!R16*Титульный!$AY$1,Титульный!$AY$3) -> 20022 | R16: =CEILING('прайс-лист2'!S16*Титульный!$AY$1,Титульный!$AY$3) -> 1523 | S16: =CEILING('прайс-лист2'!T16*Титульный!$AY$1,Титульный!$AY$3) -> 2250
A17: Шкаф (420) 1дв 2ящ 2040х560 | C17: 560х440х2040 | D17: =CEILING('прайс-лист2'!E17*Титульный!$AY$1,Титульный!$AY$3) -> 13449 | E17: =CEILING('прайс-лист2'!F17*Титульный!$AY$1,Титульный!$AY$3) -> 18168 | F17: =CEILING('прайс-лист2'!G17*Титульный!$AY$1,Титульный!$AY$3) -> 14164 | G17: =CEILING('прайс-лист2'!H17*Титульный!$AY$1,Титульный!$AY$3) -> 15935 | H17: =CEILING('прайс-лист2'!I17*Титульный!$AY$1,Титульный!$AY$3) -> 11326 | I17: =CEILING('прайс-лист2'!J17*Титульный!$AY$1,Титульный!$AY$3) -> 11447 | J17: =CEILING('прайс-лист2'!K17*Титульный!$AY$1,Титульный!$AY$3) -> 11832 | K17: =CEILING('прайс-лист2'!L17*Титульный!$AY$1,Титульный!$AY$3) -> 12789 | L17: - | M17: =CEILING('прайс-лист2'!N17*Титульный!$AY$1,Титульный!$AY$3) -> 16980 | N17: =CEILING('прайс-лист2'!O17*Титульный!$AY$1,Титульный!$AY$3) -> 18520 | O17: =CEILING('прайс-лист2'!P17*Титульный!$AY$1,Титульный!$AY$3) -> 19664 | P17: =CEILING('прайс-лист2'!Q17*Титульный!$AY$1,Титульный!$AY$3) -> 21622 | Q17: =CEILING('прайс-лист2'!R17*Титульный!$AY$1,Титульный!$AY$3) -> 22062 | R17: =CEILING('прайс-лист2'!S17*Титульный!$AY$1,Титульный!$AY$3) -> 1932 | S17: =CEILING('прайс-лист2'!T17*Титульный!$AY$1,Титульный!$AY$3) -> 2677
A18: Шкаф (420) 1дв 2ящ 2240х560 | C18: 560х440х2240 | D18: =CEILING('прайс-лист2'!E18*Титульный!$AY$1,Титульный!$AY$3) -> 14518 | E18: =CEILING('прайс-лист2'!F18*Титульный!$AY$1,Титульный!$AY$3) -> 19710 | F18: =CEILING('прайс-лист2'!G18*Титульный!$AY$1,Титульный!$AY$3) -> 15310 | G18: =CEILING('прайс-лист2'!H18*Титульный!$AY$1,Титульный!$AY$3) -> 17257 | H18: =CEILING('прайс-лист2'!I18*Титульный!$AY$1,Титульный!$AY$3) -> 12197 | I18: =CEILING('прайс-лист2'!J18*Титульный!$AY$1,Титульный!$AY$3) -> 12329 | J18: =CEILING('прайс-лист2'!K18*Титульный!$AY$1,Титульный!$AY$3) -> 12747 | K18: =CEILING('прайс-лист2'!L18*Титульный!$AY$1,Титульный!$AY$3) -> 13803 | L18: - | M18: =CEILING('прайс-лист2'!N18*Титульный!$AY$1,Титульный!$AY$3) -> 18346 | N18: =CEILING('прайс-лист2'!O18*Титульный!$AY$1,Титульный!$AY$3) -> 19963 | O18: =CEILING('прайс-лист2'!P18*Титульный!$AY$1,Титульный!$AY$3) -> 21305 | P18: =CEILING('прайс-лист2'!Q18*Титульный!$AY$1,Титульный!$AY$3) -> 23450 | Q18: =CEILING('прайс-лист2'!R18*Титульный!$AY$1,Титульный!$AY$3) -> 23824 | R18: =CEILING('прайс-лист2'!S18*Титульный!$AY$1,Титульный!$AY$3) -> 2190 | S18: =CEILING('прайс-лист2'!T18*Титульный!$AY$1,Титульный!$AY$3) -> 2995
A19: Шкаф (420) 1дв 2ящ Шар 2040х420 | C19: 420х440х2040 | D19: =CEILING('прайс-лист2'!E19*Титульный!$AY$1,Титульный!$AY$3) -> 12028 | E19: =CEILING('прайс-лист2'!F19*Титульный!$AY$1,Титульный!$AY$3) -> 15559 | F19: =CEILING('прайс-лист2'!G19*Титульный!$AY$1,Титульный!$AY$3) -> 12567 | G19: =CEILING('прайс-лист2'!H19*Титульный!$AY$1,Титульный!$AY$3) -> 13887 | H19: =CEILING('прайс-лист2'!I19*Титульный!$AY$1,Титульный!$AY$3) -> 10455 | I19: =CEILING('прайс-лист2'!J19*Титульный!$AY$1,Титульный!$AY$3) -> 10521 | J19: =CEILING('прайс-лист2'!K19*Титульный!$AY$1,Титульный!$AY$3) -> 10807 | K19: =CEILING('прайс-лист2'!L19*Титульный!$AY$1,Титульный!$AY$3) -> 11533 | L19: - | M19: =CEILING('прайс-лист2'!N19*Титульный!$AY$1,Титульный!$AY$3) -> 14855 | N19: =CEILING('прайс-лист2'!O19*Титульный!$AY$1,Титульный!$AY$3) -> 16230 | O19: =CEILING('прайс-лист2'!P19*Титульный!$AY$1,Титульный!$AY$3) -> 16879 | P19: =CEILING('прайс-лист2'!Q19*Титульный!$AY$1,Титульный!$AY$3) -> 18342 | Q19: =CEILING('прайс-лист2'!R19*Титульный!$AY$1,Титульный!$AY$3) -> 19156 | R19: =CEILING('прайс-лист2'!S19*Титульный!$AY$1,Титульный!$AY$3) -> 1344 | S19: =CEILING('прайс-лист2'!T19*Титульный!$AY$1,Титульный!$AY$3) -> 2010
A20: Шкаф (420) 1дв 2ящ Шар 2240х420 | C20: 420х440х2240 | D20: =CEILING('прайс-лист2'!E20*Титульный!$AY$1,Титульный!$AY$3) -> 12903 | E20: =CEILING('прайс-лист2'!F20*Титульный!$AY$1,Титульный!$AY$3) -> 16797 | F20: =CEILING('прайс-лист2'!G20*Титульный!$AY$1,Титульный!$AY$3) -> 13497 | G20: =CEILING('прайс-лист2'!H20*Титульный!$AY$1,Титульный!$AY$3) -> 14949 | H20: =CEILING('прайс-лист2'!I20*Титульный!$AY$1,Титульный!$AY$3) -> 11165 | I20: =CEILING('прайс-лист2'!J20*Титульный!$AY$1,Титульный!$AY$3) -> 11253 | J20: =CEILING('прайс-лист2'!K20*Титульный!$AY$1,Титульный!$AY$3) -> 11561 | K20: =CEILING('прайс-лист2'!L20*Титульный!$AY$1,Титульный!$AY$3) -> 12364 | L20: - | M20: =CEILING('прайс-лист2'!N20*Титульный!$AY$1,Титульный!$AY$3) -> 15972 | N20: =CEILING('прайс-лист2'!O20*Титульный!$AY$1,Титульный!$AY$3) -> 17424 | O20: =CEILING('прайс-лист2'!P20*Титульный!$AY$1,Титульный!$AY$3) -> 18194 | P20: =CEILING('прайс-лист2'!Q20*Титульный!$AY$1,Титульный!$AY$3) -> 19811 | Q20: =CEILING('прайс-лист2'!R20*Титульный!$AY$1,Титульный!$AY$3) -> 20603 | R20: =CEILING('прайс-лист2'!S20*Титульный!$AY$1,Титульный!$AY$3) -> 1523 | S20: =CEILING('прайс-лист2'!T20*Титульный!$AY$1,Титульный!$AY$3) -> 2250
A21: Шкаф (420) 1дв 2ящ Шар 2040х560 | C21: 560х440х2040 | D21: =CEILING('прайс-лист2'!E21*Титульный!$AY$1,Титульный!$AY$3) -> 13967 | E21: =CEILING('прайс-лист2'!F21*Титульный!$AY$1,Титульный!$AY$3) -> 18686 | F21: =CEILING('прайс-лист2'!G21*Титульный!$AY$1,Титульный!$AY$3) -> 14682 | G21: =CEILING('прайс-лист2'!H21*Титульный!$AY$1,Титульный!$AY$3) -> 16453 | H21: =CEILING('прайс-лист2'!I21*Титульный!$AY$1,Титульный!$AY$3) -> 11844 | I21: =CEILING('прайс-лист2'!J21*Титульный!$AY$1,Титульный!$AY$3) -> 11965 | J21: =CEILING('прайс-лист2'!K21*Титульный!$AY$1,Титульный!$AY$3) -> 12350 | K21: =CEILING('прайс-лист2'!L21*Титульный!$AY$1,Титульный!$AY$3) -> 13307 | L21: - | M21: =CEILING('прайс-лист2'!N21*Титульный!$AY$1,Титульный!$AY$3) -> 17498 | N21: =CEILING('прайс-лист2'!O21*Титульный!$AY$1,Титульный!$AY$3) -> 19038 | O21: =CEILING('прайс-лист2'!P21*Титульный!$AY$1,Титульный!$AY$3) -> 20182 | P21: =CEILING('прайс-лист2'!Q21*Титульный!$AY$1,Титульный!$AY$3) -> 22140 | Q21: =CEILING('прайс-лист2'!R21*Титульный!$AY$1,Титульный!$AY$3) -> 22580 | R21: =CEILING('прайс-лист2'!S21*Титульный!$AY$1,Титульный!$AY$3) -> 1932 | S21: =CEILING('прайс-лист2'!T21*Титульный!$AY$1,Титульный!$AY$3) -> 2677
A22: Шкаф (420) 1дв 2ящ Шар 2240х560 | C22: 560х440х2240 | D22: =CEILING('прайс-лист2'!E22*Титульный!$AY$1,Титульный!$AY$3) -> 14970 | E22: =CEILING('прайс-лист2'!F22*Титульный!$AY$1,Титульный!$AY$3) -> 20162 | F22: =CEILING('прайс-лист2'!G22*Титульный!$AY$1,Титульный!$AY$3) -> 15762 | G22: =CEILING('прайс-лист2'!H22*Титульный!$AY$1,Титульный!$AY$3) -> 17709 | H22: =CEILING('прайс-лист2'!I22*Титульный!$AY$1,Титульный!$AY$3) -> 12649 | I22: =CEILING('прайс-лист2'!J22*Титульный!$AY$1,Титульный!$AY$3) -> 12781 | J22: =CEILING('прайс-лист2'!K22*Титульный!$AY$1,Титульный!$AY$3) -> 13199 | K22: =CEILING('прайс-лист2'!L22*Титульный!$AY$1,Титульный!$AY$3) -> 14255 | L22: - | M22: =CEILING('прайс-лист2'!N22*Титульный!$AY$1,Титульный!$AY$3) -> 18798 | N22: =CEILING('прайс-лист2'!O22*Титульный!$AY$1,Титульный!$AY$3) -> 20415 | O22: =CEILING('прайс-лист2'!P22*Титульный!$AY$1,Титульный!$AY$3) -> 21757 | P22: =CEILING('прайс-лист2'!Q22*Титульный!$AY$1,Титульный!$AY$3) -> 23902 | Q22: =CEILING('прайс-лист2'!R22*Титульный!$AY$1,Титульный!$AY$3) -> 24276 | R22: =CEILING('прайс-лист2'!S22*Титульный!$AY$1,Титульный!$AY$3) -> 2190 | S22: =CEILING('прайс-лист2'!T22*Титульный!$AY$1,Титульный!$AY$3) -> 2995
A23: Шкаф (420) 1дв 2ящ витрина 2040х420 | C23: 420х440х2040 | D23: =CEILING('прайс-лист2'!E23*Титульный!$AY$1,Титульный!$AY$3) -> 12289 | E23: =CEILING('прайс-лист2'!F23*Титульный!$AY$1,Титульный!$AY$3) -> 15820 | F23: =CEILING('прайс-лист2'!G23*Титульный!$AY$1,Титульный!$AY$3) -> 12828 | G23: =CEILING('прайс-лист2'!H23*Титульный!$AY$1,Титульный!$AY$3) -> 14148 | H23: =CEILING('прайс-лист2'!I23*Титульный!$AY$1,Титульный!$AY$3) -> 11348 | I23: =CEILING('прайс-лист2'!J23*Титульный!$AY$1,Титульный!$AY$3) -> 11348 | J23: =CEILING('прайс-лист2'!K23*Титульный!$AY$1,Титульный!$AY$3) -> 11348 | K23: =CEILING('прайс-лист2'!L23*Титульный!$AY$1,Титульный!$AY$3) -> 11348 | L23: - | M23: - | N23: - | O23: =CEILING('прайс-лист2'!P23*Титульный!$AY$1,Титульный!$AY$3) -> 16913 | P23: =CEILING('прайс-лист2'!Q23*Титульный!$AY$1,Титульный!$AY$3) -> 18442 | Q23: =CEILING('прайс-лист2'!R23*Титульный!$AY$1,Титульный!$AY$3) -> 16209 | R23: - | S23: -
A24: Шкаф (420) 1дв 2ящ витрина 2240х420 | C24: 420х440х2240 | D24: =CEILING('прайс-лист2'!E24*Титульный!$AY$1,Титульный!$AY$3) -> 13192 | E24: =CEILING('прайс-лист2'!F24*Титульный!$AY$1,Титульный!$AY$3) -> 17086 | F24: =CEILING('прайс-лист2'!G24*Титульный!$AY$1,Титульный!$AY$3) -> 13786 | G24: =CEILING('прайс-лист2'!H24*Титульный!$AY$1,Титульный!$AY$3) -> 15238 | H24: =CEILING('прайс-лист2'!I24*Титульный!$AY$1,Титульный!$AY$3) -> 13564 | I24: =CEILING('прайс-лист2'!J24*Титульный!$AY$1,Титульный!$AY$3) -> 13564 | J24: =CEILING('прайс-лист2'!K24*Титульный!$AY$1,Титульный!$AY$3) -> 13564 | K24: =CEILING('прайс-лист2'!L24*Титульный!$AY$1,Титульный!$AY$3) -> 13564 | L24: - | M24: - | N24: - | O24: =CEILING('прайс-лист2'!P24*Титульный!$AY$1,Титульный!$AY$3) -> 18309 | P24: =CEILING('прайс-лист2'!Q24*Титульный!$AY$1,Титульный!$AY$3) -> 20003 | Q24: =CEILING('прайс-лист2'!R24*Титульный!$AY$1,Титульный!$AY$3) -> 17330 | R24: - | S24: -
A25: Шкаф (420) 2дв 1ящ 2040х420 | C25: 420х440х2040 | D25: =CEILING('прайс-лист2'!E25*Титульный!$AY$1,Титульный!$AY$3) -> 10857 | E25: =CEILING('прайс-лист2'!F25*Титульный!$AY$1,Титульный!$AY$3) -> 14399 | F25: =CEILING('прайс-лист2'!G25*Титульный!$AY$1,Титульный!$AY$3) -> 11396 | G25: =CEILING('прайс-лист2'!H25*Титульный!$AY$1,Титульный!$AY$3) -> 12716 | H25: =CEILING('прайс-лист2'!I25*Титульный!$AY$1,Титульный!$AY$3) -> 9273 | I25: =CEILING('прайс-лист2'!J25*Титульный!$AY$1,Титульный!$AY$3) -> 9361 | J25: =CEILING('прайс-лист2'!K25*Титульный!$AY$1,Титульный!$AY$3) -> 9636 | K25: =CEILING('прайс-лист2'!L25*Титульный!$AY$1,Титульный!$AY$3) -> 10362 | L25: - | M25: =CEILING('прайс-лист2'!N25*Титульный!$AY$1,Титульный!$AY$3) -> 13684 | N25: =CEILING('прайс-лист2'!O25*Титульный!$AY$1,Титульный!$AY$3) -> 15048 | O25: =CEILING('прайс-лист2'!P25*Титульный!$AY$1,Титульный!$AY$3) -> 15697 | P25: =CEILING('прайс-лист2'!Q25*Титульный!$AY$1,Титульный!$AY$3) -> 17160 | Q25: =CEILING('прайс-лист2'!R25*Титульный!$AY$1,Титульный!$AY$3) -> 18205 | R25: - | S25: -
A26: Шкаф (420) 2дв 1ящ 2240х420 | C26: 420х440х2240 | D26: =CEILING('прайс-лист2'!E26*Титульный!$AY$1,Титульный!$AY$3) -> 11731 | E26: =CEILING('прайс-лист2'!F26*Титульный!$AY$1,Титульный!$AY$3) -> 15625 | F26: =CEILING('прайс-лист2'!G26*Титульный!$AY$1,Титульный!$AY$3) -> 12325 | G26: =CEILING('прайс-лист2'!H26*Титульный!$AY$1,Титульный!$AY$3) -> 13777 | H26: =CEILING('прайс-лист2'!I26*Титульный!$AY$1,Титульный!$AY$3) -> 9993 | I26: =CEILING('прайс-лист2'!J26*Титульный!$AY$1,Титульный!$AY$3) -> 10081 | J26: =CEILING('прайс-лист2'!K26*Титульный!$AY$1,Титульный!$AY$3) -> 10389 | K26: =CEILING('прайс-лист2'!L26*Титульный!$AY$1,Титульный!$AY$3) -> 11192 | L26: - | M26: =CEILING('прайс-лист2'!N26*Титульный!$AY$1,Титульный!$AY$3) -> 14800 | N26: =CEILING('прайс-лист2'!O26*Титульный!$AY$1,Титульный!$AY$3) -> 16252 | O26: =CEILING('прайс-лист2'!P26*Титульный!$AY$1,Титульный!$AY$3) -> 17011 | P26: =CEILING('прайс-лист2'!Q26*Титульный!$AY$1,Титульный!$AY$3) -> 18628 | Q26: =CEILING('прайс-лист2'!R26*Титульный!$AY$1,Титульный!$AY$3) -> 19651 | R26: - | S26: -
A27: Шкаф (420) 2дв 1ящ витрина 2040х420 | C27: 420х440х2040 | D27: =CEILING('прайс-лист2'!E27*Титульный!$AY$1,Титульный!$AY$3) -> 11708 | E27: =CEILING('прайс-лист2'!F27*Титульный!$AY$1,Титульный!$AY$3) -> 15250 | F27: =CEILING('прайс-лист2'!G27*Титульный!$AY$1,Титульный!$AY$3) -> 12247 | G27: =CEILING('прайс-лист2'!H27*Титульный!$AY$1,Титульный!$AY$3) -> 13567 | H27: =CEILING('прайс-лист2'!I27*Титульный!$AY$1,Титульный!$AY$3) -> 13862 | I27: =CEILING('прайс-лист2'!J27*Титульный!$AY$1,Титульный!$AY$3) -> 13862 | J27: =CEILING('прайс-лист2'!K27*Титульный!$AY$1,Титульный!$AY$3) -> 13862 | K27: =CEILING('прайс-лист2'!L27*Титульный!$AY$1,Титульный!$AY$3) -> 13862 | L27: - | M27: - | N27: - | O27: =CEILING('прайс-лист2'!P27*Титульный!$AY$1,Титульный!$AY$3) -> 16403 | P27: =CEILING('прайс-лист2'!Q27*Титульный!$AY$1,Титульный!$AY$3) -> 17910 | Q27: =CEILING('прайс-лист2'!R27*Титульный!$AY$1,Титульный!$AY$3) -> 15809 | R27: - | S27: -
A28: Шкаф (420) 2дв 1ящ витрина 2240х420 | C28: 420х440х2240 | D28: =CEILING('прайс-лист2'!E28*Титульный!$AY$1,Титульный!$AY$3) -> 12763 | E28: =CEILING('прайс-лист2'!F28*Титульный!$AY$1,Титульный!$AY$3) -> 16657 | F28: =CEILING('прайс-лист2'!G28*Титульный!$AY$1,Титульный!$AY$3) -> 13357 | G28: =CEILING('прайс-лист2'!H28*Титульный!$AY$1,Титульный!$AY$3) -> 14809 | H28: =CEILING('прайс-лист2'!I28*Титульный!$AY$1,Титульный!$AY$3) -> 14815 | I28: =CEILING('прайс-лист2'!J28*Титульный!$AY$1,Титульный!$AY$3) -> 14815 | J28: =CEILING('прайс-лист2'!K28*Титульный!$AY$1,Титульный!$AY$3) -> 14815 | K28: =CEILING('прайс-лист2'!L28*Титульный!$AY$1,Титульный!$AY$3) -> 14815 | L28: - | M28: - | N28: - | O28: =CEILING('прайс-лист2'!P28*Титульный!$AY$1,Титульный!$AY$3) -> 17884 | P28: =CEILING('прайс-лист2'!Q28*Титульный!$AY$1,Титульный!$AY$3) -> 19545 | Q28: =CEILING('прайс-лист2'!R28*Титульный!$AY$1,Титульный!$AY$3) -> 17004 | R28: - | S28: -
A29: Шкаф (420) 2дв 1ящ шар 2040х420 | C29: 420х440х2040 | D29: =CEILING('прайс-лист2'!E29*Титульный!$AY$1,Титульный!$AY$3) -> 11071 | E29: =CEILING('прайс-лист2'!F29*Титульный!$AY$1,Титульный!$AY$3) -> 14613 | F29: =CEILING('прайс-лист2'!G29*Титульный!$AY$1,Титульный!$AY$3) -> 11610 | G29: =CEILING('прайс-лист2'!H29*Титульный!$AY$1,Титульный!$AY$3) -> 12930 | H29: =CEILING('прайс-лист2'!I29*Титульный!$AY$1,Титульный!$AY$3) -> 9487 | I29: =CEILING('прайс-лист2'!J29*Титульный!$AY$1,Титульный!$AY$3) -> 9575 | J29: =CEILING('прайс-лист2'!K29*Титульный!$AY$1,Титульный!$AY$3) -> 9850 | K29: =CEILING('прайс-лист2'!L29*Титульный!$AY$1,Титульный!$AY$3) -> 10576 | L29: - | M29: =CEILING('прайс-лист2'!N29*Титульный!$AY$1,Титульный!$AY$3) -> 13898 | N29: =CEILING('прайс-лист2'!O29*Титульный!$AY$1,Титульный!$AY$3) -> 15262 | O29: =CEILING('прайс-лист2'!P29*Титульный!$AY$1,Титульный!$AY$3) -> 15911 | P29: =CEILING('прайс-лист2'!Q29*Титульный!$AY$1,Титульный!$AY$3) -> 17374 | Q29: =CEILING('прайс-лист2'!R29*Титульный!$AY$1,Титульный!$AY$3) -> 18419
A30: Шкаф (420) 2дв 1ящ шар 2240х420 | C30: 420х440х2240 | D30: =CEILING('прайс-лист2'!E30*Титульный!$AY$1,Титульный!$AY$3) -> 11937 | E30: =CEILING('прайс-лист2'!F30*Титульный!$AY$1,Титульный!$AY$3) -> 15831 | F30: =CEILING('прайс-лист2'!G30*Титульный!$AY$1,Титульный!$AY$3) -> 12531 | G30: =CEILING('прайс-лист2'!H30*Титульный!$AY$1,Титульный!$AY$3) -> 13983 | H30: =CEILING('прайс-лист2'!I30*Титульный!$AY$1,Титульный!$AY$3) -> 10199 | I30: =CEILING('прайс-лист2'!J30*Титульный!$AY$1,Титульный!$AY$3) -> 10287 | J30: =CEILING('прайс-лист2'!K30*Титульный!$AY$1,Титульный!$AY$3) -> 10595 | K30: =CEILING('прайс-лист2'!L30*Титульный!$AY$1,Титульный!$AY$3) -> 11398 | L30: - | M30: =CEILING('прайс-лист2'!N30*Титульный!$AY$1,Титульный!$AY$3) -> 15006 | N30: =CEILING('прайс-лист2'!O30*Титульный!$AY$1,Титульный!$AY$3) -> 16458 | O30: =CEILING('прайс-лист2'!P30*Титульный!$AY$1,Титульный!$AY$3) -> 17217 | P30: =CEILING('прайс-лист2'!Q30*Титульный!$AY$1,Титульный!$AY$3) -> 18834 | Q30: =CEILING('прайс-лист2'!R30*Титульный!$AY$1,Титульный!$AY$3) -> 19857
A31: Шкаф (420) 2дв 1ящ шар витрина 2040х420 | C31: 420х440х2040 | D31: =CEILING('прайс-лист2'!E31*Титульный!$AY$1,Титульный!$AY$3) -> 12062 | E31: =CEILING('прайс-лист2'!F31*Титульный!$AY$1,Титульный!$AY$3) -> 15604 | F31: =CEILING('прайс-лист2'!G31*Титульный!$AY$1,Титульный!$AY$3) -> 12601 | G31: =CEILING('прайс-лист2'!H31*Титульный!$AY$1,Титульный!$AY$3) -> 13921 | H31: =CEILING('прайс-лист2'!I31*Титульный!$AY$1,Титульный!$AY$3) -> 9849 | I31: =CEILING('прайс-лист2'!J31*Титульный!$AY$1,Титульный!$AY$3) -> 9937 | J31: =CEILING('прайс-лист2'!K31*Титульный!$AY$1,Титульный!$AY$3) -> 10212 | K31: =CEILING('прайс-лист2'!L31*Титульный!$AY$1,Титульный!$AY$3) -> 10960 | L31: - | M31: =CEILING('прайс-лист2'!N31*Титульный!$AY$1,Титульный!$AY$3) -> 14722 | N31: =CEILING('прайс-лист2'!O31*Титульный!$AY$1,Титульный!$AY$3) -> 16526 | O31: =CEILING('прайс-лист2'!P31*Титульный!$AY$1,Титульный!$AY$3) -> 16757 | P31: =CEILING('прайс-лист2'!Q31*Титульный!$AY$1,Титульный!$AY$3) -> 18264 | Q31: =CEILING('прайс-лист2'!R31*Титульный!$AY$1,Титульный!$AY$3) -> 16163
A32: Шкаф (420) 2дв 1ящ шар витрина 2240х420 | C32: 420х440х2240 | D32: =CEILING('прайс-лист2'!E32*Титульный!$AY$1,Титульный!$AY$3) -> 12964 | E32: =CEILING('прайс-лист2'!F32*Титульный!$AY$1,Титульный!$AY$3) -> 16858 | F32: =CEILING('прайс-лист2'!G32*Титульный!$AY$1,Титульный!$AY$3) -> 13558 | G32: =CEILING('прайс-лист2'!H32*Титульный!$AY$1,Титульный!$AY$3) -> 15010 | H32: =CEILING('прайс-лист2'!I32*Титульный!$AY$1,Титульный!$AY$3) -> 10507 | I32: =CEILING('прайс-лист2'!J32*Титульный!$AY$1,Титульный!$AY$3) -> 10606 | J32: =CEILING('прайс-лист2'!K32*Титульный!$AY$1,Титульный!$AY$3) -> 10914 | K32: =CEILING('прайс-лист2'!L32*Титульный!$AY$1,Титульный!$AY$3) -> 11739 | L32: - | M32: =CEILING('прайс-лист2'!N32*Титульный!$AY$1,Титульный!$AY$3) -> 15820 | N32: =CEILING('прайс-лист2'!O32*Титульный!$AY$1,Титульный!$AY$3) -> 17712 | O32: =CEILING('прайс-лист2'!P32*Титульный!$AY$1,Титульный!$AY$3) -> 18086 | P32: =CEILING('прайс-лист2'!Q32*Титульный!$AY$1,Титульный!$AY$3) -> 19747 | Q32: =CEILING('прайс-лист2'!R32*Титульный!$AY$1,Титульный!$AY$3) -> 17206
A33: Шкаф (420) 2дв 2040х840 | C33: 840х440х2040 | D33: =CEILING('прайс-лист2'!E33*Титульный!$AY$1,Титульный!$AY$3) -> 17545 | E33: =CEILING('прайс-лист2'!F33*Титульный!$AY$1,Титульный!$AY$3) -> 24607 | F33: =CEILING('прайс-лист2'!G33*Титульный!$AY$1,Титульный!$AY$3) -> 18601 | G33: =CEILING('прайс-лист2'!H33*Титульный!$AY$1,Титульный!$AY$3) -> 21241 | H33: =CEILING('прайс-лист2'!I33*Титульный!$AY$1,Титульный!$AY$3) -> 14355 | I33: =CEILING('прайс-лист2'!J33*Титульный!$AY$1,Титульный!$AY$3) -> 14531 | J33: =CEILING('прайс-лист2'!K33*Титульный!$AY$1,Титульный!$AY$3) -> 15081 | K33: =CEILING('прайс-лист2'!L33*Титульный!$AY$1,Титульный!$AY$3) -> 16555 | L33: - | M33: =CEILING('прайс-лист2'!N33*Титульный!$AY$1,Титульный!$AY$3) -> 22583 | N33: =CEILING('прайс-лист2'!O33*Титульный!$AY$1,Титульный!$AY$3) -> 24607 | O33: =CEILING('прайс-лист2'!P33*Титульный!$AY$1,Титульный!$AY$3) -> 26609 | P33: =CEILING('прайс-лист2'!Q33*Титульный!$AY$1,Титульный!$AY$3) -> 29557 | Q33: =CEILING('прайс-лист2'!R33*Титульный!$AY$1,Титульный!$AY$3) -> 30195 | R33: =CEILING('прайс-лист2'!S33*Титульный!$AY$1,Титульный!$AY$3) -> 2688 | S33: =CEILING('прайс-лист2'!T33*Титульный!$AY$1,Титульный!$AY$3) -> 4980
A34: Шкаф (420) 2дв 2240х840 | C34: 840х440х2240 | D34: =CEILING('прайс-лист2'!E34*Титульный!$AY$1,Титульный!$AY$3) -> 19051 | E34: =CEILING('прайс-лист2'!F34*Титульный!$AY$1,Титульный!$AY$3) -> 26817 | F34: =CEILING('прайс-лист2'!G34*Титульный!$AY$1,Титульный!$AY$3) -> 20217 | G34: =CEILING('прайс-лист2'!H34*Титульный!$AY$1,Титульный!$AY$3) -> 23121 | H34: =CEILING('прайс-лист2'!I34*Титульный!$AY$1,Титульный!$AY$3) -> 15553 | I34: =CEILING('прайс-лист2'!J34*Титульный!$AY$1,Титульный!$AY$3) -> 15751 | J34: =CEILING('прайс-лист2'!K34*Титульный!$AY$1,Титульный!$AY$3) -> 16367 | K34: =CEILING('прайс-лист2'!L34*Титульный!$AY$1,Титульный!$AY$3) -> 17973 | L34: - | M34: =CEILING('прайс-лист2'!N34*Титульный!$AY$1,Титульный!$AY$3) -> 24573 | N34: =CEILING('прайс-лист2'!O34*Титульный!$AY$1,Титульный!$AY$3) -> 26773 | O34: =CEILING('прайс-лист2'!P34*Титульный!$AY$1,Титульный!$AY$3) -> 28995 | P34: =CEILING('прайс-лист2'!Q34*Титульный!$AY$1,Титульный!$AY$3) -> 32229 | Q34: =CEILING('прайс-лист2'!R34*Титульный!$AY$1,Титульный!$AY$3) -> 32845 | R34: =CEILING('прайс-лист2'!S34*Титульный!$AY$1,Титульный!$AY$3) -> 3046 | S34: =CEILING('прайс-лист2'!T34*Титульный!$AY$1,Титульный!$AY$3) -> 5460
A35: Шкаф (420) комб 2дв 2040х840 | C35: 840х440х2040 | D35: =CEILING('прайс-лист2'!E35*Титульный!$AY$1,Титульный!$AY$3) -> 19008 | E35: =CEILING('прайс-лист2'!F35*Титульный!$AY$1,Титульный!$AY$3) -> 26070 | F35: =CEILING('прайс-лист2'!G35*Титульный!$AY$1,Титульный!$AY$3) -> 20064 | G35: =CEILING('прайс-лист2'!H35*Титульный!$AY$1,Титульный!$AY$3) -> 22704 | H35: =CEILING('прайс-лист2'!I35*Титульный!$AY$1,Титульный!$AY$3) -> 15818 | I35: =CEILING('прайс-лист2'!J35*Титульный!$AY$1,Титульный!$AY$3) -> 15994 | J35: =CEILING('прайс-лист2'!K35*Титульный!$AY$1,Титульный!$AY$3) -> 16544 | K35: =CEILING('прайс-лист2'!L35*Титульный!$AY$1,Титульный!$AY$3) -> 18018 | L35: - | M35: =CEILING('прайс-лист2'!N35*Титульный!$AY$1,Титульный!$AY$3) -> 24046 | N35: =CEILING('прайс-лист2'!O35*Титульный!$AY$1,Титульный!$AY$3) -> 26070 | O35: =CEILING('прайс-лист2'!P35*Титульный!$AY$1,Титульный!$AY$3) -> 28072 | P35: =CEILING('прайс-лист2'!Q35*Титульный!$AY$1,Титульный!$AY$3) -> 31020 | Q35: =CEILING('прайс-лист2'!R35*Титульный!$AY$1,Титульный!$AY$3) -> 31658 | R35: =CEILING('прайс-лист2'!S35*Титульный!$AY$1,Титульный!$AY$3) -> 2688 | S35: =CEILING('прайс-лист2'!T35*Титульный!$AY$1,Титульный!$AY$3) -> 4980
A36: Шкаф (420) комб 2дв 2240х840 | C36: 840х440х2240 | D36: =CEILING('прайс-лист2'!E36*Титульный!$AY$1,Титульный!$AY$3) -> 20377 | E36: =CEILING('прайс-лист2'!F36*Титульный!$AY$1,Титульный!$AY$3) -> 28143 | F36: =CEILING('прайс-лист2'!G36*Титульный!$AY$1,Титульный!$AY$3) -> 21543 | G36: =CEILING('прайс-лист2'!H36*Титульный!$AY$1,Титульный!$AY$3) -> 24447 | H36: =CEILING('прайс-лист2'!I36*Титульный!$AY$1,Титульный!$AY$3) -> 16879 | I36: =CEILING('прайс-лист2'!J36*Титульный!$AY$1,Титульный!$AY$3) -> 17077 | J36: =CEILING('прайс-лист2'!K36*Титульный!$AY$1,Титульный!$AY$3) -> 17693 | K36: =CEILING('прайс-лист2'!L36*Титульный!$AY$1,Титульный!$AY$3) -> 19299 | L36: - | M36: =CEILING('прайс-лист2'!N36*Титульный!$AY$1,Титульный!$AY$3) -> 25899 | N36: =CEILING('прайс-лист2'!O36*Титульный!$AY$1,Титульный!$AY$3) -> 28099 | O36: =CEILING('прайс-лист2'!P36*Титульный!$AY$1,Титульный!$AY$3) -> 30321 | P36: =CEILING('прайс-лист2'!Q36*Титульный!$AY$1,Титульный!$AY$3) -> 33555 | Q36: =CEILING('прайс-лист2'!R36*Титульный!$AY$1,Титульный!$AY$3) -> 34171 | R36: =CEILING('прайс-лист2'!S36*Титульный!$AY$1,Титульный!$AY$3) -> 3046 | S36: =CEILING('прайс-лист2'!T36*Титульный!$AY$1,Титульный!$AY$3) -> 5460
A37: Шкаф (420) 2дв витрина 2040х840 | C37: 840х440х2040 | D37: =CEILING('прайс-лист2'!E37*Титульный!$AY$1,Титульный!$AY$3) -> 20268 | E37: =CEILING('прайс-лист2'!F37*Титульный!$AY$1,Титульный!$AY$3) -> 27330 | F37: =CEILING('прайс-лист2'!G37*Титульный!$AY$1,Титульный!$AY$3) -> 21324 | G37: =CEILING('прайс-лист2'!H37*Титульный!$AY$1,Титульный!$AY$3) -> 23964 | H37: =CEILING('прайс-лист2'!I37*Титульный!$AY$1,Титульный!$AY$3) -> 14792 | I37: =CEILING('прайс-лист2'!J37*Титульный!$AY$1,Титульный!$AY$3) -> 14990 | J37: =CEILING('прайс-лист2'!K37*Титульный!$AY$1,Титульный!$AY$3) -> 15584 | K37: =CEILING('прайс-лист2'!L37*Титульный!$AY$1,Титульный!$AY$3) -> 17146 | L37: - | M37: - | N37: - | O37: =CEILING('прайс-лист2'!P37*Титульный!$AY$1,Титульный!$AY$3) -> 28190 | P37: =CEILING('прайс-лист2'!Q37*Титульный!$AY$1,Титульный!$AY$3) -> 31336 | Q37: =CEILING('прайс-лист2'!R37*Титульный!$AY$1,Титульный!$AY$3) -> 24164 | R37: - | S37: -
A38: Шкаф (420) 2дв витрина 2240х840 | C38: 840х440х2240 | D38: =CEILING('прайс-лист2'!E38*Титульный!$AY$1,Титульный!$AY$3) -> 22046 | E38: =CEILING('прайс-лист2'!F38*Титульный!$AY$1,Титульный!$AY$3) -> 29812 | F38: =CEILING('прайс-лист2'!G38*Титульный!$AY$1,Титульный!$AY$3) -> 23212 | G38: =CEILING('прайс-лист2'!H38*Титульный!$AY$1,Титульный!$AY$3) -> 26116 | H38: =CEILING('прайс-лист2'!I38*Титульный!$AY$1,Титульный!$AY$3) -> 16000 | I38: =CEILING('прайс-лист2'!J38*Титульный!$AY$1,Титульный!$AY$3) -> 16220 | J38: =CEILING('прайс-лист2'!K38*Титульный!$AY$1,Титульный!$AY$3) -> 16880 | K38: =CEILING('прайс-лист2'!L38*Титульный!$AY$1,Титульный!$AY$3) -> 18596 | L38: - | M38: - | N38: - | O38: =CEILING('прайс-лист2'!P38*Титульный!$AY$1,Титульный!$AY$3) -> 30718 | P38: =CEILING('прайс-лист2'!Q38*Титульный!$AY$1,Титульный!$AY$3) -> 34194 | Q38: =CEILING('прайс-лист2'!R38*Титульный!$AY$1,Титульный!$AY$3) -> 26142 | R38: - | S38: -
A39: Внимание!!! Для наборов мебели "Марго" использовать только накладные зеркала
A40: Шкафы глубиной 420мм
A41: Наименование | B41: Эскиз | C41: Габариты, ШхГхВ мм. | D41: МДФ фасады | H41: Марго16 | M41: UV-лак | O41: ТСС | Q41: ТСС сборный | R41: Стоимость зеркал
D42: 1 ЦК | E42: 1 ЦК + патина | F42: 2 ЦК | G42: 3 ЦК | H42: 1 ц.к. | I42: 2 ц.к. | J42: 3 ц.к. | K42: 4 ц.к. | L42: 5 ц.к. | M42: UV-лак кромка ABC/AL кромка | N42: кромка 3D | O42: 1 ЦК | P42: 2 ЦК | R42: Зеркало в рамке** | S42: Зеркало накладное*
A43: Шкаф (420) 2дв 2ящ 2040х840 | C43: 840х440х2040 | D43: =CEILING('прайс-лист2'!E39*Титульный!$AY$1,Титульный!$AY$3) -> 18706 | E43: =CEILING('прайс-лист2'!F39*Титульный!$AY$1,Титульный!$AY$3) -> 25768 | F43: =CEILING('прайс-лист2'!G39*Титульный!$AY$1,Титульный!$AY$3) -> 19784 | G43: =CEILING('прайс-лист2'!H39*Титульный!$AY$1,Титульный!$AY$3) -> 22402 | H43: =CEILING('прайс-лист2'!I39*Титульный!$AY$1,Титульный!$AY$3) -> 15538 | I43: =CEILING('прайс-лист2'!J39*Титульный!$AY$1,Титульный!$AY$3) -> 15714 | J43: =CEILING('прайс-лист2'!K39*Титульный!$AY$1,Титульный!$AY$3) -> 16264 | K43: =CEILING('прайс-лист2'!L39*Титульный!$AY$1,Титульный!$AY$3) -> 17738 | L43: - | M43: =CEILING('прайс-лист2'!N39*Титульный!$AY$1,Титульный!$AY$3) -> 24228 | N43: =CEILING('прайс-лист2'!O39*Титульный!$AY$1,Титульный!$AY$3) -> 26802 | O43: =CEILING('прайс-лист2'!P39*Титульный!$AY$1,Титульный!$AY$3) -> 28254 | P43: =CEILING('прайс-лист2'!Q39*Титульный!$AY$1,Титульный!$AY$3) -> 31180 | Q43: =CEILING('прайс-лист2'!R39*Титульный!$AY$1,Титульный!$AY$3) -> 32302 | R43: =CEILING('прайс-лист2'!S39*Титульный!$AY$1,Титульный!$AY$3) -> 2688 | S43: =CEILING('прайс-лист2'!T39*Титульный!$AY$1,Титульный!$AY$3) -> 4020
A44: Шкаф (420) 2дв 2ящ 2240х840 | C44: 840х440х2240 | D44: =CEILING('прайс-лист2'!E40*Титульный!$AY$1,Титульный!$AY$3) -> 20243 | E44: =CEILING('прайс-лист2'!F40*Титульный!$AY$1,Титульный!$AY$3) -> 28031 | F44: =CEILING('прайс-лист2'!G40*Титульный!$AY$1,Титульный!$AY$3) -> 21431 | G44: =CEILING('прайс-лист2'!H40*Титульный!$AY$1,Титульный!$AY$3) -> 24313 | H44: =CEILING('прайс-лист2'!I40*Титульный!$AY$1,Титульный!$AY$3) -> 16745 | I44: =CEILING('прайс-лист2'!J40*Титульный!$AY$1,Титульный!$AY$3) -> 16965 | J44: =CEILING('прайс-лист2'!K40*Титульный!$AY$1,Титульный!$AY$3) -> 17559 | K44: =CEILING('прайс-лист2'!L40*Титульный!$AY$1,Титульный!$AY$3) -> 19187 | L44: - | M44: =CEILING('прайс-лист2'!N40*Титульный!$AY$1,Титульный!$AY$3) -> 26249 | N44: =CEILING('прайс-лист2'!O40*Титульный!$AY$1,Титульный!$AY$3) -> 28977 | O44: =CEILING('прайс-лист2'!P40*Титульный!$AY$1,Титульный!$AY$3) -> 30671 | P44: =CEILING('прайс-лист2'!Q40*Титульный!$AY$1,Титульный!$AY$3) -> 33905 | Q44: =CEILING('прайс-лист2'!R40*Титульный!$AY$1,Титульный!$AY$3) -> 34983 | R44: =CEILING('прайс-лист2'!S40*Титульный!$AY$1,Титульный!$AY$3) -> 3046 | S44: =CEILING('прайс-лист2'!T40*Титульный!$AY$1,Титульный!$AY$3) -> 4500
A45: Шкаф (420) 2дв 2ящ витрина 2040х840 | C45: 840х440х2040 | D45: =CEILING('прайс-лист2'!E41*Титульный!$AY$1,Титульный!$AY$3) -> 20856 | E45: =CEILING('прайс-лист2'!F41*Титульный!$AY$1,Титульный!$AY$3) -> 27918 | F45: =CEILING('прайс-лист2'!G41*Титульный!$AY$1,Титульный!$AY$3) -> 21934 | G45: =CEILING('прайс-лист2'!H41*Титульный!$AY$1,Титульный!$AY$3) -> 24552 | H45: =CEILING('прайс-лист2'!I41*Титульный!$AY$1,Титульный!$AY$3) -> 15871 | I45: =CEILING('прайс-лист2'!J41*Титульный!$AY$1,Титульный!$AY$3) -> 16069 | J45: =CEILING('прайс-лист2'!K41*Титульный!$AY$1,Титульный!$AY$3) -> 16641 | K45: =CEILING('прайс-лист2'!L41*Титульный!$AY$1,Титульный!$AY$3) -> 18181 | L45: - | M45: - | N45: - | O45: =CEILING('прайс-лист2'!P41*Титульный!$AY$1,Титульный!$AY$3) -> 29511 | P45: =CEILING('прайс-лист2'!Q41*Титульный!$AY$1,Титульный!$AY$3) -> 32569 | Q45: =CEILING('прайс-лист2'!R41*Титульный!$AY$1,Титульный!$AY$3) -> 27597 | R45: - | S45: -
A46: Шкаф (420) 2дв 2ящ витрина 2240х840 | C46: 840х440х2240 | D46: =CEILING('прайс-лист2'!E42*Титульный!$AY$1,Титульный!$AY$3) -> 22372 | E46: =CEILING('прайс-лист2'!F42*Титульный!$AY$1,Титульный!$AY$3) -> 30160 | F46: =CEILING('прайс-лист2'!G42*Титульный!$AY$1,Титульный!$AY$3) -> 23560 | G46: =CEILING('прайс-лист2'!H42*Титульный!$AY$1,Титульный!$AY$3) -> 26442 | H46: =CEILING('прайс-лист2'!I42*Титульный!$AY$1,Титульный!$AY$3) -> 16841 | I46: =CEILING('прайс-лист2'!J42*Титульный!$AY$1,Титульный!$AY$3) -> 17061 | J46: =CEILING('прайс-лист2'!K42*Титульный!$AY$1,Титульный!$AY$3) -> 17699 | K46: =CEILING('прайс-лист2'!L42*Титульный!$AY$1,Титульный!$AY$3) -> 19371 | L46: - | M46: - | N46: - | O46: =CEILING('прайс-лист2'!P42*Титульный!$AY$1,Титульный!$AY$3) -> 31779 | P46: =CEILING('прайс-лист2'!Q42*Титульный!$AY$1,Титульный!$AY$3) -> 35167 | Q46: =CEILING('прайс-лист2'!R42*Титульный!$AY$1,Титульный!$AY$3) -> 29315 | R46: - | S46: -
A47: Шкаф (420) 2дв 2ящ шар 2040х840 | C47: 840х440х2040 | D47: =CEILING('прайс-лист2'!E43*Титульный!$AY$1,Титульный!$AY$3) -> 18843 | E47: =CEILING('прайс-лист2'!F43*Титульный!$AY$1,Титульный!$AY$3) -> 25905 | F47: =CEILING('прайс-лист2'!G43*Титульный!$AY$1,Титульный!$AY$3) -> 19921 | G47: =CEILING('прайс-лист2'!H43*Титульный!$AY$1,Титульный!$AY$3) -> 22539 | H47: =CEILING('прайс-лист2'!I43*Титульный!$AY$1,Титульный!$AY$3) -> 15675 | I47: =CEILING('прайс-лист2'!J43*Титульный!$AY$1,Титульный!$AY$3) -> 15851 | J47: =CEILING('прайс-лист2'!K43*Титульный!$AY$1,Титульный!$AY$3) -> 16401 | K47: =CEILING('прайс-лист2'!L43*Титульный!$AY$1,Титульный!$AY$3) -> 17875 | L47: - | M47: =CEILING('прайс-лист2'!N43*Титульный!$AY$1,Титульный!$AY$3) -> 24365 | N47: =CEILING('прайс-лист2'!O43*Титульный!$AY$1,Титульный!$AY$3) -> 26939 | O47: =CEILING('прайс-лист2'!P43*Титульный!$AY$1,Титульный!$AY$3) -> 28391 | P47: =CEILING('прайс-лист2'!Q43*Титульный!$AY$1,Титульный!$AY$3) -> 31317 | Q47: =CEILING('прайс-лист2'!R43*Титульный!$AY$1,Титульный!$AY$3) -> 32439
A48: Шкаф (420) 2дв 2ящ шар 2240х840 | C48: 840х440х2240 | D48: =CEILING('прайс-лист2'!E44*Титульный!$AY$1,Титульный!$AY$3) -> 20350 | E48: =CEILING('прайс-лист2'!F44*Титульный!$AY$1,Титульный!$AY$3) -> 28138 | F48: =CEILING('прайс-лист2'!G44*Титульный!$AY$1,Титульный!$AY$3) -> 21538 | G48: =CEILING('прайс-лист2'!H44*Титульный!$AY$1,Титульный!$AY$3) -> 24420 | H48: =CEILING('прайс-лист2'!I44*Титульный!$AY$1,Титульный!$AY$3) -> 16852 | I48: =CEILING('прайс-лист2'!J44*Титульный!$AY$1,Титульный!$AY$3) -> 17072 | J48: =CEILING('прайс-лист2'!K44*Титульный!$AY$1,Титульный!$AY$3) -> 17666 | K48: =CEILING('прайс-лист2'!L44*Титульный!$AY$1,Титульный!$AY$3) -> 19294 | L48: - | M48: =CEILING('прайс-лист2'!N44*Титульный!$AY$1,Титульный!$AY$3) -> 26356 | N48: =CEILING('прайс-лист2'!O44*Титульный!$AY$1,Титульный!$AY$3) -> 29084 | O48: =CEILING('прайс-лист2'!P44*Титульный!$AY$1,Титульный!$AY$3) -> 30778 | P48: =CEILING('прайс-лист2'!Q44*Титульный!$AY$1,Титульный!$AY$3) -> 34012 | Q48: =CEILING('прайс-лист2'!R44*Титульный!$AY$1,Титульный!$AY$3) -> 35090
A49: Шкаф (420) 2дв 2ящ шар витрина 2040х840 | C49: 840х440х2040 | D49: =CEILING('прайс-лист2'!E45*Титульный!$AY$1,Титульный!$AY$3) -> 20988 | E49: =CEILING('прайс-лист2'!F45*Титульный!$AY$1,Титульный!$AY$3) -> 28050 | F49: =CEILING('прайс-лист2'!G45*Титульный!$AY$1,Титульный!$AY$3) -> 22066 | G49: =CEILING('прайс-лист2'!H45*Титульный!$AY$1,Титульный!$AY$3) -> 24684 | H49: =CEILING('прайс-лист2'!I45*Титульный!$AY$1,Титульный!$AY$3) -> 16003 | I49: =CEILING('прайс-лист2'!J45*Титульный!$AY$1,Титульный!$AY$3) -> 16201 | J49: =CEILING('прайс-лист2'!K45*Титульный!$AY$1,Титульный!$AY$3) -> 16773 | K49: =CEILING('прайс-лист2'!L45*Титульный!$AY$1,Титульный!$AY$3) -> 18313 | L49: - | M49: =CEILING('прайс-лист2'!N45*Титульный!$AY$1,Титульный!$AY$3) -> 25441 | N49: =CEILING('прайс-лист2'!O45*Титульный!$AY$1,Титульный!$AY$3) -> 28499 | O49: =CEILING('прайс-лист2'!P45*Титульный!$AY$1,Титульный!$AY$3) -> 29643 | P49: =CEILING('прайс-лист2'!Q45*Титульный!$AY$1,Титульный!$AY$3) -> 32701 | Q49: =CEILING('прайс-лист2'!R45*Титульный!$AY$1,Титульный!$AY$3) -> 27729
A50: Шкаф (420) 2дв 2ящ шар витрина 2240х840 | C50: 840х440х2240 | D50: =CEILING('прайс-лист2'!E46*Титульный!$AY$1,Титульный!$AY$3) -> 23062 | E50: =CEILING('прайс-лист2'!F46*Титульный!$AY$1,Титульный!$AY$3) -> 30850 | F50: =CEILING('прайс-лист2'!G46*Титульный!$AY$1,Титульный!$AY$3) -> 24250 | G50: =CEILING('прайс-лист2'!H46*Титульный!$AY$1,Титульный!$AY$3) -> 27132 | H50: =CEILING('прайс-лист2'!I46*Титульный!$AY$1,Титульный!$AY$3) -> 17531 | I50: =CEILING('прайс-лист2'!J46*Титульный!$AY$1,Титульный!$AY$3) -> 17751 | J50: =CEILING('прайс-лист2'!K46*Титульный!$AY$1,Титульный!$AY$3) -> 18389 | K50: =CEILING('прайс-лист2'!L46*Титульный!$AY$1,Титульный!$AY$3) -> 20061 | L50: - | M50: =CEILING('прайс-лист2'!N46*Титульный!$AY$1,Титульный!$AY$3) -> 27827 | N50: =CEILING('прайс-лист2'!O46*Титульный!$AY$1,Титульный!$AY$3) -> 31061 | O50: =CEILING('прайс-лист2'!P46*Титульный!$AY$1,Титульный!$AY$3) -> 32469 | P50: =CEILING('прайс-лист2'!Q46*Титульный!$AY$1,Титульный!$AY$3) -> 35857 | Q50: =CEILING('прайс-лист2'!R46*Титульный!$AY$1,Титульный!$AY$3) -> 30005
A51: Шкаф (420) 1дв полувитрина 2040х420 | C51: 420х440х2040 | D51: =CEILING('прайс-лист2'!E47*Титульный!$AY$1,Титульный!$AY$3) -> 11440 | E51: =CEILING('прайс-лист2'!F47*Титульный!$AY$1,Титульный!$AY$3) -> 14971 | F51: =CEILING('прайс-лист2'!G47*Титульный!$AY$1,Титульный!$AY$3) -> 11968 | G51: =CEILING('прайс-лист2'!H47*Титульный!$AY$1,Титульный!$AY$3) -> 13288 | H51: - | I51: - | J51: - | K51: - | L51: - | M51: - | N51: - | O51: =CEILING('прайс-лист2'!P47*Титульный!$AY$1,Титульный!$AY$3) -> 15900 | P51: =CEILING('прайс-лист2'!Q47*Титульный!$AY$1,Титульный!$AY$3) -> 17473 | Q51: =CEILING('прайс-лист2'!R47*Титульный!$AY$1,Титульный!$AY$3) -> 13887 | R51: - | S51: -
A52: Шкаф (420) 1дв полувитрина 2040х560 | C52: 560х440х2040 | D52: =CEILING('прайс-лист2'!E48*Титульный!$AY$1,Титульный!$AY$3) -> 13545 | E52: =CEILING('прайс-лист2'!F48*Титульный!$AY$1,Титульный!$AY$3) -> 18264 | F52: =CEILING('прайс-лист2'!G48*Титульный!$AY$1,Титульный!$AY$3) -> 14260 | G52: =CEILING('прайс-лист2'!H48*Титульный!$AY$1,Титульный!$AY$3) -> 16020 | H52: - | I52: - | J52: - | K52: - | L52: - | M52: - | N52: - | O52: =CEILING('прайс-лист2'!P48*Титульный!$AY$1,Титульный!$AY$3) -> 19148 | P52: =CEILING('прайс-лист2'!Q48*Титульный!$AY$1,Титульный!$AY$3) -> 21260 | Q52: =CEILING('прайс-лист2'!R48*Титульный!$AY$1,Титульный!$AY$3) -> 15276 | R52: - | S52: -
A53: Шкаф (420) 1дв полувитрина 2240х420 | C53: 420х440х2240 | D53: =CEILING('прайс-лист2'!E49*Титульный!$AY$1,Титульный!$AY$3) -> 12352 | E53: =CEILING('прайс-лист2'!F49*Титульный!$AY$1,Титульный!$AY$3) -> 16235 | F53: =CEILING('прайс-лист2'!G49*Титульный!$AY$1,Титульный!$AY$3) -> 12935 | G53: =CEILING('прайс-лист2'!H49*Титульный!$AY$1,Титульный!$AY$3) -> 14387 | H53: - | I53: - | J53: - | K53: - | L53: - | M53: - | N53: - | O53: =CEILING('прайс-лист2'!P49*Титульный!$AY$1,Титульный!$AY$3) -> 17305 | P53: =CEILING('прайс-лист2'!Q49*Титульный!$AY$1,Титульный!$AY$3) -> 19043 | Q53: =CEILING('прайс-лист2'!R49*Титульный!$AY$1,Титульный!$AY$3) -> 15017 | R53: - | S53: -
A54: Шкаф (420) 1дв полувитрина 2240х560 | C54: 560х440х2240 | D54: =CEILING('прайс-лист2'!E50*Титульный!$AY$1,Титульный!$AY$3) -> 14654 | E54: =CEILING('прайс-лист2'!F50*Титульный!$AY$1,Титульный!$AY$3) -> 19857 | F54: =CEILING('прайс-лист2'!G50*Титульный!$AY$1,Титульный!$AY$3) -> 15446 | G54: =CEILING('прайс-лист2'!H50*Титульный!$AY$1,Титульный!$AY$3) -> 17382 | H54: - | I54: - | J54: - | K54: - | L54: - | M54: - | N54: - | O54: =CEILING('прайс-лист2'!P50*Титульный!$AY$1,Титульный!$AY$3) -> 20893 | P54: =CEILING('прайс-лист2'!Q50*Титульный!$AY$1,Титульный!$AY$3) -> 23214 | Q54: =CEILING('прайс-лист2'!R50*Титульный!$AY$1,Титульный!$AY$3) -> 16537 | R54: - | S54: -
A55: Шкаф (420) 2дв полувитрина 2040х840 | C55: 840х440х2040 | D55: =CEILING('прайс-лист2'!E51*Титульный!$AY$1,Титульный!$AY$3) -> 19837 | E55: =CEILING('прайс-лист2'!F51*Титульный!$AY$1,Титульный!$AY$3) -> 26899 | F55: =CEILING('прайс-лист2'!G51*Титульный!$AY$1,Титульный!$AY$3) -> 20893 | G55: =CEILING('прайс-лист2'!H51*Титульный!$AY$1,Титульный!$AY$3) -> 23533 | H55: - | I55: - | J55: - | K55: - | L55: - | M55: - | N55: - | O55: =CEILING('прайс-лист2'!P51*Титульный!$AY$1,Титульный!$AY$3) -> 28316 | P55: =CEILING('прайс-лист2'!Q51*Титульный!$AY$1,Титульный!$AY$3) -> 31462 | Q55: =CEILING('прайс-лист2'!R51*Титульный!$AY$1,Титульный!$AY$3) -> 24290 | R55: - | S55: -
A56: Шкаф (420) 2дв полувитрина 2240х840 | C56: 840х440х2240 | D56: =CEILING('прайс-лист2'!E52*Титульный!$AY$1,Титульный!$AY$3) -> 21624 | E56: =CEILING('прайс-лист2'!F52*Титульный!$AY$1,Титульный!$AY$3) -> 29390 | F56: =CEILING('прайс-лист2'!G52*Титульный!$AY$1,Титульный!$AY$3) -> 22790 | G56: =CEILING('прайс-лист2'!H52*Титульный!$AY$1,Титульный!$AY$3) -> 25694 | H56: - | I56: - | J56: - | K56: - | L56: - | M56: - | N56: - | O56: =CEILING('прайс-лист2'!P52*Титульный!$AY$1,Титульный!$AY$3) -> 30855 | P56: =CEILING('прайс-лист2'!Q52*Титульный!$AY$1,Титульный!$AY$3) -> 34331 | Q56: =CEILING('прайс-лист2'!R52*Титульный!$AY$1,Титульный!$AY$3) -> 26279 | R56: - | S56: -
A57: Шкаф (420) 1дв витрина 1дв глух 2040х420 | C57: 420х440х2040 | D57: =CEILING('прайс-лист2'!E53*Титульный!$AY$1,Титульный!$AY$3) -> 12007 | E57: =CEILING('прайс-лист2'!F53*Титульный!$AY$1,Титульный!$AY$3) -> 15538 | F57: =CEILING('прайс-лист2'!G53*Титульный!$AY$1,Титульный!$AY$3) -> 12546 | G57: =CEILING('прайс-лист2'!H53*Титульный!$AY$1,Титульный!$AY$3) -> 13866 | H57: =CEILING('прайс-лист2'!I53*Титульный!$AY$1,Титульный!$AY$3) -> 9734 | I57: =CEILING('прайс-лист2'!J53*Титульный!$AY$1,Титульный!$AY$3) -> 9833 | J57: =CEILING('прайс-лист2'!K53*Титульный!$AY$1,Титульный!$AY$3) -> 10119 | K57: =CEILING('прайс-лист2'!L53*Титульный!$AY$1,Титульный!$AY$3) -> 10889 | L57: - | M57: - | N57: - | O57: =CEILING('прайс-лист2'!P53*Титульный!$AY$1,Титульный!$AY$3) -> 16477 | P57: =CEILING('прайс-лист2'!Q53*Титульный!$AY$1,Титульный!$AY$3) -> 18006 | Q57: =CEILING('прайс-лист2'!R53*Титульный!$AY$1,Титульный!$AY$3) -> 15751 | R57: - | S57: -
A58: Шкаф (420) 1дв витрина 1дв глух 2040х560 | C58: 560х440х2040 | D58: =CEILING('прайс-лист2'!E54*Титульный!$AY$1,Титульный!$AY$3) -> 14128 | E58: =CEILING('прайс-лист2'!F54*Титульный!$AY$1,Титульный!$AY$3) -> 18836 | F58: =CEILING('прайс-лист2'!G54*Титульный!$AY$1,Титульный!$AY$3) -> 14832 | G58: =CEILING('прайс-лист2'!H54*Титульный!$AY$1,Титульный!$AY$3) -> 16603 | H58: =CEILING('прайс-лист2'!I54*Титульный!$AY$1,Титульный!$AY$3) -> 11008 | I58: =CEILING('прайс-лист2'!J54*Титульный!$AY$1,Титульный!$AY$3) -> 11140 | J58: =CEILING('прайс-лист2'!K54*Титульный!$AY$1,Титульный!$AY$3) -> 11514 | K58: =CEILING('прайс-лист2'!L54*Титульный!$AY$1,Титульный!$AY$3) -> 12548 | L58: - | M58: - | N58: - | O58: =CEILING('прайс-лист2'!P54*Титульный!$AY$1,Титульный!$AY$3) -> 19731 | P58: =CEILING('прайс-лист2'!Q54*Титульный!$AY$1,Титульный!$AY$3) -> 21799 | Q58: =CEILING('прайс-лист2'!R54*Титульный!$AY$1,Титульный!$AY$3) -> 17663 | R58: - | S58: -
A59: Шкаф (420) 1дв витрина 1дв глух 2240х420 | C59: 420х440х2240 | D59: =CEILING('прайс-лист2'!E55*Титульный!$AY$1,Титульный!$AY$3) -> 12921 | E59: =CEILING('прайс-лист2'!F55*Титульный!$AY$1,Титульный!$AY$3) -> 16815 | F59: =CEILING('прайс-лист2'!G55*Титульный!$AY$1,Титульный!$AY$3) -> 13515 | G59: =CEILING('прайс-лист2'!H55*Титульный!$AY$1,Титульный!$AY$3) -> 14967 | H59: =CEILING('прайс-лист2'!I55*Титульный!$AY$1,Титульный!$AY$3) -> 10492 | I59: =CEILING('прайс-лист2'!J55*Титульный!$AY$1,Титульный!$AY$3) -> 10602 | J59: =CEILING('прайс-лист2'!K55*Титульный!$AY$1,Титульный!$AY$3) -> 10921 | K59: =CEILING('прайс-лист2'!L55*Титульный!$AY$1,Титульный!$AY$3) -> 11757 | L59: - | M59: - | N59: - | O59: =CEILING('прайс-лист2'!P55*Титульный!$AY$1,Титульный!$AY$3) -> 17884 | P59: =CEILING('прайс-лист2'!Q55*Титульный!$AY$1,Титульный!$AY$3) -> 19578 | Q59: =CEILING('прайс-лист2'!R55*Титульный!$AY$1,Титульный!$AY$3) -> 16883 | R59: - | S59: -
A60: Шкаф (420) 1дв витрина 1дв глух 2240х560 | C60: 560х440х2240 | D60: =CEILING('прайс-лист2'!E56*Титульный!$AY$1,Титульный!$AY$3) -> 15241 | E60: =CEILING('прайс-лист2'!F56*Титульный!$AY$1,Титульный!$AY$3) -> 20422 | F60: =CEILING('прайс-лист2'!G56*Титульный!$AY$1,Титульный!$AY$3) -> 16022 | G60: =CEILING('прайс-лист2'!H56*Титульный!$AY$1,Титульный!$AY$3) -> 17969 | H60: =CEILING('прайс-лист2'!I56*Титульный!$AY$1,Титульный!$AY$3) -> 11899 | I60: =CEILING('прайс-лист2'!J56*Титульный!$AY$1,Титульный!$AY$3) -> 12053 | J60: =CEILING('прайс-лист2'!K56*Титульный!$AY$1,Титульный!$AY$3) -> 12471 | K60: =CEILING('прайс-лист2'!L56*Титульный!$AY$1,Титульный!$AY$3) -> 13604 | L60: - | M60: - | N60: - | O60: =CEILING('прайс-лист2'!P56*Титульный!$AY$1,Титульный!$AY$3) -> 21480 | P60: =CEILING('прайс-лист2'!Q56*Титульный!$AY$1,Титульный!$AY$3) -> 23757 | Q60: =CEILING('прайс-лист2'!R56*Титульный!$AY$1,Титульный!$AY$3) -> 18917 | R60: - | S60: -
A61: Шкаф (420) 1дв витрина зеркало 1дв глух 2040х420 | C61: 420х440х2040 | D61: =CEILING('прайс-лист2'!E57*Титульный!$AY$1,Титульный!$AY$3) -> 14969 | E61: =CEILING('прайс-лист2'!F57*Титульный!$AY$1,Титульный!$AY$3) -> 18500 | F61: =CEILING('прайс-лист2'!G57*Титульный!$AY$1,Титульный!$AY$3) -> 15508 | G61: =CEILING('прайс-лист2'!H57*Титульный!$AY$1,Титульный!$AY$3) -> 16828 | H61: - | I61: - | J61: - | K61: - | L61: - | M61: - | N61: - | O61: =CEILING('прайс-лист2'!P57*Титульный!$AY$1,Титульный!$AY$3) -> 19440 | P61: =CEILING('прайс-лист2'!Q57*Титульный!$AY$1,Титульный!$AY$3) -> 20969 | Q61: =CEILING('прайс-лист2'!R57*Титульный!$AY$1,Титульный!$AY$3) -> 18714 | R61: - | S61: -
A62: Шкаф (420) 1дв витрина зеркало 1дв глух 2040х560 | C62: 560х440х2040 | D62: =CEILING('прайс-лист2'!E58*Титульный!$AY$1,Титульный!$AY$3) -> 17671 | E62: =CEILING('прайс-лист2'!F58*Титульный!$AY$1,Титульный!$AY$3) -> 22379 | F62: =CEILING('прайс-лист2'!G58*Титульный!$AY$1,Титульный!$AY$3) -> 18375 | G62: =CEILING('прайс-лист2'!H58*Титульный!$AY$1,Титульный!$AY$3) -> 20146 | H62: - | I62: - | J62: - | K62: - | L62: - | M62: - | N62: - | O62: =CEILING('прайс-лист2'!P58*Титульный!$AY$1,Титульный!$AY$3) -> 23274 | P62: =CEILING('прайс-лист2'!Q58*Титульный!$AY$1,Титульный!$AY$3) -> 25342 | Q62: =CEILING('прайс-лист2'!R58*Титульный!$AY$1,Титульный!$AY$3) -> 21206 | R62: - | S62: -
A63: Шкаф (420) 2дв витрина 2дв глух 2040х840 | C63: 840х440х2040 | D63: =CEILING('прайс-лист2'!E59*Титульный!$AY$1,Титульный!$AY$3) -> 20878 | E63: =CEILING('прайс-лист2'!F59*Титульный!$AY$1,Титульный!$AY$3) -> 27940 | F63: =CEILING('прайс-лист2'!G59*Титульный!$AY$1,Титульный!$AY$3) -> 21956 | G63: =CEILING('прайс-лист2'!H59*Титульный!$AY$1,Титульный!$AY$3) -> 24596 | H63: =CEILING('прайс-лист2'!I59*Титульный!$AY$1,Титульный!$AY$3) -> 15893 | I63: =CEILING('прайс-лист2'!J59*Титульный!$AY$1,Титульный!$AY$3) -> 16091 | J63: =CEILING('прайс-лист2'!K59*Титульный!$AY$1,Титульный!$AY$3) -> 16663 | K63: =CEILING('прайс-лист2'!L59*Титульный!$AY$1,Титульный!$AY$3) -> 18203 | L63: - | M63: - | N63: - | O63: =CEILING('прайс-лист2'!P59*Титульный!$AY$1,Титульный!$AY$3) -> 29379 | P63: =CEILING('прайс-лист2'!Q59*Титульный!$AY$1,Титульный!$AY$3) -> 32437 | Q63: =CEILING('прайс-лист2'!R59*Титульный!$AY$1,Титульный!$AY$3) -> 27927 | R63: - | S63: -
A64: Шкаф (420) 2дв витрина 2дв глух 2240х840 | C64: 840х440х2240 | D64: =CEILING('прайс-лист2'!E60*Титульный!$AY$1,Титульный!$AY$3) -> 22670 | E64: =CEILING('прайс-лист2'!F60*Титульный!$AY$1,Титульный!$AY$3) -> 30458 | F64: =CEILING('прайс-лист2'!G60*Титульный!$AY$1,Титульный!$AY$3) -> 23858 | G64: =CEILING('прайс-лист2'!H60*Титульный!$AY$1,Титульный!$AY$3) -> 26762 | H64: =CEILING('прайс-лист2'!I60*Титульный!$AY$1,Титульный!$AY$3) -> 17140 | I64: =CEILING('прайс-лист2'!J60*Титульный!$AY$1,Титульный!$AY$3) -> 17360 | J64: =CEILING('прайс-лист2'!K60*Титульный!$AY$1,Титульный!$AY$3) -> 17998 | K64: =CEILING('прайс-лист2'!L60*Титульный!$AY$1,Титульный!$AY$3) -> 19670 | L64: - | M64: - | N64: - | O64: =CEILING('прайс-лист2'!P60*Титульный!$AY$1,Титульный!$AY$3) -> 31924 | P64: =CEILING('прайс-лист2'!Q60*Титульный!$AY$1,Титульный!$AY$3) -> 35312 | Q64: =CEILING('прайс-лист2'!R60*Титульный!$AY$1,Титульный!$AY$3) -> 29922 | R64: - | S64: -
A65: Шкаф (420) ДО 1дв 2040х560 | C65: 560х440х2040 | D65: =CEILING('прайс-лист2'!E61*Титульный!$AY$1,Титульный!$AY$3) -> 11775 | E65: =CEILING('прайс-лист2'!F61*Титульный!$AY$1,Титульный!$AY$3) -> 16494 | F65: =CEILING('прайс-лист2'!G61*Титульный!$AY$1,Титульный!$AY$3) -> 12490 | G65: =CEILING('прайс-лист2'!H61*Титульный!$AY$1,Титульный!$AY$3) -> 14250 | H65: =CEILING('прайс-лист2'!I61*Титульный!$AY$1,Титульный!$AY$3) -> 9652 | I65: =CEILING('прайс-лист2'!J61*Титульный!$AY$1,Титульный!$AY$3) -> 9773 | J65: =CEILING('прайс-лист2'!K61*Титульный!$AY$1,Титульный!$AY$3) -> 10147 | K65: =CEILING('прайс-лист2'!L61*Титульный!$AY$1,Титульный!$AY$3) -> 11126 | L65: - | M65: =CEILING('прайс-лист2'!N61*Титульный!$AY$1,Титульный!$AY$3) -> 14899 | N65: =CEILING('прайс-лист2'!O61*Титульный!$AY$1,Титульный!$AY$3) -> 15966 | O65: =CEILING('прайс-лист2'!P61*Титульный!$AY$1,Титульный!$AY$3) -> 17572 | P65: =CEILING('прайс-лист2'!Q61*Титульный!$AY$1,Титульный!$AY$3) -> 19552 | Q65: =CEILING('прайс-лист2'!R61*Титульный!$AY$1,Титульный!$AY$3) -> 19409 | R65: =CEILING('прайс-лист2'!S61*Титульный!$AY$1,Титульный!$AY$3) -> 1932 | S65: =CEILING('прайс-лист2'!T61*Титульный!$AY$1,Титульный!$AY$3) -> 3314
A66: Шкаф (420) ДО 1дв 2240х560 | C66: 560х440х2240 | D66: =CEILING('прайс-лист2'!E62*Титульный!$AY$1,Титульный!$AY$3) -> 12510 | E66: =CEILING('прайс-лист2'!F62*Титульный!$AY$1,Титульный!$AY$3) -> 17713 | F66: =CEILING('прайс-лист2'!G62*Титульный!$AY$1,Титульный!$AY$3) -> 13302 | G66: =CEILING('прайс-лист2'!H62*Титульный!$AY$1,Титульный!$AY$3) -> 15238 | H66: =CEILING('прайс-лист2'!I62*Титульный!$AY$1,Титульный!$AY$3) -> 10178 | I66: =CEILING('прайс-лист2'!J62*Титульный!$AY$1,Титульный!$AY$3) -> 10321 | J66: =CEILING('прайс-лист2'!K62*Титульный!$AY$1,Титульный!$AY$3) -> 10717 | K66: =CEILING('прайс-лист2'!L62*Титульный!$AY$1,Титульный!$AY$3) -> 11795 | L66: - | M66: =CEILING('прайс-лист2'!N62*Титульный!$AY$1,Титульный!$AY$3) -> 15931 | N66: =CEILING('прайс-лист2'!O62*Титульный!$AY$1,Титульный!$AY$3) -> 17086 | O66: =CEILING('прайс-лист2'!P62*Титульный!$AY$1,Титульный!$AY$3) -> 18879 | P66: =CEILING('прайс-лист2'!Q62*Титульный!$AY$1,Титульный!$AY$3) -> 21046 | Q66: =CEILING('прайс-лист2'!R62*Титульный!$AY$1,Титульный!$AY$3) -> 20837 | R66: =CEILING('прайс-лист2'!S62*Титульный!$AY$1,Титульный!$AY$3) -> 2190 | S66: =CEILING('прайс-лист2'!T62*Титульный!$AY$1,Титульный!$AY$3) -> 3632
A67: Шкаф (420) ДО 2дв 2040х840 | C67: 840х440х2040 | D67: =CEILING('прайс-лист2'!E63*Титульный!$AY$1,Титульный!$AY$3) -> 16642 | E67: =CEILING('прайс-лист2'!F63*Титульный!$AY$1,Титульный!$AY$3) -> 23704 | F67: =CEILING('прайс-лист2'!G63*Титульный!$AY$1,Титульный!$AY$3) -> 17698 | G67: =CEILING('прайс-лист2'!H63*Титульный!$AY$1,Титульный!$AY$3) -> 20338 | H67: =CEILING('прайс-лист2'!I63*Титульный!$AY$1,Титульный!$AY$3) -> 13452 | I67: =CEILING('прайс-лист2'!J63*Титульный!$AY$1,Титульный!$AY$3) -> 13628 | J67: =CEILING('прайс-лист2'!K63*Титульный!$AY$1,Титульный!$AY$3) -> 14178 | K67: =CEILING('прайс-лист2'!L63*Титульный!$AY$1,Титульный!$AY$3) -> 15652 | L67: - | M67: =CEILING('прайс-лист2'!N63*Титульный!$AY$1,Титульный!$AY$3) -> 21680 | N67: =CEILING('прайс-лист2'!O63*Титульный!$AY$1,Титульный!$AY$3) -> 23704 | O67: =CEILING('прайс-лист2'!P63*Титульный!$AY$1,Титульный!$AY$3) -> 25706 | P67: =CEILING('прайс-лист2'!Q63*Титульный!$AY$1,Титульный!$AY$3) -> 28654 | Q67: =CEILING('прайс-лист2'!R63*Титульный!$AY$1,Титульный!$AY$3) -> 29292 | R67: =CEILING('прайс-лист2'!S63*Титульный!$AY$1,Титульный!$AY$3) -> 2688 | S67: =CEILING('прайс-лист2'!T63*Титульный!$AY$1,Титульный!$AY$3) -> 4980
A68: Шкаф (420) ДО 2дв 2240х840 | C68: 840х440х2240 | D68: =CEILING('прайс-лист2'!E64*Титульный!$AY$1,Титульный!$AY$3) -> 17649 | E68: =CEILING('прайс-лист2'!F64*Титульный!$AY$1,Титульный!$AY$3) -> 25415 | F68: =CEILING('прайс-лист2'!G64*Титульный!$AY$1,Титульный!$AY$3) -> 18815 | G68: =CEILING('прайс-лист2'!H64*Титульный!$AY$1,Титульный!$AY$3) -> 21719 | H68: =CEILING('прайс-лист2'!I64*Титульный!$AY$1,Титульный!$AY$3) -> 14151 | I68: =CEILING('прайс-лист2'!J64*Титульный!$AY$1,Титульный!$AY$3) -> 14349 | J68: =CEILING('прайс-лист2'!K64*Титульный!$AY$1,Титульный!$AY$3) -> 14965 | K68: =CEILING('прайс-лист2'!L64*Титульный!$AY$1,Титульный!$AY$3) -> 16571 | L68: - | M68: =CEILING('прайс-лист2'!N64*Титульный!$AY$1,Титульный!$AY$3) -> 23171 | N68: =CEILING('прайс-лист2'!O64*Титульный!$AY$1,Титульный!$AY$3) -> 25371 | O68: =CEILING('прайс-лист2'!P64*Титульный!$AY$1,Титульный!$AY$3) -> 27593 | P68: =CEILING('прайс-лист2'!Q64*Титульный!$AY$1,Титульный!$AY$3) -> 30827 | Q68: =CEILING('прайс-лист2'!R64*Титульный!$AY$1,Титульный!$AY$3) -> 31443 | R68: =CEILING('прайс-лист2'!S64*Титульный!$AY$1,Титульный!$AY$3) -> 3046 | S68: =CEILING('прайс-лист2'!T64*Титульный!$AY$1,Титульный!$AY$3) -> 5460
A69: Внимание!!! Для наборов мебели "Марго" использовать только накладные зеркала
A70: Шкафы глубиной 420мм
A71: Наименование | B71: Эскиз | C71: Габариты, ШхГхВ мм. | D71: МДФ фасады | H71: Марго16 | M71: UV-лак | O71: ТСС | Q71: ТСС сборный | R71: Стоимость зеркал
D72: 1 ЦК | E72: 1 ЦК + патина | F72: 2 ЦК | G72: 3 ЦК | H72: 1 ц.к. | I72: 2 ц.к. | J72: 3 ц.к. | K72: 4 ц.к. | L72: 5 ц.к. | M72: UV-лак кромка ABC/AL кромка | N72: кромка 3D | O72: 1 ЦК | P72: 2 ЦК | R72: Зеркало в рамке** | S72: Зеркало накладное*
A73: Шкаф (420) ДО 2дв 2ящ 2040х840 | C73: 840х440х2040 | D73: =CEILING('прайс-лист2'!E65*Титульный!$AY$1,Титульный!$AY$3) -> 17855 | E73: =CEILING('прайс-лист2'!F65*Титульный!$AY$1,Титульный!$AY$3) -> 24917 | F73: =CEILING('прайс-лист2'!G65*Титульный!$AY$1,Титульный!$AY$3) -> 18933 | G73: =CEILING('прайс-лист2'!H65*Титульный!$AY$1,Титульный!$AY$3) -> 21551 | H73: =CEILING('прайс-лист2'!I65*Титульный!$AY$1,Титульный!$AY$3) -> 14687 | I73: =CEILING('прайс-лист2'!J65*Титульный!$AY$1,Титульный!$AY$3) -> 14863 | J73: =CEILING('прайс-лист2'!K65*Титульный!$AY$1,Титульный!$AY$3) -> 15413 | K73: =CEILING('прайс-лист2'!L65*Титульный!$AY$1,Титульный!$AY$3) -> 16887 | L73: - | M73: =CEILING('прайс-лист2'!N65*Титульный!$AY$1,Титульный!$AY$3) -> 23377 | N73: =CEILING('прайс-лист2'!O65*Титульный!$AY$1,Титульный!$AY$3) -> 25951 | O73: =CEILING('прайс-лист2'!P65*Титульный!$AY$1,Титульный!$AY$3) -> 27403 | P73: =CEILING('прайс-лист2'!Q65*Титульный!$AY$1,Титульный!$AY$3) -> 30329 | Q73: =CEILING('прайс-лист2'!R65*Титульный!$AY$1,Титульный!$AY$3) -> 31451 | R73: =CEILING('прайс-лист2'!S65*Титульный!$AY$1,Титульный!$AY$3) -> 2688 | S73: =CEILING('прайс-лист2'!T65*Титульный!$AY$1,Титульный!$AY$3) -> 4020
A74: Шкаф (420) ДО 2дв 2ящ 2240х840 | C74: 840х440х2240 | D74: =CEILING('прайс-лист2'!E66*Титульный!$AY$1,Титульный!$AY$3) -> 18862 | E74: =CEILING('прайс-лист2'!F66*Титульный!$AY$1,Титульный!$AY$3) -> 26650 | F74: =CEILING('прайс-лист2'!G66*Титульный!$AY$1,Титульный!$AY$3) -> 20050 | G74: =CEILING('прайс-лист2'!H66*Титульный!$AY$1,Титульный!$AY$3) -> 22932 | H74: =CEILING('прайс-лист2'!I66*Титульный!$AY$1,Титульный!$AY$3) -> 15364 | I74: =CEILING('прайс-лист2'!J66*Титульный!$AY$1,Титульный!$AY$3) -> 15584 | J74: =CEILING('прайс-лист2'!K66*Титульный!$AY$1,Титульный!$AY$3) -> 16178 | K74: =CEILING('прайс-лист2'!L66*Титульный!$AY$1,Титульный!$AY$3) -> 17806 | L74: - | M74: =CEILING('прайс-лист2'!N66*Титульный!$AY$1,Титульный!$AY$3) -> 24868 | N74: =CEILING('прайс-лист2'!O66*Титульный!$AY$1,Титульный!$AY$3) -> 27596 | O74: =CEILING('прайс-лист2'!P66*Титульный!$AY$1,Титульный!$AY$3) -> 29290 | P74: =CEILING('прайс-лист2'!Q66*Титульный!$AY$1,Титульный!$AY$3) -> 32524 | Q74: =CEILING('прайс-лист2'!R66*Титульный!$AY$1,Титульный!$AY$3) -> 33602 | R74: =CEILING('прайс-лист2'!S66*Титульный!$AY$1,Титульный!$AY$3) -> 3046 | S74: =CEILING('прайс-лист2'!T66*Титульный!$AY$1,Титульный!$AY$3) -> 4500
A75: Шкаф (420) ДО 2дв 2ящ шар 2040х840 | C75: 840х440х2040 | D75: =CEILING('прайс-лист2'!E67*Титульный!$AY$1,Титульный!$AY$3) -> 18648 | E75: =CEILING('прайс-лист2'!F67*Титульный!$AY$1,Титульный!$AY$3) -> 25710 | F75: =CEILING('прайс-лист2'!G67*Титульный!$AY$1,Титульный!$AY$3) -> 19726 | G75: =CEILING('прайс-лист2'!H67*Титульный!$AY$1,Титульный!$AY$3) -> 22344 | H75: =CEILING('прайс-лист2'!I67*Титульный!$AY$1,Титульный!$AY$3) -> 15480 | I75: =CEILING('прайс-лист2'!J67*Титульный!$AY$1,Титульный!$AY$3) -> 15656 | J75: =CEILING('прайс-лист2'!K67*Титульный!$AY$1,Титульный!$AY$3) -> 16206 | K75: =CEILING('прайс-лист2'!L67*Титульный!$AY$1,Титульный!$AY$3) -> 17680 | L75: - | M75: =CEILING('прайс-лист2'!N67*Титульный!$AY$1,Титульный!$AY$3) -> 24170 | N75: =CEILING('прайс-лист2'!O67*Титульный!$AY$1,Титульный!$AY$3) -> 26744 | O75: =CEILING('прайс-лист2'!P67*Титульный!$AY$1,Титульный!$AY$3) -> 28196 | P75: =CEILING('прайс-лист2'!Q67*Титульный!$AY$1,Титульный!$AY$3) -> 31122 | Q75: =CEILING('прайс-лист2'!R67*Титульный!$AY$1,Титульный!$AY$3) -> 32244 | R75: =CEILING('прайс-лист2'!S67*Титульный!$AY$1,Титульный!$AY$3) -> 2688 | S75: =CEILING('прайс-лист2'!T67*Титульный!$AY$1,Титульный!$AY$3) -> 4020
A76: Шкаф (420) ДО 2дв 2ящ шар 2240х840 | C76: 840х440х2240 | D76: =CEILING('прайс-лист2'!E68*Титульный!$AY$1,Титульный!$AY$3) -> 19665 | E76: =CEILING('прайс-лист2'!F68*Титульный!$AY$1,Титульный!$AY$3) -> 27453 | F76: =CEILING('прайс-лист2'!G68*Титульный!$AY$1,Титульный!$AY$3) -> 20853 | G76: =CEILING('прайс-лист2'!H68*Титульный!$AY$1,Титульный!$AY$3) -> 23735 | H76: =CEILING('прайс-лист2'!I68*Титульный!$AY$1,Титульный!$AY$3) -> 16167 | I76: =CEILING('прайс-лист2'!J68*Титульный!$AY$1,Титульный!$AY$3) -> 16387 | J76: =CEILING('прайс-лист2'!K68*Титульный!$AY$1,Титульный!$AY$3) -> 16981 | K76: =CEILING('прайс-лист2'!L68*Титульный!$AY$1,Титульный!$AY$3) -> 18609 | L76: - | M76: =CEILING('прайс-лист2'!N68*Титульный!$AY$1,Титульный!$AY$3) -> 25671 | N76: =CEILING('прайс-лист2'!O68*Титульный!$AY$1,Титульный!$AY$3) -> 28399 | O76: =CEILING('прайс-лист2'!P68*Титульный!$AY$1,Титульный!$AY$3) -> 30093 | P76: =CEILING('прайс-лист2'!Q68*Титульный!$AY$1,Титульный!$AY$3) -> 33327 | Q76: =CEILING('прайс-лист2'!R68*Титульный!$AY$1,Титульный!$AY$3) -> 34405 | R76: =CEILING('прайс-лист2'!S68*Титульный!$AY$1,Титульный!$AY$3) -> 3046 | S76: =CEILING('прайс-лист2'!T68*Титульный!$AY$1,Титульный!$AY$3) -> 4500
A77: Шкаф (420) Ниша 2дв 2040х420 | C77: 420х440х2040 | D77: =CEILING('прайс-лист2'!E69*Титульный!$AY$1,Титульный!$AY$3) -> 9996 | E77: =CEILING('прайс-лист2'!F69*Титульный!$AY$1,Титульный!$AY$3) -> 12834 | F77: =CEILING('прайс-лист2'!G69*Титульный!$AY$1,Титульный!$AY$3) -> 10436 | G77: =CEILING('прайс-лист2'!H69*Титульный!$AY$1,Титульный!$AY$3) -> 11492 | H77: =CEILING('прайс-лист2'!I69*Титульный!$AY$1,Титульный!$AY$3) -> 8742 | I77: =CEILING('прайс-лист2'!J69*Титульный!$AY$1,Титульный!$AY$3) -> 8808 | J77: =CEILING('прайс-лист2'!K69*Титульный!$AY$1,Титульный!$AY$3) -> 9028 | K77: =CEILING('прайс-лист2'!L69*Титульный!$AY$1,Титульный!$AY$3) -> 9622 | L77: - | M77: =CEILING('прайс-лист2'!N69*Титульный!$AY$1,Титульный!$AY$3) -> 12218 | N77: =CEILING('прайс-лист2'!O69*Титульный!$AY$1,Титульный!$AY$3) -> 13230 | O77: =CEILING('прайс-лист2'!P69*Титульный!$AY$1,Титульный!$AY$3) -> 13824 | P77: =CEILING('прайс-лист2'!Q69*Титульный!$AY$1,Титульный!$AY$3) -> 14990 | Q77: =CEILING('прайс-лист2'!R69*Титульный!$AY$1,Титульный!$AY$3) -> 15826 | R77: - | S77: -
A78: Шкаф (420) Ниша 2дв 2040х560 | C78: 420х580х2040 | D78: - | E78: - | F78: - | G78: - | H78: - | I78: - | J78: - | K78: - | L78: - | M78: =CEILING('прайс-лист2'!N70*Титульный!$AY$1,Титульный!$AY$3) -> 15622 | N78: =CEILING('прайс-лист2'!O70*Титульный!$AY$1,Титульный!$AY$3) -> 16766 | O78: =CEILING('прайс-лист2'!P70*Титульный!$AY$1,Титульный!$AY$3) -> 17756 | P78: =CEILING('прайс-лист2'!Q70*Титульный!$AY$1,Титульный!$AY$3) -> 19340 | Q78: =CEILING('прайс-лист2'!R70*Титульный!$AY$1,Титульный!$AY$3) -> 19912 | R78: - | S78: -
A79: Шкаф (420) Ниша 2дв 2240х420 | C79: 420х440х2240 | D79: =CEILING('прайс-лист2'!E71*Титульный!$AY$1,Титульный!$AY$3) -> 10899 | E79: - | F79: =CEILING('прайс-лист2'!G71*Титульный!$AY$1,Титульный!$AY$3) -> 11383 | G79: =CEILING('прайс-лист2'!H71*Титульный!$AY$1,Титульный!$AY$3) -> 12571 | H79: =CEILING('прайс-лист2'!I71*Титульный!$AY$1,Титульный!$AY$3) -> 9469 | I79: =CEILING('прайс-лист2'!J71*Титульный!$AY$1,Титульный!$AY$3) -> 9557 | J79: =CEILING('прайс-лист2'!K71*Титульный!$AY$1,Титульный!$AY$3) -> 9799 | K79: =CEILING('прайс-лист2'!L71*Титульный!$AY$1,Титульный!$AY$3) -> 10459 | L79: - | M79: =CEILING('прайс-лист2'!N71*Титульный!$AY$1,Титульный!$AY$3) -> 13352 | N79: =CEILING('прайс-лист2'!O71*Титульный!$AY$1,Титульный!$AY$3) -> 14441 | O79: =CEILING('прайс-лист2'!P71*Титульный!$AY$1,Титульный!$AY$3) -> 15156 | P79: =CEILING('прайс-лист2'!Q71*Титульный!$AY$1,Титульный!$AY$3) -> 16476 | Q79: =CEILING('прайс-лист2'!R71*Титульный!$AY$1,Титульный!$AY$3) -> 17290 | R79: - | S79: -
A80: Шкаф (420) Ниша 2дв 2240х560 | C80: 420х580х2240 | D80: - | E80: - | F80: - | G80: - | H80: - | I80: - | J80: - | K80: - | L80: - | M80: =CEILING('прайс-лист2'!N72*Титульный!$AY$1,Титульный!$AY$3) -> 17215 | N80: =CEILING('прайс-лист2'!O72*Титульный!$AY$1,Титульный!$AY$3) -> 18436 | O80: =CEILING('прайс-лист2'!P72*Титульный!$AY$1,Титульный!$AY$3) -> 19624 | P80: =CEILING('прайс-лист2'!Q72*Титульный!$AY$1,Титульный!$AY$3) -> 21395 | Q80: =CEILING('прайс-лист2'!R72*Титульный!$AY$1,Титульный!$AY$3) -> 21901 | R80: - | S80: -
A81: Шкаф (420) Ниша 4дв 2040х840 | C81: 840х440х2040 | D81: =CEILING('прайс-лист2'!E73*Титульный!$AY$1,Титульный!$AY$3) -> 16714 | E81: =CEILING('прайс-лист2'!F73*Титульный!$AY$1,Титульный!$AY$3) -> 22390 | F81: =CEILING('прайс-лист2'!G73*Титульный!$AY$1,Титульный!$AY$3) -> 17594 | G81: =CEILING('прайс-лист2'!H73*Титульный!$AY$1,Титульный!$AY$3) -> 19706 | H81: =CEILING('прайс-лист2'!I73*Титульный!$AY$1,Титульный!$AY$3) -> 14206 | I81: =CEILING('прайс-лист2'!J73*Титульный!$AY$1,Титульный!$AY$3) -> 14338 | J81: =CEILING('прайс-лист2'!K73*Титульный!$AY$1,Титульный!$AY$3) -> 14778 | K81: =CEILING('прайс-лист2'!L73*Титульный!$AY$1,Титульный!$AY$3) -> 15966 | L81: - | M81: =CEILING('прайс-лист2'!N73*Титульный!$AY$1,Титульный!$AY$3) -> 21158 | N81: =CEILING('прайс-лист2'!O73*Титульный!$AY$1,Титульный!$AY$3) -> 23182 | O81: =CEILING('прайс-лист2'!P73*Титульный!$AY$1,Титульный!$AY$3) -> 24370 | P81: =CEILING('прайс-лист2'!Q73*Титульный!$AY$1,Титульный!$AY$3) -> 26702 | Q81: =CEILING('прайс-лист2'!R73*Титульный!$AY$1,Титульный!$AY$3) -> 28374 | R81: - | S81: -
A82: Шкаф (420) Ниша 4дв 2240х840 | C82: 840х440х2240 | D82: =CEILING('прайс-лист2'!E74*Титульный!$AY$1,Титульный!$AY$3) -> 20485 | E82: =CEILING('прайс-лист2'!F74*Титульный!$AY$1,Титульный!$AY$3) -> 26843 | F82: =CEILING('прайс-лист2'!G74*Титульный!$AY$1,Титульный!$AY$3) -> 21453 | G82: =CEILING('прайс-лист2'!H74*Титульный!$AY$1,Титульный!$AY$3) -> 23829 | H82: =CEILING('прайс-лист2'!I74*Титульный!$AY$1,Титульный!$AY$3) -> 17625 | I82: =CEILING('прайс-лист2'!J74*Титульный!$AY$1,Титульный!$AY$3) -> 17801 | J82: =CEILING('прайс-лист2'!K74*Титульный!$AY$1,Титульный!$AY$3) -> 18285 | K82: =CEILING('прайс-лист2'!L74*Титульный!$AY$1,Титульный!$AY$3) -> 19605 | L82: - | M82: =CEILING('прайс-лист2'!N74*Титульный!$AY$1,Титульный!$AY$3) -> 25391 | N82: =CEILING('прайс-лист2'!O74*Титульный!$AY$1,Титульный!$AY$3) -> 27569 | O82: =CEILING('прайс-лист2'!P74*Титульный!$AY$1,Титульный!$AY$3) -> 28999 | P82: =CEILING('прайс-лист2'!Q74*Титульный!$AY$1,Титульный!$AY$3) -> 31639 | Q82: =CEILING('прайс-лист2'!R74*Титульный!$AY$1,Титульный!$AY$3) -> 33267 | R82: - | S82: -
A83: Шкаф (420) Торцевой 2040х420 ЛЕВ\ПР | C83: 420х440х2040 | D83: =CEILING('прайс-лист2'!E75*Титульный!$AY$1,Титульный!$AY$3) -> 12846 | E83: =CEILING('прайс-лист2'!F75*Титульный!$AY$1,Титульный!$AY$3) -> 18445 | F83: =CEILING('прайс-лист2'!G75*Титульный!$AY$1,Титульный!$AY$3) -> 13693 | G83: =CEILING('прайс-лист2'!H75*Титульный!$AY$1,Титульный!$AY$3) -> 15772 | H83: =CEILING('прайс-лист2'!I75*Титульный!$AY$1,Титульный!$AY$3) -> 10316 | I83: =CEILING('прайс-лист2'!J75*Титульный!$AY$1,Титульный!$AY$3) -> 10470 | J83: =CEILING('прайс-лист2'!K75*Титульный!$AY$1,Титульный!$AY$3) -> 10899 | K83: =CEILING('прайс-лист2'!L75*Титульный!$AY$1,Титульный!$AY$3) -> 12076 | L83: - | M83: =CEILING('прайс-лист2'!N75*Титульный!$AY$1,Титульный!$AY$3) -> 17158 | N83: =CEILING('прайс-лист2'!O75*Титульный!$AY$1,Титульный!$AY$3) -> 19105 | O83: =CEILING('прайс-лист2'!P75*Титульный!$AY$1,Титульный!$AY$3) -> 20326 | P83: =CEILING('прайс-лист2'!Q75*Титульный!$AY$1,Титульный!$AY$3) -> 22669 | Q83: =CEILING('прайс-лист2'!R75*Титульный!$AY$1,Титульный!$AY$3) -> 22977 | R83: - | S83: -
A84: Шкаф (420) Торцевой 2240х420 ЛЕВ\ПР | C84: 420х440х2240 | D84: =CEILING('прайс-лист2'!E76*Титульный!$AY$1,Титульный!$AY$3) -> 13857 | E84: =CEILING('прайс-лист2'!F76*Титульный!$AY$1,Титульный!$AY$3) -> 20028 | F84: =CEILING('прайс-лист2'!G76*Титульный!$AY$1,Титульный!$AY$3) -> 14803 | G84: =CEILING('прайс-лист2'!H76*Титульный!$AY$1,Титульный!$AY$3) -> 17091 | H84: =CEILING('прайс-лист2'!I76*Титульный!$AY$1,Титульный!$AY$3) -> 11096 | I84: =CEILING('прайс-лист2'!J76*Титульный!$AY$1,Титульный!$AY$3) -> 11250 | J84: =CEILING('прайс-лист2'!K76*Титульный!$AY$1,Титульный!$AY$3) -> 11734 | K84: =CEILING('прайс-лист2'!L76*Титульный!$AY$1,Титульный!$AY$3) -> 13010 | L84: - | M84: =CEILING('прайс-лист2'!N76*Титульный!$AY$1,Титульный!$AY$3) -> 18587 | N84: =CEILING('прайс-лист2'!O76*Титульный!$AY$1,Титульный!$AY$3) -> 20710 | O84: =CEILING('прайс-лист2'!P76*Титульный!$AY$1,Титульный!$AY$3) -> 22085 | P84: =CEILING('прайс-лист2'!Q76*Титульный!$AY$1,Титульный!$AY$3) -> 24659 | Q84: =CEILING('прайс-лист2'!R76*Титульный!$AY$1,Титульный!$AY$3) -> 24912 | R84: - | S84: -
A85: Шкаф (420) 4 двери, 1160х1120 | C85: 1120х440х1160 | D85: =CEILING('прайс-лист2'!E77*Титульный!$AY$1,Титульный!$AY$3) -> 15880 | E85: =CEILING('прайс-лист2'!F77*Титульный!$AY$1,Титульный!$AY$3) -> 21160 | F85: =CEILING('прайс-лист2'!G77*Титульный!$AY$1,Титульный!$AY$3) -> 16672 | G85: =CEILING('прайс-лист2'!H77*Титульный!$AY$1,Титульный!$AY$3) -> 18652 | H85: =CEILING('прайс-лист2'!I77*Титульный!$AY$1,Титульный!$AY$3) -> 13504 | I85: =CEILING('прайс-лист2'!J77*Титульный!$AY$1,Титульный!$AY$3) -> 13636 | J85: =CEILING('прайс-лист2'!K77*Титульный!$AY$1,Титульный!$AY$3) -> 14076 | K85: =CEILING('прайс-лист2'!L77*Титульный!$AY$1,Титульный!$AY$3) -> 15176 | L85: - | M85: - | N85: - | O85: =CEILING('прайс-лист2'!P77*Титульный!$AY$1,Титульный!$AY$3) -> 22964 | P85: =CEILING('прайс-лист2'!Q77*Титульный!$AY$1,Титульный!$AY$3) -> 25164 | Q85: =CEILING('прайс-лист2'!R77*Титульный!$AY$1,Титульный!$AY$3) -> 26704 | R85: - | S85: -
A86: Шкафы глубиной 560мм
A87: Шкаф (560) 1дв 2040х420 | C87: 420х580х2040 | D87: =CEILING('прайс-лист2'!E79*Титульный!$AY$1,Титульный!$AY$3) -> 11690 | E87: =CEILING('прайс-лист2'!F79*Титульный!$AY$1,Титульный!$AY$3) -> 15221 | F87: =CEILING('прайс-лист2'!G79*Титульный!$AY$1,Титульный!$AY$3) -> 12218 | G87: =CEILING('прайс-лист2'!H79*Титульный!$AY$1,Титульный!$AY$3) -> 13538 | H87: =CEILING('прайс-лист2'!I79*Титульный!$AY$1,Титульный!$AY$3) -> 10095 | I87: =CEILING('прайс-лист2'!J79*Титульный!$AY$1,Титульный!$AY$3) -> 10183 | J87: =CEILING('прайс-лист2'!K79*Титульный!$AY$1,Титульный!$AY$3) -> 10458 | K87: =CEILING('прайс-лист2'!L79*Титульный!$AY$1,Титульный!$AY$3) -> 11195 | L87: - | M87: =CEILING('прайс-лист2'!N79*Титульный!$AY$1,Титульный!$AY$3) -> 14209 | N87: =CEILING('прайс-лист2'!O79*Титульный!$AY$1,Титульный!$AY$3) -> 15221 | O87: =CEILING('прайс-лист2'!P79*Титульный!$AY$1,Титульный!$AY$3) -> 16222 | P87: =CEILING('прайс-лист2'!Q79*Титульный!$AY$1,Титульный!$AY$3) -> 17696 | Q87: =CEILING('прайс-лист2'!R79*Титульный!$AY$1,Титульный!$AY$3) -> 18015 | R87: =CEILING('прайс-лист2'!S79*Титульный!$AY$1,Титульный!$AY$3) -> 1344 | S87: =CEILING('прайс-лист2'!T79*Титульный!$AY$1,Титульный!$AY$3) -> 2490
A88: Шкаф (560) 1дв 2040х560 | C88: 560х580х2040 | D88: =CEILING('прайс-лист2'!E80*Титульный!$AY$1,Титульный!$AY$3) -> 13763 | E88: =CEILING('прайс-лист2'!F80*Титульный!$AY$1,Титульный!$AY$3) -> 18482 | F88: =CEILING('прайс-лист2'!G80*Титульный!$AY$1,Титульный!$AY$3) -> 14478 | G88: =CEILING('прайс-лист2'!H80*Титульный!$AY$1,Титульный!$AY$3) -> 16238 | H88: =CEILING('прайс-лист2'!I80*Титульный!$AY$1,Титульный!$AY$3) -> 11640 | I88: =CEILING('прайс-лист2'!J80*Титульный!$AY$1,Титульный!$AY$3) -> 11761 | J88: =CEILING('прайс-лист2'!K80*Титульный!$AY$1,Титульный!$AY$3) -> 12135 | K88: =CEILING('прайс-лист2'!L80*Титульный!$AY$1,Титульный!$AY$3) -> 13114 | L88: - | M88: =CEILING('прайс-лист2'!N80*Титульный!$AY$1,Титульный!$AY$3) -> 16887 | N88: =CEILING('прайс-лист2'!O80*Титульный!$AY$1,Титульный!$AY$3) -> 17954 | O88: =CEILING('прайс-лист2'!P80*Титульный!$AY$1,Титульный!$AY$3) -> 19560 | P88: =CEILING('прайс-лист2'!Q80*Титульный!$AY$1,Титульный!$AY$3) -> 21540 | Q88: =CEILING('прайс-лист2'!R80*Титульный!$AY$1,Титульный!$AY$3) -> 21397 | R88: =CEILING('прайс-лист2'!S80*Титульный!$AY$1,Титульный!$AY$3) -> 1932 | S88: =CEILING('прайс-лист2'!T80*Титульный!$AY$1,Титульный!$AY$3) -> 3314
A89: Шкаф (560) 1дв 2240х420 | C89: 420х580х2240 | D89: =CEILING('прайс-лист2'!E81*Титульный!$AY$1,Титульный!$AY$3) -> 12835 | E89: =CEILING('прайс-лист2'!F81*Титульный!$AY$1,Титульный!$AY$3) -> 16718 | F89: =CEILING('прайс-лист2'!G81*Титульный!$AY$1,Титульный!$AY$3) -> 13418 | G89: =CEILING('прайс-лист2'!H81*Титульный!$AY$1,Титульный!$AY$3) -> 14870 | H89: =CEILING('прайс-лист2'!I81*Титульный!$AY$1,Титульный!$AY$3) -> 11086 | I89: =CEILING('прайс-лист2'!J81*Титульный!$AY$1,Титульный!$AY$3) -> 11185 | J89: =CEILING('прайс-лист2'!K81*Титульный!$AY$1,Титульный!$AY$3) -> 11493 | K89: =CEILING('прайс-лист2'!L81*Титульный!$AY$1,Титульный!$AY$3) -> 12296 | L89: - | M89: =CEILING('прайс-лист2'!N81*Титульный!$AY$1,Титульный!$AY$3) -> 15596 | N89: =CEILING('прайс-лист2'!O81*Титульный!$AY$1,Титульный!$AY$3) -> 16696 | O89: =CEILING('прайс-лист2'!P81*Титульный!$AY$1,Титульный!$AY$3) -> 17807 | P89: =CEILING('прайс-лист2'!Q81*Титульный!$AY$1,Титульный!$AY$3) -> 19424 | Q89: =CEILING('прайс-лист2'!R81*Титульный!$AY$1,Титульный!$AY$3) -> 19732 | R89: =CEILING('прайс-лист2'!S81*Титульный!$AY$1,Титульный!$AY$3) -> 1523 | S89: =CEILING('прайс-лист2'!T81*Титульный!$AY$1,Титульный!$AY$3) -> 2730
A90: Шкаф (560) 1дв 2240х560 | C90: 560х580х2240 | D90: =CEILING('прайс-лист2'!E82*Титульный!$AY$1,Титульный!$AY$3) -> 14985 | E90: =CEILING('прайс-лист2'!F82*Титульный!$AY$1,Титульный!$AY$3) -> 20188 | F90: =CEILING('прайс-лист2'!G82*Титульный!$AY$1,Титульный!$AY$3) -> 15777 | G90: =CEILING('прайс-лист2'!H82*Титульный!$AY$1,Титульный!$AY$3) -> 17713 | H90: =CEILING('прайс-лист2'!I82*Титульный!$AY$1,Титульный!$AY$3) -> 12653 | I90: =CEILING('прайс-лист2'!J82*Титульный!$AY$1,Титульный!$AY$3) -> 12796 | J90: =CEILING('прайс-лист2'!K82*Титульный!$AY$1,Титульный!$AY$3) -> 13192 | K90: =CEILING('прайс-лист2'!L82*Титульный!$AY$1,Титульный!$AY$3) -> 14270 | L90: - | M90: =CEILING('прайс-лист2'!N82*Титульный!$AY$1,Титульный!$AY$3) -> 18406 | N90: =CEILING('прайс-лист2'!O82*Титульный!$AY$1,Титульный!$AY$3) -> 19561 | O90: =CEILING('прайс-лист2'!P82*Титульный!$AY$1,Титульный!$AY$3) -> 21354 | P90: =CEILING('прайс-лист2'!Q82*Титульный!$AY$1,Титульный!$AY$3) -> 23521 | Q90: =CEILING('прайс-лист2'!R82*Титульный!$AY$1,Титульный!$AY$3) -> 23312 | R90: =CEILING('прайс-лист2'!S82*Титульный!$AY$1,Титульный!$AY$3) -> 2190 | S90: =CEILING('прайс-лист2'!T82*Титульный!$AY$1,Титульный!$AY$3) -> 3632
A91: Шкаф (560) 1дв 2ящ 2040х420 | C91: 420х580х2040 | D91: =CEILING('прайс-лист2'!E83*Титульный!$AY$1,Титульный!$AY$3) -> 13298 | E91: =CEILING('прайс-лист2'!F83*Титульный!$AY$1,Титульный!$AY$3) -> 16829 | F91: =CEILING('прайс-лист2'!G83*Титульный!$AY$1,Титульный!$AY$3) -> 13837 | G91: =CEILING('прайс-лист2'!H83*Титульный!$AY$1,Титульный!$AY$3) -> 15157 | H91: =CEILING('прайс-лист2'!I83*Титульный!$AY$1,Титульный!$AY$3) -> 11725 | I91: =CEILING('прайс-лист2'!J83*Титульный!$AY$1,Титульный!$AY$3) -> 11791 | J91: =CEILING('прайс-лист2'!K83*Титульный!$AY$1,Титульный!$AY$3) -> 12077 | K91: =CEILING('прайс-лист2'!L83*Титульный!$AY$1,Титульный!$AY$3) -> 12803 | L91: - | M91: =CEILING('прайс-лист2'!N83*Титульный!$AY$1,Титульный!$AY$3) -> 16125 | N91: =CEILING('прайс-лист2'!O83*Титульный!$AY$1,Титульный!$AY$3) -> 17500 | O91: =CEILING('прайс-лист2'!P83*Титульный!$AY$1,Титульный!$AY$3) -> 18149 | P91: =CEILING('прайс-лист2'!Q83*Титульный!$AY$1,Титульный!$AY$3) -> 19612 | Q91: =CEILING('прайс-лист2'!R83*Титульный!$AY$1,Титульный!$AY$3) -> 20426 | R91: =CEILING('прайс-лист2'!S83*Титульный!$AY$1,Титульный!$AY$3) -> 1344 | S91: =CEILING('прайс-лист2'!T83*Титульный!$AY$1,Титульный!$AY$3) -> 2010
A92: Шкаф (560) 1дв 2ящ 2040х560 | C92: 560х580х2040 | D92: =CEILING('прайс-лист2'!E84*Титульный!$AY$1,Титульный!$AY$3) -> 15129 | E92: =CEILING('прайс-лист2'!F84*Титульный!$AY$1,Титульный!$AY$3) -> 19848 | F92: =CEILING('прайс-лист2'!G84*Титульный!$AY$1,Титульный!$AY$3) -> 15844 | G92: =CEILING('прайс-лист2'!H84*Титульный!$AY$1,Титульный!$AY$3) -> 17615 | H92: =CEILING('прайс-лист2'!I84*Титульный!$AY$1,Титульный!$AY$3) -> 13006 | I92: =CEILING('прайс-лист2'!J84*Титульный!$AY$1,Титульный!$AY$3) -> 13127 | J92: =CEILING('прайс-лист2'!K84*Титульный!$AY$1,Титульный!$AY$3) -> 13512 | K92: =CEILING('прайс-лист2'!L84*Титульный!$AY$1,Титульный!$AY$3) -> 14469 | L92: - | M92: =CEILING('прайс-лист2'!N84*Титульный!$AY$1,Титульный!$AY$3) -> 18660 | N92: =CEILING('прайс-лист2'!O84*Титульный!$AY$1,Титульный!$AY$3) -> 20200 | O92: =CEILING('прайс-лист2'!P84*Титульный!$AY$1,Титульный!$AY$3) -> 21344 | P92: =CEILING('прайс-лист2'!Q84*Титульный!$AY$1,Титульный!$AY$3) -> 23302 | Q92: =CEILING('прайс-лист2'!R84*Титульный!$AY$1,Титульный!$AY$3) -> 23742 | R92: =CEILING('прайс-лист2'!S84*Титульный!$AY$1,Титульный!$AY$3) -> 1932 | S92: =CEILING('прайс-лист2'!T84*Титульный!$AY$1,Титульный!$AY$3) -> 2677
A93: Шкаф (560) 1дв 2ящ 2240х420 | C93: 420х580х2240 | D93: =CEILING('прайс-лист2'!E85*Титульный!$AY$1,Титульный!$AY$3) -> 14090 | E93: =CEILING('прайс-лист2'!F85*Титульный!$AY$1,Титульный!$AY$3) -> 17984 | F93: =CEILING('прайс-лист2'!G85*Титульный!$AY$1,Титульный!$AY$3) -> 14684 | G93: =CEILING('прайс-лист2'!H85*Титульный!$AY$1,Титульный!$AY$3) -> 16136 | H93: =CEILING('прайс-лист2'!I85*Титульный!$AY$1,Титульный!$AY$3) -> 12352 | I93: =CEILING('прайс-лист2'!J85*Титульный!$AY$1,Титульный!$AY$3) -> 12440 | J93: =CEILING('прайс-лист2'!K85*Титульный!$AY$1,Титульный!$AY$3) -> 12748 | K93: =CEILING('прайс-лист2'!L85*Титульный!$AY$1,Титульный!$AY$3) -> 13551 | L93: - | M93: =CEILING('прайс-лист2'!N85*Титульный!$AY$1,Титульный!$AY$3) -> 17159 | N93: =CEILING('прайс-лист2'!O85*Титульный!$AY$1,Титульный!$AY$3) -> 18611 | O93: =CEILING('прайс-лист2'!P85*Титульный!$AY$1,Титульный!$AY$3) -> 19381 | P93: =CEILING('прайс-лист2'!Q85*Титульный!$AY$1,Титульный!$AY$3) -> 20998 | Q93: =CEILING('прайс-лист2'!R85*Титульный!$AY$1,Титульный!$AY$3) -> 21790 | R93: =CEILING('прайс-лист2'!S85*Титульный!$AY$1,Титульный!$AY$3) -> 1523 | S93: =CEILING('прайс-лист2'!T85*Титульный!$AY$1,Титульный!$AY$3) -> 2250
A94: Шкаф (560) 1дв 2ящ 2240х560 | C94: 560х580х2240 | D94: =CEILING('прайс-лист2'!E86*Титульный!$AY$1,Титульный!$AY$3) -> 16382 | E94: =CEILING('прайс-лист2'!F86*Титульный!$AY$1,Титульный!$AY$3) -> 21574 | F94: =CEILING('прайс-лист2'!G86*Титульный!$AY$1,Титульный!$AY$3) -> 17174 | G94: =CEILING('прайс-лист2'!H86*Титульный!$AY$1,Титульный!$AY$3) -> 19121 | H94: =CEILING('прайс-лист2'!I86*Титульный!$AY$1,Титульный!$AY$3) -> 14061 | I94: =CEILING('прайс-лист2'!J86*Титульный!$AY$1,Титульный!$AY$3) -> 14193 | J94: =CEILING('прайс-лист2'!K86*Титульный!$AY$1,Титульный!$AY$3) -> 14611 | K94: =CEILING('прайс-лист2'!L86*Титульный!$AY$1,Титульный!$AY$3) -> 15667 | L94: - | M94: =CEILING('прайс-лист2'!N86*Титульный!$AY$1,Титульный!$AY$3) -> 20210 | N94: =CEILING('прайс-лист2'!O86*Титульный!$AY$1,Титульный!$AY$3) -> 21827 | O94: =CEILING('прайс-лист2'!P86*Титульный!$AY$1,Титульный!$AY$3) -> 23169 | P94: =CEILING('прайс-лист2'!Q86*Титульный!$AY$1,Титульный!$AY$3) -> 25314 | Q94: =CEILING('прайс-лист2'!R86*Титульный!$AY$1,Титульный!$AY$3) -> 25688 | R94: =CEILING('прайс-лист2'!S86*Титульный!$AY$1,Титульный!$AY$3) -> 2190 | S94: =CEILING('прайс-лист2'!T86*Титульный!$AY$1,Титульный!$AY$3) -> 2995
A95: Шкаф (560) 2дв 1ящ 2040х560 | C95: 560х580х2040 | D95: =CEILING('прайс-лист2'!E87*Титульный!$AY$1,Титульный!$AY$3) -> 14118 | E95: =CEILING('прайс-лист2'!F87*Титульный!$AY$1,Титульный!$AY$3) -> 18837 | F95: =CEILING('прайс-лист2'!G87*Титульный!$AY$1,Титульный!$AY$3) -> 14833 | G95: =CEILING('прайс-лист2'!H87*Титульный!$AY$1,Титульный!$AY$3) -> 16593 | H95: =CEILING('прайс-лист2'!I87*Титульный!$AY$1,Титульный!$AY$3) -> 11995 | I95: =CEILING('прайс-лист2'!J87*Титульный!$AY$1,Титульный!$AY$3) -> 12116 | J95: =CEILING('прайс-лист2'!K87*Титульный!$AY$1,Титульный!$AY$3) -> 12490 | K95: =CEILING('прайс-лист2'!L87*Титульный!$AY$1,Титульный!$AY$3) -> 13458 | L95: - | M95: =CEILING('прайс-лист2'!N87*Титульный!$AY$1,Титульный!$AY$3) -> 17649 | N95: =CEILING('прайс-лист2'!O87*Титульный!$AY$1,Титульный!$AY$3) -> 19178 | O95: =CEILING('прайс-лист2'!P87*Титульный!$AY$1,Титульный!$AY$3) -> 20322 | P95: =CEILING('прайс-лист2'!Q87*Титульный!$AY$1,Титульный!$AY$3) -> 22291 | Q95: =CEILING('прайс-лист2'!R87*Титульный!$AY$1,Титульный!$AY$3) -> 23017 | R95: - | S95: -
A96: Шкаф (560) 2дв 1ящ 2240х560 | C96: 560х580х2240 | D96: =CEILING('прайс-лист2'!E88*Титульный!$AY$1,Титульный!$AY$3) -> 15389 | E96: =CEILING('прайс-лист2'!F88*Титульный!$AY$1,Титульный!$AY$3) -> 20570 | F96: =CEILING('прайс-лист2'!G88*Титульный!$AY$1,Титульный!$AY$3) -> 16170 | G96: =CEILING('прайс-лист2'!H88*Титульный!$AY$1,Титульный!$AY$3) -> 18106 | H96: =CEILING('прайс-лист2'!I88*Титульный!$AY$1,Титульный!$AY$3) -> 13057 | I96: =CEILING('прайс-лист2'!J88*Титульный!$AY$1,Титульный!$AY$3) -> 13189 | J96: =CEILING('прайс-лист2'!K88*Титульный!$AY$1,Титульный!$AY$3) -> 13596 | K96: =CEILING('прайс-лист2'!L88*Титульный!$AY$1,Титульный!$AY$3) -> 14663 | L96: - | M96: =CEILING('прайс-лист2'!N88*Титульный!$AY$1,Титульный!$AY$3) -> 19206 | N96: =CEILING('прайс-лист2'!O88*Титульный!$AY$1,Титульный!$AY$3) -> 20823 | O96: =CEILING('прайс-лист2'!P88*Титульный!$AY$1,Титульный!$AY$3) -> 22154 | P96: =CEILING('прайс-лист2'!Q88*Титульный!$AY$1,Титульный!$AY$3) -> 24310 | Q96: =CEILING('прайс-лист2'!R88*Титульный!$AY$1,Титульный!$AY$3) -> 24970 | R96: - | S96: -
A97: Шкаф (560) 2дв 2040х840 | C97: 840х580х2040 | D97: =CEILING('прайс-лист2'!E89*Титульный!$AY$1,Титульный!$AY$3) -> 19453 | E97: =CEILING('прайс-лист2'!F89*Титульный!$AY$1,Титульный!$AY$3) -> 26515 | F97: =CEILING('прайс-лист2'!G89*Титульный!$AY$1,Титульный!$AY$3) -> 20509 | G97: =CEILING('прайс-лист2'!H89*Титульный!$AY$1,Титульный!$AY$3) -> 23149 | H97: =CEILING('прайс-лист2'!I89*Титульный!$AY$1,Титульный!$AY$3) -> 16263 | I97: =CEILING('прайс-лист2'!J89*Титульный!$AY$1,Титульный!$AY$3) -> 16439 | J97: =CEILING('прайс-лист2'!K89*Титульный!$AY$1,Титульный!$AY$3) -> 16989 | K97: =CEILING('прайс-лист2'!L89*Титульный!$AY$1,Титульный!$AY$3) -> 18463 | L97: - | M97: =CEILING('прайс-лист2'!N89*Титульный!$AY$1,Титульный!$AY$3) -> 24491 | N97: =CEILING('прайс-лист2'!O89*Титульный!$AY$1,Титульный!$AY$3) -> 26515 | O97: =CEILING('прайс-лист2'!P89*Титульный!$AY$1,Титульный!$AY$3) -> 28517 | P97: =CEILING('прайс-лист2'!Q89*Титульный!$AY$1,Титульный!$AY$3) -> 31465 | Q97: =CEILING('прайс-лист2'!R89*Титульный!$AY$1,Титульный!$AY$3) -> 32103 | R97: =CEILING('прайс-лист2'!S89*Титульный!$AY$1,Титульный!$AY$3) -> 2688 | S97: =CEILING('прайс-лист2'!T89*Титульный!$AY$1,Титульный!$AY$3) -> 4980
A98: Шкаф (560) 2дв 2240х840 | C98: 840х580х2240 | D98: =CEILING('прайс-лист2'!E90*Титульный!$AY$1,Титульный!$AY$3) -> 21197 | E98: =CEILING('прайс-лист2'!F90*Титульный!$AY$1,Титульный!$AY$3) -> 28963 | F98: =CEILING('прайс-лист2'!G90*Титульный!$AY$1,Титульный!$AY$3) -> 22363 | G98: =CEILING('прайс-лист2'!H90*Титульный!$AY$1,Титульный!$AY$3) -> 25267 | H98: =CEILING('прайс-лист2'!I90*Титульный!$AY$1,Титульный!$AY$3) -> 17699 | I98: =CEILING('прайс-лист2'!J90*Титульный!$AY$1,Титульный!$AY$3) -> 17897 | J98: =CEILING('прайс-лист2'!K90*Титульный!$AY$1,Титульный!$AY$3) -> 18513 | K98: =CEILING('прайс-лист2'!L90*Титульный!$AY$1,Титульный!$AY$3) -> 20119 | L98: - | M98: =CEILING('прайс-лист2'!N90*Титульный!$AY$1,Титульный!$AY$3) -> 26719 | N98: =CEILING('прайс-лист2'!O90*Титульный!$AY$1,Титульный!$AY$3) -> 28919 | O98: =CEILING('прайс-лист2'!P90*Титульный!$AY$1,Титульный!$AY$3) -> 31141 | P98: =CEILING('прайс-лист2'!Q90*Титульный!$AY$1,Титульный!$AY$3) -> 34375 | Q98: =CEILING('прайс-лист2'!R90*Титульный!$AY$1,Титульный!$AY$3) -> 34991 | R98: =CEILING('прайс-лист2'!S90*Титульный!$AY$1,Титульный!$AY$3) -> 3046 | S98: =CEILING('прайс-лист2'!T90*Титульный!$AY$1,Титульный!$AY$3) -> 5460
A99: Шкаф (560) 2дв 2ящ 2040х840 | C99: 840х580х2040 | D99: =CEILING('прайс-лист2'!E91*Титульный!$AY$1,Титульный!$AY$3) -> 20624 | E99: =CEILING('прайс-лист2'!F91*Титульный!$AY$1,Титульный!$AY$3) -> 27686 | F99: =CEILING('прайс-лист2'!G91*Титульный!$AY$1,Титульный!$AY$3) -> 21702 | G99: =CEILING('прайс-лист2'!H91*Титульный!$AY$1,Титульный!$AY$3) -> 24320 | H99: =CEILING('прайс-лист2'!I91*Титульный!$AY$1,Титульный!$AY$3) -> 17456 | I99: =CEILING('прайс-лист2'!J91*Титульный!$AY$1,Титульный!$AY$3) -> 17632 | J99: =CEILING('прайс-лист2'!K91*Титульный!$AY$1,Титульный!$AY$3) -> 18182 | K99: =CEILING('прайс-лист2'!L91*Титульный!$AY$1,Титульный!$AY$3) -> 19656 | L99: - | M99: =CEILING('прайс-лист2'!N91*Титульный!$AY$1,Титульный!$AY$3) -> 26146 | N99: =CEILING('прайс-лист2'!O91*Титульный!$AY$1,Титульный!$AY$3) -> 28720 | O99: =CEILING('прайс-лист2'!P91*Титульный!$AY$1,Титульный!$AY$3) -> 30172 | P99: =CEILING('прайс-лист2'!Q91*Титульный!$AY$1,Титульный!$AY$3) -> 33098 | Q99: =CEILING('прайс-лист2'!R91*Титульный!$AY$1,Титульный!$AY$3) -> 34220 | R99: =CEILING('прайс-лист2'!S91*Титульный!$AY$1,Титульный!$AY$3) -> 2688 | S99: =CEILING('прайс-лист2'!T91*Титульный!$AY$1,Титульный!$AY$3) -> 4020
A100: Шкаф (560) 2дв 2ящ 2240х840 | C100: 840х580х2240 | D100: =CEILING('прайс-лист2'!E92*Титульный!$AY$1,Титульный!$AY$3) -> 22369 | E100: =CEILING('прайс-лист2'!F92*Титульный!$AY$1,Титульный!$AY$3) -> 30157 | F100: =CEILING('прайс-лист2'!G92*Титульный!$AY$1,Титульный!$AY$3) -> 23557 | G100: =CEILING('прайс-лист2'!H92*Титульный!$AY$1,Титульный!$AY$3) -> 26439 | H100: =CEILING('прайс-лист2'!I92*Титульный!$AY$1,Титульный!$AY$3) -> 18871 | I100: =CEILING('прайс-лист2'!J92*Титульный!$AY$1,Титульный!$AY$3) -> 19091 | J100: =CEILING('прайс-лист2'!K92*Титульный!$AY$1,Титульный!$AY$3) -> 19685 | K100: =CEILING('прайс-лист2'!L92*Титульный!$AY$1,Титульный!$AY$3) -> 21313 | L100: - | M100: =CEILING('прайс-лист2'!N92*Титульный!$AY$1,Титульный!$AY$3) -> 28375 | N100: =CEILING('прайс-лист2'!O92*Титульный!$AY$1,Титульный!$AY$3) -> 31103 | O100: =CEILING('прайс-лист2'!P92*Титульный!$AY$1,Титульный!$AY$3) -> 32797 | P100: =CEILING('прайс-лист2'!Q92*Титульный!$AY$1,Титульный!$AY$3) -> 36031 | Q100: =CEILING('прайс-лист2'!R92*Титульный!$AY$1,Титульный!$AY$3) -> 37109 | R100: =CEILING('прайс-лист2'!S92*Титульный!$AY$1,Титульный!$AY$3) -> 3046 | S100: =CEILING('прайс-лист2'!T92*Титульный!$AY$1,Титульный!$AY$3) -> 4500
A101: Шкаф (560) ДО 1дв 2040х420 | C101: 420х580х2040 | D101: =CEILING('прайс-лист2'!E93*Титульный!$AY$1,Титульный!$AY$3) -> 11017 | E101: =CEILING('прайс-лист2'!F93*Титульный!$AY$1,Титульный!$AY$3) -> 14548 | F101: =CEILING('прайс-лист2'!G93*Титульный!$AY$1,Титульный!$AY$3) -> 11545 | G101: =CEILING('прайс-лист2'!H93*Титульный!$AY$1,Титульный!$AY$3) -> 12865 | H101: =CEILING('прайс-лист2'!I93*Титульный!$AY$1,Титульный!$AY$3) -> 9422 | I101: =CEILING('прайс-лист2'!J93*Титульный!$AY$1,Титульный!$AY$3) -> 9510 | J101: =CEILING('прайс-лист2'!K93*Титульный!$AY$1,Титульный!$AY$3) -> 9785 | K101: =CEILING('прайс-лист2'!L93*Титульный!$AY$1,Титульный!$AY$3) -> 10522 | L101: - | M101: =CEILING('прайс-лист2'!N93*Титульный!$AY$1,Титульный!$AY$3) -> 13536 | N101: =CEILING('прайс-лист2'!O93*Титульный!$AY$1,Титульный!$AY$3) -> 14548 | O101: =CEILING('прайс-лист2'!P93*Титульный!$AY$1,Титульный!$AY$3) -> 15549 | P101: =CEILING('прайс-лист2'!Q93*Титульный!$AY$1,Титульный!$AY$3) -> 17023 | Q101: =CEILING('прайс-лист2'!R93*Титульный!$AY$1,Титульный!$AY$3) -> 17342 | R101: =CEILING('прайс-лист2'!S93*Титульный!$AY$1,Титульный!$AY$3) -> 1344 | S101: =CEILING('прайс-лист2'!T93*Титульный!$AY$1,Титульный!$AY$3) -> 2490
A102: Шкаф (560) ДО 1дв 2040х560 | C102: 560х580х2040 | D102: =CEILING('прайс-лист2'!E94*Титульный!$AY$1,Титульный!$AY$3) -> 12693 | E102: =CEILING('прайс-лист2'!F94*Титульный!$AY$1,Титульный!$AY$3) -> 17412 | F102: =CEILING('прайс-лист2'!G94*Титульный!$AY$1,Титульный!$AY$3) -> 13408 | G102: =CEILING('прайс-лист2'!H94*Титульный!$AY$1,Титульный!$AY$3) -> 15168 | H102: =CEILING('прайс-лист2'!I94*Титульный!$AY$1,Титульный!$AY$3) -> 10570 | I102: =CEILING('прайс-лист2'!J94*Титульный!$AY$1,Титульный!$AY$3) -> 10691 | J102: =CEILING('прайс-лист2'!K94*Титульный!$AY$1,Титульный!$AY$3) -> 11065 | K102: =CEILING('прайс-лист2'!L94*Титульный!$AY$1,Титульный!$AY$3) -> 12044 | L102: - | M102: =CEILING('прайс-лист2'!N94*Титульный!$AY$1,Титульный!$AY$3) -> 15817 | N102: =CEILING('прайс-лист2'!O94*Титульный!$AY$1,Титульный!$AY$3) -> 16884 | O102: =CEILING('прайс-лист2'!P94*Титульный!$AY$1,Титульный!$AY$3) -> 18490 | P102: =CEILING('прайс-лист2'!Q94*Титульный!$AY$1,Титульный!$AY$3) -> 20470 | Q102: =CEILING('прайс-лист2'!R94*Титульный!$AY$1,Титульный!$AY$3) -> 20327 | R102: =CEILING('прайс-лист2'!S94*Титульный!$AY$1,Титульный!$AY$3) -> 1932 | S102: =CEILING('прайс-лист2'!T94*Титульный!$AY$1,Титульный!$AY$3) -> 3314
A103: Шкаф (560) ДО 1дв 2240х420 | C103: 420х580х2240 | D103: =CEILING('прайс-лист2'!E95*Титульный!$AY$1,Титульный!$AY$3) -> 11719 | E103: =CEILING('прайс-лист2'!F95*Титульный!$AY$1,Титульный!$AY$3) -> 15602 | F103: =CEILING('прайс-лист2'!G95*Титульный!$AY$1,Титульный!$AY$3) -> 12302 | G103: =CEILING('прайс-лист2'!H95*Титульный!$AY$1,Титульный!$AY$3) -> 13754 | H103: =CEILING('прайс-лист2'!I95*Титульный!$AY$1,Титульный!$AY$3) -> 9970 | I103: =CEILING('прайс-лист2'!J95*Титульный!$AY$1,Титульный!$AY$3) -> 10069 | J103: =CEILING('прайс-лист2'!K95*Титульный!$AY$1,Титульный!$AY$3) -> 10377 | K103: =CEILING('прайс-лист2'!L95*Титульный!$AY$1,Титульный!$AY$3) -> 11180 | L103: - | M103: =CEILING('прайс-лист2'!N95*Титульный!$AY$1,Титульный!$AY$3) -> 14480 | N103: =CEILING('прайс-лист2'!O95*Титульный!$AY$1,Титульный!$AY$3) -> 15580 | O103: =CEILING('прайс-лист2'!P95*Титульный!$AY$1,Титульный!$AY$3) -> 16691 | P103: =CEILING('прайс-лист2'!Q95*Титульный!$AY$1,Титульный!$AY$3) -> 18308 | Q103: =CEILING('прайс-лист2'!R95*Титульный!$AY$1,Титульный!$AY$3) -> 18616 | R103: =CEILING('прайс-лист2'!S95*Титульный!$AY$1,Титульный!$AY$3) -> 1523 | S103: =CEILING('прайс-лист2'!T95*Титульный!$AY$1,Титульный!$AY$3) -> 2730
A104: Шкаф (560) ДО 1дв 2240х560 | C104: 560х580х2240 | D104: =CEILING('прайс-лист2'!E96*Титульный!$AY$1,Титульный!$AY$3) -> 13488 | E104: =CEILING('прайс-лист2'!F96*Титульный!$AY$1,Титульный!$AY$3) -> 18691 | F104: =CEILING('прайс-лист2'!G96*Титульный!$AY$1,Титульный!$AY$3) -> 14280 | G104: =CEILING('прайс-лист2'!H96*Титульный!$AY$1,Титульный!$AY$3) -> 16216 | H104: =CEILING('прайс-лист2'!I96*Титульный!$AY$1,Титульный!$AY$3) -> 11156 | I104: =CEILING('прайс-лист2'!J96*Титульный!$AY$1,Титульный!$AY$3) -> 11299 | J104: =CEILING('прайс-лист2'!K96*Титульный!$AY$1,Титульный!$AY$3) -> 11695 | K104: =CEILING('прайс-лист2'!L96*Титульный!$AY$1,Титульный!$AY$3) -> 12773 | L104: - | M104: =CEILING('прайс-лист2'!N96*Титульный!$AY$1,Титульный!$AY$3) -> 16909 | N104: =CEILING('прайс-лист2'!O96*Титульный!$AY$1,Титульный!$AY$3) -> 18064 | O104: =CEILING('прайс-лист2'!P96*Титульный!$AY$1,Титульный!$AY$3) -> 19857 | P104: =CEILING('прайс-лист2'!Q96*Титульный!$AY$1,Титульный!$AY$3) -> 22024 | Q104: =CEILING('прайс-лист2'!R96*Титульный!$AY$1,Титульный!$AY$3) -> 21815 | R104: =CEILING('прайс-лист2'!S96*Титульный!$AY$1,Титульный!$AY$3) -> 2190 | S104: =CEILING('прайс-лист2'!T96*Титульный!$AY$1,Титульный!$AY$3) -> 3632
A105: Внимание!!! Для наборов мебели "Марго" использовать только накладные зеркала
A106: Шкафы глубиной 560мм
A107: Наименование | B107: Эскиз | C107: Габариты, ШхГхВ мм. | D107: МДФ фасады | H107: Марго16 | M107: UV-лак | O107: ТСС | Q107: ТСС сборный | R107: Стоимость зеркал
D108: 1 ЦК | E108: 1 ЦК + патина | F108: 2 ЦК | G108: 3 ЦК | H108: 1 ц.к. | I108: 2 ц.к. | J108: 3 ц.к. | K108: 4 ц.к. | L108: 5 ц.к. | M108: UV-лак кромка ABC/AL кромка | N108: кромка 3D | O108: 1 ЦК | P108: 2 ЦК | R108: Зеркало в рамке** | S108: Зеркало накладное*
A109: Шкаф (560) ДО 2дв 2040х840 | C109: 840х580х2040 | D109: =CEILING('прайс-лист2'!E97*Титульный!$AY$1,Титульный!$AY$3) -> 17919 | E109: =CEILING('прайс-лист2'!F97*Титульный!$AY$1,Титульный!$AY$3) -> 24981 | F109: =CEILING('прайс-лист2'!G97*Титульный!$AY$1,Титульный!$AY$3) -> 18975 | G109: =CEILING('прайс-лист2'!H97*Титульный!$AY$1,Титульный!$AY$3) -> 21615 | H109: =CEILING('прайс-лист2'!I97*Титульный!$AY$1,Титульный!$AY$3) -> 14729 | I109: =CEILING('прайс-лист2'!J97*Титульный!$AY$1,Титульный!$AY$3) -> 14905 | J109: =CEILING('прайс-лист2'!K97*Титульный!$AY$1,Титульный!$AY$3) -> 15455 | K109: =CEILING('прайс-лист2'!L97*Титульный!$AY$1,Титульный!$AY$3) -> 16929 | L109: - | M109: =CEILING('прайс-лист2'!N97*Титульный!$AY$1,Титульный!$AY$3) -> 22957 | N109: =CEILING('прайс-лист2'!O97*Титульный!$AY$1,Титульный!$AY$3) -> 24981 | O109: =CEILING('прайс-лист2'!P97*Титульный!$AY$1,Титульный!$AY$3) -> 26983 | P109: =CEILING('прайс-лист2'!Q97*Титульный!$AY$1,Титульный!$AY$3) -> 29931 | Q109: =CEILING('прайс-лист2'!R97*Титульный!$AY$1,Титульный!$AY$3) -> 30569 | R109: =CEILING('прайс-лист2'!S97*Титульный!$AY$1,Титульный!$AY$3) -> 2688 | S109: =CEILING('прайс-лист2'!T97*Титульный!$AY$1,Титульный!$AY$3) -> 5985
A110: Шкаф (560) ДО 2дв 2040х1120 | C110: 1120х580х2040 | D110: =CEILING('прайс-лист2'!E98*Титульный!$AY$1,Титульный!$AY$3) -> 21359 | E110: =CEILING('прайс-лист2'!F98*Титульный!$AY$1,Титульный!$AY$3) -> 30797 | F110: =CEILING('прайс-лист2'!G98*Титульный!$AY$1,Титульный!$AY$3) -> 22789 | G110: =CEILING('прайс-лист2'!H98*Титульный!$AY$1,Титульный!$AY$3) -> 26309 | H110: =CEILING('прайс-лист2'!I98*Титульный!$AY$1,Титульный!$AY$3) -> 17113 | I110: =CEILING('прайс-лист2'!J98*Титульный!$AY$1,Титульный!$AY$3) -> 17355 | J110: =CEILING('прайс-лист2'!K98*Титульный!$AY$1,Титульный!$AY$3) -> 18103 | K110: =CEILING('прайс-лист2'!L98*Титульный!$AY$1,Титульный!$AY$3) -> 20061 | L110: - | M110: =CEILING('прайс-лист2'!N98*Титульный!$AY$1,Титульный!$AY$3) -> 27607 | N110: =CEILING('прайс-лист2'!O98*Титульный!$AY$1,Титульный!$AY$3) -> 29741 | O110: =CEILING('прайс-лист2'!P98*Титульный!$AY$1,Титульный!$AY$3) -> 32953 | P110: =CEILING('прайс-лист2'!Q98*Титульный!$AY$1,Титульный!$AY$3) -> 36913 | Q110: =CEILING('прайс-лист2'!R98*Титульный!$AY$1,Титульный!$AY$3) -> 36627 | R110: =CEILING('прайс-лист2'!S98*Титульный!$AY$1,Титульный!$AY$3) -> 3864 | S110: =CEILING('прайс-лист2'!T98*Титульный!$AY$1,Титульный!$AY$3) -> 7464
A111: Шкаф (560) ДО 2дв 2240х840 | C111: 840х580х2240 | D111: =CEILING('прайс-лист2'!E99*Титульный!$AY$1,Титульный!$AY$3) -> 19001 | E111: =CEILING('прайс-лист2'!F99*Титульный!$AY$1,Титульный!$AY$3) -> 26767 | F111: =CEILING('прайс-лист2'!G99*Титульный!$AY$1,Титульный!$AY$3) -> 20167 | G111: =CEILING('прайс-лист2'!H99*Титульный!$AY$1,Титульный!$AY$3) -> 23071 | H111: =CEILING('прайс-лист2'!I99*Титульный!$AY$1,Титульный!$AY$3) -> 15503 | I111: =CEILING('прайс-лист2'!J99*Титульный!$AY$1,Титульный!$AY$3) -> 15701 | J111: =CEILING('прайс-лист2'!K99*Титульный!$AY$1,Титульный!$AY$3) -> 16317 | K111: =CEILING('прайс-лист2'!L99*Титульный!$AY$1,Титульный!$AY$3) -> 17923 | L111: - | M111: =CEILING('прайс-лист2'!N99*Титульный!$AY$1,Титульный!$AY$3) -> 24523 | N111: =CEILING('прайс-лист2'!O99*Титульный!$AY$1,Титульный!$AY$3) -> 26723 | O111: =CEILING('прайс-лист2'!P99*Титульный!$AY$1,Титульный!$AY$3) -> 28945 | P111: =CEILING('прайс-лист2'!Q99*Титульный!$AY$1,Титульный!$AY$3) -> 32179 | Q111: =CEILING('прайс-лист2'!R99*Титульный!$AY$1,Титульный!$AY$3) -> 32795 | R111: =CEILING('прайс-лист2'!S99*Титульный!$AY$1,Титульный!$AY$3) -> 3046 | S111: =CEILING('прайс-лист2'!T99*Титульный!$AY$1,Титульный!$AY$3) -> 5460
A112: Шкаф (560) ДО 2дв 2240х1120 | C112: 1120х580х2240 | D112: =CEILING('прайс-лист2'!E100*Титульный!$AY$1,Титульный!$AY$3) -> 22673 | E112: =CEILING('прайс-лист2'!F100*Титульный!$AY$1,Титульный!$AY$3) -> 33079 | F112: =CEILING('прайс-лист2'!G100*Титульный!$AY$1,Титульный!$AY$3) -> 24257 | G112: =CEILING('прайс-лист2'!H100*Титульный!$AY$1,Титульный!$AY$3) -> 28129 | H112: =CEILING('прайс-лист2'!I100*Титульный!$AY$1,Титульный!$AY$3) -> 18009 | I112: =CEILING('прайс-лист2'!J100*Титульный!$AY$1,Титульный!$AY$3) -> 18295 | J112: =CEILING('прайс-лист2'!K100*Титульный!$AY$1,Титульный!$AY$3) -> 19087 | K112: =CEILING('прайс-лист2'!L100*Титульный!$AY$1,Титульный!$AY$3) -> 21243 | L112: - | M112: =CEILING('прайс-лист2'!N100*Титульный!$AY$1,Титульный!$AY$3) -> 29515 | N112: =CEILING('прайс-лист2'!O100*Титульный!$AY$1,Титульный!$AY$3) -> 31825 | O112: =CEILING('прайс-лист2'!P100*Титульный!$AY$1,Титульный!$AY$3) -> 35411 | P112: =CEILING('прайс-лист2'!Q100*Титульный!$AY$1,Титульный!$AY$3) -> 39745 | Q112: =CEILING('прайс-лист2'!R100*Титульный!$AY$1,Титульный!$AY$3) -> 39327 | R112: =CEILING('прайс-лист2'!S100*Титульный!$AY$1,Титульный!$AY$3) -> 4380 | S112: =CEILING('прайс-лист2'!T100*Титульный!$AY$1,Титульный!$AY$3) -> 7264
A113: Шкаф (560) ДО 2дв 2ящ 2040х840 | C113: 840х580х2040 | D113: =CEILING('прайс-лист2'!E101*Титульный!$AY$1,Титульный!$AY$3) -> 20064 | E113: =CEILING('прайс-лист2'!F101*Титульный!$AY$1,Титульный!$AY$3) -> 27126 | F113: =CEILING('прайс-лист2'!G101*Титульный!$AY$1,Титульный!$AY$3) -> 21142 | G113: =CEILING('прайс-лист2'!H101*Титульный!$AY$1,Титульный!$AY$3) -> 23760 | H113: =CEILING('прайс-лист2'!I101*Титульный!$AY$1,Титульный!$AY$3) -> 16896 | I113: =CEILING('прайс-лист2'!J101*Титульный!$AY$1,Титульный!$AY$3) -> 17072 | J113: =CEILING('прайс-лист2'!K101*Титульный!$AY$1,Титульный!$AY$3) -> 17622 | K113: =CEILING('прайс-лист2'!L101*Титульный!$AY$1,Титульный!$AY$3) -> 19096 | L113: - | M113: =CEILING('прайс-лист2'!N101*Титульный!$AY$1,Титульный!$AY$3) -> 25586 | N113: =CEILING('прайс-лист2'!O101*Титульный!$AY$1,Титульный!$AY$3) -> 28160 | O113: =CEILING('прайс-лист2'!P101*Титульный!$AY$1,Титульный!$AY$3) -> 29612 | P113: =CEILING('прайс-лист2'!Q101*Титульный!$AY$1,Титульный!$AY$3) -> 32538 | Q113: =CEILING('прайс-лист2'!R101*Титульный!$AY$1,Титульный!$AY$3) -> 33660 | R113: =CEILING('прайс-лист2'!S101*Титульный!$AY$1,Титульный!$AY$3) -> 2688 | S113: =CEILING('прайс-лист2'!T101*Титульный!$AY$1,Титульный!$AY$3) -> 4020
A114: Шкаф (560) ДО 2дв 2ящ 2240х840 | C114: 840х580х2240 | D114: =CEILING('прайс-лист2'!E102*Титульный!$AY$1,Титульный!$AY$3) -> 21146 | E114: =CEILING('прайс-лист2'!F102*Титульный!$AY$1,Титульный!$AY$3) -> 28934 | F114: =CEILING('прайс-лист2'!G102*Титульный!$AY$1,Титульный!$AY$3) -> 22334 | G114: =CEILING('прайс-лист2'!H102*Титульный!$AY$1,Титульный!$AY$3) -> 25216 | H114: =CEILING('прайс-лист2'!I102*Титульный!$AY$1,Титульный!$AY$3) -> 17648 | I114: =CEILING('прайс-лист2'!J102*Титульный!$AY$1,Титульный!$AY$3) -> 17868 | J114: =CEILING('прайс-лист2'!K102*Титульный!$AY$1,Титульный!$AY$3) -> 18462 | K114: =CEILING('прайс-лист2'!L102*Титульный!$AY$1,Титульный!$AY$3) -> 20090 | L114: - | M114: =CEILING('прайс-лист2'!N102*Титульный!$AY$1,Титульный!$AY$3) -> 27152 | N114: =CEILING('прайс-лист2'!O102*Титульный!$AY$1,Титульный!$AY$3) -> 29880 | O114: =CEILING('прайс-лист2'!P102*Титульный!$AY$1,Титульный!$AY$3) -> 31574 | P114: =CEILING('прайс-лист2'!Q102*Титульный!$AY$1,Титульный!$AY$3) -> 34808 | Q114: =CEILING('прайс-лист2'!R102*Титульный!$AY$1,Титульный!$AY$3) -> 35886 | R114: =CEILING('прайс-лист2'!S102*Титульный!$AY$1,Титульный!$AY$3) -> 3046 | S114: =CEILING('прайс-лист2'!T102*Титульный!$AY$1,Титульный!$AY$3) -> 4500
A115: Шкаф (560) Комб 2дв 2040х840 | C115: 840х580х2040 | D115: =CEILING('прайс-лист2'!E103*Титульный!$AY$1,Титульный!$AY$3) -> 20841 | E115: =CEILING('прайс-лист2'!F103*Титульный!$AY$1,Титульный!$AY$3) -> 27903 | F115: =CEILING('прайс-лист2'!G103*Титульный!$AY$1,Титульный!$AY$3) -> 21897 | G115: =CEILING('прайс-лист2'!H103*Титульный!$AY$1,Титульный!$AY$3) -> 24537 | H115: =CEILING('прайс-лист2'!I103*Титульный!$AY$1,Титульный!$AY$3) -> 17651 | I115: =CEILING('прайс-лист2'!J103*Титульный!$AY$1,Титульный!$AY$3) -> 17827 | J115: =CEILING('прайс-лист2'!K103*Титульный!$AY$1,Титульный!$AY$3) -> 18377 | K115: =CEILING('прайс-лист2'!L103*Титульный!$AY$1,Титульный!$AY$3) -> 19851 | L115: - | M115: =CEILING('прайс-лист2'!N103*Титульный!$AY$1,Титульный!$AY$3) -> 25879 | N115: =CEILING('прайс-лист2'!O103*Титульный!$AY$1,Титульный!$AY$3) -> 27903 | O115: =CEILING('прайс-лист2'!P103*Титульный!$AY$1,Титульный!$AY$3) -> 29905 | P115: =CEILING('прайс-лист2'!Q103*Титульный!$AY$1,Титульный!$AY$3) -> 32853 | Q115: =CEILING('прайс-лист2'!R103*Титульный!$AY$1,Титульный!$AY$3) -> 33491 | R115: =CEILING('прайс-лист2'!S103*Титульный!$AY$1,Титульный!$AY$3) -> 2688 | S115: =CEILING('прайс-лист2'!T103*Титульный!$AY$1,Титульный!$AY$3) -> 4980
A116: Шкаф (560) Комб 2дв 2240х840 | C116: 840х580х2240 | D116: =CEILING('прайс-лист2'!E104*Титульный!$AY$1,Титульный!$AY$3) -> 22393 | E116: =CEILING('прайс-лист2'!F104*Титульный!$AY$1,Титульный!$AY$3) -> 30159 | F116: =CEILING('прайс-лист2'!G104*Титульный!$AY$1,Титульный!$AY$3) -> 23559 | G116: =CEILING('прайс-лист2'!H104*Титульный!$AY$1,Титульный!$AY$3) -> 26463 | H116: =CEILING('прайс-лист2'!I104*Титульный!$AY$1,Титульный!$AY$3) -> 18895 | I116: =CEILING('прайс-лист2'!J104*Титульный!$AY$1,Титульный!$AY$3) -> 19093 | J116: =CEILING('прайс-лист2'!K104*Титульный!$AY$1,Титульный!$AY$3) -> 19709 | K116: =CEILING('прайс-лист2'!L104*Титульный!$AY$1,Титульный!$AY$3) -> 21315 | L116: - | M116: =CEILING('прайс-лист2'!N104*Титульный!$AY$1,Титульный!$AY$3) -> 27915 | N116: =CEILING('прайс-лист2'!O104*Титульный!$AY$1,Титульный!$AY$3) -> 30115 | O116: =CEILING('прайс-лист2'!P104*Титульный!$AY$1,Титульный!$AY$3) -> 32337 | P116: =CEILING('прайс-лист2'!Q104*Титульный!$AY$1,Титульный!$AY$3) -> 35571 | Q116: =CEILING('прайс-лист2'!R104*Титульный!$AY$1,Титульный!$AY$3) -> 36187 | R116: =CEILING('прайс-лист2'!S104*Титульный!$AY$1,Титульный!$AY$3) -> 3046 | S116: =CEILING('прайс-лист2'!T104*Титульный!$AY$1,Титульный!$AY$3) -> 5460
A117: Шкаф (560) Комб 2дв 2040х1120 | C117: 1120х580х2040 | D117: =CEILING('прайс-лист2'!E105*Титульный!$AY$1,Титульный!$AY$3) -> 24098 | E117: =CEILING('прайс-лист2'!F105*Титульный!$AY$1,Титульный!$AY$3) -> 33536 | F117: =CEILING('прайс-лист2'!G105*Титульный!$AY$1,Титульный!$AY$3) -> 25528 | G117: =CEILING('прайс-лист2'!H105*Титульный!$AY$1,Титульный!$AY$3) -> 29048 | H117: =CEILING('прайс-лист2'!I105*Титульный!$AY$1,Титульный!$AY$3) -> 19852 | I117: =CEILING('прайс-лист2'!J105*Титульный!$AY$1,Титульный!$AY$3) -> 20094 | J117: =CEILING('прайс-лист2'!K105*Титульный!$AY$1,Титульный!$AY$3) -> 20842 | K117: =CEILING('прайс-лист2'!L105*Титульный!$AY$1,Титульный!$AY$3) -> 22800 | L117: - | M117: =CEILING('прайс-лист2'!N105*Титульный!$AY$1,Титульный!$AY$3) -> 30346 | N117: =CEILING('прайс-лист2'!O105*Титульный!$AY$1,Титульный!$AY$3) -> 32480 | O117: =CEILING('прайс-лист2'!P105*Титульный!$AY$1,Титульный!$AY$3) -> 35692 | P117: =CEILING('прайс-лист2'!Q105*Титульный!$AY$1,Титульный!$AY$3) -> 39652 | Q117: =CEILING('прайс-лист2'!R105*Титульный!$AY$1,Титульный!$AY$3) -> 39366 | R117: =CEILING('прайс-лист2'!S105*Титульный!$AY$1,Титульный!$AY$3) -> 3864 | S117: =CEILING('прайс-лист2'!T105*Титульный!$AY$1,Титульный!$AY$3) -> 7464
A118: Шкаф (560) Комб 2дв 2240х1120 | C118: 1120х580х2240 | D118: =CEILING('прайс-лист2'!E106*Титульный!$AY$1,Титульный!$AY$3) -> 25830 | E118: =CEILING('прайс-лист2'!F106*Титульный!$AY$1,Титульный!$AY$3) -> 36236 | F118: =CEILING('прайс-лист2'!G106*Титульный!$AY$1,Титульный!$AY$3) -> 27414 | G118: =CEILING('прайс-лист2'!H106*Титульный!$AY$1,Титульный!$AY$3) -> 31286 | H118: =CEILING('прайс-лист2'!I106*Титульный!$AY$1,Титульный!$AY$3) -> 21166 | I118: =CEILING('прайс-лист2'!J106*Титульный!$AY$1,Титульный!$AY$3) -> 21452 | J118: =CEILING('прайс-лист2'!K106*Титульный!$AY$1,Титульный!$AY$3) -> 22244 | K118: =CEILING('прайс-лист2'!L106*Титульный!$AY$1,Титульный!$AY$3) -> 24400 | L118: - | M118: =CEILING('прайс-лист2'!N106*Титульный!$AY$1,Титульный!$AY$3) -> 32672 | N118: =CEILING('прайс-лист2'!O106*Титульный!$AY$1,Титульный!$AY$3) -> 34982 | O118: =CEILING('прайс-лист2'!P106*Титульный!$AY$1,Титульный!$AY$3) -> 38568 | P118: =CEILING('прайс-лист2'!Q106*Титульный!$AY$1,Титульный!$AY$3) -> 42902 | Q118: =CEILING('прайс-лист2'!R106*Титульный!$AY$1,Титульный!$AY$3) -> 42484 | R118: =CEILING('прайс-лист2'!S106*Титульный!$AY$1,Титульный!$AY$3) -> 4380 | S118: =CEILING('прайс-лист2'!T106*Титульный!$AY$1,Титульный!$AY$3) -> 7264
A119: Шкаф (560) Комб 3дв 2040х1260 | C119: 1260х580х2040 | D119: =CEILING('прайс-лист2'!E107*Титульный!$AY$1,Титульный!$AY$3) -> 27417 | E119: =CEILING('прайс-лист2'!F107*Титульный!$AY$1,Титульный!$AY$3) -> 38010 | F119: =CEILING('прайс-лист2'!G107*Титульный!$AY$1,Титульный!$AY$3) -> 29001 | G119: =CEILING('прайс-лист2'!H107*Титульный!$AY$1,Титульный!$AY$3) -> 32961 | H119: =CEILING('прайс-лист2'!I107*Титульный!$AY$1,Титульный!$AY$3) -> 22632 | I119: =CEILING('прайс-лист2'!J107*Титульный!$AY$1,Титульный!$AY$3) -> 22896 | J119: =CEILING('прайс-лист2'!K107*Титульный!$AY$1,Титульный!$AY$3) -> 23721 | K119: =CEILING('прайс-лист2'!L107*Титульный!$AY$1,Титульный!$AY$3) -> 25932 | L119: - | M119: =CEILING('прайс-лист2'!N107*Титульный!$AY$1,Титульный!$AY$3) -> 34974 | N119: =CEILING('прайс-лист2'!O107*Титульный!$AY$1,Титульный!$AY$3) -> 38010 | O119: =CEILING('прайс-лист2'!P107*Титульный!$AY$1,Титульный!$AY$3) -> 41013 | P119: =CEILING('прайс-лист2'!Q107*Титульный!$AY$1,Титульный!$AY$3) -> 45435 | Q119: =CEILING('прайс-лист2'!R107*Титульный!$AY$1,Титульный!$AY$3) -> 46392 | R119: =CEILING('прайс-лист2'!S107*Титульный!$AY$1,Титульный!$AY$3) -> 1344 | S119: =CEILING('прайс-лист2'!T107*Титульный!$AY$1,Титульный!$AY$3) -> 2490
A120: Шкаф (560) Комб 3дв 2040х1400 | C120: 1400х580х2040 | D120: =CEILING('прайс-лист2'!E108*Титульный!$AY$1,Титульный!$AY$3) -> 29076 | E120: =CEILING('прайс-лист2'!F108*Титульный!$AY$1,Титульный!$AY$3) -> 40857 | F120: =CEILING('прайс-лист2'!G108*Титульный!$AY$1,Титульный!$AY$3) -> 30847 | G120: =CEILING('прайс-лист2'!H108*Титульный!$AY$1,Титульный!$AY$3) -> 35247 | H120: =CEILING('прайс-лист2'!I108*Титульный!$AY$1,Титульный!$AY$3) -> 23763 | I120: =CEILING('прайс-лист2'!J108*Титульный!$AY$1,Титульный!$AY$3) -> 24060 | J120: =CEILING('прайс-лист2'!K108*Титульный!$AY$1,Титульный!$AY$3) -> 24984 | K120: =CEILING('прайс-лист2'!L108*Титульный!$AY$1,Титульный!$AY$3) -> 27437 | L120: - | M120: =CEILING('прайс-лист2'!N108*Титульный!$AY$1,Титульный!$AY$3) -> 37238 | N120: =CEILING('прайс-лист2'!O108*Титульный!$AY$1,Титульный!$AY$3) -> 40329 | O120: =CEILING('прайс-лист2'!P108*Титульный!$AY$1,Титульный!$AY$3) -> 43937 | P120: =CEILING('прайс-лист2'!Q108*Титульный!$AY$1,Титульный!$AY$3) -> 48865 | Q120: =CEILING('прайс-лист2'!R108*Титульный!$AY$1,Титульный!$AY$3) -> 49360 | R120: =CEILING('прайс-лист2'!S108*Титульный!$AY$1,Титульный!$AY$3) -> 1932 | S120: =CEILING('прайс-лист2'!T108*Титульный!$AY$1,Титульный!$AY$3) -> 3314
A121: Шкаф (560) Комб 3дв 2040х1680 | C121: 1680х580х2040 | D121: =CEILING('прайс-лист2'!E109*Титульный!$AY$1,Титульный!$AY$3) -> 32598 | E121: =CEILING('прайс-лист2'!F109*Титульный!$AY$1,Титульный!$AY$3) -> 46755 | F121: =CEILING('прайс-лист2'!G109*Титульный!$AY$1,Титульный!$AY$3) -> 34743 | G121: =CEILING('прайс-лист2'!H109*Титульный!$AY$1,Титульный!$AY$3) -> 40023 | H121: =CEILING('прайс-лист2'!I109*Титульный!$AY$1,Титульный!$AY$3) -> 26229 | I121: =CEILING('прайс-лист2'!J109*Титульный!$AY$1,Титульный!$AY$3) -> 26592 | J121: =CEILING('прайс-лист2'!K109*Титульный!$AY$1,Титульный!$AY$3) -> 27714 | K121: =CEILING('прайс-лист2'!L109*Титульный!$AY$1,Титульный!$AY$3) -> 30651 | L121: - | M121: =CEILING('прайс-лист2'!N109*Титульный!$AY$1,Титульный!$AY$3) -> 41970 | N121: =CEILING('прайс-лист2'!O109*Титульный!$AY$1,Титульный!$AY$3) -> 45171 | O121: =CEILING('прайс-лист2'!P109*Титульный!$AY$1,Титульный!$AY$3) -> 49989 | P121: =CEILING('прайс-лист2'!Q109*Титульный!$AY$1,Титульный!$AY$3) -> 55929 | Q121: =CEILING('прайс-лист2'!R109*Титульный!$AY$1,Титульный!$AY$3) -> 55500 | R121: =CEILING('прайс-лист2'!S109*Титульный!$AY$1,Титульный!$AY$3) -> 1932 | S121: =CEILING('прайс-лист2'!T109*Титульный!$AY$1,Титульный!$AY$3) -> 3314
A122: Шкаф (560) Комб 3дв 2240х1260 | C122: 1260х580х2240 | D122: =CEILING('прайс-лист2'!E110*Титульный!$AY$1,Титульный!$AY$3) -> 29379 | E122: =CEILING('прайс-лист2'!F110*Титульный!$AY$1,Титульный!$AY$3) -> 41028 | F122: =CEILING('прайс-лист2'!G110*Титульный!$AY$1,Титульный!$AY$3) -> 31128 | G122: =CEILING('прайс-лист2'!H110*Титульный!$AY$1,Титульный!$AY$3) -> 35484 | H122: =CEILING('прайс-лист2'!I110*Титульный!$AY$1,Титульный!$AY$3) -> 24132 | I122: =CEILING('прайс-лист2'!J110*Титульный!$AY$1,Титульный!$AY$3) -> 24429 | J122: =CEILING('прайс-лист2'!K110*Титульный!$AY$1,Титульный!$AY$3) -> 25353 | K122: =CEILING('прайс-лист2'!L110*Титульный!$AY$1,Титульный!$AY$3) -> 27762 | L122: - | M122: =CEILING('прайс-лист2'!N110*Титульный!$AY$1,Титульный!$AY$3) -> 37662 | N122: =CEILING('прайс-лист2'!O110*Титульный!$AY$1,Титульный!$AY$3) -> 40962 | O122: =CEILING('прайс-лист2'!P110*Титульный!$AY$1,Титульный!$AY$3) -> 44295 | P122: =CEILING('прайс-лист2'!Q110*Титульный!$AY$1,Титульный!$AY$3) -> 49146 | Q122: =CEILING('прайс-лист2'!R110*Титульный!$AY$1,Титульный!$AY$3) -> 50070 | R122: =CEILING('прайс-лист2'!S110*Титульный!$AY$1,Титульный!$AY$3) -> 1523 | S122: =CEILING('прайс-лист2'!T110*Титульный!$AY$1,Титульный!$AY$3) -> 2730
A123: Шкаф (560) Комб 3дв 2240х1400 | C123: 1400х580х2240 | D123: =CEILING('прайс-лист2'!E111*Титульный!$AY$1,Титульный!$AY$3) -> 31138 | E123: =CEILING('прайс-лист2'!F111*Титульный!$AY$1,Титульный!$AY$3) -> 44107 | F123: =CEILING('прайс-лист2'!G111*Титульный!$AY$1,Титульный!$AY$3) -> 33096 | G123: =CEILING('прайс-лист2'!H111*Титульный!$AY$1,Титульный!$AY$3) -> 37936 | H123: =CEILING('прайс-лист2'!I111*Титульный!$AY$1,Титульный!$AY$3) -> 25308 | I123: =CEILING('прайс-лист2'!J111*Титульный!$AY$1,Титульный!$AY$3) -> 25649 | J123: =CEILING('прайс-лист2'!K111*Титульный!$AY$1,Титульный!$AY$3) -> 26661 | K123: =CEILING('прайс-лист2'!L111*Титульный!$AY$1,Титульный!$AY$3) -> 29345 | L123: - | M123: =CEILING('прайс-лист2'!N111*Титульный!$AY$1,Титульный!$AY$3) -> 40081 | N123: =CEILING('прайс-лист2'!O111*Титульный!$AY$1,Титульный!$AY$3) -> 43436 | O123: =CEILING('прайс-лист2'!P111*Титульный!$AY$1,Титульный!$AY$3) -> 47451 | P123: =CEILING('прайс-лист2'!Q111*Титульный!$AY$1,Титульный!$AY$3) -> 52852 | Q123: =CEILING('прайс-лист2'!R111*Титульный!$AY$1,Титульный!$AY$3) -> 53259 | R123: =CEILING('прайс-лист2'!S111*Титульный!$AY$1,Титульный!$AY$3) -> 2190 | S123: =CEILING('прайс-лист2'!T111*Титульный!$AY$1,Титульный!$AY$3) -> 3632
A124: Шкаф (560) Комб 3дв 2240х1680 | C124: 1680х580х2240 | D124: =CEILING('прайс-лист2'!E112*Титульный!$AY$1,Титульный!$AY$3) -> 35166 | E124: =CEILING('прайс-лист2'!F112*Титульный!$AY$1,Титульный!$AY$3) -> 50775 | F124: =CEILING('прайс-лист2'!G112*Титульный!$AY$1,Титульный!$AY$3) -> 37542 | G124: =CEILING('прайс-лист2'!H112*Титульный!$AY$1,Титульный!$AY$3) -> 43350 | H124: =CEILING('прайс-лист2'!I112*Титульный!$AY$1,Титульный!$AY$3) -> 28170 | I124: =CEILING('прайс-лист2'!J112*Титульный!$AY$1,Титульный!$AY$3) -> 28599 | J124: =CEILING('прайс-лист2'!K112*Титульный!$AY$1,Титульный!$AY$3) -> 29787 | K124: =CEILING('прайс-лист2'!L112*Титульный!$AY$1,Титульный!$AY$3) -> 33021 | L124: - | M124: =CEILING('прайс-лист2'!N112*Титульный!$AY$1,Титульный!$AY$3) -> 45429 | N124: =CEILING('прайс-лист2'!O112*Титульный!$AY$1,Титульный!$AY$3) -> 48894 | O124: =CEILING('прайс-лист2'!P112*Титульный!$AY$1,Титульный!$AY$3) -> 54273 | P124: =CEILING('прайс-лист2'!Q112*Титульный!$AY$1,Титульный!$AY$3) -> 60774 | Q124: =CEILING('прайс-лист2'!R112*Титульный!$AY$1,Титульный!$AY$3) -> 60147 | R124: =CEILING('прайс-лист2'!S112*Титульный!$AY$1,Титульный!$AY$3) -> 2190 | S124: =CEILING('прайс-лист2'!T112*Титульный!$AY$1,Титульный!$AY$3) -> 3632
A125: Шкаф (560) Комб 3дв 2ящ 2040х1400 | C125: 1400х580х2040 | D125: =CEILING('прайс-лист2'!E113*Титульный!$AY$1,Титульный!$AY$3) -> 32683 | E125: =CEILING('прайс-лист2'!F113*Титульный!$AY$1,Титульный!$AY$3) -> 44464 | F125: =CEILING('прайс-лист2'!G113*Титульный!$AY$1,Титульный!$AY$3) -> 34454 | G125: =CEILING('прайс-лист2'!H113*Титульный!$AY$1,Титульный!$AY$3) -> 38865 | H125: =CEILING('прайс-лист2'!I113*Титульный!$AY$1,Титульный!$AY$3) -> 27370 | I125: =CEILING('прайс-лист2'!J113*Титульный!$AY$1,Титульный!$AY$3) -> 27667 | J125: =CEILING('прайс-лист2'!K113*Титульный!$AY$1,Титульный!$AY$3) -> 28602 | K125: =CEILING('прайс-лист2'!L113*Титульный!$AY$1,Титульный!$AY$3) -> 31033 | L125: - | M125: =CEILING('прайс-лист2'!N113*Титульный!$AY$1,Титульный!$AY$3) -> 41252 | N125: =CEILING('прайс-лист2'!O113*Титульный!$AY$1,Титульный!$AY$3) -> 44816 | O125: =CEILING('прайс-лист2'!P113*Титульный!$AY$1,Титульный!$AY$3) -> 47962 | P125: =CEILING('прайс-лист2'!Q113*Титульный!$AY$1,Титульный!$AY$3) -> 52868 | Q125: =CEILING('прайс-лист2'!R113*Титульный!$AY$1,Титульный!$AY$3) -> 53946 | R125: =CEILING('прайс-лист2'!S113*Титульный!$AY$1,Титульный!$AY$3) -> 1932 | S125: =CEILING('прайс-лист2'!T113*Титульный!$AY$1,Титульный!$AY$3) -> 2677
A126: Шкаф (560) Комб 3дв 2ящ 2040х1680 | C126: 1680х580х2040 | D126: =CEILING('прайс-лист2'!E114*Титульный!$AY$1,Титульный!$AY$3) -> 35963 | E126: =CEILING('прайс-лист2'!F114*Титульный!$AY$1,Титульный!$AY$3) -> 50120 | F126: =CEILING('прайс-лист2'!G114*Титульный!$AY$1,Титульный!$AY$3) -> 38108 | G126: =CEILING('прайс-лист2'!H114*Титульный!$AY$1,Титульный!$AY$3) -> 43399 | H126: =CEILING('прайс-лист2'!I114*Титульный!$AY$1,Титульный!$AY$3) -> 29594 | I126: =CEILING('прайс-лист2'!J114*Титульный!$AY$1,Титульный!$AY$3) -> 29957 | J126: =CEILING('прайс-лист2'!K114*Титульный!$AY$1,Титульный!$AY$3) -> 31090 | K126: =CEILING('прайс-лист2'!L114*Титульный!$AY$1,Титульный!$AY$3) -> 34005 | L126: - | M126: =CEILING('прайс-лист2'!N114*Титульный!$AY$1,Титульный!$AY$3) -> 45742 | N126: =CEILING('прайс-лист2'!O114*Титульный!$AY$1,Титульный!$AY$3) -> 49416 | O126: =CEILING('прайс-лист2'!P114*Титульный!$AY$1,Титульный!$AY$3) -> 53772 | P126: =CEILING('прайс-лист2'!Q114*Титульный!$AY$1,Титульный!$AY$3) -> 59690 | Q126: =CEILING('прайс-лист2'!R114*Титульный!$AY$1,Титульный!$AY$3) -> 59844 | R126: =CEILING('прайс-лист2'!S114*Титульный!$AY$1,Титульный!$AY$3) -> 1932 | S126: =CEILING('прайс-лист2'!T114*Титульный!$AY$1,Титульный!$AY$3) -> 2677
A127: Шкаф (560) Комб 3дв 2ящ 2240х1400 | C127: 1400х580х2240 | D127: =CEILING('прайс-лист2'!E119*Титульный!$AY$1,Титульный!$AY$3) -> 34990 | E127: =CEILING('прайс-лист2'!F119*Титульный!$AY$1,Титульный!$AY$3) -> 47948 | F127: =CEILING('прайс-лист2'!G119*Титульный!$AY$1,Титульный!$AY$3) -> 36948 | G127: =CEILING('прайс-лист2'!H119*Титульный!$AY$1,Титульный!$AY$3) -> 41799 | H127: =CEILING('прайс-лист2'!I119*Титульный!$AY$1,Титульный!$AY$3) -> 29171 | I127: =CEILING('прайс-лист2'!J119*Титульный!$AY$1,Титульный!$AY$3) -> 29501 | J127: =CEILING('прайс-лист2'!K119*Титульный!$AY$1,Титульный!$AY$3) -> 30535 | K127: =CEILING('прайс-лист2'!L119*Титульный!$AY$1,Титульный!$AY$3) -> 33197 | L127: - | M127: =CEILING('прайс-лист2'!N119*Титульный!$AY$1,Титульный!$AY$3) -> 44340 | N127: =CEILING('прайс-лист2'!O119*Титульный!$AY$1,Титульный!$AY$3) -> 48157 | O127: =CEILING('прайс-лист2'!P119*Титульный!$AY$1,Титульный!$AY$3) -> 51721 | P127: =CEILING('прайс-лист2'!Q119*Титульный!$AY$1,Титульный!$AY$3) -> 57100 | Q127: =CEILING('прайс-лист2'!R119*Титульный!$AY$1,Титульный!$AY$3) -> 58090 | R127: =CEILING('прайс-лист2'!S119*Титульный!$AY$1,Титульный!$AY$3) -> 2190 | S127: =CEILING('прайс-лист2'!T119*Титульный!$AY$1,Титульный!$AY$3) -> 2995
A128: Шкаф (560) Комб 3дв 2ящ 2240х1680 | C128: 1680х580х2240 | D128: =CEILING('прайс-лист2'!E120*Титульный!$AY$1,Титульный!$AY$3) -> 38513 | E128: =CEILING('прайс-лист2'!F120*Титульный!$AY$1,Титульный!$AY$3) -> 54111 | F128: =CEILING('прайс-лист2'!G120*Титульный!$AY$1,Титульный!$AY$3) -> 40889 | G128: =CEILING('прайс-лист2'!H120*Титульный!$AY$1,Титульный!$AY$3) -> 46708 | H128: =CEILING('прайс-лист2'!I120*Титульный!$AY$1,Титульный!$AY$3) -> 31528 | I128: =CEILING('прайс-лист2'!J120*Титульный!$AY$1,Титульный!$AY$3) -> 31946 | J128: =CEILING('прайс-лист2'!K120*Титульный!$AY$1,Титульный!$AY$3) -> 33156 | K128: =CEILING('прайс-лист2'!L120*Титульный!$AY$1,Титульный!$AY$3) -> 36368 | L128: - | M128: =CEILING('прайс-лист2'!N120*Титульный!$AY$1,Титульный!$AY$3) -> 49183 | N128: =CEILING('прайс-лист2'!O120*Титульный!$AY$1,Титульный!$AY$3) -> 53110 | O128: =CEILING('прайс-лист2'!P120*Титульный!$AY$1,Титульный!$AY$3) -> 58038 | P128: =CEILING('прайс-лист2'!Q120*Титульный!$AY$1,Титульный!$AY$3) -> 64517 | Q128: =CEILING('прайс-лист2'!R120*Титульный!$AY$1,Титульный!$AY$3) -> 64473 | R128: =CEILING('прайс-лист2'!S120*Титульный!$AY$1,Титульный!$AY$3) -> 2190 | S128: =CEILING('прайс-лист2'!T120*Титульный!$AY$1,Титульный!$AY$3) -> 2995
A129: Шкаф (560) Комб 4дв 2040х1960 | C129: 1960х580х2040 | D129: =CEILING('прайс-лист2'!E121*Титульный!$AY$1,Титульный!$AY$3) -> 40754 | E129: =CEILING('прайс-лист2'!F121*Титульный!$AY$1,Титульный!$AY$3) -> 57254 | F129: =CEILING('прайс-лист2'!G121*Титульный!$AY$1,Титульный!$AY$3) -> 43240 | G129: =CEILING('прайс-лист2'!H121*Титульный!$AY$1,Титульный!$AY$3) -> 49400 | H129: =CEILING('прайс-лист2'!I121*Титульный!$AY$1,Титульный!$AY$3) -> 33318 | I129: =CEILING('прайс-лист2'!J121*Титульный!$AY$1,Титульный!$AY$3) -> 33736 | J129: =CEILING('прайс-лист2'!K121*Титульный!$AY$1,Титульный!$AY$3) -> 35034 | K129: =CEILING('прайс-лист2'!L121*Титульный!$AY$1,Титульный!$AY$3) -> 38466 | L129: - | M129: =CEILING('прайс-лист2'!N121*Титульный!$AY$1,Титульный!$AY$3) -> 52040 | N129: =CEILING('прайс-лист2'!O121*Титульный!$AY$1,Титульный!$AY$3) -> 56198 | O129: =CEILING('прайс-лист2'!P121*Титульный!$AY$1,Титульный!$AY$3) -> 61412 | P129: =CEILING('прайс-лист2'!Q121*Титульный!$AY$1,Титульный!$AY$3) -> 68320 | Q129: =CEILING('прайс-лист2'!R121*Титульный!$AY$1,Титульный!$AY$3) -> 68672 | R129: =CEILING('прайс-лист2'!S121*Титульный!$AY$1,Титульный!$AY$3) -> 2688 | S129: =CEILING('прайс-лист2'!T121*Титульный!$AY$1,Титульный!$AY$3) -> 4980
A130: Шкаф (560) Комб 4дв 2240х1960 | C130: 1960х580х2240 | D130: =CEILING('прайс-лист2'!E122*Титульный!$AY$1,Титульный!$AY$3) -> 44047 | E130: =CEILING('прайс-лист2'!F122*Титульный!$AY$1,Титульный!$AY$3) -> 62219 | F130: =CEILING('прайс-лист2'!G122*Титульный!$AY$1,Титульный!$AY$3) -> 46797 | G130: =CEILING('прайс-лист2'!H122*Титульный!$AY$1,Титульный!$AY$3) -> 53573 | H130: =CEILING('прайс-лист2'!I122*Титульный!$AY$1,Титульный!$AY$3) -> 35885 | I130: =CEILING('прайс-лист2'!J122*Титульный!$AY$1,Титульный!$AY$3) -> 36369 | J130: =CEILING('прайс-лист2'!K122*Титульный!$AY$1,Титульный!$AY$3) -> 37777 | K130: =CEILING('прайс-лист2'!L122*Титульный!$AY$1,Титульный!$AY$3) -> 41539 | L130: - | M130: =CEILING('прайс-лист2'!N122*Титульный!$AY$1,Титульный!$AY$3) -> 56411 | N130: =CEILING('прайс-лист2'!O122*Титульный!$AY$1,Титульный!$AY$3) -> 60921 | O130: =CEILING('прайс-лист2'!P122*Титульный!$AY$1,Титульный!$AY$3) -> 66729 | P130: =CEILING('прайс-лист2'!Q122*Титульный!$AY$1,Титульный!$AY$3) -> 74297 | Q130: =CEILING('прайс-лист2'!R122*Титульный!$AY$1,Титульный!$AY$3) -> 74495 | R130: =CEILING('прайс-лист2'!S122*Титульный!$AY$1,Титульный!$AY$3) -> 3046 | S130: =CEILING('прайс-лист2'!T122*Титульный!$AY$1,Титульный!$AY$3) -> 5460
A131: Шкаф (560) Комб 4дв 2ящ 2040х1960 | C131: 1960х580х2040 | D131: =CEILING('прайс-лист2'!E123*Титульный!$AY$1,Титульный!$AY$3) -> 41676 | E131: =CEILING('прайс-лист2'!F123*Титульный!$AY$1,Титульный!$AY$3) -> 58176 | F131: =CEILING('прайс-лист2'!G123*Титульный!$AY$1,Титульный!$AY$3) -> 44184 | G131: =CEILING('прайс-лист2'!H123*Титульный!$AY$1,Титульный!$AY$3) -> 50322 | H131: =CEILING('прайс-лист2'!I123*Титульный!$AY$1,Титульный!$AY$3) -> 34262 | I131: =CEILING('прайс-лист2'!J123*Титульный!$AY$1,Титульный!$AY$3) -> 34680 | J131: =CEILING('прайс-лист2'!K123*Титульный!$AY$1,Титульный!$AY$3) -> 35978 | K131: =CEILING('прайс-лист2'!L123*Титульный!$AY$1,Титульный!$AY$3) -> 39410 | L131: - | M131: =CEILING('прайс-лист2'!N123*Титульный!$AY$1,Титульный!$AY$3) -> 53446 | N131: =CEILING('прайс-лист2'!O123*Титульный!$AY$1,Титульный!$AY$3) -> 58154 | O131: =CEILING('прайс-лист2'!P123*Титульный!$AY$1,Титульный!$AY$3) -> 62818 | P131: =CEILING('прайс-лист2'!Q123*Титульный!$AY$1,Титульный!$AY$3) -> 69704 | Q131: =CEILING('прайс-лист2'!R123*Титульный!$AY$1,Титульный!$AY$3) -> 70540 | R131: =CEILING('прайс-лист2'!S123*Титульный!$AY$1,Титульный!$AY$3) -> 2688 | S131: =CEILING('прайс-лист2'!T123*Титульный!$AY$1,Титульный!$AY$3) -> 4020
A132: Шкаф (560) Комб 4дв 2ящ 2240х1960 | C132: 1960х580х2240 | D132: =CEILING('прайс-лист2'!E124*Титульный!$AY$1,Титульный!$AY$3) -> 44682 | E132: =CEILING('прайс-лист2'!F124*Титульный!$AY$1,Титульный!$AY$3) -> 62876 | F132: =CEILING('прайс-лист2'!G124*Титульный!$AY$1,Титульный!$AY$3) -> 47454 | G132: =CEILING('прайс-лист2'!H124*Титульный!$AY$1,Титульный!$AY$3) -> 54208 | H132: =CEILING('прайс-лист2'!I124*Титульный!$AY$1,Титульный!$AY$3) -> 36520 | I132: =CEILING('прайс-лист2'!J124*Титульный!$AY$1,Титульный!$AY$3) -> 37026 | J132: =CEILING('прайс-лист2'!K124*Титульный!$AY$1,Титульный!$AY$3) -> 38412 | K132: =CEILING('прайс-лист2'!L124*Титульный!$AY$1,Титульный!$AY$3) -> 42196 | L132: - | M132: =CEILING('прайс-лист2'!N124*Титульный!$AY$1,Титульный!$AY$3) -> 57530 | N132: =CEILING('прайс-лист2'!O124*Титульный!$AY$1,Титульный!$AY$3) -> 62568 | O132: =CEILING('прайс-лист2'!P124*Титульный!$AY$1,Титульный!$AY$3) -> 67848 | P132: =CEILING('прайс-лист2'!Q124*Титульный!$AY$1,Титульный!$AY$3) -> 75416 | Q132: =CEILING('прайс-лист2'!R124*Титульный!$AY$1,Титульный!$AY$3) -> 76076 | R132: =CEILING('прайс-лист2'!S124*Титульный!$AY$1,Титульный!$AY$3) -> 3046 | S132: =CEILING('прайс-лист2'!T124*Титульный!$AY$1,Титульный!$AY$3) -> 4500
A133: Внимание!!! Для наборов мебели "Марго" использовать только накладные зеркала
A134: Шкафы глубиной 560мм
A135: Наименование | B135: Эскиз | C135: Габариты, ШхГхВ мм. | D135: МДФ фасады | H135: Марго16 | M135: UV-лак | O135: ТСС | Q135: ТСС сборный | R135: Стоимость зеркал
D136: 1 ЦК | E136: 1 ЦК + патина | F136: 2 ЦК | G136: 3 ЦК | H136: 1 ц.к. | I136: 2 ц.к. | J136: 3 ц.к. | K136: 4 ц.к. | L136: 5 ц.к. | M136: UV-лак кромка ABC/AL кромка | N136: кромка 3D | O136: 1 ЦК | P136: 2 ЦК | R136: Зеркало в рамке** | S136: Зеркало накладное*
A137: Шкаф (560) Торцевой 2040х420 лев./пр | C137: 420х580х2040 | D137: =CEILING('прайс-лист2'!E125*Титульный!$AY$1,Титульный!$AY$3) -> 15403 | E137: =CEILING('прайс-лист2'!F125*Титульный!$AY$1,Титульный!$AY$3) -> 22190 | F137: =CEILING('прайс-лист2'!G125*Титульный!$AY$1,Титульный!$AY$3) -> 16426 | G137: =CEILING('прайс-лист2'!H125*Титульный!$AY$1,Титульный!$AY$3) -> 18956 | H137: =CEILING('прайс-лист2'!I125*Титульный!$AY$1,Титульный!$AY$3) -> 12345 | I137: =CEILING('прайс-лист2'!J125*Титульный!$AY$1,Титульный!$AY$3) -> 12532 | J137: =CEILING('прайс-лист2'!K125*Титульный!$AY$1,Титульный!$AY$3) -> 13049 | K137: =CEILING('прайс-лист2'!L125*Титульный!$AY$1,Титульный!$AY$3) -> 14468 | L137: - | M137: =CEILING('прайс-лист2'!N125*Титульный!$AY$1,Титульный!$AY$3) -> 20320 | N137: =CEILING('прайс-лист2'!O125*Титульный!$AY$1,Титульный!$AY$3) -> 22322 | O137: =CEILING('прайс-лист2'!P125*Титульный!$AY$1,Титульный!$AY$3) -> 24159 | P137: =CEILING('прайс-лист2'!Q125*Титульный!$AY$1,Титульный!$AY$3) -> 26997 | Q137: =CEILING('прайс-лист2'!R125*Титульный!$AY$1,Титульный!$AY$3) -> 27789 | R137: - | S137: -
A138: Шкаф (560) Торцевой 2240х420 лев./пр | C138: 420х580х2240 | D138: =CEILING('прайс-лист2'!E126*Титульный!$AY$1,Титульный!$AY$3) -> 16637 | E138: =CEILING('прайс-лист2'!F126*Титульный!$AY$1,Титульный!$AY$3) -> 24106 | F138: =CEILING('прайс-лист2'!G126*Титульный!$AY$1,Титульный!$AY$3) -> 17770 | G138: =CEILING('прайс-лист2'!H126*Титульный!$AY$1,Титульный!$AY$3) -> 20553 | H138: =CEILING('прайс-лист2'!I126*Титульный!$AY$1,Титульный!$AY$3) -> 13293 | I138: =CEILING('прайс-лист2'!J126*Титульный!$AY$1,Титульный!$AY$3) -> 13480 | J138: =CEILING('прайс-лист2'!K126*Титульный!$AY$1,Титульный!$AY$3) -> 14063 | K138: =CEILING('прайс-лист2'!L126*Титульный!$AY$1,Титульный!$AY$3) -> 15614 | L138: - | M138: =CEILING('прайс-лист2'!N126*Титульный!$AY$1,Титульный!$AY$3) -> 22016 | N138: =CEILING('прайс-лист2'!O126*Титульный!$AY$1,Титульный!$AY$3) -> 24194 | O138: =CEILING('прайс-лист2'!P126*Титульный!$AY$1,Титульный!$AY$3) -> 26251 | P138: =CEILING('прайс-лист2'!Q126*Титульный!$AY$1,Титульный!$AY$3) -> 29364 | Q138: =CEILING('прайс-лист2'!R126*Титульный!$AY$1,Титульный!$AY$3) -> 30134 | R138: - | S138: -
A139: Шкафы антресольные и стеллажи (340) (420)
A140: Шкаф (340) антр 1 дв. 400х1200 | C140: 1200х360х400 | D140: =CEILING('прайс-лист2'!E128*Титульный!$AY$1,Титульный!$AY$3) -> 5943 | E140: =CEILING('прайс-лист2'!F128*Титульный!$AY$1,Титульный!$AY$3) -> 7956 | F140: =CEILING('прайс-лист2'!G128*Титульный!$AY$1,Титульный!$AY$3) -> 6251 | G140: =CEILING('прайс-лист2'!H128*Титульный!$AY$1,Титульный!$AY$3) -> 6999 | H140: =CEILING('прайс-лист2'!I128*Титульный!$AY$1,Титульный!$AY$3) -> 5030 | I140: =CEILING('прайс-лист2'!J128*Титульный!$AY$1,Титульный!$AY$3) -> 5085 | J140: =CEILING('прайс-лист2'!K128*Титульный!$AY$1,Титульный!$AY$3) -> 5239 | K140: =CEILING('прайс-лист2'!L128*Титульный!$AY$1,Титульный!$AY$3) -> 5668 | L140: - | M140: =CEILING('прайс-лист2'!N128*Титульный!$AY$1,Титульный!$AY$3) -> 7472 | N140: =CEILING('прайс-лист2'!O128*Титульный!$AY$1,Титульный!$AY$3) -> 8132 | O140: =CEILING('прайс-лист2'!P128*Титульный!$AY$1,Титульный!$AY$3) -> 8605 | P140: =CEILING('прайс-лист2'!Q128*Титульный!$AY$1,Титульный!$AY$3) -> 9452 | Q140: =CEILING('прайс-лист2'!R128*Титульный!$AY$1,Титульный!$AY$3) -> 9870 | R140: - | S140: -
A141: Шкаф (340) антр 1 дв. 400х1260 | C141: 1260х360х400 | D141: =CEILING('прайс-лист2'!E129*Титульный!$AY$1,Титульный!$AY$3) -> 6052 | E141: =CEILING('прайс-лист2'!F129*Титульный!$AY$1,Титульный!$AY$3) -> 8175 | F141: =CEILING('прайс-лист2'!G129*Титульный!$AY$1,Титульный!$AY$3) -> 6371 | G141: =CEILING('прайс-лист2'!H129*Титульный!$AY$1,Титульный!$AY$3) -> 7163 | H141: =CEILING('прайс-лист2'!I129*Титульный!$AY$1,Титульный!$AY$3) -> 5095 | I141: =CEILING('прайс-лист2'!J129*Титульный!$AY$1,Титульный!$AY$3) -> 5150 | J141: =CEILING('прайс-лист2'!K129*Титульный!$AY$1,Титульный!$AY$3) -> 5315 | K141: =CEILING('прайс-лист2'!L129*Титульный!$AY$1,Титульный!$AY$3) -> 5755 | L141: - | M141: =CEILING('прайс-лист2'!N129*Титульный!$AY$1,Титульный!$AY$3) -> 7647 | N141: =CEILING('прайс-лист2'!O129*Титульный!$AY$1,Титульный!$AY$3) -> 8340 | O141: =CEILING('прайс-лист2'!P129*Титульный!$AY$1,Титульный!$AY$3) -> 8846 | P141: =CEILING('прайс-лист2'!Q129*Титульный!$AY$1,Титульный!$AY$3) -> 9726 | Q141: =CEILING('прайс-лист2'!R129*Титульный!$AY$1,Титульный!$AY$3) -> 10144 | R141: - | S141: -
A142: Шкаф (340) антр 1 дв. 400х840 | C142: 840х360х400 | D142: =CEILING('прайс-лист2'!E130*Титульный!$AY$1,Титульный!$AY$3) -> 4851 | E142: =CEILING('прайс-лист2'!F130*Титульный!$AY$1,Титульный!$AY$3) -> 6270 | F142: =CEILING('прайс-лист2'!G130*Титульный!$AY$1,Титульный!$AY$3) -> 5071 | G142: =CEILING('прайс-лист2'!H130*Титульный!$AY$1,Титульный!$AY$3) -> 5599 | H142: =CEILING('прайс-лист2'!I130*Титульный!$AY$1,Титульный!$AY$3) -> 4224 | I142: =CEILING('прайс-лист2'!J130*Титульный!$AY$1,Титульный!$AY$3) -> 4257 | J142: =CEILING('прайс-лист2'!K130*Титульный!$AY$1,Титульный!$AY$3) -> 4367 | K142: =CEILING('прайс-лист2'!L130*Титульный!$AY$1,Титульный!$AY$3) -> 4664 | L142: - | M142: =CEILING('прайс-лист2'!N130*Титульный!$AY$1,Титульный!$AY$3) -> 5962 | N142: =CEILING('прайс-лист2'!O130*Титульный!$AY$1,Титульный!$AY$3) -> 6479 | O142: =CEILING('прайс-лист2'!P130*Титульный!$AY$1,Титульный!$AY$3) -> 6765 | P142: =CEILING('прайс-лист2'!Q130*Титульный!$AY$1,Титульный!$AY$3) -> 7359 | Q142: =CEILING('прайс-лист2'!R130*Титульный!$AY$1,Титульный!$AY$3) -> 7788 | R142: - | S142: -
A143: Шкаф (340) антр 1 дв. стекло 400х1260 | C143: 1260х360х400 | D143: =CEILING('прайс-лист2'!E131*Титульный!$AY$1,Титульный!$AY$3) -> 7094 | E143: =CEILING('прайс-лист2'!F131*Титульный!$AY$1,Титульный!$AY$3) -> 9217 | F143: =CEILING('прайс-лист2'!G131*Титульный!$AY$1,Титульный!$AY$3) -> 7413 | G143: =CEILING('прайс-лист2'!H131*Титульный!$AY$1,Титульный!$AY$3) -> 8205 | H143: =CEILING('прайс-лист2'!I131*Титульный!$AY$1,Титульный!$AY$3) -> 5252 | I143: =CEILING('прайс-лист2'!J131*Титульный!$AY$1,Титульный!$AY$3) -> 5318 | J143: =CEILING('прайс-лист2'!K131*Титульный!$AY$1,Титульный!$AY$3) -> 5483 | K143: =CEILING('прайс-лист2'!L131*Титульный!$AY$1,Титульный!$AY$3) -> 5945 | L143: - | M143: - | N143: - | O143: - | P143: - | Q143: - | R143: - | S143: -
A144: Шкаф (340) антр 1 дв. стекло 400х840 | C144: 840х360х400 | D144: =CEILING('прайс-лист2'!E132*Титульный!$AY$1,Титульный!$AY$3) -> 5526 | E144: =CEILING('прайс-лист2'!F132*Титульный!$AY$1,Титульный!$AY$3) -> 6945 | F144: =CEILING('прайс-лист2'!G132*Титульный!$AY$1,Титульный!$AY$3) -> 5746 | G144: =CEILING('прайс-лист2'!H132*Титульный!$AY$1,Титульный!$AY$3) -> 6274 | H144: =CEILING('прайс-лист2'!I132*Титульный!$AY$1,Титульный!$AY$3) -> 4341 | I144: =CEILING('прайс-лист2'!J132*Титульный!$AY$1,Титульный!$AY$3) -> 4374 | J144: =CEILING('прайс-лист2'!K132*Титульный!$AY$1,Титульный!$AY$3) -> 4484 | K144: =CEILING('прайс-лист2'!L132*Титульный!$AY$1,Титульный!$AY$3) -> 4781 | L144: - | M144: - | N144: - | O144: - | P144: - | Q144: - | R144: - | S144: -
A145: Шкаф (340) антр 2 дв. ниша 400х1400 | C145: 1400х360х400 | D145: =CEILING('прайс-лист2'!E133*Титульный!$AY$1,Титульный!$AY$3) -> 7174 | E145: =CEILING('прайс-лист2'!F133*Титульный!$AY$1,Титульный!$AY$3) -> 9044 | F145: =CEILING('прайс-лист2'!G133*Титульный!$AY$1,Титульный!$AY$3) -> 7460 | G145: =CEILING('прайс-лист2'!H133*Титульный!$AY$1,Титульный!$AY$3) -> 8164 | H145: =CEILING('прайс-лист2'!I133*Титульный!$AY$1,Титульный!$AY$3) -> 6316 | I145: =CEILING('прайс-лист2'!J133*Титульный!$AY$1,Титульный!$AY$3) -> 6382 | J145: =CEILING('прайс-лист2'!K133*Титульный!$AY$1,Титульный!$AY$3) -> 6514 | K145: =CEILING('прайс-лист2'!L133*Титульный!$AY$1,Титульный!$AY$3) -> 6910 | L145: - | M145: =CEILING('прайс-лист2'!N133*Титульный!$AY$1,Титульный!$AY$3) -> 8758 | N145: =CEILING('прайс-лист2'!O133*Титульный!$AY$1,Титульный!$AY$3) -> 9550 | O145: =CEILING('прайс-лист2'!P133*Титульный!$AY$1,Титульный!$AY$3) -> 9814 | P145: =CEILING('прайс-лист2'!Q133*Титульный!$AY$1,Титульный!$AY$3) -> 10606 | Q145: =CEILING('прайс-лист2'!R133*Титульный!$AY$1,Титульный!$AY$3) -> 11464 | R145: - | S145: -
A146: Шкаф (340) антр 2 дв. ниша 400х1640 | C146: 1640х360х400 | D146: =CEILING('прайс-лист2'!E134*Титульный!$AY$1,Титульный!$AY$3) -> 7671 | E146: =CEILING('прайс-лист2'!F134*Титульный!$AY$1,Титульный!$AY$3) -> 9541 | F146: =CEILING('прайс-лист2'!G134*Титульный!$AY$1,Титульный!$AY$3) -> 7957 | G146: =CEILING('прайс-лист2'!H134*Титульный!$AY$1,Титульный!$AY$3) -> 8661 | H146: =CEILING('прайс-лист2'!I134*Титульный!$AY$1,Титульный!$AY$3) -> 6813 | I146: =CEILING('прайс-лист2'!J134*Титульный!$AY$1,Титульный!$AY$3) -> 6879 | J146: =CEILING('прайс-лист2'!K134*Титульный!$AY$1,Титульный!$AY$3) -> 7011 | K146: =CEILING('прайс-лист2'!L134*Титульный!$AY$1,Титульный!$AY$3) -> 7407 | L146: - | M146: =CEILING('прайс-лист2'!N134*Титульный!$AY$1,Титульный!$AY$3) -> 9255 | N146: =CEILING('прайс-лист2'!O134*Титульный!$AY$1,Титульный!$AY$3) -> 10047 | O146: =CEILING('прайс-лист2'!P134*Титульный!$AY$1,Титульный!$AY$3) -> 10311 | P146: =CEILING('прайс-лист2'!Q134*Титульный!$AY$1,Титульный!$AY$3) -> 11103 | Q146: =CEILING('прайс-лист2'!R134*Титульный!$AY$1,Титульный!$AY$3) -> 11961 | R146: - | S146: -
A147: Шкаф (340) антр 2 дв. ниша 400х2040 | C147: 2040х360х400 | D147: =CEILING('прайс-лист2'!E135*Титульный!$AY$1,Титульный!$AY$3) -> 9048 | E147: =CEILING('прайс-лист2'!F135*Титульный!$AY$1,Титульный!$AY$3) -> 11336 | F147: =CEILING('прайс-лист2'!G135*Титульный!$AY$1,Титульный!$AY$3) -> 9378 | G147: =CEILING('прайс-лист2'!H135*Титульный!$AY$1,Титульный!$AY$3) -> 10236 | H147: =CEILING('прайс-лист2'!I135*Титульный!$AY$1,Титульный!$AY$3) -> 8014 | I147: =CEILING('прайс-лист2'!J135*Титульный!$AY$1,Титульный!$AY$3) -> 8080 | J147: =CEILING('прайс-лист2'!K135*Титульный!$AY$1,Титульный!$AY$3) -> 8256 | K147: =CEILING('прайс-лист2'!L135*Титульный!$AY$1,Титульный!$AY$3) -> 8718 | L147: - | M147: =CEILING('прайс-лист2'!N135*Титульный!$AY$1,Титульный!$AY$3) -> 10896 | N147: =CEILING('прайс-лист2'!O135*Титульный!$AY$1,Титульный!$AY$3) -> 11798 | O147: =CEILING('прайс-лист2'!P135*Титульный!$AY$1,Титульный!$AY$3) -> 12194 | P147: =CEILING('прайс-лист2'!Q135*Титульный!$AY$1,Титульный!$AY$3) -> 13140 | Q147: =CEILING('прайс-лист2'!R135*Титульный!$AY$1,Титульный!$AY$3) -> 14020 | R147: - | S147: -
A148: Стеллаж (340) навесной 300х300 | C148: 300х340х300 | D148: =CEILING('прайс-лист2'!E136*Титульный!$AY$1,Титульный!$AY$3) -> 979 | E148: =CEILING('прайс-лист2'!F136*Титульный!$AY$1,Титульный!$AY$3) -> 979 | F148: =CEILING('прайс-лист2'!G136*Титульный!$AY$1,Титульный!$AY$3) -> 979 | G148: =CEILING('прайс-лист2'!H136*Титульный!$AY$1,Титульный!$AY$3) -> 979 | H148: =CEILING('прайс-лист2'!I136*Титульный!$AY$1,Титульный!$AY$3) -> 979 | I148: =CEILING('прайс-лист2'!J136*Титульный!$AY$1,Титульный!$AY$3) -> 979 | J148: =CEILING('прайс-лист2'!K136*Титульный!$AY$1,Титульный!$AY$3) -> 979 | K148: =CEILING('прайс-лист2'!L136*Титульный!$AY$1,Титульный!$AY$3) -> 979 | L148: - | M148: =CEILING('прайс-лист2'!N136*Титульный!$AY$1,Титульный!$AY$3) -> 979 | N148: =CEILING('прайс-лист2'!O136*Титульный!$AY$1,Титульный!$AY$3) -> 979 | O148: =CEILING('прайс-лист2'!P136*Титульный!$AY$1,Титульный!$AY$3) -> 979 | P148: =CEILING('прайс-лист2'!Q136*Титульный!$AY$1,Титульный!$AY$3) -> 979 | Q148: =CEILING('прайс-лист2'!R136*Титульный!$AY$1,Титульный!$AY$3) -> 979 | R148: - | S148: -
A149: Стеллаж (340) навесной 300х1260 | C149: 1260х340х300 | D149: =CEILING('прайс-лист2'!E137*Титульный!$AY$1,Титульный!$AY$3) -> 2776 | E149: =CEILING('прайс-лист2'!F137*Титульный!$AY$1,Титульный!$AY$3) -> 2776 | F149: =CEILING('прайс-лист2'!G137*Титульный!$AY$1,Титульный!$AY$3) -> 2776 | G149: =CEILING('прайс-лист2'!H137*Титульный!$AY$1,Титульный!$AY$3) -> 2776 | H149: =CEILING('прайс-лист2'!I137*Титульный!$AY$1,Титульный!$AY$3) -> 2776 | I149: =CEILING('прайс-лист2'!J137*Титульный!$AY$1,Титульный!$AY$3) -> 2776 | J149: =CEILING('прайс-лист2'!K137*Титульный!$AY$1,Титульный!$AY$3) -> 2776 | K149: =CEILING('прайс-лист2'!L137*Титульный!$AY$1,Титульный!$AY$3) -> 2776 | L149: - | M149: =CEILING('прайс-лист2'!N137*Титульный!$AY$1,Титульный!$AY$3) -> 2776 | N149: =CEILING('прайс-лист2'!O137*Титульный!$AY$1,Титульный!$AY$3) -> 2776 | O149: =CEILING('прайс-лист2'!P137*Титульный!$AY$1,Титульный!$AY$3) -> 2776 | P149: =CEILING('прайс-лист2'!Q137*Титульный!$AY$1,Титульный!$AY$3) -> 2776 | Q149: =CEILING('прайс-лист2'!R137*Титульный!$AY$1,Титульный!$AY$3) -> 2776 | R149: - | S149: -
A150: Стеллаж (340) 2040х300 | C150: 300х340х2040 | D150: =CEILING('прайс-лист2'!E138*Титульный!$AY$1,Титульный!$AY$3) -> 4246 | E150: =CEILING('прайс-лист2'!F138*Титульный!$AY$1,Титульный!$AY$3) -> 4246 | F150: =CEILING('прайс-лист2'!G138*Титульный!$AY$1,Титульный!$AY$3) -> 4246 | G150: =CEILING('прайс-лист2'!H138*Титульный!$AY$1,Титульный!$AY$3) -> 4246 | H150: =CEILING('прайс-лист2'!I138*Титульный!$AY$1,Титульный!$AY$3) -> 4246 | I150: - | J150: - | K150: - | L150: - | M150: =CEILING('прайс-лист2'!N138*Титульный!$AY$1,Титульный!$AY$3) -> 4246 | N150: =CEILING('прайс-лист2'!O138*Титульный!$AY$1,Титульный!$AY$3) -> 4246 | O150: =CEILING('прайс-лист2'!P138*Титульный!$AY$1,Титульный!$AY$3) -> 4246 | P150: =CEILING('прайс-лист2'!Q138*Титульный!$AY$1,Титульный!$AY$3) -> 4246 | Q150: =CEILING('прайс-лист2'!R138*Титульный!$AY$1,Титульный!$AY$3) -> 4246 | R150: - | S150: -
A151: Стеллаж (340) 2240х300 | C151: 300х340х2240 | D151: =CEILING('прайс-лист2'!E139*Титульный!$AY$1,Титульный!$AY$3) -> 4623 | E151: =CEILING('прайс-лист2'!F139*Титульный!$AY$1,Титульный!$AY$3) -> 4623 | F151: =CEILING('прайс-лист2'!G139*Титульный!$AY$1,Титульный!$AY$3) -> 4623 | G151: =CEILING('прайс-лист2'!H139*Титульный!$AY$1,Титульный!$AY$3) -> 4623 | H151: =CEILING('прайс-лист2'!I139*Титульный!$AY$1,Титульный!$AY$3) -> 4623 | I151: - | J151: - | K151: - | L151: - | M151: =CEILING('прайс-лист2'!N139*Титульный!$AY$1,Титульный!$AY$3) -> 4623 | N151: =CEILING('прайс-лист2'!O139*Титульный!$AY$1,Титульный!$AY$3) -> 4623 | O151: =CEILING('прайс-лист2'!P139*Титульный!$AY$1,Титульный!$AY$3) -> 4623 | P151: =CEILING('прайс-лист2'!Q139*Титульный!$AY$1,Титульный!$AY$3) -> 4623 | Q151: =CEILING('прайс-лист2'!R139*Титульный!$AY$1,Титульный!$AY$3) -> 4623 | R151: - | S151: -
A152: Стеллаж (420) 2040х420 | C152: 420х420х2040 | D152: =CEILING('прайс-лист2'!E140*Титульный!$AY$1,Титульный!$AY$3) -> 5396 | E152: =CEILING('прайс-лист2'!F140*Титульный!$AY$1,Титульный!$AY$3) -> 5396 | F152: =CEILING('прайс-лист2'!G140*Титульный!$AY$1,Титульный!$AY$3) -> 5396 | G152: =CEILING('прайс-лист2'!H140*Титульный!$AY$1,Титульный!$AY$3) -> 5396 | H152: =CEILING('прайс-лист2'!I140*Титульный!$AY$1,Титульный!$AY$3) -> 5396 | I152: - | J152: - | K152: - | L152: - | M152: =CEILING('прайс-лист2'!N140*Титульный!$AY$1,Титульный!$AY$3) -> 5396 | N152: =CEILING('прайс-лист2'!O140*Титульный!$AY$1,Титульный!$AY$3) -> 5396 | O152: =CEILING('прайс-лист2'!P140*Титульный!$AY$1,Титульный!$AY$3) -> 5396 | P152: =CEILING('прайс-лист2'!Q140*Титульный!$AY$1,Титульный!$AY$3) -> 5396 | Q152: =CEILING('прайс-лист2'!R140*Титульный!$AY$1,Титульный!$AY$3) -> 5396 | R152: - | S152: -
A153: Стеллаж (420) 2040х560 | C153: 560х420х2040 | D153: =CEILING('прайс-лист2'!E141*Титульный!$AY$1,Титульный!$AY$3) -> 6035 | E153: =CEILING('прайс-лист2'!F141*Титульный!$AY$1,Титульный!$AY$3) -> 6035 | F153: =CEILING('прайс-лист2'!G141*Титульный!$AY$1,Титульный!$AY$3) -> 6035 | G153: =CEILING('прайс-лист2'!H141*Титульный!$AY$1,Титульный!$AY$3) -> 6035 | H153: =CEILING('прайс-лист2'!I141*Титульный!$AY$1,Титульный!$AY$3) -> 6035 | I153: - | J153: - | K153: - | L153: - | M153: =CEILING('прайс-лист2'!N141*Титульный!$AY$1,Титульный!$AY$3) -> 6035 | N153: =CEILING('прайс-лист2'!O141*Титульный!$AY$1,Титульный!$AY$3) -> 6035 | O153: =CEILING('прайс-лист2'!P141*Титульный!$AY$1,Титульный!$AY$3) -> 6035 | P153: =CEILING('прайс-лист2'!Q141*Титульный!$AY$1,Титульный!$AY$3) -> 6035 | Q153: =CEILING('прайс-лист2'!R141*Титульный!$AY$1,Титульный!$AY$3) -> 6035 | R153: - | S153: -
A154: Стеллаж (420) 2040х840 | C154: 840х420х2040 | D154: =CEILING('прайс-лист2'!E142*Титульный!$AY$1,Титульный!$AY$3) -> 7269 | E154: =CEILING('прайс-лист2'!F142*Титульный!$AY$1,Титульный!$AY$3) -> 7269 | F154: =CEILING('прайс-лист2'!G142*Титульный!$AY$1,Титульный!$AY$3) -> 7269 | G154: =CEILING('прайс-лист2'!H142*Титульный!$AY$1,Титульный!$AY$3) -> 7269 | H154: =CEILING('прайс-лист2'!I142*Титульный!$AY$1,Титульный!$AY$3) -> 7269 | I154: - | J154: - | K154: - | L154: - | M154: =CEILING('прайс-лист2'!N142*Титульный!$AY$1,Титульный!$AY$3) -> 7269 | N154: =CEILING('прайс-лист2'!O142*Титульный!$AY$1,Титульный!$AY$3) -> 7269 | O154: =CEILING('прайс-лист2'!P142*Титульный!$AY$1,Титульный!$AY$3) -> 7269 | P154: =CEILING('прайс-лист2'!Q142*Титульный!$AY$1,Титульный!$AY$3) -> 7269 | Q154: =CEILING('прайс-лист2'!R142*Титульный!$AY$1,Титульный!$AY$3) -> 7269 | R154: - | S154: -
A155: Стеллаж (420) 2240х420 | C155: 420х420х2240 | D155: =CEILING('прайс-лист2'!E143*Титульный!$AY$1,Титульный!$AY$3) -> 6016 | E155: =CEILING('прайс-лист2'!F143*Титульный!$AY$1,Титульный!$AY$3) -> 6016 | F155: =CEILING('прайс-лист2'!G143*Титульный!$AY$1,Титульный!$AY$3) -> 6016 | G155: =CEILING('прайс-лист2'!H143*Титульный!$AY$1,Титульный!$AY$3) -> 6016 | H155: =CEILING('прайс-лист2'!I143*Титульный!$AY$1,Титульный!$AY$3) -> 6016 | I155: - | J155: - | K155: - | L155: - | M155: =CEILING('прайс-лист2'!N143*Титульный!$AY$1,Титульный!$AY$3) -> 6016 | N155: =CEILING('прайс-лист2'!O143*Титульный!$AY$1,Титульный!$AY$3) -> 6016 | O155: =CEILING('прайс-лист2'!P143*Титульный!$AY$1,Титульный!$AY$3) -> 6016 | P155: =CEILING('прайс-лист2'!Q143*Титульный!$AY$1,Титульный!$AY$3) -> 6016 | Q155: =CEILING('прайс-лист2'!R143*Титульный!$AY$1,Титульный!$AY$3) -> 6016 | R155: - | S155: -
A156: Стеллаж (420) 2240х560 | C156: 560х420х2240 | D156: =CEILING('прайс-лист2'!E144*Титульный!$AY$1,Титульный!$AY$3) -> 6756 | E156: =CEILING('прайс-лист2'!F144*Титульный!$AY$1,Титульный!$AY$3) -> 6756 | F156: =CEILING('прайс-лист2'!G144*Титульный!$AY$1,Титульный!$AY$3) -> 6756 | G156: =CEILING('прайс-лист2'!H144*Титульный!$AY$1,Титульный!$AY$3) -> 6756 | H156: =CEILING('прайс-лист2'!I144*Титульный!$AY$1,Титульный!$AY$3) -> 6756 | I156: - | J156: - | K156: - | L156: - | M156: =CEILING('прайс-лист2'!N144*Титульный!$AY$1,Титульный!$AY$3) -> 6756 | N156: =CEILING('прайс-лист2'!O144*Титульный!$AY$1,Титульный!$AY$3) -> 6756 | O156: =CEILING('прайс-лист2'!P144*Титульный!$AY$1,Титульный!$AY$3) -> 6756 | P156: =CEILING('прайс-лист2'!Q144*Титульный!$AY$1,Титульный!$AY$3) -> 6756 | Q156: =CEILING('прайс-лист2'!R144*Титульный!$AY$1,Титульный!$AY$3) -> 6756 | R156: - | S156: -
A157: Стеллаж (420) 2240х840 | C157: 840х420х2240 | D157: =CEILING('прайс-лист2'!E145*Титульный!$AY$1,Титульный!$AY$3) -> 8186 | E157: =CEILING('прайс-лист2'!F145*Титульный!$AY$1,Титульный!$AY$3) -> 8186 | F157: =CEILING('прайс-лист2'!G145*Титульный!$AY$1,Титульный!$AY$3) -> 8186 | G157: =CEILING('прайс-лист2'!H145*Титульный!$AY$1,Титульный!$AY$3) -> 8186 | H157: =CEILING('прайс-лист2'!I145*Титульный!$AY$1,Титульный!$AY$3) -> 8186 | I157: - | J157: - | K157: - | L157: - | M157: =CEILING('прайс-лист2'!N145*Титульный!$AY$1,Титульный!$AY$3) -> 8186 | N157: =CEILING('прайс-лист2'!O145*Титульный!$AY$1,Титульный!$AY$3) -> 8186 | O157: =CEILING('прайс-лист2'!P145*Титульный!$AY$1,Титульный!$AY$3) -> 8186 | P157: =CEILING('прайс-лист2'!Q145*Титульный!$AY$1,Титульный!$AY$3) -> 8186 | Q157: =CEILING('прайс-лист2'!R145*Титульный!$AY$1,Титульный!$AY$3) -> 8186 | R157: - | S157: -
A158: Стеллаж (420) 2 дв 2240х840 | C158: 840х420х2240 | D158: =CEILING('прайс-лист2'!E146*Титульный!$AY$1,Титульный!$AY$3) -> 11640 | E158: =CEILING('прайс-лист2'!F146*Титульный!$AY$1,Титульный!$AY$3) -> 13048 | F158: =CEILING('прайс-лист2'!G146*Титульный!$AY$1,Титульный!$AY$3) -> 11860 | G158: =CEILING('прайс-лист2'!H146*Титульный!$AY$1,Титульный!$AY$3) -> 12388 | H158: =CEILING('прайс-лист2'!I146*Титульный!$AY$1,Титульный!$AY$3) -> 11002 | I158: - | J158: - | K158: - | L158: - | M158: =CEILING('прайс-лист2'!N146*Титульный!$AY$1,Титульный!$AY$3) -> 12894 | N158: =CEILING('прайс-лист2'!O146*Титульный!$AY$1,Титульный!$AY$3) -> 13576 | O158: =CEILING('прайс-лист2'!P146*Титульный!$AY$1,Титульный!$AY$3) -> 13708 | P158: =CEILING('прайс-лист2'!Q146*Титульный!$AY$1,Титульный!$AY$3) -> 14280 | Q158: =CEILING('прайс-лист2'!R146*Титульный!$AY$1,Титульный!$AY$3) -> 15160 | R158: - | S158: -
A159: Стеллаж (420) 2 ящика 2240х560 | C159: 560х420х2240 | D159: =CEILING('прайс-лист2'!E147*Титульный!$AY$1,Титульный!$AY$3) -> 10414 | E159: =CEILING('прайс-лист2'!F147*Титульный!$AY$1,Титульный!$AY$3) -> 11360 | F159: =CEILING('прайс-лист2'!G147*Титульный!$AY$1,Титульный!$AY$3) -> 10568 | G159: =CEILING('прайс-лист2'!H147*Титульный!$AY$1,Титульный!$AY$3) -> 10920 | H159: =CEILING('прайс-лист2'!I147*Титульный!$AY$1,Титульный!$AY$3) -> 9996 | I159: - | J159: - | K159: - | L159: - | M159: =CEILING('прайс-лист2'!N147*Титульный!$AY$1,Титульный!$AY$3) -> 11404 | N159: =CEILING('прайс-лист2'!O147*Титульный!$AY$1,Титульный!$AY$3) -> 12042 | O159: =CEILING('прайс-лист2'!P147*Титульный!$AY$1,Титульный!$AY$3) -> 11954 | P159: =CEILING('прайс-лист2'!Q147*Титульный!$AY$1,Титульный!$AY$3) -> 12328 | Q159: =CEILING('прайс-лист2'!R147*Титульный!$AY$1,Титульный!$AY$3) -> 12768 | R159: - | S159: -
A160: Стеллаж навесной (420) Н=600х1260 | C160: 1260х600х420 | D160: =CEILING('прайс-лист2'!E148*Титульный!$AY$1,Титульный!$AY$3) -> 5311 | R160: - | S160: -
A161: Антресоли
A162: Антресоль (420) 1дв 400х420 лев\пр | C162: 420х440х400 | D162: =CEILING('прайс-лист2'!E150*Титульный!$AY$1,Титульный!$AY$3) -> 3391 | E162: =CEILING('прайс-лист2'!F150*Титульный!$AY$1,Титульный!$AY$3) -> 4095 | F162: =CEILING('прайс-лист2'!G150*Титульный!$AY$1,Титульный!$AY$3) -> 3501 | G162: =CEILING('прайс-лист2'!H150*Титульный!$AY$1,Титульный!$AY$3) -> 3765 | H162: =CEILING('прайс-лист2'!I150*Титульный!$AY$1,Титульный!$AY$3) -> 3072 | I162: =CEILING('прайс-лист2'!J150*Титульный!$AY$1,Титульный!$AY$3) -> 3094 | J162: =CEILING('прайс-лист2'!K150*Титульный!$AY$1,Титульный!$AY$3) -> 3149 | K162: =CEILING('прайс-лист2'!L150*Титульный!$AY$1,Титульный!$AY$3) -> 3292 | L162: - | M162: =CEILING('прайс-лист2'!N150*Титульный!$AY$1,Титульный!$AY$3) -> 4018 | N162: =CEILING('прайс-лист2'!O150*Титульный!$AY$1,Титульный!$AY$3) -> 4359 | O162: =CEILING('прайс-лист2'!P150*Титульный!$AY$1,Титульный!$AY$3) -> 4425 | P162: =CEILING('прайс-лист2'!Q150*Титульный!$AY$1,Титульный!$AY$3) -> 4711 | Q162: =CEILING('прайс-лист2'!R150*Титульный!$AY$1,Титульный!$AY$3) -> 5151 | R162: - | S162: -
A163: Антресоль (420) 1дв 400х560 лев\пр | C163: 560х440х400 | D163: =CEILING('прайс-лист2'!E151*Титульный!$AY$1,Титульный!$AY$3) -> 3941 | E163: =CEILING('прайс-лист2'!F151*Титульный!$AY$1,Титульный!$AY$3) -> 4876 | F163: =CEILING('прайс-лист2'!G151*Титульный!$AY$1,Титульный!$AY$3) -> 4084 | G163: =CEILING('прайс-лист2'!H151*Титульный!$AY$1,Титульный!$AY$3) -> 4436 | H163: =CEILING('прайс-лист2'!I151*Титульный!$AY$1,Титульный!$AY$3) -> 3512 | I163: =CEILING('прайс-лист2'!J151*Титульный!$AY$1,Титульный!$AY$3) -> 3545 | J163: =CEILING('прайс-лист2'!K151*Титульный!$AY$1,Титульный!$AY$3) -> 3611 | K163: =CEILING('прайс-лист2'!L151*Титульный!$AY$1,Титульный!$AY$3) -> 3809 | L163: - | M163: =CEILING('прайс-лист2'!N151*Титульный!$AY$1,Титульный!$AY$3) -> 4733 | N163: =CEILING('прайс-лист2'!O151*Титульный!$AY$1,Титульный!$AY$3) -> 5129 | O163: =CEILING('прайс-лист2'!P151*Титульный!$AY$1,Титульный!$AY$3) -> 5261 | P163: =CEILING('прайс-лист2'!Q151*Титульный!$AY$1,Титульный!$AY$3) -> 5657 | Q163: =CEILING('прайс-лист2'!R151*Титульный!$AY$1,Титульный!$AY$3) -> 6086 | R163: - | S163: -
A164: Антресоль (420) 2дв 400х840 | C164: 840х440х400 | D164: =CEILING('прайс-лист2'!E152*Титульный!$AY$1,Титульный!$AY$3) -> 5680 | E164: =CEILING('прайс-лист2'!F152*Титульный!$AY$1,Титульный!$AY$3) -> 7088 | F164: =CEILING('прайс-лист2'!G152*Титульный!$AY$1,Титульный!$AY$3) -> 5900 | G164: =CEILING('прайс-лист2'!H152*Титульный!$AY$1,Титульный!$AY$3) -> 6428 | H164: =CEILING('прайс-лист2'!I152*Титульный!$AY$1,Титульный!$AY$3) -> 5042 | I164: =CEILING('прайс-лист2'!J152*Титульный!$AY$1,Титульный!$AY$3) -> 5086 | J164: =CEILING('прайс-лист2'!K152*Титульный!$AY$1,Титульный!$AY$3) -> 5196 | K164: =CEILING('прайс-лист2'!L152*Титульный!$AY$1,Титульный!$AY$3) -> 5482 | L164: - | M164: =CEILING('прайс-лист2'!N152*Титульный!$AY$1,Титульный!$AY$3) -> 6934 | N164: =CEILING('прайс-лист2'!O152*Титульный!$AY$1,Титульный!$AY$3) -> 7616 | O164: =CEILING('прайс-лист2'!P152*Титульный!$AY$1,Титульный!$AY$3) -> 7748 | P164: =CEILING('прайс-лист2'!Q152*Титульный!$AY$1,Титульный!$AY$3) -> 8320 | Q164: =CEILING('прайс-лист2'!R152*Титульный!$AY$1,Титульный!$AY$3) -> 9200 | R164: - | S164: -
A165: Антресоль (420) 3дв 400х1260 | C165: 1260х440х400 | D165: =CEILING('прайс-лист2'!E153*Титульный!$AY$1,Титульный!$AY$3) -> 8154 | E165: =CEILING('прайс-лист2'!F153*Титульный!$AY$1,Титульный!$AY$3) -> 10266 | F165: =CEILING('прайс-лист2'!G153*Титульный!$AY$1,Титульный!$AY$3) -> 8484 | G165: =CEILING('прайс-лист2'!H153*Титульный!$AY$1,Титульный!$AY$3) -> 9276 | H165: =CEILING('прайс-лист2'!I153*Титульный!$AY$1,Титульный!$AY$3) -> 7197 | I165: =CEILING('прайс-лист2'!J153*Титульный!$AY$1,Титульный!$AY$3) -> 7263 | J165: =CEILING('прайс-лист2'!K153*Титульный!$AY$1,Титульный!$AY$3) -> 7428 | K165: =CEILING('прайс-лист2'!L153*Титульный!$AY$1,Титульный!$AY$3) -> 7857 | L165: - | M165: =CEILING('прайс-лист2'!N153*Титульный!$AY$1,Титульный!$AY$3) -> 10035 | N165: =CEILING('прайс-лист2'!O153*Титульный!$AY$1,Титульный!$AY$3) -> 11058 | O165: =CEILING('прайс-лист2'!P153*Титульный!$AY$1,Титульный!$AY$3) -> 11256 | P165: =CEILING('прайс-лист2'!Q153*Титульный!$AY$1,Титульный!$AY$3) -> 12114 | Q165: =CEILING('прайс-лист2'!R153*Титульный!$AY$1,Титульный!$AY$3) -> 13434 | R165: - | S165: -
A166: Антресоль угл. (420) трап. 400х732х732 | C166: 732х732 | D166: =CEILING('прайс-лист2'!E154*Титульный!$AY$1,Титульный!$AY$3) -> 5810 | E166: =CEILING('прайс-лист2'!F154*Титульный!$AY$1,Титульный!$AY$3) -> 6514 | F166: =CEILING('прайс-лист2'!G154*Титульный!$AY$1,Титульный!$AY$3) -> 5920 | G166: =CEILING('прайс-лист2'!H154*Титульный!$AY$1,Титульный!$AY$3) -> 6184 | H166: =CEILING('прайс-лист2'!I154*Титульный!$AY$1,Титульный!$AY$3) -> 5491 | I166: =CEILING('прайс-лист2'!J154*Титульный!$AY$1,Титульный!$AY$3) -> 5513 | J166: =CEILING('прайс-лист2'!K154*Титульный!$AY$1,Титульный!$AY$3) -> 5568 | K166: =CEILING('прайс-лист2'!L154*Титульный!$AY$1,Титульный!$AY$3) -> 5711 | L166: - | M166: =CEILING('прайс-лист2'!N154*Титульный!$AY$1,Титульный!$AY$3) -> 6437 | N166: =CEILING('прайс-лист2'!O154*Титульный!$AY$1,Титульный!$AY$3) -> 6778 | O166: =CEILING('прайс-лист2'!P154*Титульный!$AY$1,Титульный!$AY$3) -> 6844 | P166: =CEILING('прайс-лист2'!Q154*Титульный!$AY$1,Титульный!$AY$3) -> 7130 | Q166: =CEILING('прайс-лист2'!R154*Титульный!$AY$1,Титульный!$AY$3) -> 7570 | R166: - | S166: -
A167: Антресоли
A168: Наименование | B168: Эскиз | C168: Габариты, ШхГхВ мм. | D168: МДФ фасады | H168: Марго16 | M168: UV-лак | O168: ТСС | Q168: ТСС сборный | R168: Стоимость зеркал
D169: 1 ЦК | E169: 1 ЦК + патина | F169: 2 ЦК | G169: 3 ЦК | H169: 1 ц.к. | I169: 2 ц.к. | J169: 3 ц.к. | K169: 4 ц.к. | L169: 5 ц.к. | M169: UV-лак кромка ABC/AL кромка | N169: кромка 3D | O169: 1 ЦК | P169: 2 ЦК | R169: Зеркало в рамке** | S169: Зеркало накладное*
A170: Антресоль (340) 2 дв. 400х840 | C170: 840х360х400 | D170: =CEILING('прайс-лист2'!E155*Титульный!$AY$1,Титульный!$AY$3) -> 5406 | E170: =CEILING('прайс-лист2'!F155*Титульный!$AY$1,Титульный!$AY$3) -> 6814 | F170: =CEILING('прайс-лист2'!G155*Титульный!$AY$1,Титульный!$AY$3) -> 5626 | G170: =CEILING('прайс-лист2'!H155*Титульный!$AY$1,Титульный!$AY$3) -> 6154 | H170: =CEILING('прайс-лист2'!I155*Титульный!$AY$1,Титульный!$AY$3) -> 4768 | I170: =CEILING('прайс-лист2'!J155*Титульный!$AY$1,Титульный!$AY$3) -> 4812 | J170: =CEILING('прайс-лист2'!K155*Титульный!$AY$1,Титульный!$AY$3) -> 4922 | K170: =CEILING('прайс-лист2'!L155*Титульный!$AY$1,Титульный!$AY$3) -> 5208 | L170: - | M170: =CEILING('прайс-лист2'!N155*Титульный!$AY$1,Титульный!$AY$3) -> 6660 | N170: =CEILING('прайс-лист2'!O155*Титульный!$AY$1,Титульный!$AY$3) -> 7342 | O170: =CEILING('прайс-лист2'!P155*Титульный!$AY$1,Титульный!$AY$3) -> 7474 | P170: =CEILING('прайс-лист2'!Q155*Титульный!$AY$1,Титульный!$AY$3) -> 8046 | Q170: =CEILING('прайс-лист2'!R155*Титульный!$AY$1,Титульный!$AY$3) -> 8926 | R170: - | S170: -
A171: Антресоль (340) 2 дв расп. ниша 400х1260 | C171: 1260х360х400 | D171: =CEILING('прайс-лист2'!E156*Титульный!$AY$1,Титульный!$AY$3) -> 6663 | E171: =CEILING('прайс-лист2'!F156*Титульный!$AY$1,Титульный!$AY$3) -> 8071 | F171: =CEILING('прайс-лист2'!G156*Титульный!$AY$1,Титульный!$AY$3) -> 6883 | G171: =CEILING('прайс-лист2'!H156*Титульный!$AY$1,Титульный!$AY$3) -> 7411 | H171: =CEILING('прайс-лист2'!I156*Титульный!$AY$1,Титульный!$AY$3) -> 6025 | I171: =CEILING('прайс-лист2'!J156*Титульный!$AY$1,Титульный!$AY$3) -> 6069 | J171: =CEILING('прайс-лист2'!K156*Титульный!$AY$1,Титульный!$AY$3) -> 6179 | K171: =CEILING('прайс-лист2'!L156*Титульный!$AY$1,Титульный!$AY$3) -> 6465 | L171: - | M171: =CEILING('прайс-лист2'!N156*Титульный!$AY$1,Титульный!$AY$3) -> 7917 | N171: =CEILING('прайс-лист2'!O156*Титульный!$AY$1,Титульный!$AY$3) -> 8599 | O171: =CEILING('прайс-лист2'!P156*Титульный!$AY$1,Титульный!$AY$3) -> 8731 | P171: =CEILING('прайс-лист2'!Q156*Титульный!$AY$1,Титульный!$AY$3) -> 9303 | Q171: =CEILING('прайс-лист2'!R156*Титульный!$AY$1,Титульный!$AY$3) -> 10183 | R171: - | S171: -
A172: Антресоль торц (420) 400х420 лев\пр | C172: 420х440х400 | D172: =CEILING('прайс-лист2'!E157*Титульный!$AY$1,Титульный!$AY$3) -> 4822 | E172: =CEILING('прайс-лист2'!F157*Титульный!$AY$1,Титульный!$AY$3) -> 5944 | F172: =CEILING('прайс-лист2'!G157*Титульный!$AY$1,Титульный!$AY$3) -> 4998 | G172: =CEILING('прайс-лист2'!H157*Титульный!$AY$1,Титульный!$AY$3) -> 5405 | H172: =CEILING('прайс-лист2'!I157*Титульный!$AY$1,Титульный!$AY$3) -> 4327 | I172: =CEILING('прайс-лист2'!J157*Титульный!$AY$1,Титульный!$AY$3) -> 4360 | J172: =CEILING('прайс-лист2'!K157*Титульный!$AY$1,Титульный!$AY$3) -> 4437 | K172: =CEILING('прайс-лист2'!L157*Титульный!$AY$1,Титульный!$AY$3) -> 4668 | L172: - | M172: =CEILING('прайс-лист2'!N157*Титульный!$AY$1,Титульный!$AY$3) -> 5889 | N172: =CEILING('прайс-лист2'!O157*Титульный!$AY$1,Титульный!$AY$3) -> 6494 | O172: =CEILING('прайс-лист2'!P157*Титульный!$AY$1,Титульный!$AY$3) -> 6516 | P172: =CEILING('прайс-лист2'!Q157*Титульный!$AY$1,Титульный!$AY$3) -> 6978 | Q172: =CEILING('прайс-лист2'!R157*Титульный!$AY$1,Титульный!$AY$3) -> 7649 | R172: - | S172: -
A173: Антресоль (560) 1дв 400х420 лев\пр | C173: 420х580х400 | D173: =CEILING('прайс-лист2'!E158*Титульный!$AY$1,Титульный!$AY$3) -> 3881 | E173: =CEILING('прайс-лист2'!F158*Титульный!$AY$1,Титульный!$AY$3) -> 4585 | F173: =CEILING('прайс-лист2'!G158*Титульный!$AY$1,Титульный!$AY$3) -> 3991 | G173: =CEILING('прайс-лист2'!H158*Титульный!$AY$1,Титульный!$AY$3) -> 4255 | H173: =CEILING('прайс-лист2'!I158*Титульный!$AY$1,Титульный!$AY$3) -> 3562 | I173: =CEILING('прайс-лист2'!J158*Титульный!$AY$1,Титульный!$AY$3) -> 3584 | J173: =CEILING('прайс-лист2'!K158*Титульный!$AY$1,Титульный!$AY$3) -> 3639 | K173: =CEILING('прайс-лист2'!L158*Титульный!$AY$1,Титульный!$AY$3) -> 3782 | L173: - | M173: =CEILING('прайс-лист2'!N158*Титульный!$AY$1,Титульный!$AY$3) -> 4508 | N173: =CEILING('прайс-лист2'!O158*Титульный!$AY$1,Титульный!$AY$3) -> 4849 | O173: =CEILING('прайс-лист2'!P158*Титульный!$AY$1,Титульный!$AY$3) -> 4915 | P173: =CEILING('прайс-лист2'!Q158*Титульный!$AY$1,Титульный!$AY$3) -> 5201 | Q173: =CEILING('прайс-лист2'!R158*Титульный!$AY$1,Титульный!$AY$3) -> 5641 | R173: - | S173: -
A174: Антресоль (560) 1дв 400х560 лев\пр | C174: 560х580х400 | D174: =CEILING('прайс-лист2'!E159*Титульный!$AY$1,Титульный!$AY$3) -> 4362 | E174: =CEILING('прайс-лист2'!F159*Титульный!$AY$1,Титульный!$AY$3) -> 5297 | F174: =CEILING('прайс-лист2'!G159*Титульный!$AY$1,Титульный!$AY$3) -> 4505 | G174: =CEILING('прайс-лист2'!H159*Титульный!$AY$1,Титульный!$AY$3) -> 4857 | H174: =CEILING('прайс-лист2'!I159*Титульный!$AY$1,Титульный!$AY$3) -> 3933 | I174: =CEILING('прайс-лист2'!J159*Титульный!$AY$1,Титульный!$AY$3) -> 3966 | J174: =CEILING('прайс-лист2'!K159*Титульный!$AY$1,Титульный!$AY$3) -> 4032 | K174: =CEILING('прайс-лист2'!L159*Титульный!$AY$1,Титульный!$AY$3) -> 4230 | L174: - | M174: =CEILING('прайс-лист2'!N159*Титульный!$AY$1,Титульный!$AY$3) -> 5154 | N174: =CEILING('прайс-лист2'!O159*Титульный!$AY$1,Титульный!$AY$3) -> 5550 | O174: =CEILING('прайс-лист2'!P159*Титульный!$AY$1,Титульный!$AY$3) -> 5682 | P174: =CEILING('прайс-лист2'!Q159*Титульный!$AY$1,Титульный!$AY$3) -> 6078 | Q174: =CEILING('прайс-лист2'!R159*Титульный!$AY$1,Титульный!$AY$3) -> 6507 | R174: - | S174: -
A175: Антресоль (560) 2дв 400х840 | C175: 840х580х400 | D175: =CEILING('прайс-лист2'!E160*Титульный!$AY$1,Титульный!$AY$3) -> 6217 | E175: =CEILING('прайс-лист2'!F160*Титульный!$AY$1,Титульный!$AY$3) -> 7625 | F175: =CEILING('прайс-лист2'!G160*Титульный!$AY$1,Титульный!$AY$3) -> 6437 | G175: =CEILING('прайс-лист2'!H160*Титульный!$AY$1,Титульный!$AY$3) -> 6965 | H175: =CEILING('прайс-лист2'!I160*Титульный!$AY$1,Титульный!$AY$3) -> 5579 | I175: =CEILING('прайс-лист2'!J160*Титульный!$AY$1,Титульный!$AY$3) -> 5623 | J175: =CEILING('прайс-лист2'!K160*Титульный!$AY$1,Титульный!$AY$3) -> 5733 | K175: =CEILING('прайс-лист2'!L160*Титульный!$AY$1,Титульный!$AY$3) -> 6019 | L175: - | M175: =CEILING('прайс-лист2'!N160*Титульный!$AY$1,Титульный!$AY$3) -> 7471 | N175: =CEILING('прайс-лист2'!O160*Титульный!$AY$1,Титульный!$AY$3) -> 8153 | O175: =CEILING('прайс-лист2'!P160*Титульный!$AY$1,Титульный!$AY$3) -> 8285 | P175: =CEILING('прайс-лист2'!Q160*Титульный!$AY$1,Титульный!$AY$3) -> 8857 | Q175: =CEILING('прайс-лист2'!R160*Титульный!$AY$1,Титульный!$AY$3) -> 9737 | R175: - | S175: -
A176: Антресоль (560) 3дв 400х1260 | C176: 1260х580х400 | D176: =CEILING('прайс-лист2'!E162*Титульный!$AY$1,Титульный!$AY$3) -> 8929 | E176: =CEILING('прайс-лист2'!F162*Титульный!$AY$1,Титульный!$AY$3) -> 11041 | F176: =CEILING('прайс-лист2'!G162*Титульный!$AY$1,Титульный!$AY$3) -> 9259 | G176: =CEILING('прайс-лист2'!H162*Титульный!$AY$1,Титульный!$AY$3) -> 10051 | H176: =CEILING('прайс-лист2'!I162*Титульный!$AY$1,Титульный!$AY$3) -> 7972 | I176: =CEILING('прайс-лист2'!J162*Титульный!$AY$1,Титульный!$AY$3) -> 8038 | J176: =CEILING('прайс-лист2'!K162*Титульный!$AY$1,Титульный!$AY$3) -> 8203 | K176: =CEILING('прайс-лист2'!L162*Титульный!$AY$1,Титульный!$AY$3) -> 8632 | L176: - | M176: =CEILING('прайс-лист2'!N162*Титульный!$AY$1,Титульный!$AY$3) -> 10810 | N176: =CEILING('прайс-лист2'!O162*Титульный!$AY$1,Титульный!$AY$3) -> 11833 | O176: =CEILING('прайс-лист2'!P162*Титульный!$AY$1,Титульный!$AY$3) -> 12031 | P176: =CEILING('прайс-лист2'!Q162*Титульный!$AY$1,Титульный!$AY$3) -> 12889 | Q176: =CEILING('прайс-лист2'!R162*Титульный!$AY$1,Титульный!$AY$3) -> 14209 | R176: - | S176: -
A177: Антресоль угл. (560) трап. 400х975х975 | C177: 975х975 | D177: =CEILING('прайс-лист2'!E163*Титульный!$AY$1,Титульный!$AY$3) -> 7517 | E177: =CEILING('прайс-лист2'!F163*Титульный!$AY$1,Титульный!$AY$3) -> 8452 | F177: =CEILING('прайс-лист2'!G163*Титульный!$AY$1,Титульный!$AY$3) -> 7660 | G177: =CEILING('прайс-лист2'!H163*Титульный!$AY$1,Титульный!$AY$3) -> 8012 | H177: =CEILING('прайс-лист2'!I163*Титульный!$AY$1,Титульный!$AY$3) -> 7088 | I177: =CEILING('прайс-лист2'!J163*Титульный!$AY$1,Титульный!$AY$3) -> 7121 | J177: =CEILING('прайс-лист2'!K163*Титульный!$AY$1,Титульный!$AY$3) -> 7187 | K177: =CEILING('прайс-лист2'!L163*Титульный!$AY$1,Титульный!$AY$3) -> 7385 | L177: - | M177: =CEILING('прайс-лист2'!N163*Титульный!$AY$1,Титульный!$AY$3) -> 8309 | N177: =CEILING('прайс-лист2'!O163*Титульный!$AY$1,Титульный!$AY$3) -> 8705 | O177: =CEILING('прайс-лист2'!P163*Титульный!$AY$1,Титульный!$AY$3) -> 8837 | P177: =CEILING('прайс-лист2'!Q163*Титульный!$AY$1,Титульный!$AY$3) -> 9233 | Q177: =CEILING('прайс-лист2'!R163*Титульный!$AY$1,Титульный!$AY$3) -> 9662 | R177: - | S177: -
A178: Шкафы угловые и стеллажи торцевые
A179: Шкаф Угл (420х420) Трап 2040х732х732 | C179: 732х732 | D179: =CEILING('прайс-лист2'!E165*Титульный!$AY$1,Титульный!$AY$3) -> 17642 | E179: =CEILING('прайс-лист2'!F165*Титульный!$AY$1,Титульный!$AY$3) -> 21173 | F179: =CEILING('прайс-лист2'!G165*Титульный!$AY$1,Титульный!$AY$3) -> 18170 | G179: =CEILING('прайс-лист2'!H165*Титульный!$AY$1,Титульный!$AY$3) -> 19490 | H179: =CEILING('прайс-лист2'!I165*Титульный!$AY$1,Титульный!$AY$3) -> 16047 | I179: =CEILING('прайс-лист2'!J165*Титульный!$AY$1,Титульный!$AY$3) -> 16135 | J179: =CEILING('прайс-лист2'!K165*Титульный!$AY$1,Титульный!$AY$3) -> 16410 | K179: =CEILING('прайс-лист2'!L165*Титульный!$AY$1,Титульный!$AY$3) -> 17147 | L179: - | M179: =CEILING('прайс-лист2'!N165*Титульный!$AY$1,Титульный!$AY$3) -> 20161 | N179: =CEILING('прайс-лист2'!O165*Титульный!$AY$1,Титульный!$AY$3) -> 21173 | O179: =CEILING('прайс-лист2'!P165*Титульный!$AY$1,Титульный!$AY$3) -> 22174 | P179: =CEILING('прайс-лист2'!Q165*Титульный!$AY$1,Титульный!$AY$3) -> 23648 | Q179: =CEILING('прайс-лист2'!R165*Титульный!$AY$1,Титульный!$AY$3) -> 23967 | R179: =CEILING('прайс-лист2'!S165*Титульный!$AY$1,Титульный!$AY$3) -> 1344 | S179: =CEILING('прайс-лист2'!T165*Титульный!$AY$1,Титульный!$AY$3) -> 2490
A180: Шкаф Угл (420х420) Трап 2240х732х732 | C180: 732х732 | D180: =CEILING('прайс-лист2'!E166*Титульный!$AY$1,Титульный!$AY$3) -> 18727 | E180: - | F180: =CEILING('прайс-лист2'!G166*Титульный!$AY$1,Титульный!$AY$3) -> 19310 | G180: =CEILING('прайс-лист2'!H166*Титульный!$AY$1,Титульный!$AY$3) -> 20762 | H180: =CEILING('прайс-лист2'!I166*Титульный!$AY$1,Титульный!$AY$3) -> 16978 | I180: =CEILING('прайс-лист2'!J166*Титульный!$AY$1,Титульный!$AY$3) -> 17077 | J180: =CEILING('прайс-лист2'!K166*Титульный!$AY$1,Титульный!$AY$3) -> 17385 | K180: =CEILING('прайс-лист2'!L166*Титульный!$AY$1,Титульный!$AY$3) -> 18188 | L180: - | M180: =CEILING('прайс-лист2'!N166*Титульный!$AY$1,Титульный!$AY$3) -> 21488 | N180: =CEILING('прайс-лист2'!O166*Титульный!$AY$1,Титульный!$AY$3) -> 22588 | O180: =CEILING('прайс-лист2'!P166*Титульный!$AY$1,Титульный!$AY$3) -> 23699 | P180: =CEILING('прайс-лист2'!Q166*Титульный!$AY$1,Титульный!$AY$3) -> 25316 | Q180: =CEILING('прайс-лист2'!R166*Титульный!$AY$1,Титульный!$AY$3) -> 25624 | R180: =CEILING('прайс-лист2'!S166*Титульный!$AY$1,Титульный!$AY$3) -> 1523 | S180: =CEILING('прайс-лист2'!T166*Титульный!$AY$1,Титульный!$AY$3) -> 2730
A181: Шкаф Угл (560х420) Прямой 2040х1000 лев/пр.** | C181: 1000 | D181: =CEILING('прайс-лист2'!E167*Титульный!$AY$1,Титульный!$AY$3) -> 20474 | E181: =CEILING('прайс-лист2'!F167*Титульный!$AY$1,Титульный!$AY$3) -> 28900 | F181: =CEILING('прайс-лист2'!G167*Титульный!$AY$1,Титульный!$AY$3) -> 21750 | G181: =CEILING('прайс-лист2'!H167*Титульный!$AY$1,Титульный!$AY$3) -> 24896 | H181: =CEILING('прайс-лист2'!I167*Титульный!$AY$1,Титульный!$AY$3) -> 16690 | I181: =CEILING('прайс-лист2'!J167*Титульный!$AY$1,Титульный!$AY$3) -> 16910 | J181: =CEILING('прайс-лист2'!K167*Титульный!$AY$1,Титульный!$AY$3) -> 17570 | K181: =CEILING('прайс-лист2'!L167*Титульный!$AY$1,Титульный!$AY$3) -> 19319 | L181: - | M181: =CEILING('прайс-лист2'!N167*Титульный!$AY$1,Титульный!$AY$3) -> 26216 | N181: =CEILING('прайс-лист2'!O167*Титульный!$AY$1,Титульный!$AY$3) -> 28306 | O181: =CEILING('прайс-лист2'!P167*Титульный!$AY$1,Титульный!$AY$3) -> 30990 | P181: =CEILING('прайс-лист2'!Q167*Титульный!$AY$1,Титульный!$AY$3) -> 34521 | Q181: =CEILING('прайс-лист2'!R167*Титульный!$AY$1,Титульный!$AY$3) -> 34631 | R181: =CEILING('прайс-лист2'!S167*Титульный!$AY$1,Титульный!$AY$3) -> 1932 | S181: =CEILING('прайс-лист2'!T167*Титульный!$AY$1,Титульный!$AY$3) -> 3314
A182: Шкаф Угл (560х420) Прямой 2240х1000 лев/пр** | C182: 1000 | D182: =CEILING('прайс-лист2'!E168*Титульный!$AY$1,Титульный!$AY$3) -> 21717 | E182: - | F182: =CEILING('прайс-лист2'!G168*Титульный!$AY$1,Титульный!$AY$3) -> 23125 | G182: =CEILING('прайс-лист2'!H168*Титульный!$AY$1,Титульный!$AY$3) -> 26590 | H182: =CEILING('прайс-лист2'!I168*Титульный!$AY$1,Титульный!$AY$3) -> 17559 | I182: =CEILING('прайс-лист2'!J168*Титульный!$AY$1,Титульный!$AY$3) -> 17801 | J182: =CEILING('прайс-лист2'!K168*Титульный!$AY$1,Титульный!$AY$3) -> 18516 | K182: =CEILING('прайс-лист2'!L168*Титульный!$AY$1,Титульный!$AY$3) -> 20441 | L182: - | M182: =CEILING('прайс-лист2'!N168*Титульный!$AY$1,Титульный!$AY$3) -> 27998 | N182: =CEILING('прайс-лист2'!O168*Титульный!$AY$1,Титульный!$AY$3) -> 30253 | O182: =CEILING('прайс-лист2'!P168*Титульный!$AY$1,Титульный!$AY$3) -> 33256 | P182: =CEILING('прайс-лист2'!Q168*Титульный!$AY$1,Титульный!$AY$3) -> 37128 | Q182: =CEILING('прайс-лист2'!R168*Титульный!$AY$1,Титульный!$AY$3) -> 37150 | R182: =CEILING('прайс-лист2'!S168*Титульный!$AY$1,Титульный!$AY$3) -> 2190 | S182: =CEILING('прайс-лист2'!T168*Титульный!$AY$1,Титульный!$AY$3) -> 3632
A183: Шкаф Угл (560х420) Прямой 2040х1000 ФП ЛДСП лев/пр** | C183: 1000 | D183: =CEILING('прайс-лист2'!E169*Титульный!$AY$1,Титульный!$AY$3) -> 18081 | E183: - | F183: =CEILING('прайс-лист2'!G169*Титульный!$AY$1,Титульный!$AY$3) -> 18796 | G183: =CEILING('прайс-лист2'!H169*Титульный!$AY$1,Титульный!$AY$3) -> 20556 | H183: =CEILING('прайс-лист2'!I169*Титульный!$AY$1,Титульный!$AY$3) -> 15958 | I183: =CEILING('прайс-лист2'!J169*Титульный!$AY$1,Титульный!$AY$3) -> 16079 | J183: =CEILING('прайс-лист2'!K169*Титульный!$AY$1,Титульный!$AY$3) -> 16453 | K183: =CEILING('прайс-лист2'!L169*Титульный!$AY$1,Титульный!$AY$3) -> 17432 | L183: - | M183: =CEILING('прайс-лист2'!N169*Титульный!$AY$1,Титульный!$AY$3) -> 21205 | N183: =CEILING('прайс-лист2'!O169*Титульный!$AY$1,Титульный!$AY$3) -> 22272 | O183: =CEILING('прайс-лист2'!P169*Титульный!$AY$1,Титульный!$AY$3) -> 23878 | P183: =CEILING('прайс-лист2'!Q169*Титульный!$AY$1,Титульный!$AY$3) -> 25858 | Q183: =CEILING('прайс-лист2'!R169*Титульный!$AY$1,Титульный!$AY$3) -> 25715 | R183: - | S183: -
A184: Шкаф Угл (560х420) Прямой 2240х1000 ФП ЛДСП лев/пр** | C184: 1000 | D184: =CEILING('прайс-лист2'!E170*Титульный!$AY$1,Титульный!$AY$3) -> 19136 | E184: - | F184: =CEILING('прайс-лист2'!G170*Титульный!$AY$1,Титульный!$AY$3) -> 19928 | G184: =CEILING('прайс-лист2'!H170*Титульный!$AY$1,Титульный!$AY$3) -> 21864 | H184: =CEILING('прайс-лист2'!I170*Титульный!$AY$1,Титульный!$AY$3) -> 16804 | I184: =CEILING('прайс-лист2'!J170*Титульный!$AY$1,Титульный!$AY$3) -> 16947 | J184: =CEILING('прайс-лист2'!K170*Титульный!$AY$1,Титульный!$AY$3) -> 17343 | K184: =CEILING('прайс-лист2'!L170*Титульный!$AY$1,Титульный!$AY$3) -> 18421 | L184: - | M184: =CEILING('прайс-лист2'!N170*Титульный!$AY$1,Титульный!$AY$3) -> 22557 | N184: =CEILING('прайс-лист2'!O170*Титульный!$AY$1,Титульный!$AY$3) -> 23712 | O184: =CEILING('прайс-лист2'!P170*Титульный!$AY$1,Титульный!$AY$3) -> 25505 | P184: =CEILING('прайс-лист2'!Q170*Титульный!$AY$1,Титульный!$AY$3) -> 27672 | Q184: =CEILING('прайс-лист2'!R170*Титульный!$AY$1,Титульный!$AY$3) -> 27463 | R184: =CEILING('прайс-лист2'!S170*Титульный!$AY$1,Титульный!$AY$3) -> 2190 | S184: =CEILING('прайс-лист2'!T170*Титульный!$AY$1,Титульный!$AY$3) -> 1808
A185: Шкаф Угл (560х420) Трап 2040х830х970 лев ** | C185: 830х970 | D185: =CEILING('прайс-лист2'!E171*Титульный!$AY$1,Титульный!$AY$3) -> 20333 | E185: =CEILING('прайс-лист2'!F171*Титульный!$AY$1,Титульный!$AY$3) -> 25052 | F185: =CEILING('прайс-лист2'!G171*Титульный!$AY$1,Титульный!$AY$3) -> 21048 | G185: =CEILING('прайс-лист2'!H171*Титульный!$AY$1,Титульный!$AY$3) -> 22808 | H185: =CEILING('прайс-лист2'!I171*Титульный!$AY$1,Титульный!$AY$3) -> 18210 | I185: =CEILING('прайс-лист2'!J171*Титульный!$AY$1,Титульный!$AY$3) -> 18331 | J185: =CEILING('прайс-лист2'!K171*Титульный!$AY$1,Титульный!$AY$3) -> 18705 | K185: =CEILING('прайс-лист2'!L171*Титульный!$AY$1,Титульный!$AY$3) -> 19684 | L185: - | M185: =CEILING('прайс-лист2'!N171*Титульный!$AY$1,Титульный!$AY$3) -> 23457 | N185: =CEILING('прайс-лист2'!O171*Титульный!$AY$1,Титульный!$AY$3) -> 24524 | O185: =CEILING('прайс-лист2'!P171*Титульный!$AY$1,Титульный!$AY$3) -> 26130 | P185: =CEILING('прайс-лист2'!Q171*Титульный!$AY$1,Титульный!$AY$3) -> 28110 | Q185: =CEILING('прайс-лист2'!R171*Титульный!$AY$1,Титульный!$AY$3) -> 27967 | R185: =CEILING('прайс-лист2'!S171*Титульный!$AY$1,Титульный!$AY$3) -> 1932 | S185: =CEILING('прайс-лист2'!T171*Титульный!$AY$1,Титульный!$AY$3) -> 3314
A186: Шкаф Угл (560х420) Трап 2040х830х970 пр **
A187: Шкаф Угл (560х420) Трап 2240х830х970 лев** | C187: 830х970 | D187: =CEILING('прайс-лист2'!E173*Титульный!$AY$1,Титульный!$AY$3) -> 21415 | E187: - | F187: =CEILING('прайс-лист2'!G173*Титульный!$AY$1,Титульный!$AY$3) -> 22207 | G187: =CEILING('прайс-лист2'!H173*Титульный!$AY$1,Титульный!$AY$3) -> 24143 | H187: =CEILING('прайс-лист2'!I173*Титульный!$AY$1,Титульный!$AY$3) -> 19083 | I187: =CEILING('прайс-лист2'!J173*Титульный!$AY$1,Титульный!$AY$3) -> 19226 | J187: =CEILING('прайс-лист2'!K173*Титульный!$AY$1,Титульный!$AY$3) -> 19622 | K187: =CEILING('прайс-лист2'!L173*Титульный!$AY$1,Титульный!$AY$3) -> 20700 | L187: - | M187: =CEILING('прайс-лист2'!N173*Титульный!$AY$1,Титульный!$AY$3) -> 24836 | N187: =CEILING('прайс-лист2'!O173*Титульный!$AY$1,Титульный!$AY$3) -> 25991 | O187: =CEILING('прайс-лист2'!P173*Титульный!$AY$1,Титульный!$AY$3) -> 27784 | P187: =CEILING('прайс-лист2'!Q173*Титульный!$AY$1,Титульный!$AY$3) -> 29951 | Q187: =CEILING('прайс-лист2'!R173*Титульный!$AY$1,Титульный!$AY$3) -> 29742 | R187: =CEILING('прайс-лист2'!S173*Титульный!$AY$1,Титульный!$AY$3) -> 2190 | S187: =CEILING('прайс-лист2'!T173*Титульный!$AY$1,Титульный!$AY$3) -> 1808
A188: Шкаф Угл (560х420) Трап 2240х830х970 пр**
A189: Шкаф Угл (420х420) Комб. Трап 2040х732х732 | C189: 732х732 | D189: =CEILING('прайс-лист2'!E175*Титульный!$AY$1,Титульный!$AY$3) -> 17642 | E189: =CEILING('прайс-лист2'!F175*Титульный!$AY$1,Титульный!$AY$3) -> 21173 | F189: =CEILING('прайс-лист2'!G175*Титульный!$AY$1,Титульный!$AY$3) -> 18170 | G189: =CEILING('прайс-лист2'!H175*Титульный!$AY$1,Титульный!$AY$3) -> 19490 | H189: =CEILING('прайс-лист2'!I175*Титульный!$AY$1,Титульный!$AY$3) -> 16047 | I189: =CEILING('прайс-лист2'!J175*Титульный!$AY$1,Титульный!$AY$3) -> 16135 | J189: =CEILING('прайс-лист2'!K175*Титульный!$AY$1,Титульный!$AY$3) -> 16410 | K189: =CEILING('прайс-лист2'!L175*Титульный!$AY$1,Титульный!$AY$3) -> 17147 | L189: - | M189: =CEILING('прайс-лист2'!N175*Титульный!$AY$1,Титульный!$AY$3) -> 20161 | N189: =CEILING('прайс-лист2'!O175*Титульный!$AY$1,Титульный!$AY$3) -> 21173 | O189: =CEILING('прайс-лист2'!P175*Титульный!$AY$1,Титульный!$AY$3) -> 22174 | P189: =CEILING('прайс-лист2'!Q175*Титульный!$AY$1,Титульный!$AY$3) -> 23648 | Q189: =CEILING('прайс-лист2'!R175*Титульный!$AY$1,Титульный!$AY$3) -> 23967 | R189: =CEILING('прайс-лист2'!S175*Титульный!$AY$1,Титульный!$AY$3) -> 1344 | S189: =CEILING('прайс-лист2'!T175*Титульный!$AY$1,Титульный!$AY$3) -> 2490
A190: Шкаф Угл (420х420) Комб. Трап 2240х732х732 | C190: 732х732 | D190: =CEILING('прайс-лист2'!E176*Титульный!$AY$1,Титульный!$AY$3) -> 18727 | E190: - | F190: =CEILING('прайс-лист2'!G176*Титульный!$AY$1,Титульный!$AY$3) -> 19310 | G190: =CEILING('прайс-лист2'!H176*Титульный!$AY$1,Титульный!$AY$3) -> 20762 | H190: =CEILING('прайс-лист2'!I176*Титульный!$AY$1,Титульный!$AY$3) -> 16978 | I190: =CEILING('прайс-лист2'!J176*Титульный!$AY$1,Титульный!$AY$3) -> 17077 | J190: =CEILING('прайс-лист2'!K176*Титульный!$AY$1,Титульный!$AY$3) -> 17385 | K190: =CEILING('прайс-лист2'!L176*Титульный!$AY$1,Титульный!$AY$3) -> 18188 | L190: - | M190: =CEILING('прайс-лист2'!N176*Титульный!$AY$1,Титульный!$AY$3) -> 21488 | N190: =CEILING('прайс-лист2'!O176*Титульный!$AY$1,Титульный!$AY$3) -> 22588 | O190: =CEILING('прайс-лист2'!P176*Титульный!$AY$1,Титульный!$AY$3) -> 23699 | P190: =CEILING('прайс-лист2'!Q176*Титульный!$AY$1,Титульный!$AY$3) -> 25316 | Q190: =CEILING('прайс-лист2'!R176*Титульный!$AY$1,Титульный!$AY$3) -> 25624 | R190: =CEILING('прайс-лист2'!S176*Титульный!$AY$1,Титульный!$AY$3) -> 1932 | S190: =CEILING('прайс-лист2'!T176*Титульный!$AY$1,Титульный!$AY$3) -> 3314
A191: Шкаф Угл (560х560) Трап 2040х970х970 | C191: 970х970 | D191: =CEILING('прайс-лист2'!E177*Титульный!$AY$1,Титульный!$AY$3) -> 21381 | E191: =CEILING('прайс-лист2'!F177*Титульный!$AY$1,Титульный!$AY$3) -> 26100 | F191: =CEILING('прайс-лист2'!G177*Титульный!$AY$1,Титульный!$AY$3) -> 22096 | G191: =CEILING('прайс-лист2'!H177*Титульный!$AY$1,Титульный!$AY$3) -> 23856 | H191: =CEILING('прайс-лист2'!I177*Титульный!$AY$1,Титульный!$AY$3) -> 19258 | I191: =CEILING('прайс-лист2'!J177*Титульный!$AY$1,Титульный!$AY$3) -> 19379 | J191: =CEILING('прайс-лист2'!K177*Титульный!$AY$1,Титульный!$AY$3) -> 19753 | K191: =CEILING('прайс-лист2'!L177*Титульный!$AY$1,Титульный!$AY$3) -> 20732 | L191: - | M191: =CEILING('прайс-лист2'!N177*Титульный!$AY$1,Титульный!$AY$3) -> 24505 | N191: =CEILING('прайс-лист2'!O177*Титульный!$AY$1,Титульный!$AY$3) -> 25572 | O191: =CEILING('прайс-лист2'!P177*Титульный!$AY$1,Титульный!$AY$3) -> 27178 | P191: =CEILING('прайс-лист2'!Q177*Титульный!$AY$1,Титульный!$AY$3) -> 29158 | Q191: =CEILING('прайс-лист2'!R177*Титульный!$AY$1,Титульный!$AY$3) -> 29015 | R191: =CEILING('прайс-лист2'!S177*Титульный!$AY$1,Титульный!$AY$3) -> 1523 | S191: =CEILING('прайс-лист2'!T177*Титульный!$AY$1,Титульный!$AY$3) -> 2730
A192: Шкаф Угл (560х560) Трап 2240х970х970 | C192: 970х970 | D192: =CEILING('прайс-лист2'!E178*Титульный!$AY$1,Титульный!$AY$3) -> 22510 | E192: - | F192: =CEILING('прайс-лист2'!G178*Титульный!$AY$1,Титульный!$AY$3) -> 23302 | G192: =CEILING('прайс-лист2'!H178*Титульный!$AY$1,Титульный!$AY$3) -> 25238 | H192: =CEILING('прайс-лист2'!I178*Титульный!$AY$1,Титульный!$AY$3) -> 20178 | I192: =CEILING('прайс-лист2'!J178*Титульный!$AY$1,Титульный!$AY$3) -> 20321 | J192: =CEILING('прайс-лист2'!K178*Титульный!$AY$1,Титульный!$AY$3) -> 20717 | K192: =CEILING('прайс-лист2'!L178*Титульный!$AY$1,Титульный!$AY$3) -> 21795 | L192: - | M192: =CEILING('прайс-лист2'!N178*Титульный!$AY$1,Титульный!$AY$3) -> 25931 | N192: =CEILING('прайс-лист2'!O178*Титульный!$AY$1,Титульный!$AY$3) -> 27086 | O192: =CEILING('прайс-лист2'!P178*Титульный!$AY$1,Титульный!$AY$3) -> 28879 | P192: =CEILING('прайс-лист2'!Q178*Титульный!$AY$1,Титульный!$AY$3) -> 31046 | Q192: =CEILING('прайс-лист2'!R178*Титульный!$AY$1,Титульный!$AY$3) -> 30837 | R192: =CEILING('прайс-лист2'!S178*Титульный!$AY$1,Титульный!$AY$3) -> 2190 | S192: =CEILING('прайс-лист2'!T178*Титульный!$AY$1,Титульный!$AY$3) -> 3632
A193: Шкаф Угл (560х560) Комб. Трап 2040х975х975 | C193: 975х975 | D193: =CEILING('прайс-лист2'!E179*Титульный!$AY$1,Титульный!$AY$3) -> 22480 | E193: =CEILING('прайс-лист2'!F179*Титульный!$AY$1,Титульный!$AY$3) -> 27199 | F193: =CEILING('прайс-лист2'!G179*Титульный!$AY$1,Титульный!$AY$3) -> 23195 | G193: =CEILING('прайс-лист2'!H179*Титульный!$AY$1,Титульный!$AY$3) -> 24955 | H193: =CEILING('прайс-лист2'!I179*Титульный!$AY$1,Титульный!$AY$3) -> 20357 | I193: =CEILING('прайс-лист2'!J179*Титульный!$AY$1,Титульный!$AY$3) -> 20478 | J193: =CEILING('прайс-лист2'!K179*Титульный!$AY$1,Титульный!$AY$3) -> 20852 | K193: =CEILING('прайс-лист2'!L179*Титульный!$AY$1,Титульный!$AY$3) -> 21831 | L193: - | M193: =CEILING('прайс-лист2'!N179*Титульный!$AY$1,Титульный!$AY$3) -> 25604 | N193: =CEILING('прайс-лист2'!O179*Титульный!$AY$1,Титульный!$AY$3) -> 26671 | O193: =CEILING('прайс-лист2'!P179*Титульный!$AY$1,Титульный!$AY$3) -> 28277 | P193: =CEILING('прайс-лист2'!Q179*Титульный!$AY$1,Титульный!$AY$3) -> 30257 | Q193: =CEILING('прайс-лист2'!R179*Титульный!$AY$1,Титульный!$AY$3) -> 30114 | R193: =CEILING('прайс-лист2'!S179*Титульный!$AY$1,Титульный!$AY$3) -> 1932 | S193: =CEILING('прайс-лист2'!T179*Титульный!$AY$1,Титульный!$AY$3) -> 3314
A194: Шкаф Угл (560х560) Комб. Трап 2240х975х975 | C194: 975х975 | D194: =CEILING('прайс-лист2'!E180*Титульный!$AY$1,Титульный!$AY$3) -> 23298 | E194: - | F194: =CEILING('прайс-лист2'!G180*Титульный!$AY$1,Титульный!$AY$3) -> 24090 | G194: =CEILING('прайс-лист2'!H180*Титульный!$AY$1,Титульный!$AY$3) -> 26026 | H194: =CEILING('прайс-лист2'!I180*Титульный!$AY$1,Титульный!$AY$3) -> 20966 | I194: =CEILING('прайс-лист2'!J180*Титульный!$AY$1,Титульный!$AY$3) -> 21109 | J194: =CEILING('прайс-лист2'!K180*Титульный!$AY$1,Титульный!$AY$3) -> 21505 | K194: =CEILING('прайс-лист2'!L180*Титульный!$AY$1,Титульный!$AY$3) -> 22583 | L194: - | M194: =CEILING('прайс-лист2'!N180*Титульный!$AY$1,Титульный!$AY$3) -> 26719 | N194: =CEILING('прайс-лист2'!O180*Титульный!$AY$1,Титульный!$AY$3) -> 27874 | O194: =CEILING('прайс-лист2'!P180*Титульный!$AY$1,Титульный!$AY$3) -> 29667 | P194: =CEILING('прайс-лист2'!Q180*Титульный!$AY$1,Титульный!$AY$3) -> 31834 | Q194: =CEILING('прайс-лист2'!R180*Титульный!$AY$1,Титульный!$AY$3) -> 31625 | R194: =CEILING('прайс-лист2'!S180*Титульный!$AY$1,Титульный!$AY$3) -> 2190 | S194: =CEILING('прайс-лист2'!T180*Титульный!$AY$1,Титульный!$AY$3) -> 3632
A195: Стеллаж (420) Торцевой 2040х300 Радиусный | C195: 300х420х2040 | D195: =CEILING('прайс-лист2'!E181*Титульный!$AY$1,Титульный!$AY$3) -> 4079 | R195: - | S195: -
A196: Стеллаж (420) Торцевой 2240х300 Радиусный | C196: 300х420х2240 | D196: =CEILING('прайс-лист2'!E182*Титульный!$AY$1,Титульный!$AY$3) -> 4548 | R196: - | S196: -
A197: Стеллаж (560) Торцевой 2040х300 Радиусный | C197: 300х560х2040 | D197: =CEILING('прайс-лист2'!E183*Титульный!$AY$1,Титульный!$AY$3) -> 4744 | R197: - | S197: -
A198: Стеллаж (560) Торцевой 2240х300 Радиусный | C198: 300х560х2240 | D198: =CEILING('прайс-лист2'!E184*Титульный!$AY$1,Титульный!$AY$3) -> 5319 | R198: - | S198: -
A199: Внимание!!! Для наборов мебели "Марго" использовать только накладные зеркала
A200: Кровати
... 206 more rows

Sheet прайс-лист2 (hidden)
B1: Шкафы глубиной 420мм
B2: Наименование | C2: Эскиз | D2: Ширина, мм | E2: МДФ фасады | I2: Марго | N2: UV-лак | P2: ТСС | R2: ТСС сборный
E3: 1 ЦК | F3: 1 ЦК + патина | G3: 2 ЦК | H3: 3 ЦК | I3: Марго 1 ц.к. | J3: Марго 2 ц.к. | K3: Марго 3 ц.к. | L3: Марго 4 ц.к. | M3: Марго 5 ц.к. | N3: кромка АВС | O3: кромка 3D | P3: 1 ЦК | Q3: 2 ЦК | S3: Зеркало в рамке** | T3: Зеркало накладное*
B4: Шкаф (420) 1дв 2040х420 | D4: 420 | E4: 10425.8 | F4: 13956.8 | G4: 10953.8 | H4: 12273.8 | I4: 8830.8 | J4: 8918.8 | K4: 9193.8 | L4: 9930.8 | M4: 0 | N4: 12944.8 | O4: 13956.8 | P4: 14957.8 | Q4: 16431.8 | R4: 16750.8 | S4: 1344 | T4: 2490 | W4: Зеркало 1030х410 F10 | X4: 1562
B5: Шкаф (420) 1дв 2040х560 | D5: 560 | E5: 12328.8 | F5: 17047.8 | G5: 13043.8 | H5: 14803.8 | I5: 10205.8 | J5: 10326.8 | K5: 10700.8 | L5: 11679.8 | M5: 0 | N5: 15452.8 | O5: 16519.8 | P5: 18125.8 | Q5: 20105.8 | R5: 19962.8 | S5: 1932 | T5: 3314 | W5: Зеркало 1032х412 F10 | X5: 1720 | Y5: 1563
B6: Шкаф (420) 1дв 2240х420 | D6: 420 | E6: 11313.5 | F6: 15196.5 | G6: 11896.5 | H6: 13348.5 | I6: 9564.5 | J6: 9663.5 | K6: 9971.5 | L6: 10774.5 | M6: 0 | N6: 14074.5 | O6: 15174.5 | P6: 16285.5 | Q6: 17902.5 | R6: 18210.5 | S6: 1523 | T6: 2730 | W6: Зеркало 1100х400 (арка) 3 мм. Р.О. | X6: 712 | Y6: 647
B7: Шкаф (420) 1дв 2240х560 | D7: 560 | E7: 13411.2 | F7: 18614.2 | G7: 14203.2 | H7: 16139.2 | I7: 11079.2 | J7: 11222.2 | K7: 11618.2 | L7: 12696.2 | M7: 0 | N7: 16832.2 | O7: 17987.2 | P7: 19780.2 | Q7: 21947.2 | R7: 21738.2 | S7: 2190 | T7: 3632 | W7: Зеркало 1120х300 | X7: 596 | Y7: 541
B8: Шкаф (420) 1дв 1240х420 | D8: 420х420х1240 | E8: 6992.7 | F8: 9115.7 | G8: 7311.7 | H8: 8103.7 | I8: 6035.7 | J8: 6090.7 | K8: 6255.7 | L8: 6695.7 | M8: 0 | N8: 8565.7 | O8: 9247.7 | P8: 9775.7 | Q8: 10655.7 | R8: 11040.7 | W8: Зеркало 1134х380 F10 | X8: 1758 | Y8: 1598
B9: Шкаф (420) 1дв 1240х560 | D9: 560х420х1240 | E9: 8072.9 | F9: 10910.9 | G9: 8501.9 | H9: 9557.9 | I9: 6807.9 | J9: 6873.9 | K9: 7093.9 | L9: 7687.9 | M9: 0 | N9: 10030.9 | O9: 10767.9 | P9: 11636.9 | Q9: 12824.9 | R9: 12967.9 | W9: Зеркало 1134х520 F10 | X9: 2042 | Y9: 1856
B10: Шкаф (420) 1дв витрина 1240х420 | D10: 420 | E10: 8211.5 | F10: 10334.5 | G10: 8530.5 | H10: 9322.5 | I10: 9208 | J10: 9208 | K10: 9208 | L10: 9208 | M10: 0 | N10: 9634.9 | O10: 10536.9 | P10: 10888.9 | Q10: 11812.9 | R10: 9986.9 | W10: Зеркало 1165х402 3 мм. | X10: 752 | Y10: 683
B11: Шкаф (420) 1дв витрина 1240х560 | D11: 560 | E11: 9736.1 | F11: 12574.1 | G11: 10165.1 | H11: 11221.1 | I11: 10048 | J11: 10048 | K11: 10048 | L11: 10048 | M11: 0 | N11: 11422.4 | O11: 12467.4 | P11: 13094.4 | Q11: 14337.4 | R11: 11180.4 | W11: Зеркало 1230х410 F10 | X11: 1896 | Y11: 1723
B12: Шкаф (420) 1дв витрина 2040х420 | D12: 420 | E12: 11414.7 | F12: 14945.7 | G12: 11942.7 | H12: 13262.7 | I12: 11997 | J12: 11997 | K12: 11997 | L12: 11997 | M12: 0 | N12: 13615.8 | O12: 14891.8 | P12: 15749.8 | Q12: 17322.8 | R12: 13736.8 | W12: Зеркало 1232х412 F10 | X12: 2086 | Y12: 1896
B13: Шкаф (420) 1дв витрина 2040х560 | D13: 560 | E13: 13044.9 | F13: 17763.9 | G13: 13759.9 | H13: 15519.9 | I13: 12304 | J13: 12304 | K13: 12304 | L13: 12304 | M13: 0 | N13: 15618.9 | O13: 17026.9 | P13: 18467.9 | Q13: 20579.9 | R13: 14595.9 | W13: Зеркало 1280х318 | X13: 784 | Y13: 712
B14: Шкаф (420) 1дв витрина 2240х420 | D14: 420 | E14: 12391.5 | F14: 16274.5 | G14: 12974.5 | H14: 14426.5 | I14: 12892 | J14: 12892 | K14: 12892 | L14: 12892 | M14: 0 | N14: 14788.4 | O14: 16152.4 | P14: 17142.4 | Q14: 18880.4 | R14: 14854.4 | W14: Зеркало 1399х384 3мм. | X14: 866 | Y14: 787
B15: Шкаф (420) 1дв 2ящ 2040х420 | D15: 420 | E15: 11434.5 | F15: 14965.5 | G15: 11973.5 | H15: 13293.5 | I15: 9861.5 | J15: 9927.5 | K15: 10213.5 | L15: 10939.5 | M15: 0 | N15: 14261.5 | O15: 15636.5 | P15: 16285.5 | Q15: 17748.5 | R15: 18562.5 | S15: 1344 | T15: 2010 | W15: Зеркало 1498х364 шлиф | X15: 669 | Y15: 608
B16: Шкаф (420) 1дв 2ящ 2240х420 | D16: 420 | E16: 12321.1 | F16: 16215.1 | G16: 12915.1 | H16: 14367.1 | I16: 10583.1 | J16: 10671.1 | K16: 10979.1 | L16: 11782.1 | M16: 0 | N16: 15390.1 | O16: 16842.1 | P16: 17612.1 | Q16: 19229.1 | R16: 20021.1 | S16: 1523 | T16: 2250 | W16: Зеркало 1500х320 | X16: 849 | Y16: 771
B17: Шкаф (420) 1дв 2ящ 2040х560 | D17: 560 | E17: 13448.6 | F17: 18167.6 | G17: 14163.6 | H17: 15934.6 | I17: 11325.6 | J17: 11446.6 | K17: 11831.6 | L17: 12788.6 | M17: 0 | N17: 16979.6 | O17: 18519.6 | P17: 19663.6 | Q17: 21621.6 | R17: 22061.6 | S17: 1932 | T17: 2677 | W17: Зеркало 1500х460 | X17: 1220 | Y17: 1109
B18: Шкаф (420) 1дв 2ящ 2240х560 | D18: 560 | E18: 14517.8 | F18: 19709.8 | G18: 15309.8 | H18: 17256.8 | I18: 12196.8 | J18: 12328.8 | K18: 12746.8 | L18: 13802.8 | M18: 0 | N18: 18345.8 | O18: 19962.8 | P18: 21304.8 | Q18: 23449.8 | R18: 23823.8 | S18: 2190 | T18: 2995 | W18: Зеркало 1570х386 шлиф | X18: 1241 | Y18: 1128
B19: Шкаф (420) 1дв 2ящ Шар 2040х420 | D19: 420 | E19: 12027.4 | F19: 15558.4 | G19: 12566.4 | H19: 13886.4 | I19: 10454.4 | J19: 10520.4 | K19: 10806.4 | L19: 11532.4 | M19: 0 | N19: 14854.4 | O19: 16229.4 | P19: 16878.4 | Q19: 18341.4 | R19: 19155.4 | S19: =S15 -> 1344 | T19: =T15 -> 2010 | W19: Зеркало 1570х526 шлиф | X19: 1616 | Y19: 1469
B20: Шкаф (420) 1дв 2ящ Шар 2240х420 | D20: 420 | E20: 12903 | F20: 16797 | G20: 13497 | H20: 14949 | I20: 11165 | J20: 11253 | K20: 11561 | L20: 12364 | M20: 0 | N20: 15972 | O20: 17424 | P20: 18194 | Q20: 19811 | R20: 20603 | S20: =S16 -> 1523 | T20: 2250 | W20: Зеркало 1592х318 F10 | X20: 2090 | Y20: 1900
B21: Шкаф (420) 1дв 2ящ Шар 2040х560 | D21: 560 | E21: 13966.7 | F21: 18685.7 | G21: 14681.7 | H21: 16452.7 | I21: 11843.7 | J21: 11964.7 | K21: 12349.7 | L21: 13306.7 | M21: 0 | N21: 17497.7 | O21: 19037.7 | P21: 20181.7 | Q21: 22139.7 | R21: 22579.7 | S21: =S17 -> 1932 | T21: 2677 | W21: Зеркало 1592х318 еврокр | X21: 871 | Y21: 791
B22: Шкаф (420) 1дв 2ящ Шар 2240х560 | D22: 560 | E22: 14969.9 | F22: 20161.9 | G22: 15761.9 | H22: 17708.9 | I22: 12648.9 | J22: 12780.9 | K22: 13198.9 | L22: 14254.9 | M22: 0 | N22: 18797.9 | O22: 20414.9 | P22: 21756.9 | Q22: 23901.9 | R22: 24275.9 | S22: =S18 -> 2190 | T22: 2995 | W22: Зеркало 1592х458 F10 | X22: 2448
B23: Шкаф (420) 1дв 2ящ витрина 2040х420 | D23: 420 | E23: 12288.1 | F23: 15819.1 | G23: 12827.1 | H23: 14147.1 | I23: 11348 | J23: 11348 | K23: 11348 | L23: 11348 | M23: 0 | N23: 14800.5 | O23: 16417.5 | P23: 16912.5 | Q23: 18441.5 | R23: 16208.5 | W23: Зеркало 1700х320 | X23: 963
B24: Шкаф (420) 1дв 2ящ витрина 2240х420 | D24: 420 | E24: 13191.2 | F24: 17085.2 | G24: 13785.2 | H24: 15237.2 | I24: 13564 | J24: 13564 | K24: 13564 | L24: 13564 | M24: 0 | N24: 15976.4 | O24: 17681.4 | P24: 18308.4 | Q24: 20002.4 | R24: 17329.4 | W24: Зеркало 1700х460 | X24: 1490
B25: Шкаф (420) 2дв 1ящ 2040х420 | D25: 420 | E25: 10857 | F25: 14399 | G25: 11396 | H25: 12716 | I25: 9273 | J25: 9361 | K25: 9636 | L25: 10362 | M25: 0 | N25: 13684 | O25: 15048 | P25: 15697 | Q25: 17160 | R25: 18205 | W25: Зеркало 1792х318 F10 | X25: 2281
B26: Шкаф (420) 2дв 1ящ 2240х420 | D26: 420 | E26: 11730.4 | F26: 15624.4 | G26: 12324.4 | H26: 13776.4 | I26: 9992.4 | J26: 10080.4 | K26: 10388.4 | L26: 11191.4 | M26: 0 | N26: 14799.4 | O26: 16251.4 | P26: 17010.4 | Q26: 18627.4 | R26: 19650.4 | W26: Зеркало 1792х318 еврокр | X26: 987
B27: Шкаф (420) 2дв 1ящ витрина 2040х420 | D27: 420 | E27: 11707.3 | F27: 15249.3 | G27: 12246.3 | H27: 13566.3 | I27: 13862 | J27: 13862 | K27: 13862 | L27: 13862 | M27: 0 | N27: 14367.1 | O27: 16171.1 | P27: 16402.1 | Q27: 17909.1 | R27: 15808.1 | W27: Зеркало 1792х458 F10 | X27: 2797
B28: Шкаф (420) 2дв 1ящ витрина 2240х420 | D28: 420 | E28: 12762.2 | F28: 16656.2 | G28: 13356.2 | H28: 14808.2 | I28: 14815 | J28: 14815 | K28: 14815 | L28: 14815 | M28: 0 | N28: 15617.8 | O28: 17509.8 | P28: 17883.8 | Q28: 19544.8 | R28: 17003.8 | W28: Зеркало 1920х300 | X28: 1019
B29: Шкаф (420) 2дв 1ящ шар 2040х420 | D29: 420 | E29: 11070.4 | F29: 14612.4 | G29: 11609.4 | H29: 12929.4 | I29: 9486.4 | J29: 9574.4 | K29: 9849.4 | L29: 10575.4 | M29: 0 | N29: 13897.4 | O29: 15261.4 | P29: 15910.4 | Q29: 17373.4 | R29: 18418.4 | S29: 0 | T29: 0 | W29: Зеркало 1992х318 F10 | X29: 2473
B30: Шкаф (420) 2дв 1ящ шар 2240х420 | D30: 420 | E30: 11936.1 | F30: 15830.1 | G30: 12530.1 | H30: 13982.1 | I30: 10198.1 | J30: 10286.1 | K30: 10594.1 | L30: 11397.1 | M30: 0 | N30: 15005.1 | O30: 16457.1 | P30: 17216.1 | Q30: 18833.1 | R30: 19856.1 | S30: 0 | T30: 0 | W30: Зеркало 1992х458 F10 | X30: 3084
B31: Шкаф (420) 2дв 1ящ шар витрина 2040х420 | D31: 420 | E31: 12061.5 | F31: 15603.5 | G31: 12600.5 | H31: 13920.5 | I31: 9848.3 | J31: 9936.3 | K31: 10211.3 | L31: 10959.3 | M31: 0 | N31: 14721.3 | O31: 16525.3 | P31: 16756.3 | Q31: 18263.3 | R31: 16162.3 | S31: 0 | T31: 0 | W31: Зеркало 2028х384 F10 | X31: 2675
B32: Шкаф (420) 2дв 1ящ шар витрина 2240х420 | D32: 420 | E32: 12963.5 | F32: 16857.5 | G32: 13557.5 | H32: 15009.5 | I32: 10506.1 | J32: 10605.1 | K32: 10913.1 | L32: 11738.1 | M32: 0 | N32: 15819.1 | O32: 17711.1 | P32: 18085.1 | Q32: 19746.1 | R32: 17205.1 | S32: 0 | T32: 0 | W32: Зеркало 2192х318 F10 | X32: 2675
B33: Шкаф (420) 2дв 2040х840 | D33: 840 | E33: 17545 | F33: 24607 | G33: 18601 | H33: 21241 | I33: 14355 | J33: 14531 | K33: 15081 | L33: 16555 | M33: 0 | N33: 22583 | O33: 24607 | P33: 26609 | Q33: 29557 | R33: 30195 | S33: 2688 | T33: 4980 | W33: Зеркало 2192х458 F10 | X33: 3130
B34: Шкаф (420) 2дв 2240х840 | D34: 840 | E34: 19050.9 | F34: 26816.9 | G34: 20216.9 | H34: 23120.9 | I34: 15552.9 | J34: 15750.9 | K34: 16366.9 | L34: 17972.9 | M34: 0 | N34: 24572.9 | O34: 26772.9 | P34: 28994.9 | Q34: 32228.9 | R34: 32844.9 | S34: 3046 | T34: 5460 | W34: Зеркало 520х690 еврокр | X34: 1015
B35: Шкаф (420) комб 2дв 2040х840 | D35: 840 | E35: 19008 | F35: 26070 | G35: 20064 | H35: 22704 | I35: 15818 | J35: 15994 | K35: 16544 | L35: 18018 | M35: 0 | N35: 24046 | O35: 26070 | P35: 28072 | Q35: 31020 | R35: 31658 | S35: =S33 -> 2688 | T35: =T33 -> 4980 | W35: Зеркало 568х688 3 мм. фиг. | X35: 1071
B36: Шкаф (420) комб 2дв 2240х840 | D36: 840 | E36: 20376.4 | F36: 28142.4 | G36: 21542.4 | H36: 24446.4 | I36: 16878.4 | J36: 17076.4 | K36: 17692.4 | L36: 19298.4 | M36: 0 | N36: 25898.4 | O36: 28098.4 | P36: 30320.4 | Q36: 33554.4 | R36: 34170.4 | S36: =S34 -> 3046 | T36: =T34 -> 5460 | W36: Зеркало 600х560 (прямое) F10 | X36: 1441
B37: Шкаф (420) 2дв витрина 2040х840 | D37: 840 | E37: 20267.5 | F37: 27329.5 | G37: 21323.5 | H37: 23963.5 | I37: 14791.7 | J37: 14989.7 | K37: 15583.7 | L37: 17145.7 | M37: 0 | N37: 23921.7 | O37: 26473.7 | P37: 28189.7 | Q37: 31335.7 | R37: 24163.7 | W37: Зеркало 600х560 (трапеция) F10 | X37: 1441
B38: Шкаф (420) 2дв витрина 2240х840 | D38: 840 | E38: 22045.1 | F38: 29811.1 | G38: 23211.1 | H38: 26115.1 | I38: 15999.5 | J38: 16219.5 | K38: 16879.5 | L38: 18595.5 | M38: 0 | N38: 26009.5 | O38: 28737.5 | P38: 30717.5 | Q38: 34193.5 | R38: 26141.5 | W38: Зеркало 600х760 (прямое) F10 | X38: 1711
B39: Шкаф (420) 2дв 2ящ 2040х840 | D39: 840 | E39: 18705.5 | F39: 25767.5 | G39: 19783.5 | H39: 22401.5 | I39: 15537.5 | J39: 15713.5 | K39: 16263.5 | L39: 17737.5 | M39: 0 | N39: 24227.5 | O39: 26801.5 | P39: 28253.5 | Q39: 31179.5 | R39: 32301.5 | S39: =S33 -> 2688 | T39: 4020 | W39: Зеркало 600х760 (трапеция) F10 | X39: 1711
B40: Шкаф (420) 2дв 2ящ 2240х840 | D40: 840 | E40: 20242.2 | F40: 28030.2 | G40: 21430.2 | H40: 24312.2 | I40: 16744.2 | J40: 16964.2 | K40: 17558.2 | L40: 19186.2 | M40: 0 | N40: 26248.2 | O40: 28976.2 | P40: 30670.2 | Q40: 33904.2 | R40: 34982.2 | S40: =S34 -> 3046 | T40: 4500 | W40: Зеркало 600х960 (прямое) F10 | X40: 1974
B41: Шкаф (420) 2дв 2ящ витрина 2040х840 | D41: 840 | E41: 20856 | F41: 27918 | G41: 21934 | H41: 24552 | I41: 15870.8 | J41: 16068.8 | K41: 16640.8 | L41: 18180.8 | M41: 0 | N41: 25308.8 | O41: 28366.8 | P41: 29510.8 | Q41: 32568.8 | R41: 27596.8 | W41: Зеркало 600х960 (трапеция) F10 | X41: 1974
B42: Шкаф (420) 2дв 2ящ витрина 2240х840 | D42: 840 | E42: 22371.8 | F42: 30159.8 | G42: 23559.8 | H42: 26441.8 | I42: 16841 | J42: 17061 | K42: 17699 | L42: 19371 | M42: 0 | N42: 27137 | O42: 30371 | P42: 31779 | Q42: 35167 | R42: 29315 | W42: Зеркало 700х600 | X42: 744
B43: Шкаф (420) 2дв 2ящ шар 2040х840 | D43: 840 | E43: 18843 | F43: 25905 | G43: 19921 | H43: 22539 | I43: 15675 | J43: 15851 | K43: 16401 | L43: 17875 | M43: 0 | N43: 24365 | O43: 26939 | P43: 28391 | Q43: 31317 | R43: 32439 | W43: Зеркало 800х580 | X43: 823
B44: Шкаф (420) 2дв 2ящ шар 2240х840 | D44: 840 | E44: 20350 | F44: 28138 | G44: 21538 | H44: 24420 | I44: 16852 | J44: 17072 | K44: 17666 | L44: 19294 | M44: 0 | N44: 26356 | O44: 29084 | P44: 30778 | Q44: 34012 | R44: 35090 | W44: Зеркало 700х600 | X44: 520
B45: Шкаф (420) 2дв 2ящ шар витрина 2040х840 | D45: 840 | E45: 20988 | F45: 28050 | G45: 22066 | H45: 24684 | I45: 16002.8 | J45: 16200.8 | K45: 16772.8 | L45: 18312.8 | M45: 0 | N45: 25440.8 | O45: 28498.8 | P45: 29642.8 | Q45: 32700.8 | R45: 27728.8 | W45: Зеркало 800х580 | X45: 575
B46: Шкаф (420) 2дв 2ящ шар витрина 2240х840 | D46: 840 | E46: 23061.5 | F46: 30849.5 | G46: 24249.5 | H46: 27131.5 | I46: 17530.7 | J46: 17750.7 | K46: 18388.7 | L46: 20060.7 | M46: 0 | N46: 27826.7 | O46: 31060.7 | P46: 32468.7 | Q46: 35856.7 | R46: 30004.7
B47: Шкаф (420) 1дв полувитрина 2040х420 | D47: 420х440х2040 | E47: 11440 | F47: 14971 | G47: 11968 | H47: 13288 | I47: 9200.4 | J47: 9299.4 | K47: 9596.4 | L47: 10377.4 | M47: 0 | N47: 13765.4 | O47: 15041.4 | P47: 15899.4 | Q47: 17472.4 | R47: 13886.4
B48: Шкаф (420) 1дв полувитрина 2040х560 | D48: 560х440х2040 | E48: 13544.3 | F48: 18263.3 | G48: 14259.3 | H48: 16019.3 | I48: 10479.7 | J48: 10611.7 | K48: 10996.7 | L48: 12041.7 | M48: 0 | N48: 16298.7 | O48: 17706.7 | P48: 19147.7 | Q48: 21259.7 | R48: 15275.7
B49: Шкаф (420) 1дв полувитрина 2240х420 | D49: 420х440х2240 | E49: 12351.9 | F49: 16234.9 | G49: 12934.9 | H49: 14386.9 | I49: 9945.1 | J49: 10055.1 | K49: 10385.1 | L49: 11243.1 | M49: 0 | N49: 14950.1 | O49: 16314.1 | P49: 17304.1 | Q49: 19042.1 | R49: 15016.1
B50: Шкаф (420) 1дв полувитрина 2240х560 | D50: 560х440х2240 | E50: 14653.1 | F50: 19856.1 | G50: 15445.1 | H50: 17381.1 | I50: 11366.3 | J50: 11509.3 | K50: 11949.3 | L50: 13093.3 | M50: 0 | N50: 17746.3 | O50: 19242.3 | P50: 20892.3 | Q50: 23213.3 | R50: 16536.3
B51: Шкаф (420) 2дв полувитрина 2040х840 | D51: 840х440х2040 | E51: 19836.3 | F51: 26898.3 | G51: 20892.3 | H51: 23532.3 | I51: 14917.1 | J51: 15115.1 | K51: 15709.1 | L51: 17271.1 | M51: 0 | N51: 24047.1 | O51: 26599.1 | P51: 28315.1 | Q51: 31461.1 | R51: 24289.1
B52: Шкаф (420) 2дв полувитрина 2240х840 | D52: 840х440х2240 | E52: 21623.8 | F52: 29389.8 | G52: 22789.8 | H52: 25693.8 | I52: 16137 | J52: 16357 | K52: 17017 | L52: 18733 | M52: 0 | N52: 26147 | O52: 28875 | P52: 30855 | Q52: 34331 | R52: 26279
B53: Шкаф (420) 1дв витрина 1дв глух 2040х420 | D53: 420х440х2040 | E53: 12006.5 | F53: 15537.5 | G53: 12545.5 | H53: 13865.5 | I53: 9733.9 | J53: 9832.9 | K53: 10118.9 | L53: 10888.9 | M53: 0 | N53: 14375.9 | O53: 15805.9 | P53: 16476.9 | Q53: 18005.9 | R53: 15750.9
B54: Шкаф (420) 1дв витрина 1дв глух 2040х560 | D54: 560х440х2040 | E54: 14127.3 | F54: 18835.3 | G54: 14831.3 | H54: 16602.3 | I54: 11007.7 | J54: 11139.7 | K54: 11513.7 | L54: 12547.7 | M54: 0 | N54: 16936.7 | O54: 18553.7 | P54: 19730.7 | Q54: 21798.7 | R54: 17662.7
B55: Шкаф (420) 1дв витрина 1дв глух 2240х420 | D55: 420х440х2240 | E55: 12920.6 | F55: 16814.6 | G55: 13514.6 | H55: 14966.6 | I55: 10491.8 | J55: 10601.8 | K55: 10920.8 | L55: 11756.8 | M55: 0 | N55: 15562.8 | O55: 17080.8 | P55: 17883.8 | Q55: 19577.8 | R55: 16882.8
B56: Шкаф (420) 1дв витрина 1дв глух 2240х560 | D56: 560х440х2240 | E56: 15240.5 | F56: 20421.5 | G56: 16021.5 | H56: 17968.5 | I56: 11898.7 | J56: 12052.7 | K56: 12470.7 | L56: 13603.7 | M56: 0 | N56: 18388.7 | O56: 20104.7 | P56: 21479.7 | Q56: 23756.7 | R56: 18916.7
B57: Шкаф (420) 1дв витрина зеркало 1дв глух 2040х420 | D57: 420х440х2040 | E57: 14968.8 | F57: 18499.8 | G57: 15507.8 | H57: 16827.8 | I57: 12696.2 | J57: 12795.2 | K57: 13081.2 | L57: 13851.2 | M57: 0 | N57: 17338.2 | O57: 18768.2 | P57: 19439.2 | Q57: 20968.2 | R57: 18713.2 | S57: 0 | T57: 0
B58: Шкаф (420) 1дв витрина зеркало 1дв глух 2040х560 | D58: 560х440х2040 | E58: 17670.4 | F58: 22378.4 | G58: 18374.4 | H58: 20145.4 | I58: 14550.8 | J58: 14682.8 | K58: 15056.8 | L58: 16090.8 | M58: 0 | N58: 20479.8 | O58: 22096.8 | P58: 23273.8 | Q58: 25341.8 | R58: 21205.8 | S58: 0 | T58: 0
B59: Шкаф (420) 2дв витрина 2дв глух 2040х840 | D59: 840х440х2040 | E59: 20878 | F59: 27940 | G59: 21956 | H59: 24596 | I59: 15892.8 | J59: 16090.8 | K59: 16662.8 | L59: 18202.8 | M59: 0 | N59: 25176.8 | O59: 28036.8 | P59: 29378.8 | Q59: 32436.8 | R59: 27926.8 | S59: 0 | T59: 0
B60: Шкаф (420) 2дв витрина 2дв глух 2240х840 | D60: 840х440х2240 | E60: 22669.9 | F60: 30457.9 | G60: 23857.9 | H60: 26761.9 | I60: 17139.1 | J60: 17359.1 | K60: 17997.1 | L60: 19669.1 | M60: 0 | N60: 27281.1 | O60: 30317.1 | P60: 31923.1 | Q60: 35311.1 | R60: 29921.1 | S60: 0 | T60: 0
B61: Шкаф (420) ДО 1дв 2040х560 | D61: 560х440х2040 | E61: 11774.4 | F61: 16493.4 | G61: 12489.4 | H61: 14249.4 | I61: 9651.4 | J61: 9772.4 | K61: 10146.4 | L61: 11125.4 | M61: 0 | N61: 14898.4 | O61: 15965.4 | P61: 17571.4 | Q61: 19551.4 | R61: 19408.4 | S61: 1932 | T61: 3314
B62: Шкаф (420) ДО 1дв 2240х560 | D62: 560х440х2240 | E62: 12509.2 | F62: 17712.2 | G62: 13301.2 | H62: 15237.2 | I62: 10177.2 | J62: 10320.2 | K62: 10716.2 | L62: 11794.2 | M62: 0 | N62: 15930.2 | O62: 17085.2 | P62: 18878.2 | Q62: 21045.2 | R62: 20836.2 | S62: 2190 | T62: 3632
B63: Шкаф (420) ДО 2дв 2040х840 | D63: 840 | E63: 16641.9 | F63: 23703.9 | G63: 17697.9 | H63: 20337.9 | I63: 13451.9 | J63: 13627.9 | K63: 14177.9 | L63: 15651.9 | M63: 0 | N63: 21679.9 | O63: 23703.9 | P63: 25705.9 | Q63: 28653.9 | R63: 29291.9 | S63: =S39 -> 2688 | T63: 4980
B64: Шкаф (420) ДО 2дв 2240х840 | D64: 840 | E64: 17648.4 | F64: 25414.4 | G64: 18814.4 | H64: 21718.4 | I64: 14150.4 | J64: 14348.4 | K64: 14964.4 | L64: 16570.4 | M64: 0 | N64: 23170.4 | O64: 25370.4 | P64: 27592.4 | Q64: 30826.4 | R64: 31442.4 | S64: =S40 -> 3046 | T64: 5460
B65: Шкаф (420) ДО 2дв 2ящ 2040х840 | D65: 840 | E65: 17854.1 | F65: 24916.1 | G65: 18932.1 | H65: 21550.1 | I65: 14686.1 | J65: 14862.1 | K65: 15412.1 | L65: 16886.1 | M65: 0 | N65: 23376.1 | O65: 25950.1 | P65: 27402.1 | Q65: 30328.1 | R65: 31450.1 | S65: =S63 -> 2688 | T65: 4020
B66: Шкаф (420) ДО 2дв 2ящ 2240х840 | D66: 840 | E66: 18861.7 | F66: 26649.7 | G66: 20049.7 | H66: 22931.7 | I66: 15363.7 | J66: 15583.7 | K66: 16177.7 | L66: 17805.7 | M66: 0 | N66: 24867.7 | O66: 27595.7 | P66: 29289.7 | Q66: 32523.7 | R66: 33601.7 | S66: =S64 -> 3046 | T66: 4500
B67: Шкаф (420) ДО 2дв 2ящ шар 2040х840 | D67: 840 | E67: 18647.2 | F67: 25709.2 | G67: 19725.2 | H67: 22343.2 | I67: 15479.2 | J67: 15655.2 | K67: 16205.2 | L67: 17679.2 | M67: 0 | N67: 24169.2 | O67: 26743.2 | P67: 28195.2 | Q67: 31121.2 | R67: 32243.2 | S67: 2688 | T67: =T65 -> 4020
B68: Шкаф (420) ДО 2дв 2ящ шар 2240х840 | D68: 840 | E68: 19664.7 | F68: 27452.7 | G68: 20852.7 | H68: 23734.7 | I68: 16166.7 | J68: 16386.7 | K68: 16980.7 | L68: 18608.7 | M68: 0 | N68: 25670.7 | O68: 28398.7 | P68: 30092.7 | Q68: 33326.7 | R68: 34404.7 | S68: 3046 | T68: =T66 -> 4500
B69: Шкаф (420) Ниша 2дв 2040х420 | D69: 420 | E69: 9995.7 | F69: 12833.7 | G69: 10435.7 | H69: 11491.7 | I69: 8741.7 | J69: 8807.7 | K69: 9027.7 | L69: 9621.7 | M69: 0 | N69: 12217.7 | O69: 13229.7 | P69: 13823.7 | Q69: 14989.7 | R69: 15825.7
B70: Шкаф (420) Ниша 2дв 2040х560 | D70: 560 | E70: 12871.1 | F70: 16655.1 | G70: 13443.1 | H70: 14851.1 | I70: 11177.1 | J70: 11287.1 | K70: 11573.1 | L70: 12343.1 | M70: 0 | N70: 15621.1 | O70: 16765.1 | P70: 17755.1 | Q70: 19339.1 | R70: 19911.1 | S70: 0 | T70: 0
B71: Шкаф (420) Ниша 2дв 2240х420 | D71: 420 | E71: 10898.8 | F71: 14077.8 | G71: 11382.8 | H71: 12570.8 | I71: 9468.8 | J71: 9556.8 | K71: 9798.8 | L71: 10458.8 | M71: 0 | N71: 13351.8 | O71: 14440.8 | P71: 15155.8 | Q71: 16475.8 | R71: 17289.8
B72: Шкаф (420) Ниша 2дв 2240х560 | D72: 560 | E72: 14179 | F72: 18425 | G72: 14817 | H72: 16401 | I72: 12265 | J72: 12386 | K72: 12716 | L72: 13585 | M72: 0 | N72: 17215 | O72: 18436 | P72: 19624 | Q72: 21395 | R72: 21901 | S72: 0 | T72: 0
B73: Шкаф (420) Ниша 4дв 2040х840 | D73: 840 | E73: 16713.4 | F73: 22389.4 | G73: 17593.4 | H73: 19705.4 | I73: 14205.4 | J73: 14337.4 | K73: 14777.4 | L73: 15965.4 | M73: 0 | N73: 21157.4 | O73: 23181.4 | P73: 24369.4 | Q73: 26701.4 | R73: 28373.4
B74: Шкаф (420) Ниша 4дв 2240х840 | D74: 840 | E74: 20484.2 | F74: 26842.2 | G74: 21452.2 | H74: 23828.2 | I74: 17624.2 | J74: 17800.2 | K74: 18284.2 | L74: 19604.2 | M74: 0 | N74: 25390.2 | O74: 27568.2 | P74: 28998.2 | Q74: 31638.2 | R74: 33266.2
B75: Шкаф (420) Торцевой 2040х420 ЛЕВ\ПР | D75: 420 | E75: 12845.8 | F75: 18444.8 | G75: 13692.8 | H75: 15771.8 | I75: 10315.8 | J75: 10469.8 | K75: 10898.8 | L75: 12075.8 | M75: 0 | N75: 17157.8 | O75: 19104.8 | P75: 20325.8 | Q75: 22668.8 | R75: 22976.8
B76: Шкаф (420) Торцевой 2240х420 ЛЕВ\ПР | D76: 420 | E76: 13856.7 | F76: 20027.7 | G76: 14802.7 | H76: 17090.7 | I76: 11095.7 | J76: 11249.7 | K76: 11733.7 | L76: 13009.7 | M76: 0 | N76: 18586.7 | O76: 20709.7 | P76: 22084.7 | Q76: 24658.7 | R76: 24911.7
B77: Шкаф (420) 4 двери, 1160х1120 | D77: 1120х440х1160 | E77: 15879.6 | F77: 21159.6 | G77: 16671.6 | H77: 18651.6 | I77: 13503.6 | J77: 13635.6 | K77: 14075.6 | L77: 15175.6 | M77: 0 | N77: 19971.6 | O77: 21863.6 | P77: 22963.6 | Q77: 25163.6 | R77: 26703.6
B78: Шкафы глубиной 560мм
B79: Шкаф (560) 1дв 2040х420 | D79: 420 | E79: 11689.7 | F79: 15220.7 | G79: 12217.7 | H79: 13537.7 | I79: 10094.7 | J79: 10182.7 | K79: 10457.7 | L79: 11194.7 | M79: 0 | N79: 14208.7 | O79: 15220.7 | P79: 16221.7 | Q79: 17695.7 | R79: 18014.7 | S79: =S4 -> 1344 | T79: =T4 -> 2490
B80: Шкаф (560) 1дв 2040х560 | D80: 560 | E80: 13762.1 | F80: 18481.1 | G80: 14477.1 | H80: 16237.1 | I80: 11639.1 | J80: 11760.1 | K80: 12134.1 | L80: 13113.1 | M80: 0 | N80: 16886.1 | O80: 17953.1 | P80: 19559.1 | Q80: 21539.1 | R80: 21396.1 | S80: =S5 -> 1932 | T80: 3314
B81: Шкаф (560) 1дв 2240х420 | D81: 420 | E81: 12834.8 | F81: 16717.8 | G81: 13417.8 | H81: 14869.8 | I81: 11085.8 | J81: 11184.8 | K81: 11492.8 | L81: 12295.8 | M81: 0 | N81: 15595.8 | O81: 16695.8 | P81: 17806.8 | Q81: 19423.8 | R81: 19731.8 | S81: =S6 -> 1523 | T81: 2730
B82: Шкаф (560) 1дв 2240х560 | D82: 560 | E82: 14984.2 | F82: 20187.2 | G82: 15776.2 | H82: 17712.2 | I82: 12652.2 | J82: 12795.2 | K82: 13191.2 | L82: 14269.2 | M82: 0 | N82: 18405.2 | O82: 19560.2 | P82: 21353.2 | Q82: 23520.2 | R82: 23311.2 | S82: =S7 -> 2190 | T82: 3632
B83: Шкаф (560) 1дв 2ящ 2040х420 | D83: 420х580х2040 | E83: 13297.9 | F83: 16828.9 | G83: 13836.9 | H83: 15156.9 | I83: 11724.9 | J83: 11790.9 | K83: 12076.9 | L83: 12802.9 | M83: 0 | N83: 16124.9 | O83: 17499.9 | P83: 18148.9 | Q83: 19611.9 | R83: 20425.9 | S83: =S15 -> 1344 | T83: =T15 -> 2010
B84: Шкаф (560) 1дв 2ящ 2040х560 | D84: 560 | E84: 15128.3 | F84: 19847.3 | G84: 15843.3 | H84: 17614.3 | I84: 13005.3 | J84: 13126.3 | K84: 13511.3 | L84: 14468.3 | M84: 0 | N84: 18659.3 | O84: 20199.3 | P84: 21343.3 | Q84: 23301.3 | R84: 23741.3 | S84: =S17 -> 1932 | T84: =T17 -> 2677
B85: Шкаф (560) 1дв 2ящ 2240х420 | D85: 420х580х2240 | E85: 14089.9 | F85: 17983.9 | G85: 14683.9 | H85: 16135.9 | I85: 12351.9 | J85: 12439.9 | K85: 12747.9 | L85: 13550.9 | M85: 0 | N85: 17158.9 | O85: 18610.9 | P85: 19380.9 | Q85: 20997.9 | R85: 21789.9 | S85: =S16 -> 1523 | T85: =T16 -> 2250
B86: Шкаф (560) 1дв 2ящ 2240х560 | D86: 560 | E86: 16381.2 | F86: 21573.2 | G86: 17173.2 | H86: 19120.2 | I86: 14060.2 | J86: 14192.2 | K86: 14610.2 | L86: 15666.2 | M86: 0 | N86: 20209.2 | O86: 21826.2 | P86: 23168.2 | Q86: 25313.2 | R86: 25687.2 | S86: =S18 -> 2190 | T86: =T18 -> 2995
B87: Шкаф (560) 2дв 1ящ 2040х560 | D87: 560 | E87: 14117.4 | F87: 18836.4 | G87: 14832.4 | H87: 16592.4 | I87: 11994.4 | J87: 12115.4 | K87: 12489.4 | L87: 13457.4 | M87: 0 | N87: 17648.4 | O87: 19177.4 | P87: 20321.4 | Q87: 22290.4 | R87: 23016.4
B88: Шкаф (560) 2дв 1ящ 2240х560 | D88: 560 | E88: 15389 | F88: 20570 | G88: 16170 | H88: 18106 | I88: 13057 | J88: 13189 | K88: 13596 | L88: 14663 | M88: 0 | N88: 19206 | O88: 20823 | P88: 22154 | Q88: 24310 | R88: 24970
B89: Шкаф (560) 2дв 2040х840 | D89: 840 | E89: 19452.4 | F89: 26514.4 | G89: 20508.4 | H89: 23148.4 | I89: 16262.4 | J89: 16438.4 | K89: 16988.4 | L89: 18462.4 | M89: 0 | N89: 24490.4 | O89: 26514.4 | P89: 28516.4 | Q89: 31464.4 | R89: 32102.4 | S89: =S33 -> 2688 | T89: =T33 -> 4980
B90: Шкаф (560) 2дв 2240х840 | D90: 840 | E90: 21197 | F90: 28963 | G90: 22363 | H90: 25267 | I90: 17699 | J90: 17897 | K90: 18513 | L90: 20119 | M90: 0 | N90: 26719 | O90: 28919 | P90: 31141 | Q90: 34375 | R90: 34991 | S90: =S34 -> 3046 | T90: =T34 -> 5460
B91: Шкаф (560) 2дв 2ящ 2040х840 | D91: 840 | E91: 20623.9 | F91: 27685.9 | G91: 21701.9 | H91: 24319.9 | I91: 17455.9 | J91: 17631.9 | K91: 18181.9 | L91: 19655.9 | M91: 0 | N91: 26145.9 | O91: 28719.9 | P91: 30171.9 | Q91: 33097.9 | R91: 34219.9 | S91: =S39 -> 2688 | T91: =T39 -> 4020
B92: Шкаф (560) 2дв 2ящ 2240х840 | D92: 840 | E92: 22368.5 | F92: 30156.5 | G92: 23556.5 | H92: 26438.5 | I92: 18870.5 | J92: 19090.5 | K92: 19684.5 | L92: 21312.5 | M92: 0 | N92: 28374.5 | O92: 31102.5 | P92: 32796.5 | Q92: 36030.5 | R92: 37108.5 | S92: =S40 -> 3046 | T92: =T40 -> 4500
B93: Шкаф (560) ДО 1дв 2040х420 | D93: 420 | E93: 11016.5 | F93: 14547.5 | G93: 11544.5 | H93: 12864.5 | I93: 9421.5 | J93: 9509.5 | K93: 9784.5 | L93: 10521.5 | M93: 0 | N93: 13535.5 | O93: 14547.5 | P93: 15548.5 | Q93: 17022.5 | R93: 17341.5 | S93: =S4 -> 1344 | T93: =T4 -> 2490
B94: Шкаф (560) ДО 1дв 2040х560 | D94: 560 | E94: 12692.9 | F94: 17411.9 | G94: 13407.9 | H94: 15167.9 | I94: 10569.9 | J94: 10690.9 | K94: 11064.9 | L94: 12043.9 | M94: 0 | N94: 15816.9 | O94: 16883.9 | P94: 18489.9 | Q94: 20469.9 | R94: 20326.9 | S94: =S5 -> 1932 | T94: 3314
B95: Шкаф (560) ДО 1дв 2240х420 | D95: 420 | E95: 11718.3 | F95: 15601.3 | G95: 12301.3 | H95: 13753.3 | I95: 9969.3 | J95: 10068.3 | K95: 10376.3 | L95: 11179.3 | M95: 0 | N95: 14479.3 | O95: 15579.3 | P95: 16690.3 | Q95: 18307.3 | R95: 18615.3 | S95: 1523 | T95: 2730
B96: Шкаф (560) ДО 1дв 2240х560 | D96: 560 | E96: 13487.1 | F96: 18690.1 | G96: 14279.1 | H96: 16215.1 | I96: 11155.1 | J96: 11298.1 | K96: 11694.1 | L96: 12772.1 | M96: 0 | N96: 16908.1 | O96: 18063.1 | P96: 19856.1 | Q96: 22023.1 | R96: 21814.1 | S96: 2190 | T96: 3632
B97: Шкаф (560) ДО 2дв 2040х840 | D97: 840 | E97: 17919 | F97: 24981 | G97: 18975 | H97: 21615 | I97: 14729 | J97: 14905 | K97: 15455 | L97: 16929 | M97: 0 | N97: 22957 | O97: 24981 | P97: 26983 | Q97: 29931 | R97: 30569 | S97: =S33 -> 2688 | T97: 5984.66
B98: Шкаф (560) ДО 2дв 2040х1120 | D98: 1120 | E98: 21358.7 | F98: 30796.7 | G98: 22788.7 | H98: 26308.7 | I98: 17112.7 | J98: 17354.7 | K98: 18102.7 | L98: 20060.7 | M98: 0 | N98: 27606.7 | O98: 29740.7 | P98: 32952.7 | Q98: 36912.7 | R98: 36626.7 | S98: 3864 | T98: 7463.28
B99: Шкаф (560) ДО 2дв 2240х840 | D99: 840 | E99: 19000.3 | F99: 26766.3 | G99: 20166.3 | H99: 23070.3 | I99: 15502.3 | J99: 15700.3 | K99: 16316.3 | L99: 17922.3 | M99: 0 | N99: 24522.3 | O99: 26722.3 | P99: 28944.3 | Q99: 32178.3 | R99: 32794.3 | S99: =S64 -> 3046 | T99: =T64 -> 5460
B100: Шкаф (560) ДО 2дв 2240х1120 | D100: 1120 | E100: 22672.1 | F100: 33078.1 | G100: 24256.1 | H100: 28128.1 | I100: 18008.1 | J100: 18294.1 | K100: 19086.1 | L100: 21242.1 | M100: 0 | N100: 29514.1 | O100: 31824.1 | P100: 35410.1 | Q100: 39744.1 | R100: 39326.1 | S100: 4380 | T100: 7264
B101: Шкаф (560) ДО 2дв 2ящ 2040х840 | D101: 840 | E101: 20064 | F101: 27126 | G101: 21142 | H101: 23760 | I101: 16896 | J101: 17072 | K101: 17622 | L101: 19096 | M101: 0 | N101: 25586 | O101: 28160 | P101: 29612 | Q101: 32538 | R101: 33660 | S101: =S91 -> 2688 | T101: =T91 -> 4020
B102: Шкаф (560) ДО 2дв 2ящ 2240х840 | D102: 840 | E102: 21145.3 | F102: 28933.3 | G102: 22333.3 | H102: 25215.3 | I102: 17647.3 | J102: 17867.3 | K102: 18461.3 | L102: 20089.3 | M102: 0 | N102: 27151.3 | O102: 29879.3 | P102: 31573.3 | Q102: 34807.3 | R102: 35885.3 | S102: =S92 -> 3046 | T102: =T92 -> 4500
B103: Шкаф (560) Комб 2дв 2040х840 | D103: 840 | E103: 20840.6 | F103: 27902.6 | G103: 21896.6 | H103: 24536.6 | I103: 17650.6 | J103: 17826.6 | K103: 18376.6 | L103: 19850.6 | M103: 0 | N103: 25878.6 | O103: 27902.6 | P103: 29904.6 | Q103: 32852.6 | R103: 33490.6 | S103: =S89 -> 2688 | T103: =T89 -> 4980
B104: Шкаф (560) Комб 2дв 2240х840 | D104: 840 | E104: 22392.7 | F104: 30158.7 | G104: 23558.7 | H104: 26462.7 | I104: 18894.7 | J104: 19092.7 | K104: 19708.7 | L104: 21314.7 | M104: 0 | N104: 27914.7 | O104: 30114.7 | P104: 32336.7 | Q104: 35570.7 | R104: 36186.7 | S104: =S90 -> 3046 | T104: =T90 -> 5460
B105: Шкаф (560) Комб 2дв 2040х1120 | D105: 1120 | E105: 24097.7 | F105: 33535.7 | G105: 25527.7 | H105: 29047.7 | I105: 19851.7 | J105: 20093.7 | K105: 20841.7 | L105: 22799.7 | M105: 0 | N105: 30345.7 | O105: 32479.7 | P105: 35691.7 | Q105: 39651.7 | R105: 39365.7 | S105: =S98 -> 3864 | T105: =T98 -> 7463.28
B106: Шкаф (560) Комб 2дв 2240х1120 | D106: 1120 | E106: 25829.1 | F106: 36235.1 | G106: 27413.1 | H106: 31285.1 | I106: 21165.1 | J106: 21451.1 | K106: 22243.1 | L106: 24399.1 | M106: 0 | N106: 32671.1 | O106: 34981.1 | P106: 38567.1 | Q106: 42901.1 | R106: 42483.1 | S106: =S100 -> 4380 | T106: =T100 -> 7264
B107: Шкаф (560) Комб 3дв 2040х1260 | D107: 1260 | E107: 27416.4 | F107: 38009.4 | G107: 29000.4 | H107: 32960.4 | I107: 22631.4 | J107: 22895.4 | K107: 23720.4 | L107: 25931.4 | M107: 0 | N107: 34973.4 | O107: 38009.4 | P107: 41012.4 | Q107: 45434.4 | R107: 46391.4 | S107: 1344 | T107: 2490
B108: Шкаф (560) Комб 3дв 2040х1400 | D108: 1400 | E108: 29075.2 | F108: 40856.2 | G108: 30846.2 | H108: 35246.2 | I108: 23762.2 | J108: 24059.2 | K108: 24983.2 | L108: 27436.2 | M108: 0 | N108: 37237.2 | O108: 40328.2 | P108: 43936.2 | Q108: 48864.2 | R108: 49359.2 | S108: 1932 | T108: 3314
B109: Шкаф (560) Комб 3дв 2040х1680 | D109: 1680 | E109: 32597.4 | F109: 46754.4 | G109: 34742.4 | H109: 40022.4 | I109: 26228.4 | J109: 26591.4 | K109: 27713.4 | L109: 30650.4 | M109: 0 | N109: 41969.4 | O109: 45170.4 | P109: 49988.4 | Q109: 55928.4 | R109: 55499.4 | S109: 1932 | T109: 3314
B110: Шкаф (560) Комб 3дв 2240х1260 | D110: 1260 | E110: 29378.8 | F110: 41027.8 | G110: 31127.8 | H110: 35483.8 | I110: 24131.8 | J110: 24428.8 | K110: 25352.8 | L110: 27761.8 | M110: 0 | N110: 37661.8 | O110: 40961.8 | P110: 44294.8 | Q110: 49145.8 | R110: 50069.8 | S110: 1523 | T110: 2730
B111: Шкаф (560) Комб 3дв 2240х1400 | D111: 1400 | E111: 31137.7 | F111: 44106.7 | G111: 33095.7 | H111: 37935.7 | I111: 25307.7 | J111: 25648.7 | K111: 26660.7 | L111: 29344.7 | M111: 0 | N111: 40080.7 | O111: 43435.7 | P111: 47450.7 | Q111: 52851.7 | R111: 53258.7 | S111: 2190 | T111: 3632
B112: Шкаф (560) Комб 3дв 2240х1680 | D112: 1680 | E112: 35165.9 | F112: 50774.9 | G112: 37541.9 | H112: 43349.9 | I112: 28169.9 | J112: 28598.9 | K112: 29786.9 | L112: 33020.9 | M112: 0 | N112: 45428.9 | O112: 48893.9 | P112: 54272.9 | Q112: 60773.9 | R112: 60146.9 | S112: =S111 -> 2190 | T112: =T111 -> 3632
B113: Шкаф (560) Комб 3дв 2ящ 2040х1400 | D113: 1400 | E113: 32682.1 | F113: 44463.1 | G113: 34453.1 | H113: 38864.1 | I113: 27369.1 | J113: 27666.1 | K113: 28601.1 | L113: 31032.1 | M113: 0 | N113: 41251.1 | O113: 44815.1 | P113: 47961.1 | Q113: 52867.1 | R113: 53945.1 | S113: 1932 | T113: 2677
B114: Шкаф (560) Комб 3дв 2ящ 2040х1680 | D114: 1680 | E114: 35962.3 | F114: 50119.3 | G114: 38107.3 | H114: 43398.3 | I114: 29593.3 | J114: 29956.3 | K114: 31089.3 | L114: 34004.3 | M114: 0 | N114: 45741.3 | O114: 49415.3 | P114: 53771.3 | Q114: 59689.3 | R114: 59843.3 | S114: 1932 | T114: 2677
B116: Шкафы глубиной 560мм
B117: Наименование | C117: Эскиз | D117: Ширина, мм | E117: Цена руб.
E118: 1 ЦК | F118: 1 ЦК + патина | G118: 2 ЦК | H118: 3 ЦК | I118: Марго 1 ц.к. | J118: Марго 3 ц.к. | S118: Зеркало в рамке* | T118: Зеркало накладное*
B119: Шкаф (560) Комб 3дв 2ящ 2240х1400 | D119: 1400 | E119: 34989.9 | F119: 47947.9 | G119: 36947.9 | H119: 41798.9 | I119: 29170.9 | J119: 29500.9 | K119: 30534.9 | L119: 33196.9 | M119: 0 | N119: 44339.9 | O119: 48156.9 | P119: 51720.9 | Q119: 57099.9 | R119: 58089.9 | S119: =S111 -> 2190 | T119: 2995
B120: Шкаф (560) Комб 3дв 2ящ 2240х1680 | D120: 1680 | E120: 38512.1 | F120: 54110.1 | G120: 40888.1 | H120: 46707.1 | I120: 31527.1 | J120: 31945.1 | K120: 33155.1 | L120: 36367.1 | M120: 0 | N120: 49182.1 | O120: 53109.1 | P120: 58037.1 | Q120: 64516.1 | R120: 64472.1 | S120: =S112 -> 2190 | T120: 2995
B121: Шкаф (560) Комб 4дв 2040х1960 | D121: 1960 | E121: 40753.9 | F121: 57253.9 | G121: 43239.9 | H121: 49399.9 | I121: 33317.9 | J121: 33735.9 | K121: 35033.9 | L121: 38465.9 | M121: 0 | N121: 52039.9 | O121: 56197.9 | P121: 61411.9 | Q121: 68319.9 | R121: 68671.9 | S121: =S97 -> 2688 | T121: 4980
B122: Шкаф (560) Комб 4дв 2240х1960 | D122: 1960 | E122: 44046.2 | F122: 62218.2 | G122: 46796.2 | H122: 53572.2 | I122: 35884.2 | J122: 36368.2 | K122: 37776.2 | L122: 41538.2 | M122: 0 | N122: 56410.2 | O122: 60920.2 | P122: 66728.2 | Q122: 74296.2 | R122: 74494.2 | S122: =S104 -> 3046 | T122: 5460
B123: Шкаф (560) Комб 4дв 2ящ 2040х1960 | D123: 1960 | E123: 41675.7 | F123: 58175.7 | G123: 44183.7 | H123: 50321.7 | I123: 34261.7 | J123: 34679.7 | K123: 35977.7 | L123: 39409.7 | M123: 0 | N123: 53445.7 | O123: 58153.7 | P123: 62817.7 | Q123: 69703.7 | R123: 70539.7 | S123: =S121 -> 2688 | T123: 4020
B124: Шкаф (560) Комб 4дв 2ящ 2240х1960 | D124: 1960 | E124: 44682 | F124: 62876 | G124: 47454 | H124: 54208 | I124: 36520 | J124: 37026 | K124: 38412 | L124: 42196 | M124: 0 | N124: 57530 | O124: 62568 | P124: 67848 | Q124: 75416 | R124: 76076 | S124: =S122 -> 3046 | T124: 4500
B125: Шкаф (560) Торцевой 2040х420 лев./пр | D125: 420 | E125: 15402.2 | F125: 22189.2 | G125: 16425.2 | H125: 18955.2 | I125: 12344.2 | J125: 12531.2 | K125: 13048.2 | L125: 14467.2 | M125: 0 | N125: 20319.2 | O125: 22321.2 | P125: 24158.2 | Q125: 26996.2 | R125: 27788.2
B126: Шкаф (560) Торцевой 2240х420 лев./пр | D126: 420 | E126: 16636.4 | F126: 24105.4 | G126: 17769.4 | H126: 20552.4 | I126: 13292.4 | J126: 13479.4 | K126: 14062.4 | L126: 15613.4 | M126: 0 | N126: 22015.4 | O126: 24193.4 | P126: 26250.4 | Q126: 29363.4 | R126: 30133.4
B127: Шкафы антресольные и стеллажи
B128: Шкаф (340) антр 1 дв. 400х1200 | D128: 1200х360х400 | E128: 5942.2 | F128: 7955.2 | G128: 6250.2 | H128: 6998.2 | I128: 5029.2 | J128: 5084.2 | K128: 5238.2 | L128: 5667.2 | M128: 0 | N128: 7471.2 | O128: 8131.2 | P128: 8604.2 | Q128: 9451.2 | R128: 9869.2
B129: Шкаф (340) антр 1 дв. 400х1260 | D129: 1260х360х400 | E129: 6051.1 | F129: 8174.1 | G129: 6370.1 | H129: 7162.1 | I129: 5094.1 | J129: 5149.1 | K129: 5314.1 | L129: 5754.1 | M129: 0 | N129: 7646.1 | O129: 8339.1 | P129: 8845.1 | Q129: 9725.1 | R129: 10143.1 | S129: - | T129: -
B130: Шкаф (340) антр 1 дв. 400х840 | D130: 840х360х400 | E130: 4851 | F130: 6270 | G130: 5071 | H130: 5599 | I130: 4224 | J130: 4257 | K130: 4367 | L130: 4664 | M130: 0 | N130: 5962 | O130: 6479 | P130: 6765 | Q130: 7359 | R130: 7788 | S130: - | T130: -
B131: Шкаф (340) антр 1 дв. стекло 400х1260 | D131: 1260х360х400 | E131: 7093.9 | F131: 9216.9 | G131: 7412.9 | H131: 8204.9 | I131: 5251.4 | J131: 5317.4 | K131: 5482.4 | L131: 5944.4 | M131: 0 | N131: 8089.4 | O131: 9002.4 | P131: 9343.4 | Q131: 10267.4 | R131: 8518.4 | S131: - | T131: -
B132: Шкаф (340) антр 1 дв. стекло 400х840 | D132: 840х360х400 | E132: 5525.3 | F132: 6944.3 | G132: 5745.3 | H132: 6273.3 | I132: 4340.6 | J132: 4373.6 | K132: 4483.6 | L132: 4780.6 | M132: 0 | N132: 6287.6 | O132: 7013.6 | P132: 7101.6 | Q132: 7706.6 | R132: 6793.6 | S132: - | T132: -
B133: Шкаф (340) антр 2 дв. ниша 400х1400 | D133: 1400х360х400 | E133: 7173.1 | F133: 9043.1 | G133: 7459.1 | H133: 8163.1 | I133: 6315.1 | J133: 6381.1 | K133: 6513.1 | L133: 6909.1 | M133: 0 | N133: 8757.1 | O133: 9549.1 | P133: 9813.1 | Q133: 10605.1 | R133: 11463.1 | S133: - | T133: -
B134: Шкаф (340) антр 2 дв. ниша 400х1640 | D134: 1640х360х400 | E134: 7670.3 | F134: 9540.3 | G134: 7956.3 | H134: 8660.3 | I134: 6812.3 | J134: 6878.3 | K134: 7010.3 | L134: 7406.3 | M134: 0 | N134: 9254.3 | O134: 10046.3 | P134: 10310.3 | Q134: 11102.3 | R134: 11960.3 | S134: - | T134: -
B135: Шкаф (340) антр 2 дв. ниша 400х2040 | D135: 2040х360х400 | E135: 9047.5 | F135: 11335.5 | G135: 9377.5 | H135: 10235.5 | I135: 8013.5 | J135: 8079.5 | K135: 8255.5 | L135: 8717.5 | M135: 0 | N135: 10895.5 | O135: 11797.5 | P135: 12193.5 | Q135: 13139.5 | R135: 14019.5 | S135: - | T135: -
B136: Стеллаж (340) навесной 300х300 | D136: 300х340х300 | E136: 979 | F136: 979 | G136: 979 | H136: 979 | I136: 979 | J136: 979 | K136: 979 | L136: 979 | M136: 0 | N136: 979 | O136: 979 | P136: 979 | Q136: 979 | R136: 979 | S136: - | T136: -
B137: Стеллаж (340) навесной 300х1260 | D137: 1260х340х300 | E137: 2775.3 | F137: 2775.3 | G137: 2775.3 | H137: 2775.3 | I137: 2775.3 | J137: 2775.3 | K137: 2775.3 | L137: 2775.3 | M137: 0 | N137: 2775.3 | O137: 2775.3 | P137: 2775.3 | Q137: 2775.3 | R137: 2775.3 | S137: - | T137: -
B138: Стеллаж (340) 2040х300 | D138: 300х340х2040 | E138: 4246 | F138: 4246 | G138: 4246 | H138: 4246 | I138: 4246 | J138: 4246 | K138: 4246 | L138: 4246 | M138: 0 | N138: 4246 | O138: 4246 | P138: 4246 | Q138: 4246 | R138: 4246 | S138: - | T138: -
B139: Стеллаж (340) 2240х300 | D139: 300х340х2240 | E139: 4622.2 | F139: 4622.2 | G139: 4622.2 | H139: 4622.2 | I139: 4622.2 | J139: 4622.2 | K139: 4622.2 | L139: 4622.2 | M139: 0 | N139: 4622.2 | O139: 4622.2 | P139: 4622.2 | Q139: 4622.2 | R139: 4622.2 | S139: - | T139: -
B140: Стеллаж (420) 2040х420 | D140: 420х420х2040 | E140: 5395.5 | F140: 5395.5 | G140: 5395.5 | H140: 5395.5 | I140: 5395.5 | J140: 5395.5 | K140: 5395.5 | L140: 5395.5 | M140: 0 | N140: 5395.5 | O140: 5395.5 | P140: 5395.5 | Q140: 5395.5 | R140: 5395.5
B141: Стеллаж (420) 2040х560 | D141: 560х420х2040 | E141: 6034.6 | F141: 6034.6 | G141: 6034.6 | H141: 6034.6 | I141: 6034.6 | J141: 6034.6 | K141: 6034.6 | L141: 6034.6 | M141: 0 | N141: 6034.6 | O141: 6034.6 | P141: 6034.6 | Q141: 6034.6 | R141: 6034.6
B142: Стеллаж (420) 2040х840 | D142: 840х420х2040 | E142: 7268.8 | F142: 7268.8 | G142: 7268.8 | H142: 7268.8 | I142: 7268.8 | J142: 7268.8 | K142: 7268.8 | L142: 7268.8 | M142: 0 | N142: 7268.8 | O142: 7268.8 | P142: 7268.8 | Q142: 7268.8 | R142: 7268.8
B143: Стеллаж (420) 2240х420 | D143: 420х420х2240 | E143: 6015.9 | F143: 6015.9 | G143: 6015.9 | H143: 6015.9 | I143: 6015.9 | J143: 6015.9 | K143: 6015.9 | L143: 6015.9 | M143: 0 | N143: 6015.9 | O143: 6015.9 | P143: 6015.9 | Q143: 6015.9 | R143: 6015.9
B144: Стеллаж (420) 2240х560 | D144: 560х420х2240 | E144: 6755.1 | F144: 6755.1 | G144: 6755.1 | H144: 6755.1 | I144: 6755.1 | J144: 6755.1 | K144: 6755.1 | L144: 6755.1 | M144: 0 | N144: 6755.1 | O144: 6755.1 | P144: 6755.1 | Q144: 6755.1 | R144: 6755.1
B145: Стеллаж (420) 2240х840 | D145: 840х420х2240 | E145: 8185.1 | F145: 8185.1 | G145: 8185.1 | H145: 8185.1 | I145: 8185.1 | J145: 8185.1 | K145: 8185.1 | L145: 8185.1 | M145: 0 | N145: 8185.1 | O145: 8185.1 | P145: 8185.1 | Q145: 8185.1 | R145: 8185.1
B146: Стеллаж (420) 2 дв 2240х840 | D146: 840х420х2240 | E146: 11639.1 | F146: 13047.1 | G146: 11859.1 | H146: 12387.1 | I146: 11001.1 | J146: 11045.1 | K146: 11155.1 | L146: 11441.1 | M146: 0 | N146: 12893.1 | O146: 13575.1 | P146: 13707.1 | Q146: 14279.1 | R146: 15159.1
B147: Стеллаж (420) 2 ящика 2240х560 | D147: 560х420х2240 | E147: 10413.7 | F147: 11359.7 | G147: 10567.7 | H147: 10919.7 | I147: 9995.7 | J147: 10017.7 | K147: 10105.7 | L147: 10281.7 | M147: 0 | N147: 11403.7 | O147: 12041.7 | P147: 11953.7 | Q147: 12327.7 | R147: 12767.7
B148: Стеллаж навесной (420) Н=600х1260 | D148: 1260х600х420 | E148: 5310.8 | F148: 5310.8 | G148: 5310.8 | H148: 5310.8 | I148: 5310.8 | J148: 5310.8 | K148: 5310.8 | L148: 5310.8 | M148: 0 | N148: 5310.8 | O148: 5310.8 | P148: 5310.8 | Q148: 5310.8 | R148: 5310.8
B149: Антресоли
B150: Антресоль (420) 1дв 400х420 лев\пр | D150: 420х440х400 | E150: 3390.2 | F150: 4094.2 | G150: 3500.2 | H150: 3764.2 | I150: 3071.2 | J150: 3093.2 | K150: 3148.2 | L150: 3291.2 | M150: 0 | N150: 4017.2 | O150: 4358.2 | P150: 4424.2 | Q150: 4710.2 | R150: 5150.2
B151: Антресоль (420) 1дв 400х560 лев\пр | D151: 560х440х400 | E151: 3940.2 | F151: 4875.2 | G151: 4083.2 | H151: 4435.2 | I151: 3511.2 | J151: 3544.2 | K151: 3610.2 | L151: 3808.2 | M151: 0 | N151: 4732.2 | O151: 5128.2 | P151: 5260.2 | Q151: 5656.2 | R151: 6085.2
B152: Антресоль (420) 2дв 400х840 | D152: 840х440х400 | E152: 5679.3 | F152: 7087.3 | G152: 5899.3 | H152: 6427.3 | I152: 5041.3 | J152: 5085.3 | K152: 5195.3 | L152: 5481.3 | M152: 0 | N152: 6933.3 | O152: 7615.3 | P152: 7747.3 | Q152: 8319.3 | R152: 9199.3
B153: Антресоль (420) 3дв 400х1260 | D153: 1260х440х400 | E153: 8153.2 | F153: 10265.2 | G153: 8483.2 | H153: 9275.2 | I153: 7196.2 | J153: 7262.2 | K153: 7427.2 | L153: 7856.2 | M153: 0 | N153: 10034.2 | O153: 11057.2 | P153: 11255.2 | Q153: 12113.2 | R153: 13433.2
B154: Антресоль угл. (420) трап. 400х732х732 | D154: 732х732 | E154: 5809.1 | F154: 6513.1 | G154: 5919.1 | H154: 6183.1 | I154: 5490.1 | J154: 5512.1 | K154: 5567.1 | L154: 5710.1 | M154: 0 | N154: 6436.1 | O154: 6777.1 | P154: 6843.1 | Q154: 7129.1 | R154: 7569.1
B155: Антресоль (340) 2 дв. 400х840 | D155: 840х360х400 | E155: 5405.4 | F155: 6813.4 | G155: 5625.4 | H155: 6153.4 | I155: 4767.4 | J155: 4811.4 | K155: 4921.4 | L155: 5207.4 | M155: 0 | N155: 6659.4 | O155: 7341.4 | P155: 7473.4 | Q155: 8045.4 | R155: 8925.4
B156: Антресоль (340) 2 дв расп. ниша 400х1260 | D156: 1260х360х400 | E156: 6662.7 | F156: 8070.7 | G156: 6882.7 | H156: 7410.7 | I156: 6024.7 | J156: 6068.7 | K156: 6178.7 | L156: 6464.7 | M156: 0 | N156: 7916.7 | O156: 8598.7 | P156: 8730.7 | Q156: 9302.7 | R156: 10182.7
B157: Антресоль торц (420) 400х420 лев\пр | D157: 420х440х400 | E157: 4821.3 | F157: 5943.3 | G157: 4997.3 | H157: 5404.3 | I157: 4326.3 | J157: 4359.3 | K157: 4436.3 | L157: 4667.3 | M157: 0 | N157: 5888.3 | O157: 6493.3 | P157: 6515.3 | Q157: 6977.3 | R157: 7648.3
B158: Антресоль (560) 1дв 400х420 лев\пр | D158: 420х580х400 | E158: 3880.8 | F158: 4584.8 | G158: 3990.8 | H158: 4254.8 | I158: 3561.8 | J158: 3583.8 | K158: 3638.8 | L158: 3781.8 | M158: 0 | N158: 4507.8 | O158: 4848.8 | P158: 4914.8 | Q158: 5200.8 | R158: 5640.8
B159: Антресоль (560) 1дв 400х560 лев\пр | D159: 560х580х400 | E159: 4361.5 | F159: 5296.5 | G159: 4504.5 | H159: 4856.5 | I159: 3932.5 | J159: 3965.5 | K159: 4031.5 | L159: 4229.5 | M159: 0 | N159: 5153.5 | O159: 5549.5 | P159: 5681.5 | Q159: 6077.5 | R159: 6506.5
B160: Антресоль (560) 2дв 400х840 | D160: 840х580х400 | E160: 6216.1 | F160: 7624.1 | G160: 6436.1 | H160: 6964.1 | I160: 5578.1 | J160: 5622.1 | K160: 5732.1 | L160: 6018.1 | M160: 0 | N160: 7470.1 | O160: 8152.1 | P160: 8284.1 | Q160: 8856.1 | R160: 9736.1
B161: Антресоль (560) 2дв 400х1120 | D161: 1120х580х400 | E161: 7191.8 | F161: 9061.8 | G161: 7477.8 | H161: 8181.8 | I161: 6333.8 | J161: 6399.8 | K161: 6531.8 | L161: 6927.8 | M161: 0 | N161: 8775.8 | O161: 9567.8 | P161: 9831.8 | Q161: 10623.8 | R161: 11481.8
B162: Антресоль (560) 3дв 400х1260 | D162: 1260х580х400 | E162: 8928.7 | F162: 11040.7 | G162: 9258.7 | H162: 10050.7 | I162: 7971.7 | J162: 8037.7 | K162: 8202.7 | L162: 8631.7 | M162: 0 | N162: 10809.7 | O162: 11832.7 | P162: 12030.7 | Q162: 12888.7 | R162: 14208.7
B163: Антресоль угл. (560) трап. 400х975х975 | D163: 975х975 | E163: 7516.3 | F163: 8451.3 | G163: 7659.3 | H163: 8011.3 | I163: 7087.3 | J163: 7120.3 | K163: 7186.3 | L163: 7384.3 | M163: 0 | N163: 8308.3 | O163: 8704.3 | P163: 8836.3 | Q163: 9232.3 | R163: 9661.3
B164: Шкафы угловые и стеллажи торцевые
B165: Шкаф Угл (420х420) Трап 2040х732х732 | D165: 732х732 | E165: 17641.8 | F165: 21172.8 | G165: 18169.8 | H165: 19489.8 | I165: 16046.8 | J165: 16134.8 | K165: 16409.8 | L165: 17146.8 | M165: 0 | N165: 20160.8 | O165: 21172.8 | P165: 22173.8 | Q165: 23647.8 | R165: 23966.8 | S165: =S4 -> 1344 | T165: =T4 -> 2490
B166: Шкаф Угл (420х420) Трап 2240х732х732 | D166: 732х732 | E166: 18726.4 | F166: 22609.4 | G166: 19309.4 | H166: 20761.4 | I166: 16977.4 | J166: 17076.4 | K166: 17384.4 | L166: 18187.4 | M166: 0 | N166: 21487.4 | O166: 22587.4 | P166: 23698.4 | Q166: 25315.4 | R166: 25623.4 | S166: =S6 -> 1523 | T166: =T6 -> 2730
B167: Шкаф Угл (560х420) Прямой 2040х1000 лев/пр.** | D167: 1000 | E167: 20473.2 | F167: 28899.2 | G167: 21749.2 | H167: 24895.2 | I167: 16689.2 | J167: 16909.2 | K167: 17569.2 | L167: 19318.2 | M167: 0 | N167: 26215.2 | O167: 28305.2 | P167: 30989.2 | Q167: 34520.2 | R167: 34630.2 | S167: =S5 -> 1932 | T167: =T5 -> 3314
B168: Шкаф Угл (560х420) Прямой 2240х1000 лев/пр** | D168: 1000 | E168: 21716.2 | F168: 31000.2 | G168: 23124.2 | H168: 26589.2 | I168: 17558.2 | J168: 17800.2 | K168: 18515.2 | L168: 20440.2 | M168: 0 | N168: 27997.2 | O168: 30252.2 | P168: 33255.2 | Q168: 37127.2 | R168: 37149.2 | S168: =S7 -> 2190 | T168: =T7 -> 3632
B169: Шкаф Угл (560х420) Прямой 2040х1000 ФП ЛДСП лев/пр** | D169: 1000 | E169: 18080.7 | F169: 22799.7 | G169: 18795.7 | H169: 20555.7 | I169: 15957.7 | J169: 16078.7 | K169: 16452.7 | L169: 17431.7 | M169: 0 | N169: 21204.7 | O169: 22271.7 | P169: 23877.7 | Q169: 25857.7 | R169: 25714.7 | S169: 853 | T169: 2156
B170: Шкаф Угл (560х420) Прямой 2240х1000 ФП ЛДСП лев/пр** | D170: 1000 | E170: 19135.6 | F170: 24338.6 | G170: 19927.6 | H170: 21863.6 | I170: 16803.6 | J170: 16946.6 | K170: 17342.6 | L170: 18420.6 | M170: 0 | N170: 22556.6 | O170: 23711.6 | P170: 25504.6 | Q170: 27671.6 | R170: 27462.6 | S170: =S112 -> 2190 | T170: 1808
B171: Шкаф Угл (560х420) Трап 2040х830х970 лев ** | D171: 830х970 | E171: 20332.4 | F171: 25051.4 | G171: 21047.4 | H171: 22807.4 | I171: 18209.4 | J171: 18330.4 | K171: 18704.4 | L171: 19683.4 | M171: 0 | N171: 23456.4 | O171: 24523.4 | P171: 26129.4 | Q171: 28109.4 | R171: 27966.4 | S171: =S167 -> 1932 | T171: =T167 -> 3314
B172: Шкаф Угл (560х420) Трап 2040х830х970 пр ** | E172: 20332.4 | F172: 25051.4 | G172: 21047.4 | H172: 22807.4 | I172: 18209.4 | J172: 18330.4 | K172: 18704.4 | L172: 19683.4 | M172: 0 | N172: 23456.4 | O172: 24523.4 | P172: 26129.4 | Q172: 28109.4 | R172: 27966.4
B173: Шкаф Угл (560х420) Трап 2240х830х970 лев** | D173: 830х970 | E173: 21414.8 | F173: 26617.8 | G173: 22206.8 | H173: 24142.8 | I173: 19082.8 | J173: 19225.8 | K173: 19621.8 | L173: 20699.8 | M173: 0 | N173: 24835.8 | O173: 25990.8 | P173: 27783.8 | Q173: 29950.8 | R173: 29741.8 | S173: =S170 -> 2190 | T173: =T170 -> 1808
B174: Шкаф Угл (560х420) Трап 2240х830х970 пр** | E174: 21414.8 | F174: 26617.8 | G174: 22206.8 | H174: 24142.8 | I174: 19082.8 | J174: 19225.8 | K174: 19621.8 | L174: 20699.8 | M174: 0 | N174: 24835.8 | O174: 25990.8 | P174: 27783.8 | Q174: 29950.8 | R174: 29741.8
B175: Шкаф Угл (420х420) Комб. Трап 2040х732х732 | D175: 732х732 | E175: 17641.8 | F175: 21172.8 | G175: 18169.8 | H175: 19489.8 | I175: 16046.8 | J175: 16134.8 | K175: 16409.8 | L175: 17146.8 | M175: 0 | N175: 20160.8 | O175: 21172.8 | P175: 22173.8 | Q175: 23647.8 | R175: 23966.8 | S175: =S4 -> 1344 | T175: 2490
B176: Шкаф Угл (420х420) Комб. Трап 2240х732х732 | D176: 732х732 | E176: 18726.4 | F176: 22609.4 | G176: 19309.4 | H176: 20761.4 | I176: 16977.4 | J176: 17076.4 | K176: 17384.4 | L176: 18187.4 | M176: 0 | N176: 21487.4 | O176: 22587.4 | P176: 23698.4 | Q176: 25315.4 | R176: 25623.4 | S176: 1932 | T176: 3314
B177: Шкаф Угл (560х560) Трап 2040х970х970 | D177: 970х970 | E177: 21380.7 | F177: 26099.7 | G177: 22095.7 | H177: 23855.7 | I177: 19257.7 | J177: 19378.7 | K177: 19752.7 | L177: 20731.7 | M177: 0 | N177: 24504.7 | O177: 25571.7 | P177: 27177.7 | Q177: 29157.7 | R177: 29014.7 | S177: 1523 | T177: 2730
B178: Шкаф Угл (560х560) Трап 2240х970х970 | D178: 970х970 | E178: 22509.3 | F178: 27712.3 | G178: 23301.3 | H178: 25237.3 | I178: 20177.3 | J178: 20320.3 | K178: 20716.3 | L178: 21794.3 | M178: 0 | N178: 25930.3 | O178: 27085.3 | P178: 28878.3 | Q178: 31045.3 | R178: 30836.3 | S178: 2190 | T178: 3632
B179: Шкаф Угл (560х560) Комб. Трап 2040х975х975 | D179: 975х975 | E179: 22479.6 | F179: 27198.6 | G179: 23194.6 | H179: 24954.6 | I179: 20356.6 | J179: 20477.6 | K179: 20851.6 | L179: 21830.6 | M179: 0 | N179: 25603.6 | O179: 26670.6 | P179: 28276.6 | Q179: 30256.6 | R179: 30113.6 | S179: =S176 -> 1932 | T179: =T176 -> 3314
B180: Шкаф Угл (560х560) Комб. Трап 2240х975х975 | D180: 975х975 | E180: 23298 | F180: 28501 | G180: 24090 | H180: 26026 | I180: 20966 | J180: 21109 | K180: 21505 | L180: 22583 | M180: 0 | N180: 26719 | O180: 27874 | P180: 29667 | Q180: 31834 | R180: 31625 | S180: =S178 -> 2190 | T180: =T178 -> 3632
B181: Стеллаж (420) Торцевой 2040х300 Радиусный | D181: 300 | E181: 4078.8 | F181: 4078.8 | G181: 4078.8 | H181: 4078.8 | I181: 4078.8 | J181: 4078.8 | K181: 4078.8 | L181: 4078.8 | M181: 0 | N181: 4078.8 | O181: 4078.8 | P181: 4078.8 | Q181: 4078.8 | R181: 4078.8 | S181: - | T181: -
B182: Стеллаж (420) Торцевой 2240х300 Радиусный | D182: 300 | E182: 4547.4 | F182: 4547.4 | G182: 4547.4 | H182: 4547.4 | I182: 4547.4 | J182: 4547.4 | K182: 4547.4 | L182: 4547.4 | M182: 0 | N182: 4547.4 | O182: 4547.4 | P182: 4547.4 | Q182: 4547.4 | R182: 4547.4 | S182: - | T182: -
B183: Стеллаж (560) Торцевой 2040х300 Радиусный | D183: 300 | E183: 4743.2 | F183: 4743.2 | G183: 4743.2 | H183: 4743.2 | I183: 4743.2 | J183: 4743.2 | K183: 4743.2 | L183: 4743.2 | M183: 0 | N183: 4743.2 | O183: 4743.2 | P183: 4743.2 | Q183: 4743.2 | R183: 4743.2 | S183: - | T183: -
B184: Стеллаж (560) Торцевой 2240х300 Радиусный | D184: 300 | E184: 5318.5 | F184: 5318.5 | G184: 5318.5 | H184: 5318.5 | I184: 5318.5 | J184: 5318.5 | K184: 5318.5 | L184: 5318.5 | M184: 0 | N184: 5318.5 | O184: 5318.5 | P184: 5318.5 | Q184: 5318.5 | R184: 5318.5 | S184: - | T184: -
B186: Кровати
B187: Наименование | C187: Эскиз | D187: Ширина, мм | E187: МДФ фасады | I187: Марго | J187: Марго16 | O187: UV-лак | Q187: ТСС | S187: ТСС сборный
E188: 1 ЦК | F188: 1 ЦК + патина | G188: 2 ЦК | H188: 3 ЦК | I188: 1 ц.к. | J188: 1 ц.к. | K188: 2 ц.к. | L188: 3 ц.к. | M188: 4 ц.к. | N188: 5 ц.к. | O188: UV-лак кромка ABC/AL кромка | P188: кромка 3D | Q188: 1 ЦК | R188: 2 ЦК
B189: Кровать L-2050 мм., без основания и без матраца | D189: 800 | E189: 8196.1 | F189: 12882.1 | G189: 8944.1 | H189: 10759.1 | I189: 0 | J189: 4434.1 | K189: 4555.1 | L189: 4929.1 | M189: 5897.1 | N189: 0 | O189: 9681.1 | P189: 10946.1 | Q189: 12343.1 | R189: 14301.1 | S189: 14686.1
D190: 900 | E190: 8911.1 | F190: 14136.1 | G190: 9747.1 | H190: 11771.1 | I190: 0 | J190: 4720.1 | K190: 4863.1 | L190: 5270.1 | M190: 6348.1 | N190: 0 | O190: 10506.1 | P190: 11859.1 | Q190: 13476.1 | R190: 15665.1 | S190: 15940.1
D191: 1200 | E191: 11018.7 | F191: 17827.7 | G191: 12107.7 | H191: 14747.7 | I191: 0 | J191: 5562.7 | K191: 5738.7 | L191: 6266.7 | M191: 7685.7 | N191: 0 | O191: 12976.7 | P191: 14571.7 | Q191: 16837.7 | R191: 19686.7 | S191: 19664.7
D192: 1400 | E192: 12448.7 | F192: 20324.7 | G192: 13713.7 | H192: 16760.7 | I192: 0 | J192: 6145.7 | K192: 6354.7 | L192: 6959.7 | M192: 8598.7 | N192: 0 | O192: 14626.7 | P192: 16386.7 | Q192: 19092.7 | R192: 22381.7 | S192: 22172.7
D193: 1600 | E193: 13902.9 | F193: 22845.9 | G193: 15343.9 | H193: 18797.9 | I193: 0 | J193: 6763.9 | K193: 6994.9 | L193: 7687.9 | M193: 9546.9 | N193: 0 | O193: 16322.9 | P193: 18258.9 | Q193: 21382.9 | R193: 25122.9 | S193: 24715.9
D194: 1800 | E194: 15516.6 | F194: 25504.6 | G194: 17122.6 | H194: 20994.6 | I194: 0 | J194: 7519.6 | K194: 7783.6 | L194: 8553.6 | M194: 10632.6 | N194: 0 | O194: 18167.6 | P194: 20257.6 | Q194: 23821.6 | R194: 28001.6 | S194: 27396.6
B195: Кровать L-2150 мм., без основания и без матраца с наборным изголовьем | D195: 800 | E195: 8770.3 | F195: 13159.3 | G195: 9496.3 | H195: 11190.3 | I195: 5294.3 | J195: 5294.3 | K195: 5393.3 | L195: 5723.3 | M195: 6636.3 | N195: 11223.3 | O195: 11223.3 | P195: 13577.3 | Q195: 13687.3 | R195: 15524.3 | S195: 17086.3
D196: 900 | E196: 7593.3 | F196: 12466.3 | G196: 8319.3 | H196: 10134.3 | I196: 5393.3 | J196: 5393.3 | K196: 5536.3 | L196: 5899.3 | M196: 6911.3 | N196: 12125.3 | O196: 12125.3 | P196: 14655.3 | Q196: 14853.3 | R196: 16888.3 | S196: 18450.3
D197: 1200 | E197: 9012.3 | F197: 15359.3 | G197: 9969.3 | H197: 12334.3 | I197: 6163.3 | J197: 6163.3 | K197: 6328.3 | L197: 6834.3 | M197: 8121.3 | N197: 14798.3 | O197: 14798.3 | P197: 17977.3 | Q197: 18362.3 | R197: 21002.3 | S197: 22564.3
D198: 1400 | E198: 12763.3 | F198: 20089.3 | G198: 13940.3 | H198: 16756.3 | I198: 6900.3 | J198: 6900.3 | K198: 7087.3 | L198: 7670.3 | M198: 9188.3 | N198: 16558.3 | O198: 16558.3 | P198: 20177.3 | Q198: 20705.3 | R198: 23763.3 | S198: 25281.3
D199: 1600 | E199: 14105.3 | F199: 22410.3 | G199: 15414.3 | H199: 18626.3 | I199: 7439.3 | J199: 7439.3 | K199: 7670.3 | L199: 8297.3 | M199: 10046.3 | N199: 18329.3 | O199: 18329.3 | P199: 22344.3 | Q199: 23048.3 | R199: 26513.3 | S199: 28020.3
D200: 1800 | E200: 15403.3 | F200: 24709.3 | G200: 16921.3 | H200: 20496.3 | I200: 7967.3 | J200: 7967.3 | K200: 8209.3 | L200: 8946.3 | M200: 10882.3 | N200: 20089.3 | O200: 20089.3 | P200: 24544.3 | Q200: 25380.3 | R200: 29241.3 | S200: 30726.3
B201: Кровать 2 ящика 800х1600 | D201: 800 | E201: 12504.8 | F201: 14088.8 | G201: 12746.8 | H201: 13340.8 | I201: 0 | J201: 0 | K201: 0 | L201: 0 | M201: 0 | N201: 0 | O201: 14022.8 | P201: 14880.8 | Q201: 14902.8 | R201: 15562.8 | S201: 15958.8
B202: Кровать 2 ящика 800х2000 | D202: 800 | E202: 14153.7 | F202: 16133.7 | G202: 14461.7 | H202: 15187.7 | I202: 0 | J202: 0 | K202: 0 | L202: 0 | M202: 0 | N202: 0 | O202: 16001.7 | P202: 17035.7 | Q202: 17101.7 | R202: 17915.7 | S202: 18311.7
... 174 more rows

Sheet Альфа_Бета_пр
A1: МЕБЕЛЬ ДЛЯ ГОСТИННОЙ
A2: Наименование | B2: Эскиз | C2: Габариты, ШхГхВ мм. | D2: МДФ фасады
D3: 1 ЦК | E3: 1 ЦК + патина | F3: 2 ЦК | G3: 3 ЦК
A4: «Бета»
A5: Тумба ТВ 1160 | C5: 1160х550х460 | D5: =CEILING('Альфа_Бета_пр (2)'!D5*Титульный!$AY$1,Титульный!$AY$3) -> 11501 | E5: =CEILING('Альфа_Бета_пр (2)'!E5*Титульный!$AY$1,Титульный!$AY$3) -> 16154 | F5: =CEILING('Альфа_Бета_пр (2)'!F5*Титульный!$AY$1,Титульный!$AY$3) -> 12161 | G5: =CEILING('Альфа_Бета_пр (2)'!G5*Титульный!$AY$1,Титульный!$AY$3) -> 13789 | M5: - | N5: -
A6: Тумба ТВ 1160 ниша | C6: 1160х550х460 | D6: =CEILING('Альфа_Бета_пр (2)'!D6*Титульный!$AY$1,Титульный!$AY$3) -> 9875 | E6: =CEILING('Альфа_Бета_пр (2)'!E6*Титульный!$AY$1,Титульный!$AY$3) -> 14528 | F6: =CEILING('Альфа_Бета_пр (2)'!F6*Титульный!$AY$1,Титульный!$AY$3) -> 10535 | G6: =CEILING('Альфа_Бета_пр (2)'!G6*Титульный!$AY$1,Титульный!$AY$3) -> 12163 | M6: - | N6: -
A7: Тумба ТВ 1680 | C7: 1680х550х460 | D7: =CEILING('Альфа_Бета_пр (2)'!D7*Титульный!$AY$1,Титульный!$AY$3) -> 18579 | E7: =CEILING('Альфа_Бета_пр (2)'!E7*Титульный!$AY$1,Титульный!$AY$3) -> 25333 | F7: =CEILING('Альфа_Бета_пр (2)'!F7*Титульный!$AY$1,Титульный!$AY$3) -> 19547 | G7: =CEILING('Альфа_Бета_пр (2)'!G7*Титульный!$AY$1,Титульный!$AY$3) -> 21901 | M7: - | N7: -
A8: Тумба ТВ 1680 ниша | C8: 1680х550х460 | D8: =CEILING('Альфа_Бета_пр (2)'!D8*Титульный!$AY$1,Титульный!$AY$3) -> 16861 | E8: =CEILING('Альфа_Бета_пр (2)'!E8*Титульный!$AY$1,Титульный!$AY$3) -> 23615 | F8: =CEILING('Альфа_Бета_пр (2)'!F8*Титульный!$AY$1,Титульный!$AY$3) -> 17829 | G8: =CEILING('Альфа_Бета_пр (2)'!G8*Титульный!$AY$1,Титульный!$AY$3) -> 20183 | M8: - | N8: -
A9: Тумба ТВ 2320 | C9: 2320х550х460 | D9: =CEILING('Альфа_Бета_пр (2)'!D9*Титульный!$AY$1,Титульный!$AY$3) -> 22911 | E9: =CEILING('Альфа_Бета_пр (2)'!E9*Титульный!$AY$1,Титульный!$AY$3) -> 32217 | F9: =CEILING('Альфа_Бета_пр (2)'!F9*Титульный!$AY$1,Титульный!$AY$3) -> 24231 | G9: =CEILING('Альфа_Бета_пр (2)'!G9*Титульный!$AY$1,Титульный!$AY$3) -> 27465 | M9: - | N9: -
A10: Тумба ТВ 2320 ниша | C10: 2320х550х460 | D10: =CEILING('Альфа_Бета_пр (2)'!D10*Титульный!$AY$1,Титульный!$AY$3) -> 21288 | E10: =CEILING('Альфа_Бета_пр (2)'!E10*Титульный!$AY$1,Титульный!$AY$3) -> 30594 | F10: =CEILING('Альфа_Бета_пр (2)'!F10*Титульный!$AY$1,Титульный!$AY$3) -> 22608 | G10: =CEILING('Альфа_Бета_пр (2)'!G10*Титульный!$AY$1,Титульный!$AY$3) -> 25842 | M10: - | N10: -
A11: Шкаф 1260х1630 ящики | C11: 1260х340х1630 | D11: =CEILING('Альфа_Бета_пр (2)'!D11*Титульный!$AY$1,Титульный!$AY$3) -> 21115 | E11: =CEILING('Альфа_Бета_пр (2)'!E11*Титульный!$AY$1,Титульный!$AY$3) -> 29618 | F11: =CEILING('Альфа_Бета_пр (2)'!F11*Титульный!$AY$1,Титульный!$AY$3) -> 22292 | G11: =CEILING('Альфа_Бета_пр (2)'!G11*Титульный!$AY$1,Титульный!$AY$3) -> 25163 | M11: - | N11: -
A12: Шкаф 1260х1630 ящ. стекло | C12: 1260х340х1630 | D12: =CEILING('Альфа_Бета_пр (2)'!D12*Титульный!$AY$1,Титульный!$AY$3) -> 20327 | E12: =CEILING('Альфа_Бета_пр (2)'!E12*Титульный!$AY$1,Титульный!$AY$3) -> 28830 | F12: =CEILING('Альфа_Бета_пр (2)'!F12*Титульный!$AY$1,Титульный!$AY$3) -> 21504 | G12: =CEILING('Альфа_Бета_пр (2)'!G12*Титульный!$AY$1,Титульный!$AY$3) -> 24375 | M12: - | N12: -
A13: Шкаф 420х1630 Л/П* | C13: 420х340х1630 | D13: =CEILING('Альфа_Бета_пр (2)'!D13*Титульный!$AY$1,Титульный!$AY$3) -> 7053 | E13: =CEILING('Альфа_Бета_пр (2)'!E13*Титульный!$AY$1,Титульный!$AY$3) -> 9891 | F13: =CEILING('Альфа_Бета_пр (2)'!F13*Титульный!$AY$1,Титульный!$AY$3) -> 7449 | G13: =CEILING('Альфа_Бета_пр (2)'!G13*Титульный!$AY$1,Титульный!$AY$3) -> 8406 | M13: - | N13: -
A14: Шкаф 420х1630 Л/П* стекло | C14: 420х340х1630 | D14: =CEILING('Альфа_Бета_пр (2)'!D14*Титульный!$AY$1,Титульный!$AY$3) -> 6796 | E14: =CEILING('Альфа_Бета_пр (2)'!E14*Титульный!$AY$1,Титульный!$AY$3) -> 9634 | F14: =CEILING('Альфа_Бета_пр (2)'!F14*Титульный!$AY$1,Титульный!$AY$3) -> 7192 | G14: =CEILING('Альфа_Бета_пр (2)'!G14*Титульный!$AY$1,Титульный!$AY$3) -> 8149 | M14: - | N14: -
A15: Шкаф 420х2030 1 дв стекло | C15: 420х340х2030 | D15: =CEILING('Альфа_Бета_пр (2)'!D15*Титульный!$AY$1,Титульный!$AY$3) -> 8107 | E15: =CEILING('Альфа_Бета_пр (2)'!E15*Титульный!$AY$1,Титульный!$AY$3) -> 11649 | F15: =CEILING('Альфа_Бета_пр (2)'!F15*Титульный!$AY$1,Титульный!$AY$3) -> 8591 | G15: =CEILING('Альфа_Бета_пр (2)'!G15*Титульный!$AY$1,Титульный!$AY$3) -> 9801 | M15: - | N15: -
A16: Шкаф 420х2030 2 дв | C16: 420х340х2030 | D16: =CEILING('Альфа_Бета_пр (2)'!D16*Титульный!$AY$1,Титульный!$AY$3) -> 8929 | E16: =CEILING('Альфа_Бета_пр (2)'!E16*Титульный!$AY$1,Титульный!$AY$3) -> 12471 | F16: =CEILING('Альфа_Бета_пр (2)'!F16*Титульный!$AY$1,Титульный!$AY$3) -> 9435 | G16: =CEILING('Альфа_Бета_пр (2)'!G16*Титульный!$AY$1,Титульный!$AY$3) -> 10623 | M16: - | N16: -
A17: Шкаф 840х1630 2 дв | C17: 840х340х1630 | D17: =CEILING('Альфа_Бета_пр (2)'!D17*Титульный!$AY$1,Титульный!$AY$3) -> 12109 | E17: =CEILING('Альфа_Бета_пр (2)'!E17*Титульный!$AY$1,Титульный!$AY$3) -> 17785 | F17: =CEILING('Альфа_Бета_пр (2)'!F17*Титульный!$AY$1,Титульный!$AY$3) -> 12901 | G17: =CEILING('Альфа_Бета_пр (2)'!G17*Титульный!$AY$1,Титульный!$AY$3) -> 14815 | M17: - | N17: -
A18: Шкаф 840х1630 2 дв стекло | C18: 840х340х1630 | D18: =CEILING('Альфа_Бета_пр (2)'!D18*Титульный!$AY$1,Титульный!$AY$3) -> 11359 | E18: =CEILING('Альфа_Бета_пр (2)'!E18*Титульный!$AY$1,Титульный!$AY$3) -> 17035 | F18: =CEILING('Альфа_Бета_пр (2)'!F18*Титульный!$AY$1,Титульный!$AY$3) -> 12151 | G18: =CEILING('Альфа_Бета_пр (2)'!G18*Титульный!$AY$1,Титульный!$AY$3) -> 14065 | M18: - | N18: -
A19: Шкаф 840х2030 2 дв стекло | C19: 840х340х2030 | D19: =CEILING('Альфа_Бета_пр (2)'!D19*Титульный!$AY$1,Титульный!$AY$3) -> 13778 | E19: =CEILING('Альфа_Бета_пр (2)'!E19*Титульный!$AY$1,Титульный!$AY$3) -> 20862 | F19: =CEILING('Альфа_Бета_пр (2)'!F19*Титульный!$AY$1,Титульный!$AY$3) -> 14746 | G19: =CEILING('Альфа_Бета_пр (2)'!G19*Титульный!$AY$1,Титульный!$AY$3) -> 17166 | M19: - | N19: -
A20: Шкаф 840х2030 4 дв | C20: 840х340х2030 | D20: =CEILING('Альфа_Бета_пр (2)'!D20*Титульный!$AY$1,Титульный!$AY$3) -> 15413 | E20: =CEILING('Альфа_Бета_пр (2)'!E20*Титульный!$AY$1,Титульный!$AY$3) -> 22497 | F20: =CEILING('Альфа_Бета_пр (2)'!F20*Титульный!$AY$1,Титульный!$AY$3) -> 16425 | G20: =CEILING('Альфа_Бета_пр (2)'!G20*Титульный!$AY$1,Титульный!$AY$3) -> 18801 | M20: - | N20: -
A21: Шкаф антр.навесной 840х420 | C21: 840х340х420 | D21: =CEILING('Альфа_Бета_пр (2)'!D21*Титульный!$AY$1,Титульный!$AY$3) -> 4084 | E21: =CEILING('Альфа_Бета_пр (2)'!E21*Титульный!$AY$1,Титульный!$AY$3) -> 5569 | F21: =CEILING('Альфа_Бета_пр (2)'!F21*Титульный!$AY$1,Титульный!$AY$3) -> 4282 | G21: =CEILING('Альфа_Бета_пр (2)'!G21*Титульный!$AY$1,Титульный!$AY$3) -> 4788 | M21: - | N21: -
A22: Шкаф антр.навесной 840х420 стекло | C22: 840х340х420 | D22: =CEILING('Альфа_Бета_пр (2)'!D22*Титульный!$AY$1,Титульный!$AY$3) -> 4099 | E22: =CEILING('Альфа_Бета_пр (2)'!E22*Титульный!$AY$1,Титульный!$AY$3) -> 5584 | F22: =CEILING('Альфа_Бета_пр (2)'!F22*Титульный!$AY$1,Титульный!$AY$3) -> 4297 | G22: =CEILING('Альфа_Бета_пр (2)'!G22*Титульный!$AY$1,Титульный!$AY$3) -> 4803 | M22: - | N22: -
A23: Шкаф антр.навесной 1160х420 | C23: 1160х340х420 | D23: =CEILING('Альфа_Бета_пр (2)'!D23*Титульный!$AY$1,Титульный!$AY$3) -> 4879 | E23: =CEILING('Альфа_Бета_пр (2)'!E23*Титульный!$AY$1,Титульный!$AY$3) -> 6925 | F23: =CEILING('Альфа_Бета_пр (2)'!F23*Титульный!$AY$1,Титульный!$AY$3) -> 5165 | G23: =CEILING('Альфа_Бета_пр (2)'!G23*Титульный!$AY$1,Титульный!$AY$3) -> 5858 | M23: - | N23: -
A24: Шкаф антр.навесной 1160х420 стекло | C24: 1160х340х420 | D24: =CEILING('Альфа_Бета_пр (2)'!D24*Титульный!$AY$1,Титульный!$AY$3) -> 5019 | E24: =CEILING('Альфа_Бета_пр (2)'!E24*Титульный!$AY$1,Титульный!$AY$3) -> 7065 | F24: =CEILING('Альфа_Бета_пр (2)'!F24*Титульный!$AY$1,Титульный!$AY$3) -> 5305 | G24: =CEILING('Альфа_Бета_пр (2)'!G24*Титульный!$AY$1,Титульный!$AY$3) -> 5998 | M24: - | N24: -
A25: Шкаф навесной 420х1200 | C25: 420х340х1200 | D25: =CEILING('Альфа_Бета_пр (2)'!D25*Титульный!$AY$1,Титульный!$AY$3) -> 5106 | E25: =CEILING('Альфа_Бета_пр (2)'!E25*Титульный!$AY$1,Титульный!$AY$3) -> 7229 | F25: =CEILING('Альфа_Бета_пр (2)'!F25*Титульный!$AY$1,Титульный!$AY$3) -> 5392 | G25: =CEILING('Альфа_Бета_пр (2)'!G25*Титульный!$AY$1,Титульный!$AY$3) -> 6118 | M25: - | N25: -
A26: Шкаф навесной 420х1200 стекло | C26: 420х340х1200 | D26: =CEILING('Альфа_Бета_пр (2)'!D26*Титульный!$AY$1,Титульный!$AY$3) -> 4810 | E26: =CEILING('Альфа_Бета_пр (2)'!E26*Титульный!$AY$1,Титульный!$AY$3) -> 6933 | F26: =CEILING('Альфа_Бета_пр (2)'!F26*Титульный!$AY$1,Титульный!$AY$3) -> 5096 | G26: =CEILING('Альфа_Бета_пр (2)'!G26*Титульный!$AY$1,Титульный!$AY$3) -> 5822 | M26: - | N26: -
A27: Шкаф навесной 420х1400 | C27: 420х340х1400 | D27: =CEILING('Альфа_Бета_пр (2)'!D27*Титульный!$AY$1,Титульный!$AY$3) -> 5830 | E27: =CEILING('Альфа_Бета_пр (2)'!E27*Титульный!$AY$1,Титульный!$AY$3) -> 8305 | F27: =CEILING('Альфа_Бета_пр (2)'!F27*Титульный!$AY$1,Титульный!$AY$3) -> 6171 | G27: =CEILING('Альфа_Бета_пр (2)'!G27*Титульный!$AY$1,Титульный!$AY$3) -> 7018 | M27: - | N27: -
A28: Шкаф навесной 420х1400 стекло | C28: 420х340х1400 | D28: =CEILING('Альфа_Бета_пр (2)'!D28*Титульный!$AY$1,Титульный!$AY$3) -> 5378 | E28: =CEILING('Альфа_Бета_пр (2)'!E28*Титульный!$AY$1,Титульный!$AY$3) -> 7853 | F28: =CEILING('Альфа_Бета_пр (2)'!F28*Титульный!$AY$1,Титульный!$AY$3) -> 5719 | G28: =CEILING('Альфа_Бета_пр (2)'!G28*Титульный!$AY$1,Титульный!$AY$3) -> 6566 | M28: - | N28: -
A29: Панель 840х400 | C29: 840х16х398 | D29: =CEILING('Альфа_Бета_пр (2)'!D29*Титульный!$AY$1,Титульный!$AY$3) -> 1600 | E29: =CEILING('Альфа_Бета_пр (2)'!E29*Титульный!$AY$1,Титульный!$AY$3) -> 3019 | F29: =CEILING('Альфа_Бета_пр (2)'!F29*Титульный!$AY$1,Титульный!$AY$3) -> 1798 | G29: =CEILING('Альфа_Бета_пр (2)'!G29*Титульный!$AY$1,Титульный!$AY$3) -> 2282 | M29: - | N29: -
A30: Панель 840х400 полка | C30: 840х220х398 | D30: =CEILING('Альфа_Бета_пр (2)'!D30*Титульный!$AY$1,Титульный!$AY$3) -> 2660 | E30: =CEILING('Альфа_Бета_пр (2)'!E30*Титульный!$AY$1,Титульный!$AY$3) -> 4079 | F30: =CEILING('Альфа_Бета_пр (2)'!F30*Титульный!$AY$1,Титульный!$AY$3) -> 2858 | G30: =CEILING('Альфа_Бета_пр (2)'!G30*Титульный!$AY$1,Титульный!$AY$3) -> 3342 | M30: - | N30: -
A31: Панель 1160х400 | C31: 1160х16х398 | D31: =CEILING('Альфа_Бета_пр (2)'!D31*Титульный!$AY$1,Титульный!$AY$3) -> 2084 | E31: =CEILING('Альфа_Бета_пр (2)'!E31*Титульный!$AY$1,Титульный!$AY$3) -> 4031 | F31: =CEILING('Альфа_Бета_пр (2)'!F31*Титульный!$AY$1,Титульный!$AY$3) -> 2348 | G31: =CEILING('Альфа_Бета_пр (2)'!G31*Титульный!$AY$1,Титульный!$AY$3) -> 3008 | M31: - | N31: -
A32: Панель 1160х400 полка | C32: 1160х220х398 | D32: =CEILING('Альфа_Бета_пр (2)'!D32*Титульный!$AY$1,Титульный!$AY$3) -> 3144 | E32: =CEILING('Альфа_Бета_пр (2)'!E32*Титульный!$AY$1,Титульный!$AY$3) -> 5091 | F32: =CEILING('Альфа_Бета_пр (2)'!F32*Титульный!$AY$1,Титульный!$AY$3) -> 3408 | G32: =CEILING('Альфа_Бета_пр (2)'!G32*Титульный!$AY$1,Титульный!$AY$3) -> 4068 | M32: - | N32: -
A33: Панель 1360х400 | C33: 1360х16х398 | D33: =CEILING('Альфа_Бета_пр (2)'!D33*Титульный!$AY$1,Титульный!$AY$3) -> 2370 | E33: =CEILING('Альфа_Бета_пр (2)'!E33*Титульный!$AY$1,Титульный!$AY$3) -> 4669 | F33: =CEILING('Альфа_Бета_пр (2)'!F33*Титульный!$AY$1,Титульный!$AY$3) -> 2689 | G33: =CEILING('Альфа_Бета_пр (2)'!G33*Титульный!$AY$1,Титульный!$AY$3) -> 3470 | M33: - | N33: -
A34: Панель 1360х400 полка | C34: 1360х220х398 | D34: =CEILING('Альфа_Бета_пр (2)'!D34*Титульный!$AY$1,Титульный!$AY$3) -> 3430 | E34: =CEILING('Альфа_Бета_пр (2)'!E34*Титульный!$AY$1,Титульный!$AY$3) -> 5729 | F34: =CEILING('Альфа_Бета_пр (2)'!F34*Титульный!$AY$1,Титульный!$AY$3) -> 3749 | G34: =CEILING('Альфа_Бета_пр (2)'!G34*Титульный!$AY$1,Титульный!$AY$3) -> 4530 | M34: - | N34: -
A35: «Альфа» | M35: - | N35: -
A36: Шкаф МЦ | C36: 840х580х2100 | D36: =CEILING('Альфа_Бета_пр (2)'!D36*Титульный!$AY$1,Титульный!$AY$3) -> 22480 | E36: =CEILING('Альфа_Бета_пр (2)'!E36*Титульный!$AY$1,Титульный!$AY$3) -> 30862 | F36: =CEILING('Альфа_Бета_пр (2)'!F36*Титульный!$AY$1,Титульный!$AY$3) -> 23646 | G36: =CEILING('Альфа_Бета_пр (2)'!G36*Титульный!$AY$1,Титульный!$AY$3) -> 26506 | M36: - | N36: -
A37: Шкаф книжный | C37: 840х580х2040 | D37: =CEILING('Альфа_Бета_пр (2)'!D37*Титульный!$AY$1,Титульный!$AY$3) -> 19579 | E37: =CEILING('Альфа_Бета_пр (2)'!E37*Титульный!$AY$1,Титульный!$AY$3) -> 27609 | F37: =CEILING('Альфа_Бета_пр (2)'!F37*Титульный!$AY$1,Титульный!$AY$3) -> 20712 | G37: =CEILING('Альфа_Бета_пр (2)'!G37*Титульный!$AY$1,Титульный!$AY$3) -> 23440 | M37: - | N37: -
A38: Шкаф комб.низкий | C38: 840х580х1540 | D38: =CEILING('Альфа_Бета_пр (2)'!D38*Титульный!$AY$1,Титульный!$AY$3) -> 16393 | E38: =CEILING('Альфа_Бета_пр (2)'!E38*Титульный!$AY$1,Титульный!$AY$3) -> 22663 | F38: =CEILING('Альфа_Бета_пр (2)'!F38*Титульный!$AY$1,Титульный!$AY$3) -> 17284 | G38: =CEILING('Альфа_Бета_пр (2)'!G38*Титульный!$AY$1,Титульный!$AY$3) -> 19418 | M38: - | N38: -
A39: Шк комб. с баром | C39: 840х580х2040 | D39: =CEILING('Альфа_Бета_пр (2)'!D39*Титульный!$AY$1,Титульный!$AY$3) -> 18540 | E39: =CEILING('Альфа_Бета_пр (2)'!E39*Титульный!$AY$1,Титульный!$AY$3) -> 25525 | F39: =CEILING('Альфа_Бета_пр (2)'!F39*Титульный!$AY$1,Титульный!$AY$3) -> 19519 | G39: =CEILING('Альфа_Бета_пр (2)'!G39*Титульный!$AY$1,Титульный!$AY$3) -> 21895 | M39: - | N39: -
A40: Шкаф ТВ высокий | C40: 840х580х2040 | D40: =CEILING('Альфа_Бета_пр (2)'!D40*Титульный!$AY$1,Титульный!$AY$3) -> 16356 | E40: =CEILING('Альфа_Бета_пр (2)'!E40*Титульный!$AY$1,Титульный!$AY$3) -> 22626 | F40: =CEILING('Альфа_Бета_пр (2)'!F40*Титульный!$AY$1,Титульный!$AY$3) -> 17247 | G40: =CEILING('Альфа_Бета_пр (2)'!G40*Титульный!$AY$1,Титульный!$AY$3) -> 19381 | M40: - | N40: -
A41: Шкаф ТВ низкий | C41: 840х580х1540 | D41: =CEILING('Альфа_Бета_пр (2)'!D41*Титульный!$AY$1,Титульный!$AY$3) -> 13186 | E41: =CEILING('Альфа_Бета_пр (2)'!E41*Титульный!$AY$1,Титульный!$AY$3) -> 18136 | F41: =CEILING('Альфа_Бета_пр (2)'!F41*Титульный!$AY$1,Титульный!$AY$3) -> 13890 | G41: =CEILING('Альфа_Бета_пр (2)'!G41*Титульный!$AY$1,Титульный!$AY$3) -> 15584 | M41: - | N41: -
A42: Шк комб.с ящ. Л/П* | C42: 840х580х2040 | D42: =CEILING('Альфа_Бета_пр (2)'!D42*Титульный!$AY$1,Титульный!$AY$3) -> 21017 | E42: =CEILING('Альфа_Бета_пр (2)'!E42*Титульный!$AY$1,Титульный!$AY$3) -> 28354 | F42: =CEILING('Альфа_Бета_пр (2)'!F42*Титульный!$AY$1,Титульный!$AY$3) -> 22040 | G42: =CEILING('Альфа_Бета_пр (2)'!G42*Титульный!$AY$1,Титульный!$AY$3) -> 24537 | M42: - | N42: -
A43: Шкаф ДО | C43: 840х580х2040 | D43: =CEILING('Альфа_Бета_пр (2)'!D43*Титульный!$AY$1,Титульный!$AY$3) -> 15097 | E43: =CEILING('Альфа_Бета_пр (2)'!E43*Титульный!$AY$1,Титульный!$AY$3) -> 22181 | F43: =CEILING('Альфа_Бета_пр (2)'!F43*Титульный!$AY$1,Титульный!$AY$3) -> 16065 | G43: =CEILING('Альфа_Бета_пр (2)'!G43*Титульный!$AY$1,Титульный!$AY$3) -> 18485 | M43: - | N43: -
A44: Шкаф торц. низ. Л/П* | C44: 580х580х1540 | D44: =CEILING('Альфа_Бета_пр (2)'!D44*Титульный!$AY$1,Титульный!$AY$3) -> 15149 | E44: =CEILING('Альфа_Бета_пр (2)'!E44*Титульный!$AY$1,Титульный!$AY$3) -> 21342 | F44: =CEILING('Альфа_Бета_пр (2)'!F44*Титульный!$AY$1,Титульный!$AY$3) -> 16018 | G44: =CEILING('Альфа_Бета_пр (2)'!G44*Титульный!$AY$1,Титульный!$AY$3) -> 18130 | M44: - | N44: -
A45: Шкаф торц. Л/П* | C45: 580х580х2040 | D45: =CEILING('Альфа_Бета_пр (2)'!D45*Титульный!$AY$1,Титульный!$AY$3) -> 17671 | E45: =CEILING('Альфа_Бета_пр (2)'!E45*Титульный!$AY$1,Титульный!$AY$3) -> 25305 | F45: =CEILING('Альфа_Бета_пр (2)'!F45*Титульный!$AY$1,Титульный!$AY$3) -> 18738 | G45: =CEILING('Альфа_Бета_пр (2)'!G45*Титульный!$AY$1,Титульный!$AY$3) -> 21345 | M45: - | N45: -
A46: Тумба ТВ | C46: 840х580х700 | D46: =CEILING('Альфа_Бета_пр (2)'!D46*Титульный!$AY$1,Титульный!$AY$3) -> 9460 | E46: =CEILING('Альфа_Бета_пр (2)'!E46*Титульный!$AY$1,Титульный!$AY$3) -> 13244 | F46: =CEILING('Альфа_Бета_пр (2)'!F46*Титульный!$AY$1,Титульный!$AY$3) -> 9999 | G46: =CEILING('Альфа_Бета_пр (2)'!G46*Титульный!$AY$1,Титульный!$AY$3) -> 11297 | M46: - | N46: -
A47: Тумба ТВ 1 ящ. | C47: 840х580х550 | D47: =CEILING('Альфа_Бета_пр (2)'!D47*Титульный!$AY$1,Титульный!$AY$3) -> 7881 | E47: =CEILING('Альфа_Бета_пр (2)'!E47*Титульный!$AY$1,Титульный!$AY$3) -> 11665 | F47: =CEILING('Альфа_Бета_пр (2)'!F47*Титульный!$AY$1,Титульный!$AY$3) -> 8420 | G47: =CEILING('Альфа_Бета_пр (2)'!G47*Титульный!$AY$1,Титульный!$AY$3) -> 9718 | M47: - | N47: -
A48: Тумба угл. Л/П* | C48: 580х580х1540 | D48: =CEILING('Альфа_Бета_пр (2)'!D48*Титульный!$AY$1,Титульный!$AY$3) -> 10017 | E48: =CEILING('Альфа_Бета_пр (2)'!E48*Титульный!$AY$1,Титульный!$AY$3) -> 14461 | F48: =CEILING('Альфа_Бета_пр (2)'!F48*Титульный!$AY$1,Титульный!$AY$3) -> 10655 | G48: =CEILING('Альфа_Бета_пр (2)'!G48*Титульный!$AY$1,Титульный!$AY$3) -> 12173 | M48: - | N48: -
A49: Полка угл. Л/П* | C49: 420х420х420 | D49: =CEILING('Альфа_Бета_пр (2)'!D49*Титульный!$AY$1,Титульный!$AY$3) -> 1407 | E49: =CEILING('Альфа_Бета_пр (2)'!E49*Титульный!$AY$1,Титульный!$AY$3) -> 1803 | F49: =CEILING('Альфа_Бета_пр (2)'!F49*Титульный!$AY$1,Титульный!$AY$3) -> 1451 | G49: =CEILING('Альфа_Бета_пр (2)'!G49*Титульный!$AY$1,Титульный!$AY$3) -> 1583 | M49: - | N49: -
A50: Пенал ДБ | C50: 420х580х2040 | D50: =CEILING('Альфа_Бета_пр (2)'!D50*Титульный!$AY$1,Титульный!$AY$3) -> 9531 | E50: =CEILING('Альфа_Бета_пр (2)'!E50*Титульный!$AY$1,Титульный!$AY$3) -> 13073 | F50: =CEILING('Альфа_Бета_пр (2)'!F50*Титульный!$AY$1,Титульный!$AY$3) -> 10015 | G50: =CEILING('Альфа_Бета_пр (2)'!G50*Титульный!$AY$1,Титульный!$AY$3) -> 11225 | M50: - | N50: -
A51: Сириус
A52: Сириус | D52: =CEILING('Альфа_Бета_пр (2)'!D52*Титульный!$AY$1,Титульный!$AY$3) -> 55607 | E52: =CEILING('Альфа_Бета_пр (2)'!E52*Титульный!$AY$1,Титульный!$AY$3) -> 81127 | F52: =CEILING('Альфа_Бета_пр (2)'!F52*Титульный!$AY$1,Титульный!$AY$3) -> 59127 | G52: =CEILING('Альфа_Бета_пр (2)'!G52*Титульный!$AY$1,Титульный!$AY$3) -> 67927

Sheet Альфа_Бета_пр (2) (hidden)
A1: МЕБЕЛЬ ДЛЯ ГОСТИННОЙ
A2: Наименование | B2: Эскиз | C2: Габариты, ШхГхВ мм. | D2: МДФ фасады
D3: 1 ЦК | E3: 1 ЦК + патина | F3: 2 ЦК | G3: 3 ЦК | H3: 1.1
A4: «Бета»
A5: Тумба ТВ 1160 | D5: 11500.5 | E5: 16153.5 | F5: 12160.5 | G5: 13788.5 | I5: =D5*$H$3 -> 12650.55 | J5: =E5*$H$3 -> 17768.85 | K5: 13376.55 | L5: 15167.35
A6: Тумба ТВ 1160 ниша | D6: 9874.7 | E6: 14527.7 | F6: 10534.7 | G6: 12162.7 | I6: =D6*$H$3 -> 10862.17 | J6: =E6*$H$3 -> 15980.47 | K6: =F6*$H$3 -> 11588.17 | L6: =G6*$H$3 -> 13378.97
A7: Тумба ТВ 1680 | D7: 18579 | E7: 25333 | F7: 19547 | G7: 21901 | I7: 20436.9 | J7: 27866.3 | K7: 21501.7 | L7: 24091.1
A8: Тумба ТВ 1680 ниша | D8: 16860.8 | E8: 23614.8 | F8: 17828.8 | G8: 20182.8 | I8: 18546.88 | J8: 25976.28 | K8: 19611.68 | L8: 22201.08
A9: Тумба ТВ 2320 | D9: 22910.8 | E9: 32216.8 | F9: 24230.8 | G9: 27464.8 | I9: 25201.88 | J9: 35438.48 | K9: 26653.88 | L9: 30211.28
A10: Тумба ТВ 2320 ниша | D10: 21287.2 | E10: 30593.2 | F10: 22607.2 | G10: 25841.2 | I10: 23415.92 | J10: 33652.52 | K10: 24867.92 | L10: 28425.32
A11: Шкаф 1260х1630 ящики | D11: 21114.5 | E11: 29617.5 | F11: 22291.5 | G11: 25162.5 | I11: 23225.95 | J11: 32579.25 | K11: 24520.65 | L11: 27678.75
A12: Шкаф 1260х1630 ящ. стекло | D12: 20326.9 | E12: 28829.9 | F12: 21503.9 | G12: 24374.9 | I12: 22359.59 | J12: 31712.89 | K12: 23654.29 | L12: 26812.39
A13: Шкаф 420х1630 Л/П* | D13: 7052.1 | E13: 9890.1 | F13: 7448.1 | G13: 8405.1 | I13: 7757.31 | J13: 10879.11 | K13: 8192.91 | L13: 9245.61
A14: Шкаф 420х1630 Л/П* стекло | D14: 6795.8 | E14: 9633.8 | F14: 7191.8 | G14: 8148.8 | I14: 7475.38 | J14: 10597.18 | K14: 7910.98 | L14: 8963.68
